{"text_format":"1","workbook":"xlsx","n_sheets":23,"sheets":["Intro.","MOU","INPUT","Program Result","Calculation not used","Utility Result","Calc","Result 1","Result 2","R-ER","R-LTG","R-RR","R-AD","R-Edu","R-NC","R-OBF","R-DR","NR-PR","NR-AD","NR-NC","NR-CR","EIA","EIA file3"],"not_rendered":{"charts":19,"images":2,"macros":1,"external_links":0,"defined_names":37,"comments":2,"pivot_tables":0},"unopened":[],"bounds":{"document_bytes":16777216,"sheet_cells":100000,"rows_first":2000,"rows_last":500,"rows_between":2000,"halvings":0,"cell_chars":16384,"cell_head_chars":4096},"cells_cut":0,"cells_raw":0,"read":"whole","date_system":"1900"}

{"sheet":"Intro.","index":0,"n_rows":51,"n_cols":9,"rows_kept":51,"cut":false,"hidden":false,"merged":[[50,1,50,2]]}
[null,null,null,null,"Budget and Saving Estimate Calculator"]
[null,null,null,null,null,null,"Version 1.1",null,"2/24/2012"]
[]
[]
[]
[]
[]
[null,"Saving Energy and Money: HOW TO START, EXPAND, OR REFINE MOU PROGRAMS,"]
[null,"A Guide to Best Practices for Energy Efficiency in Locally Governed Electric Service Areas in the State"]
[]
[null,"Instructions:"]
[null,"INPUT tab"]
[null,"Municipal Owned Utility Information"]
[null,null,"Utility Name: Choose the utility name from the drop down list"]
[null,null,"Commercial Customer Number: Enter the commercial customer number"]
[null,null,"Residential Customer Number: Enter the residential customer number"]
[null,null,"Industrial Customer Number: Enter the industrial customer number"]
[null,null,"Utility Rate ($/kWh): Enter the electricity rate in utility's service territory"]
[null,null,"Reference: The reference data is based on EIA-861 database 2009"]
[]
[null,"Energy Efficiency Program Selection (Residential and Commercial)"]
[null,null,"Select this program? Check the checkbox if you want to implement this energy efficiency program"]
[null,null,"Total EE Program Budget: Enter the budget for this energy efficiency program"]
[null,null,"Years over which program occurs: Enter how many years will the energy effciency program be implemented"]
[null,null,"First Year Participation Rate: The first year participation rate is shown for this energy efficiency program"]
[null,null,"Savings/participation: The savings/participation is shown for this energy efficiency program"]
[]
[null,"Program Result tab"]
[null,null,"Administration: Internal energy efficiency program administration budget"]
[null,null,"Third-party contractor: Third party contractor budget"]
[null,null,"Marketing and advertising: Marketing and advertising budget"]
[null,null,"Incentive: Incentive budget for the energy efficiency program"]
[null,null,"EM&V: Evaluation Measurement and Verification budget"]
[null,null,"Cost Saving ($/kWh) except DR program ($/kW): Cost saving for energy efficiency program ($/kWh). For demand response program, the cost saving is in $/kW unit."]
[null,null,"Savings annually (kWh) except DR program (kW): Savings in kWh, for demand response program, the savings is shown in kW."]
[null,null,"Staff Needed (FTE): The staff number is needed for energy efficiency program."]
[null,null,"Participation in 1st year: The energy efficiency program participation rate in the 1st year."]
[null,null,"Participation in 2nd year: The energy efficiency program participation rate in the 2nd year."]
[null,null,"Participation in 3rd year: The energy efficiency program participation rate in the 3rd year."]
[null,null,"Participation annually after 3 years: The energy efficiency program participation rate after 3 years."]
[null,null,"Chart: The chart shows the budget breakdown in each category. "]
[]
[null,"Utility Result tab"]
[null,null,"Cost: The total cost for energy efficiency programs and the breakdown in each sub-category"]
[null,null,"Savings: The savings from energy efficiency programs, kWh from all programs except Demand Response program. kW saving is from Demand Response program."]
[]
[]
[null,"Suggestions?",null,"Please send your suggestions to jshao@nexant.com"]
[]
[null,"Copyright © 2012 Nexant, Inc."]
[null,"www.nexant.com"]

{"sheet":"MOU","index":1,"n_rows":26,"n_cols":11,"rows_kept":26,"cut":false,"hidden":true,"merged":[]}
["Note:"]
["Ask for local MOU's condition, interest, budget and market potential etc."]
["Need to distinguish between starting from scratch and expanding EE programs"]
[]
["Part I"]
[null,"Texas Locally Governed Utility characteristics"]
[null,null,null,null,null,null,null,null,null,null,"Comments"]
[null,"Existing Energy Efficienty Program #"]
[null,"Residential Customer #"]
[null,"Commercial Customer #"]
[null,"Demand Cost",null,null,null,null,null,null,null,"$/kW","used for cost saving analysis"]
[null,"Energy Cost",null,null,null,null,null,null,null,"$/kWh","used for cost saving analysis"]
[null,"Funding available annually",null,null,null,null,null,null,null,"$","help determine the EE program selection"]
[null,"Staff # available for EE program",null,null,null,null,null,null,null,null,"help determine the EE program selection"]
[]
["Part II"]
[null,"Priorities","(rating from 1-10, 10 is highest priority, 1 is lowest priority)"]
[]
[null,"Obtain the most energy savings for the lowest cost"]
[null,"Reduce peak load to avoid high peaking costs or blown-outs"]
[null,"Good utility public relations value"]
[null,"Contributes to local economic growth (Job Creation)"]
[null,"Educate or transform the community to be aware of EE"]
[null,"Incentivize cutting edge technologies"]
[]
["Part III"]

{"sheet":"INPUT","index":2,"n_rows":27,"n_cols":13,"rows_kept":27,"cut":false,"hidden":false,"merged":[[1,9,2,12],[7,5,7,6],[11,5,11,6],[14,2,14,3],[21,2,21,3],[8,5,8,6],[9,5,9,6],[10,5,10,6]]}
[]
[null,null,null,null,null,null,null,null,null,"Budget and Saving Estimate Calculator"]
[]
[null,null,null,null,null,null,null,null,null,null,null,"Deveoped by"]
[]
[]
[null,null,"Municipal Owned Utility Information"]
[null,null,null,"Utility Name",null,null,null,"Reference"]
[null,null,null,"Commercial Customer Number",null,null,null,{"$f":"VLOOKUP(F8,EIA!B2:AO75,25,FALSE)","v":{"$error":"#N/A"}}]
[null,null,null,"Residential Customer Number",null,null,null,{"$f":"VLOOKUP(F8,EIA!B2:AO75,22,FALSE)","v":{"$error":"#N/A"}}]
[null,null,null,"Industrial Customer Number",null,null,null,{"$f":"VLOOKUP(F8,EIA!B2:AO75,28,FALSE)","v":{"$error":"#N/A"}}]
[null,null,null,"Utility Rate ($/kWh)"]
[]
[null,null,"Energy Efficiency Program Selection"]
[null,null,"Residential",null,null,"Residential Equipment Rebate Program","Residential Lighting Program","Residential Refrigerator Recycling Program","Residential Audit and Weatherization Program","Energy Efficiency Education","Residential New Construction Program","On-bill Financing Program","Residential Demand Response Program"]
[null,null,null,"Select this program?",null,false,false,false,false,false,false,false,false]
[null,null,null,"Annual EE Program Budget"]
[null,null,null,"Years over which program occurs",null,1,1,1,1,1,1,1,1]
[null,null,null,"First Year Participation Rate",null,{"$f":"IF(OR(Calc!D14=\"\",Calc!D14=\"-\",F16=FALSE),\"\",Calc!D14)","v":""},{"$f":"IF(OR(Calc!E14=\"\",Calc!E14=\"-\",G16=FALSE),\"\",Calc!E14)","v":""},{"$f":"IF(OR(Calc!F14=\"\",Calc!F14=\"-\",H16=FALSE),\"\",Calc!F14)","v":""},{"$f":"IF(OR(Calc!G14=\"\",Calc!G14=\"-\",I16=FALSE),\"\",Calc!G14)","v":""},{"$f":"IF(OR(Calc!H14=\"\",Calc!H14=\"-\",J16=FALSE),\"\",Calc!H14)","v":""},{"$f":"IF(OR(Calc!I14=\"\",Calc!I14=\"-\",K16=FALSE),\"\",Calc!I14)","v":""},{"$f":"IF(OR(Calc!J14=\"\",Calc!J14=\"-\",L16=FALSE),\"\",Calc!J14)","v":""},{"$f":"IF(OR(Calc!K14=\"\",Calc!K14=\"-\",M16=FALSE),\"\",Calc!K14)","v":""}]
[null,null,null,"Savings/participation",null,{"$f":"IF(OR(Calc!D5=\"\",'Program Result'!D14=\"\",'Program Result'!D14=0,'Program Result'!D14=\"-\",F16=FALSE),\"\",'Program Result'!D12/'Program Result'!D14)","v":""},{"$f":"IF(OR(Calc!E5=\"\",'Program Result'!E14=\"\",'Program Result'!E14=0,'Program Result'!E14=\"-\",G16=FALSE),\"\",'Program Result'!E12/'Program Result'!E14)","v":""},{"$f":"IF(OR(Calc!F5=\"\",'Program Result'!F14=\"\",'Program Result'!F14=0,'Program Result'!F14=\"-\",H16=FALSE),\"\",'Program Result'!F12/'Program Result'!F14)","v":""},{"$f":"IF(OR(Calc!G5=\"\",'Program Result'!G14=\"\",'Program Result'!G14=0,'Program Result'!G14=\"-\",I16=FALSE),\"\",'Program Result'!G12/'Program Result'!G14)","v":""},{"$f":"IF(OR(Calc!H5=\"\",'Program Result'!H14=\"\",'Program Result'!H14=0,'Program Result'!H14=\"-\",J16=FALSE),\"\",'Program Result'!H12/'Program Result'!H14)","v":""},{"$f":"IF(OR(Calc!I5=\"\",'Program Result'!I14=\"\",'Program Result'!I14=0,'Program Result'!I14=\"-\",K16=FALSE),\"\",'Program Result'!I12/'Program Result'!I14)","v":""},{"$f":"IF(OR(Calc!J5=\"\",'Program Result'!J14=\"\",'Program Result'!J14=0,'Program Result'!J14=\"-\",L16=FALSE),\"\",'Program Result'!J12/'Program Result'!J14)","v":""},{"$f":"IF(OR(Calc!K5=\"\",'Program Result'!K14=\"\",'Program Result'!K14=0,'Program Result'!K14=\"-\",M16=FALSE),\"\",'Program Result'!K12/'Program Result'!K14)","v":""}]
[]
[null,null,"Commercial & Industrial",null,null,"Commercial Prescriptive Rebate Program","Small Commercial Audit and Direct Install Program","Commercial New Construction Program","Commercial and Industrial Custom Efficiency Program"]
[null,null,null,"Select this program?",null,false,false,false,false]
[null,null,null,"Annual EE Program Budget"]
[null,null,null,"Years over which program occurs",null,1,1,1,1]
[null,null,null,"First Year Participation Rate",null,{"$f":"IF(OR(Calc!L14=\"\",Calc!L14=\"-\",F23=FALSE),\"\",Calc!L14)","v":""},{"$f":"IF(OR(Calc!M14=\"\",Calc!M14=\"-\",G23=FALSE),\"\",Calc!M14)","v":""},{"$f":"IF(OR(Calc!N14=\"\",Calc!N14=\"-\",H23=FALSE),\"\",Calc!N14)","v":""},{"$f":"IF(OR(Calc!O14=\"\",Calc!O14=\"-\",I23=FALSE),\"\",Calc!O14)","v":""}]
[null,null,null,"Savings/participation",null,{"$f":"IF(OR(Calc!L5=\"\",'Program Result'!L14=\"\",'Program Result'!L14=0,'Program Result'!L14=\"-\",F23=FALSE),\"\",'Program Result'!L12/'Program Result'!L14)","v":""},{"$f":"IF(OR(Calc!M5=\"\",'Program Result'!M14=\"\",'Program Result'!M14=0,'Program Result'!M14=\"-\",G23=FALSE),\"\",'Program Result'!M12/'Program Result'!M14)","v":""},{"$f":"IF(OR(Calc!N5=\"\",'Program Result'!N14=\"\",'Program Result'!N14=0,'Program Result'!N14=\"-\",H23=FALSE),\"\",'Program Result'!N12/'Program Result'!N14)","v":""},{"$f":"IF(OR(Calc!O5=\"\",'Program Result'!O14=\"\",'Program Result'!O14=0,'Program Result'!O14=\"-\",I23=FALSE),\"\",'Program Result'!O12/'Program Result'!O14)","v":""}]

{"sheet":"Program Result","index":3,"n_rows":30,"n_cols":15,"rows_kept":30,"cut":false,"hidden":false,"merged":[[17,2,28,2],[29,2,30,2]]}
[]
[]
[null,null,"Energy Efficiency Program Result"]
[null,null,null,"Residential Program",null,null,null,null,null,null,null,"Commercial Program"]
[null,null,null,"Equipment Rebate","Residential Lighting Program","Residential Refrigerator Recycling Program","Audit and Weatherization Program","Energy Efficiency Education","Residential New Construction Program","On-bill Financing Program","Residential Demand Response Program","Prescriptive Rebate Program","Small Commercial Audit and Direct Install Program","Commercial New Construction Program","Commercial and Industrial Custom Efficiency Program"]
[null,null,"Administration",{"$f":"IF(OR(Calc!D$5=\"\",Calc!D$5=0),\"\",Calc!D$5*Calc!D6)","v":""},{"$f":"IF(OR(Calc!E$5=\"\",Calc!E$5=0),\"\",Calc!E$5*Calc!E6)","v":""},{"$f":"IF(OR(Calc!F$5=\"\",Calc!F$5=0),\"\",Calc!F$5*Calc!F6)","v":""},{"$f":"IF(OR(Calc!G$5=\"\",Calc!G$5=0),\"\",Calc!G$5*Calc!G6)","v":""},{"$f":"IF(OR(Calc!H$5=\"\",Calc!H$5=0),\"\",Calc!H$5*Calc!H6)","v":""},{"$f":"IF(OR(Calc!I$5=\"\",Calc!I$5=0),\"\",Calc!I$5*Calc!I6)","v":""},{"$f":"IF(OR(Calc!J$5=\"\",Calc!J$5=0),\"\",Calc!J$5*Calc!J6)","v":""},{"$f":"IF(OR(Calc!K$5=\"\",Calc!K$5=0),\"\",Calc!K$5*Calc!K6)","v":""},{"$f":"IF(OR(Calc!L$5=\"\",Calc!L$5=0),\"\",Calc!$L$5*Calc!L6)","v":""},{"$f":"IF(OR(Calc!M$5=\"\",Calc!M$5=0),\"\",Calc!$M$5*Calc!M6)","v":""},{"$f":"IF(OR(Calc!N$5=\"\",Calc!N$5=0),\"\",Calc!$N$5*Calc!N6)","v":""},{"$f":"IF(OR(Calc!O$5=\"\",Calc!O$5=0),\"\",Calc!$O$5*Calc!O6)","v":""}]
[null,null,"Third-party contractor",{"$f":"IF(OR(Calc!D$5=\"\",Calc!D$5=0),\"\",Calc!D$5*Calc!D7)","v":""},{"$f":"IF(OR(Calc!E$5=\"\",Calc!E$5=0),\"\",Calc!E$5*Calc!E7)","v":""},{"$f":"IF(OR(Calc!F$5=\"\",Calc!F$5=0),\"\",Calc!F$5*Calc!F7)","v":""},{"$f":"IF(OR(Calc!G$5=\"\",Calc!G$5=0),\"\",Calc!G$5*Calc!G7)","v":""},{"$f":"IF(OR(Calc!H$5=\"\",Calc!H$5=0),\"\",Calc!H$5*Calc!H7)","v":""},{"$f":"IF(OR(Calc!I$5=\"\",Calc!I$5=0),\"\",Calc!I$5*Calc!I7)","v":""},{"$f":"IF(OR(Calc!J$5=\"\",Calc!J$5=0),\"\",Calc!J$5*Calc!J7)","v":""},{"$f":"IF(OR(Calc!K$5=\"\",Calc!K$5=0),\"\",Calc!K$5*Calc!K7)","v":""},{"$f":"IF(OR(Calc!L$5=\"\",Calc!L$5=0),\"\",Calc!$L$5*Calc!L7)","v":""},{"$f":"IF(OR(Calc!M$5=\"\",Calc!M$5=0),\"\",Calc!$M$5*Calc!M7)","v":""},{"$f":"IF(OR(Calc!N$5=\"\",Calc!N$5=0),\"\",Calc!$N$5*Calc!N7)","v":""},{"$f":"IF(OR(Calc!O$5=\"\",Calc!O$5=0),\"\",Calc!$O$5*Calc!O7)","v":""}]
[null,null,"Marketing and advertising",{"$f":"IF(OR(Calc!D$5=\"\",Calc!D$5=0),\"\",Calc!D$5*Calc!D8)","v":""},{"$f":"IF(OR(Calc!E$5=\"\",Calc!E$5=0),\"\",Calc!E$5*Calc!E8)","v":""},{"$f":"IF(OR(Calc!F$5=\"\",Calc!F$5=0),\"\",Calc!F$5*Calc!F8)","v":""},{"$f":"IF(OR(Calc!G$5=\"\",Calc!G$5=0),\"\",Calc!G$5*Calc!G8)","v":""},{"$f":"IF(OR(Calc!H$5=\"\",Calc!H$5=0),\"\",Calc!H$5*Calc!H8)","v":""},{"$f":"IF(OR(Calc!I$5=\"\",Calc!I$5=0),\"\",Calc!I$5*Calc!I8)","v":""},{"$f":"IF(OR(Calc!J$5=\"\",Calc!J$5=0),\"\",Calc!J$5*Calc!J8)","v":""},{"$f":"IF(OR(Calc!K$5=\"\",Calc!K$5=0),\"\",Calc!K$5*Calc!K8)","v":""},{"$f":"IF(OR(Calc!L$5=\"\",Calc!L$5=0),\"\",Calc!$L$5*Calc!L8)","v":""},{"$f":"IF(OR(Calc!M$5=\"\",Calc!M$5=0),\"\",Calc!$M$5*Calc!M8)","v":""},{"$f":"IF(OR(Calc!N$5=\"\",Calc!N$5=0),\"\",Calc!$N$5*Calc!N8)","v":""},{"$f":"IF(OR(Calc!O$5=\"\",Calc!O$5=0),\"\",Calc!$O$5*Calc!O8)","v":""}]
[null,null,"Incentive",{"$f":"IF(OR(Calc!D$5=\"\",Calc!D$5=0),\"\",Calc!D$5*Calc!D9)","v":""},{"$f":"IF(OR(Calc!E$5=\"\",Calc!E$5=0),\"\",Calc!E$5*Calc!E9)","v":""},{"$f":"IF(OR(Calc!F$5=\"\",Calc!F$5=0),\"\",Calc!F$5*Calc!F9)","v":""},{"$f":"IF(OR(Calc!G$5=\"\",Calc!G$5=0),\"\",Calc!G$5*Calc!G9)","v":""},{"$f":"IF(OR(Calc!H$5=\"\",Calc!H$5=0),\"\",Calc!H$5*Calc!H9)","v":""},{"$f":"IF(OR(Calc!I$5=\"\",Calc!I$5=0),\"\",Calc!I$5*Calc!I9)","v":""},{"$f":"IF(OR(Calc!J$5=\"\",Calc!J$5=0),\"\",Calc!J$5*Calc!J9)","v":""},{"$f":"IF(OR(Calc!K$5=\"\",Calc!K$5=0),\"\",Calc!K$5*Calc!K9)","v":""},{"$f":"IF(OR(Calc!L$5=\"\",Calc!L$5=0),\"\",Calc!$L$5*Calc!L9)","v":""},{"$f":"IF(OR(Calc!M$5=\"\",Calc!M$5=0),\"\",Calc!$M$5*Calc!M9)","v":""},{"$f":"IF(OR(Calc!N$5=\"\",Calc!N$5=0),\"\",Calc!$N$5*Calc!N9)","v":""},{"$f":"IF(OR(Calc!O$5=\"\",Calc!O$5=0),\"\",Calc!$O$5*Calc!O9)","v":""}]
[null,null,"EM&V",{"$f":"IF(OR(Calc!D$5=\"\",Calc!D$5=0),\"\",Calc!D$5*Calc!D10)","v":""},{"$f":"IF(OR(Calc!E$5=\"\",Calc!E$5=0),\"\",Calc!E$5*Calc!E10)","v":""},{"$f":"IF(OR(Calc!F$5=\"\",Calc!F$5=0),\"\",Calc!F$5*Calc!F10)","v":""},{"$f":"IF(OR(Calc!G$5=\"\",Calc!G$5=0),\"\",Calc!G$5*Calc!G10)","v":""},{"$f":"IF(OR(Calc!H$5=\"\",Calc!H$5=0),\"\",Calc!H$5*Calc!H10)","v":""},{"$f":"IF(OR(Calc!I$5=\"\",Calc!I$5=0),\"\",Calc!I$5*Calc!I10)","v":""},{"$f":"IF(OR(Calc!J$5=\"\",Calc!J$5=0),\"\",Calc!J$5*Calc!J10)","v":""},{"$f":"IF(OR(Calc!K$5=\"\",Calc!K$5=0),\"\",Calc!K$5*Calc!K10)","v":""},{"$f":"IF(OR(Calc!L$5=\"\",Calc!L$5=0),\"\",Calc!$L$5*Calc!L10)","v":""},{"$f":"IF(OR(Calc!M$5=\"\",Calc!M$5=0),\"\",Calc!$M$5*Calc!M10)","v":""},{"$f":"IF(OR(Calc!N$5=\"\",Calc!N$5=0),\"\",Calc!$N$5*Calc!N10)","v":""},{"$f":"IF(OR(Calc!O$5=\"\",Calc!O$5=0),\"\",Calc!$O$5*Calc!O10)","v":""}]
[null,null,"Cost Saving ($/kWh) except DR program ($/kW)",{"$f":"IF(OR(Calc!D$5=\"\",Calc!D$5=0),\"\",Calc!D11)","v":""},{"$f":"IF(OR(Calc!E$5=\"\",Calc!E$5=0),\"\",Calc!E11)","v":""},{"$f":"IF(OR(Calc!F$5=\"\",Calc!F$5=0),\"\",Calc!F11)","v":""},{"$f":"IF(OR(Calc!G$5=\"\",Calc!G$5=0),\"\",Calc!G11)","v":""},{"$f":"IF(OR(Calc!H$5=\"\",Calc!H$5=0),\"\",0)","v":""},{"$f":"IF(OR(Calc!I$5=\"\",Calc!I$5=0),\"\",Calc!I11)","v":""},{"$f":"IF(OR(Calc!J$5=\"\",Calc!J$5=0),\"\",Calc!J11)","v":""},{"$f":"IF(OR(Calc!K$5=\"\",Calc!K$5=0),\"\",Calc!K11)","v":""},{"$f":"IF(OR(Calc!L$5=\"\",Calc!L$5=0),\"\",Calc!L11)","v":""},{"$f":"IF(OR(Calc!M$5=\"\",Calc!M$5=0),\"\",Calc!M11)","v":""},{"$f":"IF(OR(Calc!N$5=\"\",Calc!N$5=0),\"\",Calc!N11)","v":""},{"$f":"IF(OR(Calc!O$5=\"\",Calc!O$5=0),\"\",Calc!O11)","v":""}]
[null,null,"Savings annually (kWh) except DR program (kW)",{"$f":"IF(OR(Calc!D$5=\"\",Calc!D$5=0),\"\",Calc!D5/Calc!D11)","v":""},{"$f":"IF(OR(Calc!E$5=\"\",Calc!E$5=0),\"\",Calc!E5/Calc!E11)","v":""},{"$f":"IF(OR(Calc!F$5=\"\",Calc!F$5=0),\"\",Calc!F5/Calc!F11)","v":""},{"$f":"IF(OR(Calc!G$5=\"\",Calc!G$5=0),\"\",Calc!G5/Calc!G11)","v":""},{"$f":"IF(OR(Calc!H$5=\"\",Calc!H$5=0),\"\",Calc!H5/Calc!H11)","v":""},{"$f":"IF(OR(Calc!I$5=\"\",Calc!I$5=0),\"\",Calc!I5/Calc!I11)","v":""},{"$f":"IF(OR(Calc!J$5=\"\",Calc!J$5=0),\"\",0)","v":""},{"$f":"IF(OR(Calc!K$5=\"\",Calc!K$5=0),\"\",Calc!K5/Calc!K11)","v":""},{"$f":"IF(OR(Calc!L$5=\"\",Calc!L$5=0),\"\",Calc!L5/Calc!L11)","v":""},{"$f":"IF(OR(Calc!M$5=\"\",Calc!M$5=0),\"\",Calc!M5/Calc!M11)","v":""},{"$f":"IF(OR(Calc!N$5=\"\",Calc!N$5=0),\"\",IF(OR(Calc!N$5=\"\",Calc!N$5=0),\"\",Calc!N5/Calc!N11))","v":""},{"$f":"IF(OR(Calc!O$5=\"\",Calc!O$5=0),\"\",Calc!O5/Calc!O11)","v":""}]
[null,null,"Staff Needed (FTE)",{"$f":"IF(OR(Calc!D$5=\"\",Calc!D$5=0),\"\",Calc!D13)","v":""},{"$f":"IF(OR(Calc!E$5=\"\",Calc!E$5=0),\"\",Calc!E13)","v":""},{"$f":"IF(OR(Calc!F$5=\"\",Calc!F$5=0),\"\",Calc!F13)","v":""},{"$f":"IF(OR(Calc!G$5=\"\",Calc!G$5=0),\"\",Calc!G13)","v":""},{"$f":"IF(OR(Calc!H$5=\"\",Calc!H$5=0),\"\",Calc!H13)","v":""},{"$f":"IF(OR(Calc!I$5=\"\",Calc!I$5=0),\"\",Calc!I13)","v":""},{"$f":"IF(OR(Calc!J$5=\"\",Calc!J$5=0),\"\",Calc!J13)","v":""},{"$f":"IF(OR(Calc!K$5=\"\",Calc!K$5=0),\"\",Calc!K13)","v":""},{"$f":"IF(OR(Calc!L$5=\"\",Calc!L$5=0),\"\",Calc!L13)","v":""},{"$f":"IF(OR(Calc!M$5=\"\",Calc!M$5=0),\"\",Calc!M13)","v":""},{"$f":"IF(OR(Calc!N$5=\"\",Calc!N$5=0),\"\",IF(OR(Calc!N$5=\"\",Calc!N$5=0),\"\",Calc!N13))","v":""},{"$f":"IF(OR(Calc!O$5=\"\",Calc!O$5=0),\"\",Calc!O13)","v":""}]
[null,null,"Participation in 1st year",{"$f":"IF(OR(Calc!D$5=\"\",Calc!D$5=0),\"\",IF(Calc!D14=\"\",\"-\",ROUND(Calc!$D$20*Calc!D14,0)))","v":""},{"$f":"IF(OR(Calc!E$5=\"\",Calc!E$5=0),\"\",IF(Calc!E14=\"\",\"-\",ROUND(Calc!$D$20*Calc!E14,0)))","v":""},{"$f":"IF(OR(Calc!F$5=\"\",Calc!F$5=0),\"\",IF(Calc!F14=\"\",\"-\",ROUND(Calc!$D$20*Calc!F14,0)))","v":""},{"$f":"IF(OR(Calc!G$5=\"\",Calc!G$5=0),\"\",IF(Calc!G14=\"\",\"-\",ROUND(Calc!$D$20*Calc!G14,0)))","v":""},{"$f":"IF(OR(Calc!H$5=\"\",Calc!H$5=0),\"\",IF(Calc!H14=\"\",\"-\",ROUND(Calc!$D$20*Calc!H14,0)))","v":""},{"$f":"IF(OR(Calc!I$5=\"\",Calc!I$5=0),\"\",IF(Calc!I14=\"\",\"-\",ROUND(Calc!$D$20*Calc!I14,0)))","v":""},{"$f":"IF(OR(Calc!J$5=\"\",Calc!J$5=0),\"\",IF(Calc!J14=\"\",\"-\",ROUND(Calc!$D$20*Calc!J14,0)))","v":""},{"$f":"IF(OR(Calc!K$5=\"\",Calc!K$5=0),\"\",IF(Calc!K14=\"\",\"-\",ROUND(Calc!$D$20*Calc!K14,0)))","v":""},{"$f":"IF(OR(Calc!L$5=\"\",Calc!L$5=0),\"\",Calc!L14*Calc!$D$21)","v":""},{"$f":"IF(OR(Calc!M$5=\"\",Calc!M$5=0),\"\",Calc!M14*Calc!$D$21)","v":""},{"$f":"IF(OR(Calc!N$5=\"\",Calc!N$5=0),\"\",Calc!N14*Calc!$D$21)","v":""},{"$f":"IF(OR(Calc!O$5=\"\",Calc!O$5=0),\"\",Calc!O14*Calc!$D$21)","v":""}]
[null,null,"Participation in 2nd year",{"$f":"IF(OR(Calc!D$5=\"\",Calc!D$5=0),\"\",IF(Calc!D15=\"\",\"-\",ROUND(Calc!$D$20*Calc!D15,0)))","v":""},{"$f":"IF(OR(Calc!E$5=\"\",Calc!E$5=0),\"\",IF(Calc!E15=\"\",\"-\",ROUND(Calc!$D$20*Calc!E15,0)))","v":""},{"$f":"IF(OR(Calc!F$5=\"\",Calc!F$5=0),\"\",IF(Calc!F15=\"\",\"-\",ROUND(Calc!$D$20*Calc!F15,0)))","v":""},{"$f":"IF(OR(Calc!G$5=\"\",Calc!G$5=0),\"\",IF(Calc!G15=\"\",\"-\",ROUND(Calc!$D$20*Calc!G15,0)))","v":""},{"$f":"IF(OR(Calc!H$5=\"\",Calc!H$5=0),\"\",IF(Calc!H15=\"\",\"-\",ROUND(Calc!$D$20*Calc!H15,0)))","v":""},{"$f":"IF(OR(Calc!I$5=\"\",Calc!I$5=0),\"\",IF(Calc!I15=\"\",\"-\",ROUND(Calc!$D$20*Calc!I15,0)))","v":""},{"$f":"IF(OR(Calc!J$5=\"\",Calc!J$5=0),\"\",IF(Calc!J15=\"\",\"-\",ROUND(Calc!$D$20*Calc!J15,0)))","v":""},{"$f":"IF(OR(Calc!K$5=\"\",Calc!K$5=0),\"\",IF(Calc!K15=\"\",\"-\",ROUND(Calc!$D$20*Calc!K15,0)))","v":""},{"$f":"IF(OR(Calc!L$5=\"\",Calc!L$5=0),\"\",Calc!L15*Calc!$D$21)","v":""},{"$f":"IF(OR(Calc!M$5=\"\",Calc!M$5=0),\"\",Calc!M15*Calc!$D$21)","v":""},{"$f":"IF(OR(Calc!N$5=\"\",Calc!N$5=0),\"\",Calc!N15*Calc!$D$21)","v":""},{"$f":"IF(OR(Calc!O$5=\"\",Calc!O$5=0),\"\",Calc!O15*Calc!$D$21)","v":""}]
[null,null,"Participation in 3rd year",{"$f":"IF(OR(Calc!D$5=\"\",Calc!D$5=0),\"\",IF(Calc!D16=\"\",\"-\",ROUND(Calc!$D$20*Calc!D16,0)))","v":""},{"$f":"IF(OR(Calc!E$5=\"\",Calc!E$5=0),\"\",IF(Calc!E16=\"\",\"-\",ROUND(Calc!$D$20*Calc!E16,0)))","v":""},{"$f":"IF(OR(Calc!F$5=\"\",Calc!F$5=0),\"\",IF(Calc!F16=\"\",\"-\",ROUND(Calc!$D$20*Calc!F16,0)))","v":""},{"$f":"IF(OR(Calc!G$5=\"\",Calc!G$5=0),\"\",IF(Calc!G16=\"\",\"-\",ROUND(Calc!$D$20*Calc!G16,0)))","v":""},{"$f":"IF(OR(Calc!H$5=\"\",Calc!H$5=0),\"\",IF(Calc!H16=\"\",\"-\",ROUND(Calc!$D$20*Calc!H16,0)))","v":""},{"$f":"IF(OR(Calc!I$5=\"\",Calc!I$5=0),\"\",IF(Calc!I16=\"\",\"-\",ROUND(Calc!$D$20*Calc!I16,0)))","v":""},{"$f":"IF(OR(Calc!J$5=\"\",Calc!J$5=0),\"\",IF(Calc!J16=\"\",\"-\",ROUND(Calc!$D$20*Calc!J16,0)))","v":""},{"$f":"IF(OR(Calc!K$5=\"\",Calc!K$5=0),\"\",IF(Calc!K16=\"\",\"-\",ROUND(Calc!$D$20*Calc!K16,0)))","v":""},{"$f":"IF(OR(Calc!L$5=\"\",Calc!L$5=0),\"\",Calc!L16*Calc!$D$21)","v":""},{"$f":"IF(OR(Calc!M$5=\"\",Calc!M$5=0),\"\",Calc!M16*Calc!$D$21)","v":""},{"$f":"IF(OR(Calc!N$5=\"\",Calc!N$5=0),\"\",Calc!N16*Calc!$D$21)","v":""},{"$f":"IF(OR(Calc!O$5=\"\",Calc!O$5=0),\"\",Calc!O16*Calc!$D$21)","v":""}]
[null,null,"Participation annually after 3 years",{"$f":"IF(OR(Calc!D$5=\"\",Calc!D$5=0),\"\",IF(Calc!D17=\"\",\"-\",ROUND(Calc!$D$20*Calc!D17,0)))","v":""},{"$f":"IF(OR(Calc!E$5=\"\",Calc!E$5=0),\"\",IF(Calc!E17=\"\",\"-\",ROUND(Calc!$D$20*Calc!E17,0)))","v":""},{"$f":"IF(OR(Calc!F$5=\"\",Calc!F$5=0),\"\",IF(Calc!F17=\"\",\"-\",ROUND(Calc!$D$20*Calc!F17,0)))","v":""},{"$f":"IF(OR(Calc!G$5=\"\",Calc!G$5=0),\"\",IF(Calc!G17=\"\",\"-\",ROUND(Calc!$D$20*Calc!G17,0)))","v":""},{"$f":"IF(OR(Calc!H$5=\"\",Calc!H$5=0),\"\",IF(Calc!H17=\"\",\"-\",ROUND(Calc!$D$20*Calc!H17,0)))","v":""},{"$f":"IF(OR(Calc!I$5=\"\",Calc!I$5=0),\"\",IF(Calc!I17=\"\",\"-\",ROUND(Calc!$D$20*Calc!I17,0)))","v":""},{"$f":"IF(OR(Calc!J$5=\"\",Calc!J$5=0),\"\",IF(Calc!J17=\"\",\"-\",ROUND(Calc!$D$20*Calc!J17,0)))","v":""},{"$f":"IF(OR(Calc!K$5=\"\",Calc!K$5=0),\"\",IF(Calc!K17=\"\",\"-\",ROUND(Calc!$D$20*Calc!K17,0)))","v":""},{"$f":"IF(OR(Calc!L$5=\"\",Calc!L$5=0),\"\",Calc!L17*Calc!$D$21)","v":""},{"$f":"IF(OR(Calc!M$5=\"\",Calc!M$5=0),\"\",Calc!M17*Calc!$D$21)","v":""},{"$f":"IF(OR(Calc!N$5=\"\",Calc!N$5=0),\"\",Calc!N17*Calc!$D$21)","v":""},{"$f":"IF(OR(Calc!O$5=\"\",Calc!O$5=0),\"\",Calc!O17*Calc!$D$21)","v":""}]
[null,null,"Program Budget Allocation"]
[]
[]
[]
[]
[]
[]
[]
[]
[]
[]
[]
[null,null,"Go To Recommendation Tab"]

{"sheet":"Calculation not used","index":4,"n_rows":117,"n_cols":8,"rows_kept":117,"cut":false,"hidden":true,"merged":[]}
[]
[null,null,"Residential",{"$f":"IF(INPUT!F9=\"\",IF(INPUT!H9=\"\",\"\",INPUT!H9),INPUT!F9)","v":{"$error":"#N/A"}}]
[null,null,"Commercial",{"$f":"IF(INPUT!F10=\"\",IF(INPUT!H10=\"\",\"\",INPUT!H10),INPUT!F10)","v":{"$error":"#N/A"}}]
[null,null,"Industrial",{"$f":"IF(INPUT!F11=\"\",IF(INPUT!H11=\"\",\"\",INPUT!H11),INPUT!F11)","v":{"$error":"#N/A"}}]
[null,null,"Utility rate ($/kWh)",{"$f":"IF(INPUT!F12=\"\",0,INPUT!F12)","v":0}]
[]
[null,null,"Residential Equipment Rebate",{"$f":"SUM(D9:D13)","v":1},null,"Commercial Prescriptive Rebate Program",{"$f":"SUM(G9:G13)","v":1.04}]
[null,null,"Budget",{"$f":"INPUT!F17/INPUT!F18","v":0},null,"Budget",{"$f":"INPUT!F24/INPUT!F25","v":0}]
[null,null,"Admin (internal)",0.05,null,"Admin (internal)",0.1]
[null,null,"Third-party contractor",0.05,null,"Third-party contractor",0.03]
[null,null,"Marketing",0.15,null,"Marketing",0.1]
[null,null,"Incentive",0.7,null,"Incentive",0.8]
[null,null,"Evaluation",0.05,null,"Evaluation",0.01]
[null,null,"Staff Needed",0.5,null,"Staff Needed",1.5]
[null,null,"Participation rate in 1st year",0.01,null,"Participation rate in 1st year",1E-3]
[null,null,"Participation rate in 2nd year",1.2E-2,null,"Participation rate in 2nd year",8.9999999999999993E-3]
[null,null,"Participation rate in 3rd year",1.7999999999999999E-2,null,"Participation rate in 3rd year",8.0000000000000002E-3]
[null,null,"Participation rate after 3 years",0.03,null,"Participation rate after 3 years",1.7999999999999999E-2]
[null,null,"Savings (Avg, $/kWh)",0.2,null,"Savings (Avg, $/kWh)",0.15]
[]
[null,null,"Residential Lighting Program",{"$f":"SUM(D23:D27)","v":1.1000000000000001},null,"Small Commercial Audit and Direct Install Program",{"$f":"SUM(G23:G27)","v":1.0599999999999998}]
[null,null,"Budget",{"$f":"INPUT!G17/INPUT!G18","v":0},null,"Budget",{"$f":"INPUT!G24/INPUT!G25","v":0}]
[null,null,"Admin Cost",0.05,null,"Admin Cost",0.15]
[null,null,"Third-party contractor",0.25,null,"Third-party contractor",0.1]
[null,null,"Marketing",0.1,null,"Marketing",0.1]
[null,null,"Incentive",0.65,null,"Incentive",0.7]
[null,null,"Evaluation",0.05,null,"Evaluation",0.01]
[null,null,"Staff Needed",1,null,"Staff Needed",0.5]
[null,null,"Participation rate in 1st year",0.03,null,"Participation rate in 1st year",1.2999999999999999E-3,"reference NR-RCx in RDEE toolkit"]
[null,null,"Participation rate in 2nd year",7.0000000000000007E-2,null,"Participation rate in 2nd year",1.8E-3]
[null,null,"Participation rate in 3rd year",0.14000000000000001,null,"Participation rate in 3rd year",2E-3]
[null,null,"Participation rate after 3 years",0.23599999999999999,null,"Participation rate after 3 years",5.0000000000000001E-3]
[null,null,"Savings (Avg, $/kWh)",0.125,null,"Savings (Avg, $/kWh)",0.31]
[]
[null,null,"Residential Appliance Recycling",{"$f":"SUM(D37:D41)","v":1},null,"Commercial New Construction Program",{"$f":"SUM(G37:G41)","v":0.99999999999999989}]
[null,null,"Budget",{"$f":"INPUT!H17/INPUT!H18","v":0},null,"Budget",{"$f":"INPUT!H24/INPUT!H25","v":0}]
[null,null,"Admin Cost",0.1,null,"Admin Cost",0.1]
[null,null,"Third-party contractor",0.3,null,"Third-party contractor",0]
[null,null,"Marketing",0.1,null,"Marketing",0.1]
[null,null,"Incentive",0.45,null,"Incentive",0.7]
[null,null,"Evaluation",0.05,null,"Evaluation",0.1]
[null,null,"Staff Needed",0.3,null,"Staff Needed",0.25]
[null,null,"Participation rate in 1st year",null,null,"Participation rate in 1st year"]
[null,null,"Participation rate in 2nd year",null,null,"Participation rate in 2nd year"]
[null,null,"Participation rate in 3rd year",null,null,"Participation rate in 3rd year"]
[null,null,"Participation rate after 3 years",null,null,"Participation rate after 3 years"]
[null,null,"Savings (Avg, $/kWh)",0.19,null,"Savings (Avg, $/kWh)",0.23]
[]
[null,null,"Audit and Weatherization Program",{"$f":"SUM(D51:D55)","v":1},null,"Commercial and Industrial Custom Efficiency Program",{"$f":"SUM(G51:G55)","v":1}]
[null,null,"Budget",{"$f":"INPUT!I17/INPUT!I18","v":0},null,"Budget",{"$f":"INPUT!I24/INPUT!I25","v":0}]
[null,null,"Admin Cost",0.1,null,"Admin Cost",0.05]
[null,null,"Third-party contractor",0,null,"Third-party contractor",0.05]
[null,null,"Marketing",0.15,null,"Marketing",0.1]
[null,null,"Incentive",0.7,null,"Incentive",0.75]
[null,null,"Evaluation",0.05,null,"Evaluation",0.05]
[null,null,"Staff Needed",0.5,null,"Staff Needed",0.5]
[null,null,"Participation rate in 1st year",7.0000000000000001E-3,null,"Participation rate in 1st year",5.0000000000000001E-4]
[null,null,"Participation rate in 2nd year",1.2E-2,null,"Participation rate in 2nd year",1.1000000000000001E-3]
[null,null,"Participation rate in 3rd year",1.4999999999999999E-2,null,"Participation rate in 3rd year",1E-3]
[null,null,"Participation rate after 3 years",3.5000000000000003E-2,null,"Participation rate after 3 years",2.5999999999999999E-3]
[null,null,"Savings (Avg, $/kWh)",0.33,null,"Savings (Avg, $/kWh)",0.2]
[]
[null,null,"Energy Efficiency Education",{"$f":"SUM(D65:D69)","v":1}]
[null,null,"Budget",{"$f":"INPUT!J17/INPUT!J18","v":0}]
[null,null,"Admin Cost",0]
[null,null,"Third-party contractor",0]
[null,null,"Marketing",1]
[null,null,"Incentive",0]
[null,null,"Evaluation",0]
[null,null,"Staff Needed",0.5]
[null,null,"Participation rate in 1st year"]
[null,null,"Participation rate in 2nd year"]
[null,null,"Participation rate in 3rd year"]
[null,null,"Participation rate after 3 years"]
[null,null,"Savings (Avg, $/kWh)"]
[]
[null,null,"Residential New Construction Program",{"$f":"SUM(D79:D83)","v":1}]
[null,null,"Budget",{"$f":"INPUT!K17/INPUT!K18","v":0}]
[null,null,"Admin Cost",0.05]
[null,null,"Third-party contractor",0.1]
[null,null,"Marketing",0.1]
[null,null,"Incentive",0.7]
[null,null,"Evaluation",0.05]
[null,null,"Staff Needed",0.5]
[null,null,"Participation rate in 1st year"]
[null,null,"Participation rate in 2nd year"]
[null,null,"Participation rate in 3rd year"]
[null,null,"Participation rate after 3 years"]
[null,null,"Savings (Avg, $/kWh)",0.23]
[]
[null,null,"On-bill Financing Program",{"$f":"SUM(D93:D97)","v":0}]
[null,null,"Budget",{"$f":"INPUT!L17/INPUT!L18","v":0}]
[null,null,"Admin Cost"]
[null,null,"Third-party contractor"]
[null,null,"Marketing"]
[null,null,"Incentive"]
[null,null,"Evaluation"]
[null,null,"Staff Needed",1]
[null,null,"Participation rate in 1st year"]
[null,null,"Participation rate in 2nd year"]
[null,null,"Participation rate in 3rd year"]
[null,null,"Participation rate after 3 years"]
[null,null,"Savings (Avg, $/kWh)"]
[]
[null,null,"Residential Demand Response Program",{"$f":"SUM(D107:D111)","v":1.05}]
[null,null,"Budget",{"$f":"INPUT!M17/INPUT!M18","v":0}]
[null,null,"Admin Cost",0.1]
[null,null,"Third-party contractor",0.3]
[null,null,"Marketing",0.1]
[null,null,"Incentive",0.5]
[null,null,"Evaluation",0.05]
[null,null,"Staff Needed",1]
[null,null,"Participation rate in 1st year"]
[null,null,"Participation rate in 2nd year"]
[null,null,"Participation rate in 3rd year"]
[null,null,"Participation rate after 3 years"]
[null,null,"Savings (Avg, $/kW)",135]

{"sheet":"Utility Result","index":5,"n_rows":12,"n_cols":4,"rows_kept":12,"cut":false,"hidden":false,"merged":[[2,2,2,3],[9,2,9,3]]}
[]
[null,null,"Utility Energy Efficiency Portofolio Result "]
[null,null,"Annual Energy Efficiency Program Cost ($)"]
[null,null,"Administration",{"$f":"SUM('Program Result'!D6:O6)","v":0}]
[null,null,"Third-party contractor",{"$f":"SUM('Program Result'!D7:O7)","v":0}]
[null,null,"Marketing and advertising",{"$f":"SUM('Program Result'!D8:O8)","v":0}]
[null,null,"Incentive",{"$f":"SUM('Program Result'!D9:O9)","v":0}]
[null,null,"EM&V",{"$f":"SUM('Program Result'!D10:O10)","v":0}]
[null,null,"Total",{"$f":"SUM(D4:D8)","v":0}]
[null,null,"Annual Energy Efficiency Program Savings"]
[null,null,"All Energy Efficiency Program Energy Saving (kWh)",{"$f":"SUM('Program Result'!D12:J12)+SUM('Program Result'!L12:O12)","v":0}]
[null,null,"DR Program Demand Saving (kW)",{"$f":"'Program Result'!K12","v":""}]

{"sheet":"Calc","index":6,"n_rows":23,"n_cols":15,"rows_kept":23,"cut":false,"hidden":true,"merged":[]}
[]
[]
[null,null,null,"Residential",null,null,null,null,null,null,null,"Commercial"]
[null,null,null,"Equipment Rebate","Residential Lighting Program","Appliance Recycling","Audit and Weatherization Program","Energy Efficiency Education","Residential New Construction Program","On-bill Financing Program","Residential Demand Response Program","Prescriptive Rebate Program","Small Commercial Audit and Direct Install Program","Commercial New Construction Program","Commercial and Industrial Custom Efficiency Program"]
[null,null,"Budget",{"$f":"IF(OR(INPUT!F17=\"\",INPUT!F18=\"\",INPUT!F18=0),\"\",INPUT!F17/INPUT!F18)","v":""},{"$f":"IF(OR(INPUT!G17=\"\",INPUT!G18=\"\",INPUT!G18=0),\"\",INPUT!G17/INPUT!G18)","v":""},{"$f":"IF(OR(INPUT!H17=\"\",INPUT!H18=\"\",INPUT!H18=0),\"\",INPUT!H17/INPUT!H18)","v":""},{"$f":"IF(OR(INPUT!I17=\"\",INPUT!I18=\"\",INPUT!I18=0),\"\",INPUT!I17/INPUT!I18)","v":""},{"$f":"IF(OR(INPUT!J17=\"\",INPUT!J18=\"\",INPUT!J18=0),\"\",INPUT!J17/INPUT!J18)","v":""},{"$f":"IF(OR(INPUT!K17=\"\",INPUT!K18=\"\",INPUT!K18=0),\"\",INPUT!K17/INPUT!K18)","v":""},{"$f":"IF(OR(INPUT!L17=\"\",INPUT!L18=\"\",INPUT!L18=0),\"\",INPUT!L17/INPUT!L18)","v":""},{"$f":"IF(OR(INPUT!M17=\"\",INPUT!M18=\"\",INPUT!M18=0),\"\",INPUT!M17/INPUT!M18)","v":""},{"$f":"IF(OR(INPUT!F24=\"\",INPUT!F25=\"\",INPUT!F25=0),\"\",INPUT!F24/INPUT!F25)","v":""},{"$f":"IF(OR(INPUT!G24=\"\",INPUT!G25=\"\",INPUT!G25=0),\"\",INPUT!G24/INPUT!G25)","v":""},{"$f":"IF(OR(INPUT!H24=\"\",INPUT!H25=\"\",INPUT!H25=0),\"\",INPUT!H24/INPUT!H25)","v":""},{"$f":"IF(OR(INPUT!I24=\"\",INPUT!I25=\"\",INPUT!I25=0),\"\",INPUT!I24/INPUT!I25)","v":""}]
[null,null,"Administration",0.05,0.05,0.1,0.1,0,0.05,null,0.1,0.1,0.12,0.1,0.05]
[null,null,"Third-party contractor",0.05,0.23,0.3,0,0,0.1,null,0.25,0.03,0.1,0,0.05]
[null,null,"Marketing and advertising",0.15,0.1,0.1,0.15,1,0.1,null,0.1,0.1,0.1,0.1,0.1]
[null,null,"Incentive",0.7,0.6,0.45,0.7,0,0.7,1,0.5,0.76,0.67,0.7,0.75]
[null,null,"EM&V",0.05,0.02,0.05,0.05,0,0.05,null,0.05,0.01,0.01,0.1,0.05]
[null,null,"Cost Saving ($/kWh)",0.2,{"$f":"'Calculation not used'!D33","v":0.125},{"$f":"'Calculation not used'!D47","v":0.19},{"$f":"'Calculation not used'!D61","v":0.33},9.9999999999999996E+27,0.23,null,135,{"$f":"'Calculation not used'!G19","v":0.15},{"$f":"'Calculation not used'!G33","v":0.31},0.23,0.2]
[null,null,"Savings annually (kWh)",{"$f":"IF(OR(D11=\"\",D11=0),\"\",D5/D11)","v":{"$error":"#VALUE!"}},{"$f":"IF(OR(E11=\"\",E11=0),\"\",E5/E11)","v":{"$error":"#VALUE!"}},{"$error":"#VALUE!"},{"$error":"#VALUE!"},{"$error":"#VALUE!"},{"$error":"#VALUE!"},"",{"$error":"#VALUE!"},{"$f":"IF(OR(L11=\"\",L11=0),\"\",L5/L11)","v":{"$error":"#VALUE!"}},{"$f":"IF(OR(M11=\"\",M11=0),\"\",M5/M11)","v":{"$error":"#VALUE!"}},{"$f":"IF(OR(N11=\"\",N11=0),\"\",N5/N11)","v":{"$error":"#VALUE!"}},{"$f":"IF(OR(O11=\"\",O11=0),\"\",O5/O11)","v":{"$error":"#VALUE!"}}]
[null,null,"Staff Needed (FTE)",0.5,{"$f":"'Calculation not used'!D28","v":1},{"$f":"'Calculation not used'!D42","v":0.3},{"$f":"'Calculation not used'!D56","v":0.5},0.5,0.5,1,1,{"$f":"'Calculation not used'!G14","v":1.5},{"$f":"'Calculation not used'!G28","v":0.5},0.25,0.5]
[null,null,"Participation in 1st year",0.01,0.03,null,7.0000000000000001E-3,null,null,null,null,1E-3,1.2999999999999999E-3,null,5.0000000000000001E-4]
[null,null,"Participation in 2nd year",1.2E-2,7.0000000000000007E-2,null,1.2E-2,null,null,null,null,8.9999999999999993E-3,1.8E-3,null,1.1000000000000001E-3]
[null,null,"Participation in 3rd year",1.7999999999999999E-2,0.14000000000000001,null,1.4999999999999999E-2,null,null,null,null,8.0000000000000002E-3,2E-3,null,1E-3]
[null,null,"Participation annually after 3 years",0.03,0.23599999999999999,null,3.5000000000000003E-2,null,null,null,null,1.7999999999999999E-2,5.0000000000000001E-3,null,2.5999999999999999E-3]
[null,null,null,{"$f":"SUM(D6:D10)","v":1},{"$f":"SUM(E6:E10)","v":1},1,1,1,1,1,1,1,1,0.99999999999999989,1]
[]
[null,null,"Residential",{"$f":"IF(INPUT!F9=\"\",IF(INPUT!H9=\"\",\"\",INPUT!H9),INPUT!F9)","v":{"$error":"#N/A"}}]
[null,null,"Commercial",{"$f":"IF(INPUT!F10=\"\",IF(INPUT!H10=\"\",\"\",INPUT!H10),INPUT!F10)","v":{"$error":"#N/A"}}]
[null,null,"Industrial",{"$f":"IF(INPUT!F11=\"\",IF(INPUT!H11=\"\",\"\",INPUT!H11),INPUT!F11)","v":{"$error":"#N/A"}}]
[null,null,"Utility rate ($/kWh)",{"$f":"IF(INPUT!F12=\"\",IF(INPUT!H12=\"\",\"\",INPUT!H12),INPUT!F12)","v":""}]

{"sheet":"Result 1","index":7,"n_rows":62,"n_cols":12,"rows_kept":62,"cut":false,"hidden":true,"merged":[]}
[null,null,"Total EE Program Saving",null,"kWh"]
[null,null,"Rim",null,"Note: utility level (measure life)"]
[]
[null,null,"Residential - Equipment Rebate",null,null,null,null,null,null,null,"Commercial -Prescriptive Rebate Program"]
[null,null,null,"Equipment Rebate",null,null,null,null,null,null,null,"Prescriptive Rebate Program"]
[null,null,"Administration",{"$f":"'Calculation not used'!$D$8*'Calculation not used'!D9","v":0},null,null,null,null,null,null,"Administration",{"$f":"'Calculation not used'!$G$8*'Calculation not used'!G9","v":0}]
[null,null,"Third-party contractor",{"$f":"'Calculation not used'!$D$8*'Calculation not used'!D10","v":0},null,null,null,null,null,null,"Third-party contractor",{"$f":"'Calculation not used'!$G$8*'Calculation not used'!G10","v":0}]
[null,null,"Marketing and advertising",{"$f":"'Calculation not used'!$D$8*'Calculation not used'!D11","v":0},null,null,null,null,null,null,"Marketing and advertising",{"$f":"'Calculation not used'!$G$8*'Calculation not used'!G11","v":0}]
[null,null,"Incentive",{"$f":"'Calculation not used'!$D$8*'Calculation not used'!D12","v":0},null,null,null,null,null,null,"Incentive",{"$f":"'Calculation not used'!$G$8*'Calculation not used'!G12","v":0}]
[null,null,"EM&V",{"$f":"'Calculation not used'!$D$8*'Calculation not used'!D13","v":0},null,null,null,null,null,null,"EM&V",{"$f":"'Calculation not used'!$G$8*'Calculation not used'!G13","v":0}]
[null,null,"Cost Saving ($/kWh)",{"$f":"'Calculation not used'!D19","v":0.2},null,null,null,null,null,null,"Cost Saving ($/kWh)",{"$f":"'Calculation not used'!G19","v":0.15}]
[null,null,"Savings annually (kWh)",{"$f":"'Calculation not used'!D8/'Calculation not used'!D19","v":0},null,null,null,null,null,null,"Savings annually (kWh)",{"$f":"'Calculation not used'!G8/'Calculation not used'!G19","v":0}]
[null,null,"Staff Needed (FTE)",{"$f":"'Calculation not used'!D14","v":0.5},null,null,null,null,null,null,"Staff Needed (FTE)",{"$f":"'Calculation not used'!G14","v":1.5}]
[null,null,"Participation in 1st year",{"$f":"IF('Calculation not used'!D15=\"\",\"-\",ROUND('Calculation not used'!$D$2*'Calculation not used'!D15,0))","v":{"$error":"#N/A"}},null,null,null,null,null,null,"Participation in 1st year",{"$f":"'Calculation not used'!$D$3*'Calculation not used'!G15","v":{"$error":"#N/A"}}]
[null,null,"Participation in 2nd year",{"$f":"IF('Calculation not used'!D16=\"\",\"-\",ROUND('Calculation not used'!$D$2*'Calculation not used'!D16,0))","v":{"$error":"#N/A"}},null,null,null,null,null,null,"Participation in 2nd year",{"$f":"'Calculation not used'!$D$3*'Calculation not used'!G16","v":{"$error":"#N/A"}}]
[null,null,"Participation in 3rd year",{"$f":"IF('Calculation not used'!D17=\"\",\"-\",ROUND('Calculation not used'!$D$2*'Calculation not used'!D17,0))","v":{"$error":"#N/A"}},null,null,null,null,null,null,"Participation in 3rd year",{"$f":"'Calculation not used'!$D$3*'Calculation not used'!G17","v":{"$error":"#N/A"}}]
[null,null,"Participation annually after 3 years",{"$f":"IF('Calculation not used'!D18=\"\",\"-\",ROUND('Calculation not used'!$D$2*'Calculation not used'!D18,0))","v":{"$error":"#N/A"}},null,null,null,null,null,null,"Participation annually after 3 years",{"$f":"'Calculation not used'!$D$3*'Calculation not used'!G18","v":{"$error":"#N/A"}}]
[]
[null,null,"Residential - Residential Lighting Program",null,null,null,null,null,null,null,{"$f":"'Calculation not used'!F21","v":"Small Commercial Audit and Direct Install Program"}]
[null,null,null,"Residential Lighting Program",null,null,null,null,null,null,null,"Small Commercial Audit and Direct Install Program"]
[null,null,"Administration",{"$f":"'Calculation not used'!$D$22*'Calculation not used'!D23","v":0},null,null,null,null,null,null,"Administration",{"$f":"'Calculation not used'!$G$8*'Calculation not used'!G23","v":0}]
[null,null,"Third-party contractor",{"$f":"'Calculation not used'!$D$22*'Calculation not used'!D24","v":0},null,null,null,null,null,null,"Third-party contractor",{"$f":"'Calculation not used'!$G$8*'Calculation not used'!G24","v":0}]
[null,null,"Marketing and advertising",{"$f":"'Calculation not used'!$D$22*'Calculation not used'!D25","v":0},null,null,null,null,null,null,"Marketing and advertising",{"$f":"'Calculation not used'!$G$8*'Calculation not used'!G25","v":0}]
[null,null,"Incentive",{"$f":"'Calculation not used'!$D$22*'Calculation not used'!D26","v":0},null,null,null,null,null,null,"Incentive",{"$f":"'Calculation not used'!$G$8*'Calculation not used'!G26","v":0}]
[null,null,"EM&V",{"$f":"'Calculation not used'!$D$22*'Calculation not used'!D27","v":0},null,null,null,null,null,null,"EM&V",{"$f":"'Calculation not used'!$G$8*'Calculation not used'!G27","v":0}]
[null,null,"Cost Saving ($/kWh)",{"$f":"'Calculation not used'!D33","v":0.125},null,null,null,null,null,null,"Cost Saving ($/kWh)",{"$f":"'Calculation not used'!G33","v":0.31}]
[null,null,"Savings annually (kWh)",{"$f":"'Calculation not used'!D22/'Calculation not used'!D33","v":0},null,null,null,null,null,null,"Savings annually (kWh)",{"$f":"'Calculation not used'!G22/'Calculation not used'!G33","v":0}]
[null,null,"Staff Needed (FTE)",{"$f":"'Calculation not used'!D28","v":1},null,null,null,null,null,null,"Staff Needed (FTE)",{"$f":"'Calculation not used'!G28","v":0.5}]
[null,null,"Participation in 1st year",{"$f":"'Calculation not used'!D29*'Calculation not used'!$D$2","v":{"$error":"#N/A"}},null,null,null,null,null,null,"Participation in 1st year",{"$f":"'Calculation not used'!$D$3*'Calculation not used'!G29","v":{"$error":"#N/A"}}]
[null,null,"Participation in 2nd year",{"$f":"'Calculation not used'!D30*'Calculation not used'!$D$2","v":{"$error":"#N/A"}},null,null,null,null,null,null,"Participation in 2nd year",{"$f":"'Calculation not used'!$D$3*'Calculation not used'!G30","v":{"$error":"#N/A"}}]
[null,null,"Participation in 3rd year",{"$f":"'Calculation not used'!D31*'Calculation not used'!$D$2","v":{"$error":"#N/A"}},null,null,null,null,null,null,"Participation in 3rd year",{"$f":"'Calculation not used'!$D$3*'Calculation not used'!G31","v":{"$error":"#N/A"}}]
[null,null,"Participation annually after 3 years",{"$f":"'Calculation not used'!D32*'Calculation not used'!$D$2","v":{"$error":"#N/A"}},null,null,null,null,null,null,"Participation annually after 3 years",{"$f":"'Calculation not used'!$D$3*'Calculation not used'!G32","v":{"$error":"#N/A"}}]
[]
[null,null,"Residential - Appliance Recycling"]
[null,null,null,"Appliance Recycling"]
[null,null,"Administration",{"$f":"'Calculation not used'!$D$36*'Calculation not used'!D37","v":0}]
[null,null,"Third-party contractor",{"$f":"'Calculation not used'!$D$36*'Calculation not used'!D38","v":0}]
[null,null,"Marketing and advertising",{"$f":"'Calculation not used'!$D$36*'Calculation not used'!D39","v":0}]
[null,null,"Incentive",{"$f":"'Calculation not used'!$D$36*'Calculation not used'!D40","v":0}]
[null,null,"EM&V",{"$f":"'Calculation not used'!$D$36*'Calculation not used'!D41","v":0}]
[null,null,"Cost Saving ($/kWh)",{"$f":"'Calculation not used'!D47","v":0.19}]
[null,null,"Savings annually (kWh)",{"$f":"'Calculation not used'!D36/'Calculation not used'!D47","v":0}]
[null,null,"Staff Needed (FTE)",{"$f":"'Calculation not used'!D42","v":0.3}]
[null,null,"Participation in 1st year",{"$f":"IF('Calculation not used'!D44=\"\",\"-\",ROUND('Calculation not used'!$D$2*'Calculation not used'!D44,0))","v":"-"}]
[null,null,"Participation in 2nd year",{"$f":"IF('Calculation not used'!D45=\"\",\"-\",ROUND('Calculation not used'!$D$2*'Calculation not used'!D45,0))","v":"-"}]
[null,null,"Participation in 3rd year",{"$f":"IF('Calculation not used'!D46=\"\",\"-\",ROUND('Calculation not used'!$D$2*'Calculation not used'!D46,0))","v":"-"}]
[null,null,"Participation annually after 3 years",{"$f":"IF('Calculation not used'!D46=\"\",\"-\",ROUND('Calculation not used'!$D$2*'Calculation not used'!D46,0))","v":"-"}]
[]
[null,null,"Residential Audit and Weatherization Program"]
[null,null,null,"Audit and Weatherization Program"]
[null,null,"Administration",{"$f":"'Calculation not used'!$D$50*'Calculation not used'!D51","v":0}]
[null,null,"Third-party contractor",{"$f":"'Calculation not used'!$D$50*'Calculation not used'!D52","v":0}]
[null,null,"Marketing and advertising",{"$f":"'Calculation not used'!$D$50*'Calculation not used'!D53","v":0}]
[null,null,"Incentive",{"$f":"'Calculation not used'!$D$50*'Calculation not used'!D54","v":0}]
[null,null,"EM&V",{"$f":"'Calculation not used'!$D$50*'Calculation not used'!D55","v":0}]
[null,null,"Cost Saving ($/kWh)",{"$f":"'Calculation not used'!D61","v":0.33}]
[null,null,"Savings annually (kWh)",{"$f":"'Calculation not used'!D50/'Calculation not used'!D61","v":0}]
[null,null,"Staff Needed (FTE)",{"$f":"'Calculation not used'!D56","v":0.5}]
[null,null,"Participation in 1st year",{"$f":"IF('Calculation not used'!D57=\"\",\"-\",ROUND('Calculation not used'!$D$2*'Calculation not used'!D57,0))","v":{"$error":"#N/A"}}]
[null,null,"Participation in 2nd year",{"$f":"IF('Calculation not used'!D58=\"\",\"-\",ROUND('Calculation not used'!$D$2*'Calculation not used'!D58,0))","v":{"$error":"#N/A"}}]
[null,null,"Participation in 3rd year",{"$f":"IF('Calculation not used'!D59=\"\",\"-\",ROUND('Calculation not used'!$D$2*'Calculation not used'!D59,0))","v":{"$error":"#N/A"}}]
[null,null,"Participation annually after 3 years",{"$f":"IF('Calculation not used'!D60=\"\",\"-\",ROUND('Calculation not used'!$D$2*'Calculation not used'!D60,0))","v":{"$error":"#N/A"}}]

{"sheet":"Result 2","index":8,"n_rows":16,"n_cols":15,"rows_kept":16,"cut":false,"hidden":true,"merged":[]}
[]
[]
[null,null,null,"Administration","Third-party contractor","Marketing and advertising","Incentive","EM&V","Cost Saving ($/kWh)","Savings annually (kWh)","Staff Needed (FTE)","Participation in 1st year","Participation in 2nd year","Participation in 3rd year","Participation annually after 3 years"]
[null,null,"Residential Equipment Rebate Program",12500,12500,37500,175000,12500,0.2,1250000,0.5,8,10,15,25]
[null,null,"Residential Lighting Program",12500,62500,25000,162500,12500,0.125,2000000,1,24.81,57.890000000000008,115.78000000000002,195.172]
[null,null,"Residential Refrigerator Recycling Program",50000,150000,50000,225000,25000,0.19,2631578.9473684211,0.3,"-","-","-","-"]
[null,null,"Residential Audit and Weatherization Program"]
[null,null,"Energy Efficiency Education"]
[null,null,"Residential New Construction Program"]
[null,null,"On-bill Financing Program"]
[null,null,"Residential Demand Response Program"]
[null,null,"Commercial Prescriptive Rebate Program"]
[null,null,"Small Commercial Audit and Direct Install Program"]
[null,null,"Commercial New Construction Program"]
[null,null,"Commercial and Industrial Custom Efficiency Program"]
[null,null,"Total",{"$f":"SUM(D4:D15)","v":75000},{"$f":"SUM(E4:E15)","v":225000},112500,562500,50000,0.51500000000000001,5881578.9473684207,1.8,32.81,67.890000000000015,130.78000000000003,220.172]

{"sheet":"R-ER","index":9,"n_rows":80,"n_cols":4,"rows_kept":80,"cut":false,"hidden":true,"merged":[[75,1,75,3],[62,0,63,0],[62,1,62,3],[63,1,63,3],[64,0,75,0],[64,1,64,3],[65,1,65,3],[66,1,66,3],[67,1,67,3],[68,1,68,3],[69,1,69,3],[70,1,70,3],[71,1,71,3],[72,1,72,3],[73,1,73,3],[74,1,74,3],[56,0,61,0],[56,1,56,3],[57,1,57,3],[58,1,58,3],[59,1,59,3],[60,1,60,3],[61,1,61,3],[35,1,35,3],[36,0,48,0],[36,1,36,3],[49,0,55,0],[49,1,49,3],[50,1,50,3],[51,1,51,3],[52,1,52,3],[53,1,53,3],[54,1,54,3],[25,0,35,0],[55,1,55,3],[34,1,34,3],[25,1,25,3],[26,1,26,3],[27,1,27,3],[20,1,20,3],[21,1,21,3],[22,1,22,3],[23,1,23,3],[24,1,24,3],[28,1,28,3],[29,1,29,3],[30,1,30,3],[31,1,31,3],[32,1,32,3],[33,1,33,3],[19,1,19,3],[6,1,6,3],[7,0,8,0],[7,1,7,3],[8,1,8,3],[9,0,18,0],[9,1,9,3],[10,1,10,3],[11,1,11,3],[12,1,12,3],[13,1,13,3],[14,1,14,3],[15,1,15,3],[16,1,16,3],[17,1,17,3],[18,1,18,3],[0,0,0,3],[1,1,1,3],[2,0,5,0],[2,1,2,3],[3,1,3,3],[4,1,4,3],[5,1,5,3]]}
["Residential Equipment Rebate Program"]
["Program description","The program promotes the purchase and installation of high-efficiency equipment by providing customers with financial incentives to offset the higher purchase costs of energy-efficient equipment. The program provides a financial incentive in the form of a prescriptive rebate on a per-unit basis to customers installing qualifying equipment and technologies. Rebates are a fixed amount per device, paid by check to customers who complete a rebate application and submit documentation of the equipment purchase. Targeted equipment includes electric heating, cooling, water heating, and appliances (ENERGY STAR®-labeled equipment is specified where available)."]
["Objectives","·     Provide customers with opportunities to reduce their energy costs and increase their energy efficiency"]
[null,"·     Encourage customers to install high-efficiency HVAC equipment and electric appliances. "]
[null,"·     Encourage the use of high-efficiency/ENERGY STAR®-rated equipment"]
[null,"·     Promote other energy efficiency programs"]
["Infrastructure and staffing ","Estimated utility staffing requirement: 0.5 full-time employee (FTE) for management, promotional, marketing, trade ally support, evaluation, and other administrative functions."]
["Customer targets and eligibility ","This program targets all residential customers in existing single family, multifamily, manufactured and mobile homes. To be as cost-effective as possible, the program should target customers seeking to replace older, inefficient equipment."]
[null,"Participant eligibility is verified through customer rebate applications cross-referenced against customer account numbers. Customers must submit a program application with documentation of the equipment purchase and installation(s) for verification. "]
["Implementation ","Equipment rebate programs are relatively simple to implement and administer and can be managed and delivered with in-house staff. Key steps in program implementation include:"]
[null,"·     Marketing and outreach, including to trade allies."]
[null,"·     Provide call center services to respond to customer questions and provide technical and program support."]
[null,"·     Review documentation to verify the applicant is an active customer and the installed equipment meets the minimum efficiency standard. "]
[null,"·     Track program data."]
[null,"·     Process rebate checks for qualified equipment. "]
[null,"·     Verify equipment/appliance installation for a sample of participants."]
[null,"Customer participation involves:"]
[null,"·     Customers installing eligible high-efficiency equipment, scheduling the work directly with their equipment dealer or installation contractor. "]
[null,"·     Work with the equipment/appliance retailer or installation contractor to complete program applications and ensure the required documentation is submitted to the utility for processing."]
["Program barriers ","Mitigation Strategies "]
["·     Higher first cost of energy-efficient equipment and economic environment limit customer’s ability to purchase energy-efficient equipment","·     Offer rebates to offset higher incremental cost. Educate customers on the long-term cost-saving benefits of higher efficiency equipment. "]
["·     Customers needing emergency replacement may not know about the program.","·     Market program and general efficiency awareness to customers."]
["·     Customers may choose to purchase less energy-efficient equipment","·     Provide trade ally training and outreach to explain the benefits of selling higher-efficiency equipment."]
[null,"·     In-store brochures and collateral. "]
[null,"·      Promote efficiency awareness to customers and trade allies."]
["Marketing and outreach ","This program relies on both customer marketing and point-of-sale dealer and installer information for promotion. A high level of trade ally participation and program promotion are critical to ensure program success. The program messaging focuses on the features and benefits of energy-efficient equipment. The marketing strategy for the program may include:"]
[null,"·     Bill inserts"]
[null,"·     Utility dedicated program web page"]
[null,"·     Active trade ally outreach and support"]
[null,"·     Newspaper, radio, and other mass media"]
[null,"·     Brand marketing material with ENERGY STAR®"]
[null,"·     Present program information at seminars, conferences, home shows, and community events"]
[null,"·     Sponsor co-advertising with trade allies (i.e., equipment dealers, distributors, and installers)"]
[null,"·     Coordinate marketing opportunities with key market partners (i.e., SECO, community groups)"]
[null,"·     Publish and distribute program brochure"]
[null,"·     Cross-promote through other programs"]
["Measures and incentive levels","Program incentives are set at approximately 50 percent of the incremental cost of high-efficiency equipment, but may be adjusted as needed. The following incentive levels are provided as examples. Utilities should endeavor to set incentive amounts at a level appropriate for their own budgets and program strategies."]
[null,"Measure","Eligibility Rating","Incentive"]
[null,"Central Air Conditioner","Seasonal energy efficiency ratio (SEER) 14.5",150]
[null,"Central Air Conditioner","SEER 15",225]
[null,"Central Air Conditioner","SEER 16",300]
[null,"Room A/C ","ENERGY STAR® ",25]
[null,"Air-Source Heat Pump","SEER 14.5",250]
[null,"Air-Source Heat Pump","SEER 15",325]
[null,"Air-Source Heat Pump","SEER 16",400]
[null,"Heat Pump Hot Water Heater","ENERGY STAR®, EF >= 2.0, or coefficient of performance (COP) >= 2.0[1]",300]
[null,"Dishwasher","ENERGY STAR®",30]
[null,"Clothes Washer","ENERGY STAR®",75]
[null,"Refrigerator","ENERGY STAR®",50]
["Budgeting rules of thumb","·     Estimated dollars spent per annual gross kWh saved[2]: average $0.20/kWh, ranging from $0.15/kWh to $0.34/kWh."]
[null,"·     Estimated program costs as a percent of total program budget:"]
[null,"ü  Administration (internal): 5% to 10%"]
[null,"ü  Third-party contractor: less than 5%"]
[null,"ü  Marketing, advertising, trade ally training and outreach: 15%"]
[null,"ü  Incentives: 70% to 80%"]
[null,"ü  Evaluation, Measurement and Verification (EM&V): 1% and 5%"]
["Benefits","·     Customers can increase their home’s energy efficiency while reducing their costs"]
[null,"·     Minimal staff requirements"]
[null,"·     Straightforward to implement with no third-party contracts necessary"]
[null,"·     Low administrative costs and significant energy savings potential"]
[null,"·     Popular with customers as it is easy to understand and participate"]
[null,"·     Minimal effort required from customers"]
["Measuring savings","Calculation of energy savings relies primarily on deemed savings estimates using information on measure installations. Program applications require customers to specifically identify equipment replaced, including make, model, and efficiency level, as well as documentation on energy-efficient equipment installed."]
[null,"Where estimates are not available for specific measures, the utility should conduct an engineering review of per-unit savings and verify installations through field observations or other confirmation (i.e., via telephone) of a statistically valid sample of participants."]
["Best practices and innovations","·     Offer dealer and installer incentives (such as 5–10 percent of customer rebate per unit) to encourage program promotion by trade allies."]
[null,"·     Leverage ENERGY STAR® brand, marketing materials, and other resources."]
[null,"·     Build strong communication channels with retailers and make extensive use of POP program materials and in-store rebate applications."]
[null,"·     Allow retail partners to submit rebate applications on behalf of customers."]
[null,"·     Use simple rebate forms and program rules."]
[null,"·     Track and utilize retailer's records and equipment information to analyze actual savings."]
[null,"·     Educate customers about the benefits and features of energy-efficient appliances and equipment to encourage greater adoption of energy-efficient technologies in the future."]
[null,"·     Couple equipment incentives with low-cost financing."]
[]
[null,"·     Sponsor equipment quality installation and best practices training to gain contractor buy-in and ensure program quality."]
[null,"·     Coordinate eligible measures and incentives among regional MOUs to ensure continuity and reduce customer confusion."]
[null,"·     Perform installation inspections to ensure quality of work is maintained throughout the program."]
[]
[]
["[1] While there is an ENERGY STAR rating for heat pump hot water heaters, it is relatively new and qualifying equipment is not currently available. "]
["[2] Annual kWh savings is used in this cost of savings calculation, but the kWh savings benefits remain in utility’s service territory until the end of the measure’s useful life."]

{"sheet":"R-LTG","index":10,"n_rows":79,"n_cols":2,"rows_kept":79,"cut":false,"hidden":true,"merged":[[52,0,58,0],[59,0,66,0],[67,0,72,0],[73,0,78,0],[0,0,0,1],[1,0,5,0],[6,0,12,0],[15,0,31,0],[38,0,48,0],[49,0,51,0]]}
["Residential Lighting Program"]
["Program description","The Residential lighting programs provides free or discounted energy-efficient lighting products (fixtures and/or bulbs depending on the program) to residential customers. Typically these programs provide standard screw-in CFLs and some may offer discounts or rebates for larger varieties of lamp wattages and specialty bulbs."]
[null,"Three possible residential lighting program components are recommended. Utilities should use a strategy that best fits their delivery capacity, budgets, and program objectives."]
[null,"·     Upstream buy-down. Utilities or program implementers work with manufacturers and retailers to negotiate bulk purchase pricing and apply incentives before bulbs hit retail shelves. To gain economies of scale with this model, MOUs should pursue a collaborative approach (see discussion below under Implementation)."]
[null,"·     Coupon-based. Coupons may be provided to customers as a bill insert or through another delivery mechanism. The utility partners. along with local retailers, create an incentive payment mechanism that’s invisible to customers."]
[null,"·     Giveaway. The utility provides free lighting products (usually CFLs) in exchange for incandescent bulbs, or sometimes no exchange is required."]
["Objectives","·     Provide a mechanism for customers to easily obtain discounted ENERGY STAR®- qualified CFLs and/or other energy-efficient lighting products."]
[null,"·     Help customers save energy by switching to higher-efficiency lighting products."]
[null,"·     Contribute to transforming the market for ENERGY STAR®-qualified CFLs by increasing the number of qualified products purchased and installed in the utility territory."]
[null,"·     Encourage customers to install CFLs obtained from a giveaway program."]
[null,"·     Increase consumer awareness and understanding of the energy efficiency of CFLs, as well as proper use of CFLs in various lighting applications."]
[null,"·     Promote consumer awareness and understanding of the ENERGY STAR® label."]
[null,"·     Promote other utility energy efficiency programs."]
["Infrastructure and staffing ","Estimated utility staffing requirements vary depending on the type and scope of chosen program components. For a third-party implemented program, approximately 0.5 to 1 FTE for management and coordination of program or third-party implementer and other administrative functions, including monitoring and tracking."]
["Customer targets and eligibility ","This program primarily targets residential customers, but may be made available to all customer classes."]
["Implementation ","Three alternative implementation strategies may be used:"]
[null,"Collaborative approach. Multiple MOUs collaboratively select a single implementation contractor to provide services in support of an upstream buy-down approach. There are experienced contractors with national presence that provide turnkey services to support utility lighting programs. This approach requires participating MOUs to jointly issue a RFP and select an implementation contractor."]
[null,"Centralized collaborative approach. A statewide agency may take the lead on significant program development and coordination tasks and invite utilities to participate. In this approach, the centralized agency may conduct planning and program development tasks independently, or it may coordinate the selection of a third-party implementation contractor."]
[null,"Utility-led approach. Many utilities develop and implement lighting programs themselves. This approach may be most applicable to a coupon and/or giveaway program as these are relatively straightforward to develop and deliver."]
[null,"With any approach, key implementation tasks include:"]
[null,"·     Develop and implement marketing and outreach to consumers."]
[null,"·     Coordinate and negotiate with manufacturers and/or retail locations (recruitment, bulk pricing, participation, collaboration, collection of coupons, etc., depending on implementation approach)."]
[null,"·     Coordinate with the national Change the World, Start with ENERGY STAR® campaign."]
[null,"·     Track program data to calculate participation and savings (varies depending on coupon, giveaway, buy-down, or other type of program approach)."]
[null,"·     For a coupon-based program:"]
[null,"ü  Design, print, and deliver coupons to customers as bill inserts, at events, or through another delivery mechanism."]
[null,"ü  Recruit local retail partners and negotiate process for retailer to apply incentives at the register,  collect critical program data, and arrange for the utility to transfer funds to cover incentives."]
[null,"·     For an upstream buy-down approach:"]
[null,"ü  MOU or implementation contractor coordinates with manufacturers and retailers on program discounts, data tracking, and transfer of funds to cover incentives."]
[null,"·     For a giveaway approach:"]
[null,"ü  Plan for and coordinate bulb giveaway mechanism that may include: providing by mail, events, central pick-up location, or door-to-door."]
[null,"·     Track number of bulbs sold or given away and calculate savings based on deemed approach and an industry-accepted realization rate, and/or conduct surveys to determine market penetration."]
["Program barriers ","Mitigation Strategies "]
["·     Lack of program awareness among customers","·      Robust marketing, education, and outreach strategy, leveraging ENERGY STAR® brand."]
["·     Cost of energy-efficient bulbs","·      Provide upstream incentives or coupons and giveaways."]
["·     Willingness of retailers to stock CFLs","·     Robust marketing strategies, including point-of-sale promotions and discounts. Outreach to retailers to solicit participation."]
["·     Negative media attention associated with CFL mercury content and CFL disposal","·     Provide customer education and outreach on the proper handling and disposal of CFLs."]
["·     CFL performance","·     Ongoing retailer communications, training, outreach, and education."]
["Marketing and outreach ","Utility program staff should coordinate with internal marketing and communications departments and the implementation contractor (if applicable) to ensure program materials are consistent with utility branding and advertising protocols."]
[null,"External marketing can be led internally or by an implementation contractor. The marketing strategy may include:"]
[null,"·     Bill inserts (potentially with coupons for CFLs twice per year or more)"]
[null,"·     Utility dedicated program web page"]
[null,"·     Newspaper, radio, and other mass media"]
[null,"·     In-store advertising with participating retailers"]
[null,"·     Use ENERGY STAR® lighting materials and other program tools as a marketing resource; include program on the EPA’s Change the World, Start with ENERGY STAR® web page; leverage Change the World, Start with ENERGY STAR® campaign to create excitement, solicit efficiency pledges, and expand the program’s educational reach."]
[null,"·     Brand program marketing materials with the ENERGY STAR® label"]
[null,"·     Publish and distribute program information to community organizations, such as Chambers of Commerce, community groups (e.g., churches, Boy Scout troops, senior centers)"]
[null,"·     Present program information at seminars, conferences, and community events"]
[null,"·     Cross-promote through other MOU programs"]
["Measures and incentive levels","Program may be limited to CFLs or expanded to include energy-efficient fixtures, specialty bulbs, and potentially newer technologies such as light emitting diodes (LEDs)."]
[null,"Provide between 2 and 10 CFL bulbs per home depending on program budget and delivery mechanism."]
[null,"Incentives should cover 50% of CFL retail cost for upstream and coupon mechanisms, or 100% of the cost for giveaways."]
["Budgeting rules of thumb","·     Estimated dollars spent per annual gross kWh saved: $0.10/kWh to $0.15/kWh"]
[null,"·     Estimated program costs as a percent of total program budget:"]
[null,"ü  Administration (internal): 5% to 10%"]
[null,"ü  Third-party contractor: 25%"]
[null,"ü  Marketing and advertising: 10%"]
[null,"ü  Incentives: 65%"]
[null,"ü  EM&V: less than 5%"]
["Benefits","·     History of achieving significant energy savings throughout the United States"]
[null,"·     Several delivery options are available"]
[null,"·     May be implemented with minimal staff requirements"]
[null,"·     Low delivery costs and high cost effectiveness"]
[null,"·     Provides a mechanism for customers to easily save energy"]
[null,"·     Increase customer awareness and understanding while requiring minimal effort"]
[null,"·     Partnership opportunities with manufacturers, local retailers, government agencies, and community organizations"]
[null,"·     Opportunities to transform the market for Energy Star-qualified CFLs"]
["Measuring savings","Energy savings estimates for this program rely mainly on deemed savings and use information on measure installations, including:"]
[null,"·     Number of CFLs sold (from retailer sales data)"]
[null,"·     Sample-based verification of CFLs installed"]
[null,"·     Sample-based verification of baseline CFLs"]
[null,"·     Sample-based verification of location of installations"]
[null,"Detailed data on unit characteristics will be collected by the implementer (or if MOU is implementing then by working with the retailer). "]
["Best practices and innovations","·     With other MOUs, coordinate a jointly funded municipal residential lighting program with shared administrative and implementation costs, operated by a single program implementation contractor."]
[null,"·     Build relationships and partnerships with manufacturers, local retailers, government agencies, and local community organizations to leverage diverse resources and broaden the program’s reach."]
[null,"·     Leverage the resources of a regional energy efficiency advocacy group to coordinate program development and implementation, allowing MOUs to participate as desired."]
[null,"·     Coordinate coupon or giveaway activities, promotions, and events to correspond with the EPA’s Change the World, Start with ENERGY STAR® campaign to leverage federal resources and expand the program’s reach."]
[null,"·     Keep the customer participation process simple, requiring minimal effort."]
[null,"·     Conduct telephone surveys with a sample of participants to determine installation rate, satisfaction, program awareness, leakage, and realization rate."]

{"sheet":"R-RR","index":11,"n_rows":71,"n_cols":2,"rows_kept":71,"cut":false,"hidden":true,"merged":[[40,0,42,0],[43,0,49,0],[50,0,56,0],[57,0,63,0],[64,0,70,0],[31,0,39,0],[0,0,0,1],[1,0,2,0],[3,0,7,0],[9,0,10,0],[11,0,24,0]]}
["Residential Refrigerator Recycling Program"]
["Program description","Appliance recycling programs offer free pick-up and disposal of working residential refrigerators. A customer incentive is offered for customers who turn in eligible appliances. Appliances must be in working condition."]
[null,"All units are disposed of in an environmentally responsible manner. This involves removing hazardous materials such as chlorinated fluorocarbons from the refrigerant, preparing refrigerant for reclamation, and recycling other materials, such as metal and plastic."]
["Objectives","·     Encourage customers to dispose of existing, inefficient refrigerators when they purchase new ones or when they eliminate a second unit that may not be needed"]
[null,"·     Reduce the use of secondary, inefficient appliances"]
[null,"·     Ensure appliances are disposed of in an environmentally responsible manner"]
[null,"·     Ensure appliances are not resold in a secondary market"]
[null,"·     Promote other energy efficiency programs"]
["Infrastructure and staffing ","Estimated utility staffing requirement: 0.3 FTE for management and coordination of third-party implementer and other administrative functions."]
["Customer targets and eligibility ","This program primarily targets residential customers, but may be made available to all customer classes with a working, residential grade refrigerator."]
[null,"Participant eligibility is verified at sign-up through customer account numbers. Units must be plugged in and functioning when picked up."]
["Implementation ","There are a small number of experienced contractors with national presence that provide turnkey services to support utility appliance recycling programs. The implementer provides comprehensive services including:"]
[null,"·     Marketing"]
[null,"·     Call center services, including customer intake and scheduling"]
[null,"·     Processing applications and rebates"]
[null,"·     Tracking program data"]
[null,"·     Pick-up, storage, dismantling, and proper disposal of refrigerator components"]
[null,"·     Providing customer and transaction information"]
[null,"Key steps in program participation include:"]
[null,"·     Implementer schedules and executes appliance collection."]
[null,"·     Implementer verifies customer and appliance eligibility."]
[null,"·     Implementer picks up and transports appliances to a recycling facility."]
[null,"·     Implementer recycles applicable components and appropriately disposes of remaining components."]
[null,"·     Implementer tracks customer data, appliances, and outcomes throughout process."]
[null,"·     Implementer processes rebate payment and delivers to customers."]
["Program barriers ","Mitigation Strategies "]
["·     Customer must be available for pick-up","·     Implementer responsible for working with customer to ensure the pick-up is as convenient as possible"]
["·     Need to fill out rebate forms","·     Provide simple rebate forms"]
["·     Lack of program awareness among customers","·      Robust marketing, education, and outreach strategy, leveraging ENERGY STAR® brand"]
["·     Customers do not see benefit of harvesting qualified appliance(s)","·     Implementer works with retailers to display information about the benefits of appliance recycling"]
[null,"Customized educational materials that highlight the cost of operating an old refrigerator or freezer and explain environmental benefits of eliminating inefficient appliances"]
["Marketing and outreach ","Utility program staff coordinates with internal marketing and communications departments and the implementation contractor to ensure program materials are consistent with utility branding and advertising protocols."]
[null,"External marketing is led by the implementation contractor. The marketing strategy may include:"]
[null,"·     Bill inserts"]
[null,"·     Utility dedicated program web page"]
[null,"·     Newspaper, radio, and other mass media"]
[null,"·     Use ENERGY STAR® refrigerator harvesting materials as a marketing resource; include program on the ENERGY STAR® “Find a fridge or freezer recycling program” web page"]
[null,"·     Brand program marketing materials with the ENERGY STAR® label"]
[null,"·     Present program information at seminars, conferences, and community events"]
[null,"·     Distribute program brochures to community organizations, such as Chambers of Commerce"]
["Measures and incentive levels","Program may be limited to refrigerators or expanded to include stand-alone freezers and room A/Cs."]
[null,"Refrigerators typically must be at least 10 cubic feet in size."]
[null,"Incentives may range from $25 to $50 per unit."]
["Budgeting rules of thumb","·     Estimated dollars spent per annual gross kWh saved: $0.19/kWh"]
[null,"·     Estimated program costs as a percent of total program budget:"]
[null,"ü  Administration (internal): 5% to 10%"]
[null,"ü  Third-party contractor costs: 30%"]
[null,"ü  Marketing and advertising: 10%"]
[null,"ü  Incentives: 45%"]
[null,"ü  EM&V: 3% to 5%"]
["Benefits","·     Produces a significant amount of energy savings"]
[null,"·     Can reduce strain on local power grids"]
[null,"·     Offers both monetary and convenience incentives for customers"]
[null,"·     Produces multiple environmental benefits"]
[null,"·     Reduces the use of inefficient appliances and lowers customers’ electric bills"]
[null,"·     Widely-used program with consistent delivery approaches and well established strategies"]
[null,"·     Can be implemented collaboratively with multiple utility partners to gain economies of scale"]
["Measuring savings","Energy savings estimates for this program rely mainly on deemed savings and use information on measure installations, including:"]
[null,"·     Number of units removed"]
[null,"·     Unit characteristics:"]
[null,"ü  Model"]
[null,"ü  Size"]
[null,"ü  Age"]
[null,"Detailed data on unit characteristics are collected by the implementer. "]
["Best practices and innovations","·     Coordinate a jointly-funded, statewide municipal recycling program with shared administrative and implementation costs, operated by a single program implementation contractor."]
[null,"·     Allow customers to enroll in the program and schedule pick-up at retail locations when purchasing a new appliance."]
[null,"·     Promote the recycling program to customers who have received a rebate on a new appliance."]
[null,"·     Partner the recycling program message with state or federal appliance rebate programs."]
[null,"·     Offer online scheduling and pick-up on Saturday."]
[null,"·     Pick up units within one week of receipt of a request for pick-up."]
[null,"·     Conduct random inspections of recycling services contractor to ensure program compliance."]

{"sheet":"R-AD","index":12,"n_rows":98,"n_cols":3,"rows_kept":98,"cut":false,"hidden":true,"merged":[[95,1,95,2],[96,1,96,2],[97,1,97,2],[86,1,86,2],[87,0,97,0],[87,1,87,2],[88,1,88,2],[89,1,89,2],[90,1,90,2],[91,1,91,2],[92,1,92,2],[93,1,93,2],[94,1,94,2],[77,0,86,0],[77,1,77,2],[78,1,78,2],[64,0,69,0],[64,1,64,2],[65,1,65,2],[66,1,66,2],[79,1,79,2],[70,0,76,0],[70,1,70,2],[71,1,71,2],[72,1,72,2],[73,1,73,2],[74,1,74,2],[75,1,75,2],[76,1,76,2],[45,1,45,2],[46,1,46,2],[47,1,47,2],[84,1,84,2],[85,1,85,2],[68,1,68,2],[69,1,69,2],[80,1,80,2],[81,1,81,2],[82,1,82,2],[83,1,83,2],[67,1,67,2],[51,2,57,2],[58,2,59,2],[60,2,63,2],[35,1,35,2],[36,0,44,0],[36,1,36,2],[37,1,37,2],[38,1,38,2],[39,1,39,2],[40,1,40,2],[41,1,41,2],[42,1,42,2],[43,1,43,2],[44,1,44,2],[45,0,63,0],[34,1,34,2],[20,0,30,0],[20,1,20,2],[21,1,21,2],[22,1,22,2],[23,1,23,2],[24,1,24,2],[25,1,25,2],[26,1,26,2],[27,1,27,2],[28,1,28,2],[29,1,29,2],[30,1,30,2],[31,1,31,2],[32,1,32,2],[33,1,33,2],[15,0,17,0],[15,1,15,2],[16,1,16,2],[17,1,17,2],[18,0,19,0],[18,1,18,2],[19,1,19,2],[10,0,14,0],[10,1,10,2],[11,1,11,2],[12,1,12,2],[13,1,13,2],[14,1,14,2],[0,0,0,2],[1,0,9,0],[1,1,1,2],[2,1,2,2],[3,1,3,2],[4,1,4,2],[5,1,5,2],[6,1,6,2],[7,1,7,2],[8,1,8,2],[9,1,9,2]]}
["Residential Audit and Weatherization Program"]
["Program description","This program is designed to provide customers with information on their homes’ energy performance and recommendations on energy efficiency actions they can take to reduce their energy consumption. Recognizing the varying economic conditions and interest levels among residential customers, the cost of the audit should be subsidized by the utility so that customers’ cash outlay is minimal. The program also provides customers with an option to increase the rigor of the energy audit through diagnostic testing for an additional cost. Customers who install a minimum of recommended energy efficiency upgrades in their homes will be reimbursed the cost of the audit and will be eligible for rebates for the installed equipment."]
[null,"A walk-through energy audit will include a thorough visual inspection of the home to evaluate major energy-using equipment (e.g., lighting systems, space conditioning and hot water heating equipment, and appliances), building envelope characteristics, and to identify areas for cost-effective efficiency upgrades. The auditor will provide customers with an audit report that includes recommendations for appropriate follow-up activities."]
[null,"For an additional cost, customers may request a comprehensive energy audit delivered by a Building Performance Institute (BPI) trained and certified energy auditor. The auditors perform specific minimum diagnostic tests."]
[null,"Participating customers in either the walk-through or comprehensive audit:"]
[null,"·     Receive installation of low-cost energy-saving measures and an A/C tune up, information on the benefits and features of energy-efficient equipment, an assessment of energy savings opportunities, and recommendations for energy-efficient upgrades;"]
[null,"·     Are eligible for incentives to install weatherization measures, including attic, wall, and foundation insulation, as well as duct sealing; and"]
[null,"·     Will be directed to other utility programs as appropriate for additional incentives on equipment upgrades."]
[]
[null,"To encourage customers to follow-through on recommendations and implement recommended efficiency upgrades, participants will be reimbursed for the full cost of the audit if they install at least one recommended qualifying measure."]
["Objectives","·     Provide customers with information about their home’s energy use and opportunities to save energy."]
[null,"·     Provide customers with opportunities to reduce their energy costs and increase their energy efficiency."]
[null,"·     Encourage customers to weatherize their homes by providing rebates."]
[null,"·     Promote installation of low-cost energy saving measures and A/C tune-ups that may result in immediate savings."]
[null,"·     Promote other energy efficiency programs."]
["Infrastructure and staffing ","Estimated utility staffing requirement: 0.5 FTE for management, marketing, trade ally support, evaluation, and other administrative functions."]
[null,"Additional utility staff or third-party contractors will deliver customer energy audits. To deliver comprehensive audits, utility staff or third-party contractors must participate in BPI or equivalent training and be certified in whole home audit delivery."]
[null,"Infrastructure needs to support comprehensive audits include blower door and duct blaster. Use of auditing/residential modeling software, run on a tablet computer for on-site data collection, is strongly recommended."]
["Customer targets and eligibility ","This program targets residential customers in single family homes or mobile homes. Customers in rental housing must have owner’s approval to participate. Participants must have electric heat, electric water heating, and/or central air conditioning to qualify."]
[null,"Participant eligibility is verified at the time the audit is scheduled, using customer account number."]
["Implementation ","Utility staff will manage customer intake, verify customer eligibility, schedule audits, process applications and rebates, and track and verify program data. Additional staff will provide overall strategic direction and program management for the program, marketing, trade ally outreach, evaluation, and other administrative functions."]
[null,"Key steps in program participation include:"]
[null,"·     Most customers will enter the program by calling the utility. Utility staff will explain the program, verify the customer’s eligibility, and schedule an appointment."]
[null,"·     The certified energy auditor will conduct an assessment of the customer’s home, directly install simple energy efficiency measures, perform a tune-up of the A/C (if present) and inspect major energy-using equipment and building envelope characteristics to identify areas for cost-effective efficiency upgrades."]
[null,"·     Customers who request a comprehensive audit will receive diagnostic testing in addition to standard visual inspections. These tests will provide more detailed insight into the performance of the home, and can help identify a greater range of energy-saving opportunities."]
[null,"·     The auditor will also review additional available financial incentives or programs that may benefit the customer, discuss best practices for operating home energy systems efficiently, and disseminate educational materials."]
[null,"·     Customers will receive an audit report with recommendations for appropriate energy efficiency upgrades and information on incentives available through the audit and other programs, as well as a rebate application for weatherization measures. Energy auditors will provide a copy of the audit report to utility staff for tracking and reporting purposes."]
[null,"·     Customers will issue payment to the auditor for the cost of the audit, minus the utility incentive."]
[null,"·     Utility staff will follow up with customers to inquire about their audit and any measures the customer has installed, and to encourage customers to implement recommended measures."]
[null,"·     Customers installing weatherization measures through the program will contact a third-party contractor to install measures and submit documentation of the installation and the rebate application directly to the utility."]
[null,"·     Utility staff process rebate applications and issue payment to the customer."]
["Program barriers ","Mitigation Strategies "]
["·     Higher cost of comprehensive energy audit","·     Offer rebates to offset higher incremental cost. Educate customers on the long-term cost-saving benefits of higher-efficiency equipment."]
["·     Economic environment may limit customer’s ability to purchase energy-efficient equipment.","·     Provide trade ally training and outreach. Target equipment being replaced or customers remodeling or building new."]
["·     Lack of program awareness","·     Use a robust marketing strategy and promote general efficiency awareness to customers and trade allies."]
["·     Availability of qualified contractors to install recommended measures","·     Collaborate with trade schools and other workforce development resources to increase the local contractor base."]
["Marketing and outreach ","This program should leverage both traditional and grassroots social customer marketing for promotion. If the utility chooses to use external auditors to deliver the program, they should be provided tools and resources to support program promotion. The marketing tactics for the program may include:"]
[null,"·     Bill inserts"]
[null,"·     Utility dedicated program web page"]
[null,"·     Newspaper, radio, and other mass media advertising"]
[null,"·     Brand marketing material with ENERGY STAR®."]
[null,"·     Present program information at seminars, conferences, home shows, and community events."]
[null,"·     Coordinate marketing opportunities with key market partners (i.e., community groups, local nonprofit organizations)."]
[null,"·     Publish and distribute program brochure."]
[null,"·     Cross-promote through other programs."]
["Measures and incentive levels","Depending on the delivery model, the cost of audits may vary and utilities can set the audit cost at a level that they deem appropriate to generate customer interest and participation in the program. The Project Team cautions against offering free energy audits, as these typically receive the lowest conversion rate. Customers who pay nothing for a service are much less motivated to install the recommended measures than those who have invested in the program to some extent."]
[null,"In some cases, utilities charge a nominal fee for audit services, but reimburse the cost or offer bonus incentives when customers install a minimum number of recommended measures. Additionally, the majority of programs provide direct installation measures at no cost."]
[null,"The following incentive levels are provided as examples. Utilities should endeavor to set incentive amounts at a level appropriate for their own budgets and program strategies."]
[null,"Measure","Incentive"]
[null,"Walk-through audit","$25-$50 customer cost. Cost is reimbursed 100% if the customer implements one recommended measure."]
[null,"Comprehensive audit","$100-$200 customer cost. Cost is reimbursed at 50% for one installed measure and 100% for two installed measures."]
[null,"Compact fluorescent lamps","Free to customer (customer must have electric water heater to qualify for water heater measures)."]
[null,"Electric water heater measures:"]
[null,"·      Faucet aerator"]
[null,"·      Low flow showerhead"]
[null,"·      Water heater pipe insulation"]
[null,"·      Water heater setback"]
[null,"AC system tune up"]
[null,"Smart-strip","Customer co-pay 50% of retail or installed cost."]
[null,"Programmable thermostat"]
[null,"Infiltration","50% of installed cost with $1,000 cap (customer must have central air conditioning or electric heat to qualify)."]
[null,"Ceiling insulation"]
[null,"Wall insulation"]
[null,"Duct sealing"]
["Budgeting rules of thumb","·     Estimated dollars spent per annual gross kWh saved: $0.33/kWh"]
[null,"·     Estimated program costs as a percent of total program budget:"]
[null,"ü  Administration (internal): 5% to 10%"]
[null,"ü  Marketing and advertising: 10% to 15%"]
[null,"ü  Incentives and measure costs (direct install or giveaway): 70%"]
[null,"ü  EM&V: 5%"]
["Benefits","·     Options to provide immediate energy savings through direct installation of measures"]
[null,"·     Popular with customers"]
[null,"·     Provides customers with immediate energy savings and access to additional rebates for significant energy saving measures"]
[null,"·     Opportunity for utility to connect directly with customers to enhance relationship and increase customer good will"]
[null,"·     Opportunity to educate customers on long-term benefits of efficiency and other utility programs"]
[null,"·     Collaboration opportunities with local workforce"]
[null,"·     Good local job creation and other economic benefits"]
["Measuring savings","Energy savings for this program will be calculated using information gathered during the energy audit, including energy consumption data and quantities of direct installation measures installed. To ensure data is adequate to conduct impact evaluations, collected information should include: "]
[null,"·     Participant contact information, including name, address, and participation date."]
[null,"·     Essential structural attributes"]
[null,"·     Household characteristics"]
[null,"·     Types and quantities of installed measures"]
[null,"·     Estimated savings"]
[null,"·     Measure cost"]
[null,"·     Interval daily electricity consumption"]
[null,"·     Climate information to calculate heating and cooling degree information"]
[null,"Additional savings resulting from weatherization measures installed will be calculated using information from rebate applications for those measures. Rebate applications should require customers or their contractors to provide specific information on pre-installation conditions, including the type, location, and condition of existing insulation as well as the types, locations, and quantities of measures installed."]
["Best practices and innovations","·     Use customer’s actual 12 month billing history to inform upgrade measure recommendations and calculate energy savings."]
[null,"·     Provide tools and resources for customers to take action after the audit, such as lists of qualified installation contractors and tips on how to select a contractor, simple rebate applications (with online submittal options), technical support hotline, tips for do-it-yourself energy-saving opportunities and behavioral actions, FAQs, and other educational materials."]
[null,"·     Use an advanced, software-based, energy audit and analysis tool to enter data on site and generate audit reports that can be delivered instantly through email or printed on a portable printer."]
[null,"·     Couple weatherization measures with OBF or low-cost financing mechanism. Structure financing to result in positive cash flow"]
[null,"·     Partner with other utility, state, or local incentive programs to present a unified program to customers."]
[null,"·     Use simple rebate forms and program rules."]
[null,"·     Refund some or all of audit cost if customer follows through on recommended actions."]
[null,"·     Solicit customer commitment to install recommended measures. Offer to help customers develop a phased implementation approach and generate work orders on site for immediate installation measures."]
[null,"·     Provide performance-based incentives that offer greater incentives and interest subsidies the more measures a customer implements."]
[null,"·     Provide simple, visually appealing energy audit reports that clearly articulate priority measures and estimated energy savings."]
[null,"·     Use community-based marketing approaches to create a word-of-mouth effect."]

{"sheet":"R-Edu","index":13,"n_rows":91,"n_cols":2,"rows_kept":91,"cut":false,"hidden":true,"merged":[[51,0,61,0],[64,0,71,0],[73,0,90,0],[0,0,0,1],[1,0,20,0],[21,0,27,0],[28,0,30,0],[32,0,45,0]]}
["Energy Efficiency Education"]
["Program description","This program promotes energy efficiency education and the adoption of energy-efficient behaviors. It contains two components: a school-based educational platform and a general awareness campaign."]
[null,"School Curriculum"]
[null,"The utility will work with schools to integrate energy efficiency education into the curriculum and extracurricular activities. The program targets elementary-aged children in the fourth and fifth grades. To implement the program, the utility partners with a third-party organization specializing in energy efficiency education. The selected implementation provider should offer some combination of the following:"]
[null,"·     Teaching guides to support curriculum development"]
[null,"·     Student workbooks or other materials to reinforce the curriculum"]
[null,"·     Fun and interesting activities that can be done in a classroom setting or at home"]
[null,"·     Information on general efficiency awareness, behavioral actions and tips, and other utility programs to be shared with parents"]
[null,"·     Classroom and/or assembly presentations focused on awareness of energy safety  and efficiency concepts that are fun and engaging"]
[null,"·     Guidelines for extracurricular activities such as science fair projects, school contests, and similar activities"]
[null,"·     Free energy efficiency kits that contain no-cost/low-cost energy saving measures (e.g., CFLs and energy saving tips)"]
[null,"General Awareness"]
[null,"Utility general efficiency awareness campaigns are aimed at increasing customer knowledge about the benefits of energy efficiency and strategies they can take to reduce their own energy consumption. These types of campaigns are particularly appropriate and well received in areas with municipal utilities, since they are often viewed as a way to support the community. Approaches may include:"]
[null,"·     Media advertising that uses a “did you know…?” approach."]
[null,"·     Energy efficiency tips and information on the utility website."]
[null,"·     Distribute energy efficiency information through brochures, flyers, door hangers, utility newsletters, and other collateral through one-on-one interactions"]
[null,"·     Outreach at local events such as community fairs, organization gatherings (e.g., church picnics), farmers markets, parades, etc."]
[null,"·     Outreach to trade allies through key account managers, at trade shows, seminars, webinars, etc."]
[null,"·     Leverage social media channels (Facebook, Twitter, YouTube, Flickr, LinkedIn) to create two-way dialog with customers regarding energy efficiency. Promote programs, energy-saving tips, and events."]
[null,"·     Trade ally training through lunch-and-learn events, webinars, and workshops."]
[null,"·     Sponsor demonstrations and presentations to large customers, town hall meetings, community groups, and other venues."]
["Objectives","·     Educate customers (and future customers) about energy use and the benefits of energy efficiency."]
[null,"·     Provide customers with information about no-cost/low-cost energy efficiency measures and behaviors that can reduce their energy consumption."]
[null,"·     Encourage customers to adopt more energy-efficient behaviors and to install energy efficiency measures in their homes by becoming more aware of how their behavior and practices impact their energy usage."]
[null,"·     Inform customers and trade allies about available utility-sponsored energy efficiency programs and incentives."]
[null,"·     Enhance customer relationships."]
[null,"·      Improve the likelihood trade allies will promote utility programs to their customers."]
[null,"·     Contribute to long-term market transformation by encouraging customers to consider energy efficiency as a normal part of their daily lives and purchasing decisions."]
["Infrastructure and staffing ","Estimated utility staffing requirement: 0.25 to 0.5 FTE for management, coordination, and other administrative functions."]
[null,"Utility staffing requirements to support education and behavior programs can vary depending on the utility’s budget allocation and program objectives. School-based programs typically include curriculum and materials from a third-party vendor. However, low cost resources exist."]
[null,"Infrastructure needs to support general awareness may include a functional utility website, marketing materials, event displays, and training and general awareness presentations and computer/presentation hardware."]
["Customer targets and eligibility ","This program targets residential customers and school children throughout the utility service territory. No eligibility verification is required."]
["Implementation ","Utility staff typically manages and directs the program delivery approach and provides other administrative functions."]
[null,"Key steps in program implementation include:"]
[null,"School Curriculum"]
[null,"·     Utility staff will identify curriculum and other educational activities appropriate to the service territory."]
[null,"·     Solicit potential school curriculum program providers"]
[null,"·     Facilitate marketing to local schools to encourage their participation in the program (often through a letter to the school principal)"]
[null,"·     Coordinate activities with the implementation contractor"]
[null,"General Awareness"]
[null,"General awareness can include a broad range of activities that the utility may wish to undertake, often without a great deal of lead time. Implementation steps may vary by activity."]
[null,"·     Planning for awareness activities such as participation in events, advertising campaigns, presentations, etc."]
[null,"·     Identifying and developing communication channels, meetings and events, and advertising support appropriate to each activity."]
[null,"·     Coordinating activities with partners and other participants."]
[null,"·     Developing materials such as media publications, case studies, newsletters, brochures, and other materials."]
[null,"·     Evaluating the effectiveness of each activity."]
["Program barriers ","Mitigation Strategies "]
["·     Lack of customer awareness of educational opportunities","·     Conduct outreach through traditional and non-traditional mechanisms; create a comprehensive marketing strategy."]
["·     Lack of time and resources to participate","·     Provide educational opportunities at no cost."]
["·     Cost of educational curriculum, activities, and materials","·     Use flexible scheduling and streamline programs to ensure energy-efficient use of participants’ time."]
[null,"·     Leverage programs and curricula created by national organizations."]
["Marketing and outreach ","Marketing strategies for the education and behavior program will vary depending on the program component. The objective of marketing for a school based program is recruiting schools to participate in the program. Many utilities recruit schools by writing a personal letter to school principals or using one-on-one direct contact (email, phone call, or visit) to explain the program and enlist their support."]
[null,"Marketing is an integral part of general awareness program delivery. For several program delivery components, the two are one and the same. The key difference between program marketing and general awareness marketing is that materials use a more informational message, rather than promoting a specific program. General awareness messaging can be delivered through:"]
[null,"·     Bill inserts"]
[null,"·     Mass media (e.g., radio, print, digital advertising, public service announcements)"]
[null,"·     Website"]
[null,"·     Newsletters"]
[null,"·     Case studies"]
[null,"·     Brochures, flyers, FAQs, door hangers, etc."]
[null,"·     Presentations, workshops, participation in community events, sponsorships"]
[null,"·     Trade ally training and industry events"]
[null,"·     Social media (e.g., Twitter, Facebook, YouTube, Flickr, LinkedIn)"]
["Measures and incentive levels","This program does not cover specific measures and does not provide specific incentives. All education and general awareness activities are provided at no cost to customers."]
["Budgeting rules of thumb","The cost of education and behavior programs can vary widely depending on the delivery approach. A program focused strictly on general awareness can be categorized as 100% marketing cost. Utilities are encouraged to seek out pricing from a variety of program implementation perspectives to develop budgets."]
["Benefits","·     Provides energy efficiency education to students through fun activities"]
[null,"·     Begins the process of lifelong awareness of efficiency among future customers"]
[null,"·     Can increase customer knowledge through approaches that support the community"]
[null,"·     Offers an opportunity for utilities to have a two-way dialogue with customers that enhances customer relationships"]
[null,"·     Increases awareness of how customers’ behavior impacts their energy usage"]
[null,"·     Can contribute to market transformation by encouraging consideration of energy efficiency in purchasing decisions"]
[null,"·     Potential to help change individuals’ patterns of energy use and encourage ongoing, consistent energy-efficient behaviors"]
[null,"·     Implementation can include a broad range of activities and partnerships"]
["Measuring savings","This program does not require any measurement or tracking of energy savings. However the effectiveness of individual program activities should be evaluated on a case by case basis, through customer surveys, or by soliciting feedback through other means."]
["Best practices and innovations","·     School-based programs:"]
[null,"ü  Design curriculum that’s fun, engaging, visually appealing, and memorable."]
[null,"ü  Use contests or challenges to engage kids."]
[null,"ü  Design age-appropriate curriculum and target kids old enough to understand energy concepts and efficiency benefits."]
[null,"ü  Use a variety of educational materials, activities, and assignments to reinforce curriculum."]
[null,"ü  Assign take-home projects and provide general awareness information for kids to share with their parents."]
[null,"ü  Invite guest speakers and community leaders to present in classrooms or at assemblies."]
[null,"ü  Present curriculum in small doses over an extended period following a phased path."]
[null,"·     General Awareness:"]
[null,"ü  Use positive, fact-based, credible communications to overcome perception barriers about energy efficiency."]
[null,"ü  Ensure the educational messages are audience-specific and include a call to action."]
[null,"ü  Speak to customers on their own terms using regional mindsets and terminology."]
[null,"ü  Maintain focus on the end goal."]
[null,"ü  Build momentum to create bandwagon effect. A phased approach sometimes works best."]
[null,"ü  Leverage multiple outreach tactics, such as participation in events, social media, and traditional media"]
[null,"ü  Use normative messaging that conveys energy efficiency as a social norm (e.g., “all of your neighbors have participated in the energy challenge, why haven’t you?”) to encourage customers to adopt energy-efficient behaviors."]
[null,"ü  Encourage customers to commit or pledge to take action."]
[null,"ü  Offer recognition for participants’ contribution. "]

{"sheet":"R-NC","index":14,"n_rows":83,"n_cols":4,"rows_kept":83,"cut":false,"hidden":true,"merged":[[79,1,79,3],[80,1,80,3],[66,1,66,3],[67,0,82,0],[67,1,67,3],[68,1,68,3],[69,1,69,3],[70,1,70,3],[71,1,71,3],[72,1,72,3],[73,1,73,3],[74,1,74,3],[81,1,81,3],[82,1,82,3],[75,1,75,3],[76,1,76,3],[77,1,77,3],[78,1,78,3],[60,0,65,0],[60,1,60,3],[61,1,61,3],[62,1,62,3],[63,1,63,3],[64,1,64,3],[65,1,65,3],[53,0,59,0],[53,1,53,3],[54,1,54,3],[55,1,55,3],[56,1,56,3],[57,1,57,3],[58,1,58,3],[59,1,59,3],[40,1,40,3],[41,0,52,0],[41,1,41,3],[47,1,47,3],[48,1,48,3],[49,1,49,3],[50,1,50,3],[51,1,51,3],[52,1,52,3],[30,0,40,0],[39,1,39,3],[30,1,30,3],[31,1,31,3],[32,1,32,3],[33,1,33,3],[34,1,34,3],[35,1,35,3],[36,1,36,3],[37,1,37,3],[38,1,38,3],[24,1,24,3],[25,1,25,3],[26,1,26,3],[27,1,27,3],[28,1,28,3],[29,1,29,3],[13,1,13,3],[14,1,14,3],[15,1,15,3],[16,1,16,3],[17,1,17,3],[23,1,23,3],[5,1,5,3],[6,0,7,0],[6,1,6,3],[7,1,7,3],[8,0,23,0],[8,1,8,3],[9,1,9,3],[10,1,10,3],[11,1,11,3],[12,1,12,3],[18,1,18,3],[19,1,19,3],[20,1,20,3],[21,1,21,3],[22,1,22,3],[0,0,0,3],[1,1,1,3],[2,0,4,0],[2,1,2,3],[3,1,3,3],[4,1,4,3]]}
["Residential New Construction Program"]
["Program description","This program supports the construction of energy-efficient new homes. The program offers a per house incentive for homes built to meet EPA’s ENERGY STAR® New Homes requirements, using a tiered incentive structure. A third-party HERS rater is employed by participating builders to confirm that homes meet the ENERGY STAR® Homes requirements. The program provides marketing, education, technical support, and administration."]
["Objectives","·     Support the creation of more energy-efficient housing stock"]
[null,"·     Educate builders, and thus move the industry to adopt more energy-efficient building practices"]
[null,"·     Educate consumers about the value and comfort of energy-efficient and high performance homes and the ENERGY STAR® programs"]
["Infrastructure and staffing ","Estimated utility staffing requirement: 0.5 FTE for management, marketing, trade ally support, evaluation, and other administrative functions."]
["Customer targets and eligibility ","This program targets all builders of single family homes and duplexes."]
[null,"Participating builders must become ENERGY STAR® Partners. Once in the program, participants are responsible for building homes to meet the designated ENERGY STAR® Homes requirements."]
["Implementation strategy ","An ENERGY STAR® Homes program can be managed and delivered with in-house staff and minimal outside technical support. Key steps in program implementation include:"]
[null,"·     Promote program participation through industry events and trade allies."]
[null,"·     Educate program participants on the ENERGY STAR® Homes program and requirements."]
[null,"·     Provide program participants with energy efficiency education and design assistance."]
[null,"·     Participate in statewide program activities."]
[null,"·     Provide marketing and outreach to consumers."]
[null,"·     Provide program information on the utility website."]
[null,"·     Process and track program participation and incentives. "]
[null,"·     Train builders’ marketing and sales staff, lenders, and real estate agents about energy efficiency, the financial savings, and the user comfort benefits of ENERGY STAR® Homes."]
[null,"·     Verify that properties meet the incentive requirements."]
[null,"Participation steps include:"]
[null,"·     Participating builders must attend technical training on the requirements of the ENERGY STAR® New Homes program and become ENERGY STAR® Partners. "]
[null,"·     Prior to the start of construction, the program participant must submit building plans to a RESNET accredited provider for analysis of the home’s anticipated energy consumption to verify project eligibility. "]
[null,"·     Once the home is completed the physical structure undergoes a comprehensive assessment using diagnostic testing to verify that the ENERGY STAR® Homes requirements have been met. "]
[null,"·     For volume builders, a predetermined sample of finished structures is tested to verify the entire community. "]
[null,"·     The HERS rater submits the final evaluation to the program administrator to show compliance."]
["Program barriers ","Mitigation Strategies "]
["·     Builder concern that consumers will not understand or pay for a home built to ENERGY STAR® Homes standards. ","·     Target consumers with marketing and advertising focused on the energy efficiency, savings, and increased comfort of homes built to ENERGY STAR® Homes standards."]
["·     Industry stakeholders lack understanding of financial and user benefits of a home built to ENERGY STAR® Homes standards. ","·     Provide outreach and education to builders’ sales and marketing staff, as well as lenders and real estate agents on the energy efficiency, savings, and increased comfort of homes built to ENERGY STAR® Homes standards."]
["·     Additional upfront costs for the building and verification of ENERGY STAR® Homes."]
["·     Participants don’t meet the program’s design, technical, and verification requirements.","·     Provide incentives to offset the additional costs of building and verification of residences built to ENERGY STAR® Homes standards."]
[null,"·     Require participants to attend an initial program orientation and provide design and technical assistance."]
["Marketing and outreach ","This program relies on both developing the demand side through customer marketing, and on recruiting active builders. A high level of trade ally participation and program promotion are critical to ensure program success. Program messaging to consumers focuses on the ENERGY STAR® brand and education on the long-term benefits of homes built to ENERGY STAR® Homes standards. Marketing messages for builders should highlight that the program is a way to differentiate their products, while also positioning them to better meet future energy code requirements. "]
[null,"Marketing tactics for consumers may include:"]
[null,"·     Dedicated program web page"]
[null,"·     Brand marketing material with ENERGY STAR®."]
[null,"·     Presenting program information at seminars, conferences, home shows, and community events."]
[null,"·     Coordinating marketing opportunities with key market partners (e.g., SECO, neighborhood associations, and city building departments)."]
[null,"Marketing to builders may include:"]
[null,"·     Outreach through industry organizations and events (American Institute of Architects (AIA), the Home Builders Association)."]
[null,"·     Advertising in trade publications."]
[null,"·     Presenting program information at seminars, conferences, home shows, and community events."]
[null,"·     Coordinating marketing opportunities with key market partners (i.e., SECO, city building departments)."]
["Measures and incentive levels","Following are suggested tiers and incentives for an MOU providing electric service to customers in areas that have adopted International Energy Conservation Code (IECC) 2009."]
[null,null,"Requirement","Incentive"]
[null,"Tier 1","ENERGYSTAR Standard v2.5",250]
[null,"Tier 2","ENERGYSTAR Standard 3.0",500]
[null,"Tier 3","HERS Index of 60 of below",750]
[null,"Prescriptive Options","Utility-Specific"]
[]
[null,"Program adjustment strategies:"]
[null,"·     In areas with less stringent energy codes, start tiers with ENERGYSTAR v2 and provide higher incentives."]
[null,"·     If requiring lower versions of ENERGY STAR®, additional tiers can be offered for the installation of higher SEER AC systems or higher window efficiency."]
[null,"·     Partner with relevant gas utilities to enhance whole home incentives."]
[null,"Additional rebates can be offered for targeted or premium efficiency prescriptive measures. Examples might include solar technologies or premium efficiency air source heat pumps.  "]
["Budgeting rules of thumb","·     Estimated dollars spent per annual gross kWh saved: $0.23/kWh"]
[null,"·     Estimated program costs as a percent of total program budget:"]
[null,"ü  Administration (internal): 5%"]
[null,"ü  Third-party contractors: 5% to 10%"]
[null,"ü  Marketing and advertising: 5% to 10%"]
[null,"ü  Incentives: 70%"]
[null,"ü  EM&V: between 5% and 10%"]
["Benefits","·     Educates  builders and developers as well as consumers"]
[null,"·     Tiered incentives allow for flexibility to adapt to changing markets"]
[null,"·     Provides utilities with a high profile market brand"]
[null,"·     Increases efficiency of housing stock over time"]
[null,"·     Can help move the industry to adopt more energy-efficient building practices"]
[null,"·     Minimal outside technical support is required"]
["Measuring savings","The HERS ratings provided with incentive applications provide estimated energy savings compared with a home built to code. These predicted savings may be adjusted based on post-installation inspections."]
["Best practices and innovations","·     Offer tiered incentives that encourage increasing levels of efficiency."]
[null,"·     Partner with local gas utility to create a comprehensive program package that addresses the whole home as a system."]
[null,"·     Include incentives for targeted prescriptive measures, such as:"]
[null,"ü  Premium efficiency heating, cooling, lighting, or appliances"]
[null,"ü  Solar-ready homes"]
[null,"ü  Solar technology or geothermal systems"]
[null,"·     Offer high-quality building science and energy efficiency training to the building community in order to move the entire industry practice forward."]
[null,"·     Require builders to attend building science and energy efficiency trainings before being eligible to receive incentives."]
[null,"·     Include strategies to encourage builders’ subcontractors to attend building science and energy efficiency training."]
[null,"·     Provide technical and design assistance to support program participants."]
[null,"·     Educate customers about the benefits and features of ENERGY STAR® Homes to encourage greater market adoption."]
[null,"·     Leverage ENERGY STAR® brand, marketing materials, and other resources to the greatest extent possible."]
[null,"·     Build strong communication channels with trade allies and builder associations."]
[null,"·     Offer training to marketing and sales departments of volume builders to support their ability to successfully sell the benefits of ENERGY STAR® Homes."]
[null,"·     Outreach to industry stakeholders (e.g., lenders, real estate agents) with education about the value of ENERGY STAR® Homes."]
[null,"·     Work with other MOUs to build economies of scale where possible (e.g., education, training, and marketing)."]

{"sheet":"R-OBF","index":15,"n_rows":76,"n_cols":2,"rows_kept":76,"cut":false,"hidden":true,"merged":[[47,0,52,0],[53,0,56,0],[57,0,62,0],[64,0,75,0],[0,0,0,1],[1,0,2,0],[3,0,7,0],[9,0,11,0],[12,0,25,0],[36,0,46,0]]}
[" On-bill Financing Program"]
["Program description","Financing programs help customers make energy improvements by removing the obstacle of upfront costs. The energy cost savings from the improvements are used to pay off the financing over time. OBF programs use the utility bill as the vehicle for repaying the loan. The utility’s role beyond managing the program can vary from providing capital and originating loans to simply serving as the repayment vehicle. OBF programs are generally used to target deeper retrofits."]
[null,"If the loan form of OBF is selected (as opposed to the tariff form), the challenge of complying with consumer lending laws may lead the program to, either avoid the residential sector or to use a third-party lender to originate and service loans to the residential sector. OBF’s unique ability to solve the “split incentive” problem makes it the only good financing choice for the multifamily and small business sectors."]
["Objectives","·     Provide customers with opportunities to reduce their energy costs and increase their energy efficiency."]
[null,"·     Eliminate the obstacles to customers of the upfront cost of making energy efficiency improvements."]
[null,"·     Create a mechanism that helps address the split incentive barrier."]
[null,"·     Enable customers to pay for the improvements over time using the savings delivered by the improvements."]
[null,"·     Enable customers to pay for energy efficiency improvements without affecting their ability to borrow."]
["Infrastructure and staffing ","Estimated utility staffing requirement: 1.0 FTE for management, trade ally support, evaluation, and other administrative functions."]
["Customer targets and eligibility ","OBF can target all sectors (residential, commercial, government, etc.), although it is best to choose one sector to focus on initially. "]
[null,"While eligible measures can be prescriptive (e.g., air-sealing, insulation, etc.), most OBF programs encourage deeper retrofits by requiring a comprehensive energy audit that identifies a package of recommended measures and includes an estimate of installation costs and energy savings. Project eligibility is generally based on whether the package will generate positive cash flow for the customer (i.e., they will on average save enough money to cover the monthly financing payments)."]
[null,"Participants must own the property and pass a check of their utility bill payment history. Some programs, especially those that use third-party lenders, also check the customer’s credit report and debt-to-income ratio."]
["Implementation ","OBF can take a variety of forms. Many utilities engage outside expertise for help determining the best form to meet their specific situation and objectives. There are many different program design approaches utilities can take. Each MOU should explore available options and select the approach that best fits their operational capacity and program objectives."]
[null,"Design variables include:"]
[null,"·     Sources of Capital:"]
[null,"ü  Utility – system benefits charge (SBC); operating or capital budget; borrowing; and bonds"]
[null,"ü  Third-Party Lenders – local or regional banks or credit unions; and low-interest community development financial institutions (CDFIs) such as nonprofit lenders and state and local housing and economic development authorities"]
[null,"ü  Government – local (fees, budget, revenue bonds); state (energy or development agencies); DOE and EPA grants; zero-interest United States Department of Agriculture (USDA) Rural Economic Development Loans and Grants; Qualified Energy Conservation Bonds; Qualified Zone Academy Bonds for schools; and quasi-governmental entities such as state and local housing and economic development authorities."]
[null,"·     Security: the ability to disconnect service is typically the only security needed, although some programs may file a lien on the property or equipment in lieu of (or in addition to) a disconnect provision."]
[null,"·     Risk of Loan Defaults: may be borne by: "]
[null,"ü  a third party lender that makes the loans"]
[null,"ü  program participants (as a small fee or interest rate supplement that covers the few losses)"]
[null,"ü  all ratepayers, since all share in the benefits of avoiding the cost of building new generating capacity, creating installation jobs, and conserving resources (note that, when spread across an entire rate base, typical losses of 1% to 3% are quite minimal)."]
[null,"·     Loan Origination and Servicing: provided by the utility, third-party lender, or a third-party program administrator"]
[null,"·     Credit Enhancement: third-party lenders may or may not be willing and able to lend on terms necessary for program success; the utility or another party (see Sources of Capital above) may need to provide an interest rate buy-down or loan loss reserve in order to achieve the desired interest rate, length of loan, and credit requirements."]
[null,"·     Loan versus Tariff: loans may be easier to implement, but many businesses and homeowners are reluctant to use their limited borrowing capacity for non-essential purposes; tariffs have the advantages of being off-balance sheet and not adding to debt, and being transferable to a new owner or occupant if the property is transferred."]
["Program barriers ","Mitigation Strategies "]
["·     Utilities may not want to use their capital budget to make loans","·     Use other non-utility capital (see Sources of Capital above)"]
[null,"·     Assign the risk of loan defaults to parties other than the utility (see Risk of Loan Defaults above)"]
["·     Assuming the risk of loan defaults may not be in a utility’s interest","·     Assign partial payment to the energy bill first, then the financing payment and carry over the remainder"]
["·     Assigning partial bill payments","·     Bear in mind that the total bill is less than before the loan; let low-income energy assistance include the finance payment; take disconnect out of the utility’s hands (make it mandatory)"]
["·     Utilities may be reluctant to disconnect customers for failure to make the financing payment","·     Use the OBF program to help justify upgrading old software to enable line-item billing, perhaps including third-party services that can help subsidize utility rates"]
["·     Billing software may not be able to handle the monthly finance charge","·     Loans are an acceptable option, but tariffs offer significant advantages (see Loan Versus Tariff above)"]
["·     A tariff may not be easy to implement","·     Use a third-party lender or program administrator to originate and service the loans"]
["·     Loan origination and servicing may not be of interest to utilities","·     Focus on regional and local banks and credit unions, as well as CDFIs such as non-profit lenders and state and local housing and economic development authorities"]
["·     Lenders may not be interested in participating in the program"]
["Marketing and outreach ","Utilities often market OBF programs in tandem with their equipment rebate, audit, and direct installation, or other relevant programs – offering financing as an adjunct to traditional equipment rebates. Thus many of the same marketing and outreach strategies apply, including:"]
[null,"·     Bill inserts"]
[null,"·     Utility dedicated program web page"]
[null,"·     Active trade ally outreach and support"]
[null,"·     Newspaper, radio, and other mass media"]
[null,"·     Brand marketing material with ENERGY STAR®"]
[null,"·     Present program information at seminars, conferences, home shows, and community events"]
[null,"·     Outreach to and coordinated advertising with trade allies (i.e., equipment dealers, distributors, and installers)"]
[null,"·     Coordinate marketing opportunities with key market partners (i.e., SECO, community groups)"]
[null,"·     Publish and distribute program brochure"]
[null,"·     Cross-promote through other programs"]
["Measures and incentive levels","Eligible measures are typically quite broad. The primary requirement is that a package of measures must generate positive cash flow over the length of the loan. Loan length is usually limited to the average useful life of the measures being financed. Typical energy efficiency measures such as air sealing, insulation, and HVAC equipment are almost always eligible, while renewable energy measures such as solar electric, solar thermal, and geothermal may or may not be included."]
[null,"Financing incentives typically take the form of:"]
[null,"·     Low Interest Rates – normally in the range of 0% to 7%, depending on the source of capital and the availability of funds to buy down the rate."]
[null,"·     Long Loan Terms – often 2 to 3 years for small loans, and 5 to 10 or even 15 years for whole-building retrofits."]
[null,"·     Broad Eligibility – OBF programs often include good customers who might not qualify for traditional bank loans, especially since loan security seldom relies on the customer’s equity in the property (security is usually provided by a disconnect provision)."]
[null,"Rebates and other incentives can be combined with the financing program, and are sometimes offered as an “either/or” choice. AE’s “Best Offer Ever,” indicates that the combined approach is far more attractive to customers than the either/or approach. Financing incentives may be tiered to help motivate customers to make deeper retrofits."]
["Budgeting rules of thumb","·     Because OBF programs are offered in conjunction with other programs (such as equipment rebate programs), the cost of energy savings is based on the installed equipment. "]
[null,"·     Costs for marketing, incentives, and EM&V are born under the companion program. "]
[null,"·     Program costs typically include labor for approximately 1.0 FTE for program set up, plus 0.2 FTE for ongoing program administration."]
[null,"·     Cost of capital depends on capital source. Capital provided internally is equal to the utility’s cost of capital. Capital from external sources can vary from 2% to 3% from a CDFI to 7% to 8% from a commercial bank."]
["Benefits","·     Helps customers afford energy efficiency improvements by removing upfront costs and allowing payment over time with low interest rates"]
[null,"·     Customers often see net reduction in monthly energy bills"]
[null,"·     Offers a mechanism to overcome the split incentive barrier"]
[null,"·     Enables customers to improve energy efficiency without increasing debt"]
[null,"·     Can take a variety of forms for implementation"]
[null,"·     Opportunity for partnership with contractors, installers, and community organizations"]
["Measuring savings","Energy savings are typically calculated through the energy audit. Many programs include an inspection and/or test-out of the installed improvements, although this is determined more by the overall retrofit program than by the financing program itself. "]
["Best practices and innovations","·     Team with lenders to leverage their experience in financing home improvements."]
[null,"·     Be familiar with the benefits to lenders of participating in the program, as described in Lawrence Berkeley National Laboratory’s Policy Brief on AE’s loan program."]
[null,"·     Use low-interest financing as a high-leverage tool (the cost of subsidizing the interest rate is a small fraction of the cost of the improvements)."]
[null,"·     Train trade allies, such as installers, to point customers to the OBF program, as a highly motivated sales channel."]
[null,"·     Use a network of trained and qualified contractors to help assure quality workmanship."]
[null,"·     Partner with cities and community-based organizations to help expand participation."]
[null,"·     Target rental properties: use OBF to solve the “split incentive” problem associated with tenant-occupied properties."]
[null,"·     Use the tariff form of OBF (as opposed to the loan form) to offer customers off-balance sheet financing that is not considered debt and can be transferred to a new customer if the current customer moves."]
[null,"·     Collaborate with other utilities to achieve economies of scale and a stronger program."]
[null,"·     Approve loans quickly to meet the needs of a reactive market (i.e., customers who must immediately replace equipment, such as a furnace that fails in mid-winter)."]
[null,"·     Develop a comprehensive marketing program tied to appropriate companion programs."]
[null,"·     Design a quick and easy process that eliminates the hassles of getting an audit, obtaining a loan, and making improvements."]

{"sheet":"R-DR","index":16,"n_rows":67,"n_cols":2,"rows_kept":67,"cut":false,"hidden":true,"merged":[[62,0,66,0],[0,0,0,1],[1,0,4,0],[5,0,7,0],[8,0,10,0],[11,0,12,0],[13,0,25,0],[32,0,40,0],[41,0,42,0],[43,0,49,0],[50,0,53,0],[55,0,61,0]]}
["Residential Demand Response Program"]
["Program description","The Residential DR program includes two potential components: a DLC program or a pricing program that utilities may implement based on their operational capabilities and infrastructure."]
[null,"The DLC component primarily targets customers who have working central A/Cs or heat pumps. Electric water heaters and pool pumps can also be considered for participation (as long as they are in good working order and compatible with the MOU control technology)."]
[null,"DLC participants are equipped with a device that is capable of reducing the energy use of their equipment during peak demand periods when they receive an event signal from the utility. Either a DLC switch or a smart thermostat can be used as the control technology; both similarly reduce the use of connected equipment when they receive event signals."]
[null,"The pricing program component assigns different rate structures to electricity consumed during different times of the day and/or different days during the peak season. Higher rates are charged during peak periods and lower rates are applied during off-peak periods. Enabling technologies such as smart thermostats, in-home displays (IHDs), or direct load control receivers (LCRs) may be installed in the customer’s home. Customers manage their energy use so as to incur the lowest prices."]
["Objectives","·     Reduce peak demand and alleviate strain on the electric system during peak periods."]
[null,"·     Provide incentives to customers willing to reduce their energy consumption during summer peak hours, or offer customers lower electric rates when they use equipment during off-peak times."]
[null,"·     Educate customers about peak load reduction and energy efficiency."]
["Infrastructure and staffing ","Estimated utility staffing requirement: 1 FTE for internal program management or 0.25 to 0.5 FTE for management of a third-party implementer."]
[null,"If the program is implemented with internal utility staff, additional staff will be required to install switches at customer sites. Additionally, the utility will be required to purchase DLC devices for installation on customer air conditioning systems."]
[null,"Third-party implementers offer customizable DR options that can range from complete turnkey programs to only providing technology, or any combination in between."]
["Customer targets and eligibility ","This program primarily targets residential customers, but small commercial customers with compatible central air conditioning systems, heat pumps, water heaters, window A/Cs, and pool pumps, could also be eligible."]
[null,"The program can be offered for both existing and new construction. If the participant resides in rental property he or she must obtain the owner’s approval to participate."]
["Implementation ","The utility may either implement the program internally or select an experienced DR contractor with national presence, to provide turnkey program services. The implementer or MOU provides comprehensive services including:"]
[null,"·     Marketing"]
[null,"·     Customer recruitment  and troubleshooting"]
[null,"·     Installing control devices on eligible customer equipment, processing applications, tracking program data; paying incentives to customers"]
[null,"·     Documenting customer and transaction information "]
[null,"Key steps in program participation include:"]
[null,"·     MOU/implementer markets to, enrolls, and contracts with new participants."]
[null,"·     MOU/implementer schedules customer visits to install DR equipment (if utilized)."]
[null,"·     MOU/implementer verifies customer and appliance eligibility."]
[null,"·     MOU/implementer provides customer educational materials about the program and ways to manage energy use and peak demand."]
[null,"·     MOU/implementer controls units or sends pricing signals during specified peak periods to provide firm load reductions."]
[null,"·     MOU/implementer tracks customer data, appliances, and outcomes throughout process."]
[null,"·     MOU/implementer processes and delivers customer incentives."]
["Program barriers ","Mitigation Strategies "]
["·     Customers do not understand the program.","·     Design a robust marketing strategy."]
["·     Ability to maintain comfort levels with air conditioning cycling.","·     General customer education and awareness."]
["·     AMI infrastructure compatibility.","·     Use proven technologies and cycling strategies that prevent large temperature swings."]
["·     Customers override control devices.","·     Ensure MOU/implementer fully understands the AMI system."]
[null,"·      Limit customer access to controls."]
["Marketing and outreach ","Utility program staff coordinates with internal marketing and communications departments and the implementation contractor to ensure program materials are consistent with utility branding and advertising protocols."]
[null,"External marketing is led by the implementation contractor. The marketing strategy may include:"]
[null,"·     Direct mail"]
[null,"·     Bill inserts"]
[null,"·     Utility dedicated program web page"]
[null,"·     Newspaper, radio, and other mass media"]
[null,"·     Present program information at seminars, conferences, and community events"]
[null,"·     Coordinate advertising opportunities with trade allies"]
[null,"·     Distribute program brochures to community organizations, such as Chambers of Commerce"]
["Measures and incentive levels","For the DLC component, an LCR or smart thermostat is installed on control equipment by the implementer/MOU at no cost to the customer. Customers participating for the entire peak summer period receive an end-of-summer incentive of $25 to $50 for participation (to be determined by the MOU/implementer). A customer with more than one appliance may be eligible for multiple incentives. Incentives for partial summer participation may be prorated."]
[null,"For pricing programs, enabling technologies such as smart thermostats, IHDs, or LCRs may be installed at no cost to the customer. Customer incentives vary depending on their electric usage. Customers that provide higher levels of demand savings will typically earn greater incentives than customers with low demand reduction. Customers with high on-peak consumption may pay more than they would have if they hadn’t participated in the program."]
["Budgeting rules of thumb","·     Estimated dollars spent per annual gross kWh saved: $135/kW but will range depending on the ramp-up of the program because of initial equipment costs"]
[null,"·     Estimated program costs as a percentage of total program budget:"]
[null,"ü  Administration (internal): 10%"]
[null,"ü  Third-party contractors, trade ally, and technical costs: 30%"]
[null,"ü  Marketing and advertising: 10%"]
[null,"ü  Incentives: 50%"]
[null,"ü  EM&V: 3% to 5%"]
["Benefits","·     Provides opportunity to control energy demand during peak periods"]
[null,"·     History of market acceptance and successful implementation"]
[null,"·     Benefits both customer and utility"]
[null,"·     Provides opportunity to educate customers on energy management strategies"]
["Measuring savings","Actual impacts of the DR program will be verified using a statistical comparison of hourly load shapes of program participants between events and a reference (baseline) day. Hourly interval meter readings will be the primary data used in this analysis. These data may be augmented by information on the dwelling unit and household demographics to develop a better understanding of factors affecting demand savings."]
["Best practices and innovations","·     As MOUs traditionally have high levels of customer satisfaction and very trusting customers, it is valuable to clearly outline the program to provide detailed program materials that explain the program, why it is necessary, and what the alternatives are (higher rates, building more power plants, etc.). Materials should offer tips for managing peak demand voluntarily (e.g., doing laundry at night) to each new participant in the DR program. Utilities should also use this opportunity to provide materials on other energy efficiency program opportunities."]
[null,"·     Encourage customers to bundle similar programs to gain multiple benefits."]
[null,"·     Adopt a regular schedule to test appliance cycling switches in the service territory and replace any that are missing or not functioning."]
[null,"·     Offer a large enough incentive to gain customers’ interest; continue to provide incentive each year the customer participates."]
[null,"·     Conduct customer satisfaction surveys to gather information on program barriers and bottlenecks and solicit feedback from customers."]
[null,"·     Provide annual feedback to customers on the system-wide program benefits and thank them for making a difference."]
[null,"·     For pricing programs, develop rate structures with significant differences between peak and off-peak rates so as to provide high motivation for load shifting."]
["Advanced metering infrastructure (AMI) / smart grid implications for DR","·     An AMI system can be used to transmit the event signals to DR devices"]
[null,"·     An AMI system can be used to verify that DLC devices are operational."]
[null,"·     Smart thermostats are typically used when an AMI system is available, as they provide the participant with enhanced functionality such as the ability to override an event on the device and near-real time data on energy consumption."]
[null,"·     DLC can be marketed as a “Smart Home” feature of the smart grid."]
[null,"·     AMI systems make evaluation of the program less costly and improve validity as larger sample sizes are available due to the presence of smart meters."]

{"sheet":"NR-PR","index":17,"n_rows":134,"n_cols":5,"rows_kept":134,"cut":false,"hidden":true,"merged":[[126,2,126,4],[127,2,127,4],[128,2,128,4],[129,2,129,4],[130,2,130,4],[117,0,130,1],[117,2,117,4],[118,2,118,4],[119,2,119,4],[120,2,120,4],[121,2,121,4],[122,2,122,4],[123,2,123,4],[124,2,124,4],[125,2,125,4],[109,0,116,1],[109,2,109,4],[110,2,110,4],[111,2,111,4],[112,2,112,4],[113,2,113,4],[114,2,114,4],[115,2,115,4],[116,2,116,4],[101,0,108,1],[101,2,101,4],[102,2,102,4],[103,2,103,4],[104,2,104,4],[105,2,105,4],[106,2,106,4],[107,2,107,4],[108,2,108,4],[94,0,100,1],[94,2,94,4],[95,2,95,4],[96,2,96,4],[97,2,97,4],[98,2,98,4],[99,2,99,4],[100,2,100,4],[44,2,44,4],[45,2,45,4],[46,2,46,4],[47,2,47,4],[48,2,48,4],[49,0,93,1],[49,2,49,4],[55,4,58,4],[59,3,61,3],[59,4,61,4],[64,4,65,4],[38,2,38,4],[39,2,39,4],[40,2,40,4],[41,2,41,4],[42,2,42,4],[43,2,43,4],[29,0,48,1],[29,2,29,4],[30,2,30,4],[31,2,31,4],[32,2,32,4],[33,2,33,4],[34,2,34,4],[35,2,35,4],[36,2,36,4],[37,2,37,4],[26,0,26,1],[27,0,27,1],[28,0,28,1],[23,2,23,4],[24,2,24,4],[25,2,25,4],[26,2,26,4],[27,2,27,4],[28,2,28,4],[20,1,20,4],[21,1,21,4],[22,1,22,4],[23,0,23,1],[24,0,24,1],[25,0,25,1],[11,0,22,0],[11,1,11,4],[12,1,12,4],[13,1,13,4],[14,1,14,4],[15,1,15,4],[16,1,16,4],[17,1,17,4],[18,1,18,4],[19,1,19,4],[6,1,6,4],[7,1,7,4],[8,1,8,4],[9,0,10,0],[9,1,9,4],[10,1,10,4],[90,2,91,2],[92,2,93,2],[0,0,0,4],[1,0,3,0],[1,1,1,4],[2,1,2,4],[3,1,3,4],[4,0,7,0],[4,1,4,4],[5,1,5,4],[79,2,80,2],[82,2,83,2],[84,2,87,2],[84,4,87,4],[88,2,89,2],[88,4,89,4],[53,2,54,2],[53,3,54,3]]}
["Commercial Prescriptive Rebate Program"]
["Program description","The program promotes the purchase and installation of high-efficiency equipment by C&I customers in both existing and new facilities. It offers incentives to offset the higher purchase cost of energy-efficient equipment including lighting; HVAC equipment; building shell measures such as insulation, air sealing, and duct sealing; and motors and drives. The program provides a financial incentive in the form of a prescriptive rebate on a per-unit basis to customers installing qualifying equipment and technologies. Rebates are a fixed amount per device, paid by check to customers who complete a rebate application and submit documentation of the equipment purchase."]
[null,"When implemented as part of a commercial program portfolio, the equipment rebate program is a critical implementation vehicle for installing measures recommended in commercial energy audits or new construction assistance processes."]
[null,"The program is delivered with support from a network of trade allies who specify, sell, and install qualified equipment. Additionally, program and technical support is provided by the utility or a program contractor."]
["Objectives","·     Provide customers with opportunities to reduce their energy costs and increase their energy efficiency."]
[null,"·     Encourage customers to install high-efficiency lighting, HVAC equipment, and building shell efficiency measures. "]
[null,"·     Encourage the use of high-efficiency/ENERGY STAR®-rated equipment where appropriate."]
[null,"·     Promote other energy efficiency programs."]
["Infrastructure and staffing ","Estimated utility staffing requirement: 1 FTE for management, marketing, trade ally interaction, evaluation, and other administrative functions. An additional 0.5 FTE or a third-party contractor is recommended to provide technical and program support as well as quality assurance/quality control (QA/QC) functions."]
["Customer targets and eligibility ","This program is available to all C&I customers; however the primary program target is small to mid-sized commercial customers. To be as cost-effective as possible, the program should target customers seeking to replace older, inefficient equipment, or building new commercial facilities."]
[null,"Participant eligibility is verified through customer rebate applications cross-referenced against customer account numbers. Customers must submit a program application with documentation of the equipment replaced (if applicable), new equipment purchased, and installation(s) for verification. "]
["Implementation ","Equipment rebate programs are relatively simple to implement and administer and can be managed and delivered with in-house staff. Key steps in program implementation include:"]
[null,"·     Marketing and outreach, including to trade allies."]
[null,"·     Provide call center services to respond to customer questions and provide technical and program support."]
[null,"·     Verify customer eligibility and ensure that selected equipment meets program qualifications."]
[null,"·     Process applications and rebates."]
[null,"·     Review documentation to verify the applicant is an active customer and the installed equipment meets the minimum efficiency standard. "]
[null,"·     Track program data."]
[null,"·     Process rebate checks for qualified equipment. "]
[null,"·     Verify equipment/appliance installation for a sample of participants."]
[null,"Customer participation involves:"]
[null,"·     Customers installing eligible high-efficiency equipment schedule the work directly with their equipment dealer or installation contractor. "]
[null,"·     Work with the equipment installation contractor to fill out program applications and ensure the required documentation is submitted to the utility for processing."]
["Program barriers ",null,"Mitigation Strategies "]
["·     Higher first cost of energy-efficient equipment and economic environment limit customer’s ability to purchase energy-efficient equipment.",null,"·     Offer rebates to offset higher incremental cost. Educate customers on the long-term energy cost-saving benefits of higher efficiency equipment. "]
["·     Customers unaware of the program or benefits of high efficiency upgrades in their facilities.",null,"·     Market program and general efficiency awareness to customers."]
["·     Customers needing emergency replacement may not know about the program.",null,"·     Provide trade ally training and outreach to explain the benefits of selling higher efficiency equipment."]
["·     Customers don’t have the time to commit to large projects.",null,"·      Promote efficiency awareness to customers and trade allies."]
[null,null,"·      Use a simple participation, application, and verification process."]
["Marketing and outreach ",null,"This program relies primarily on equipment dealers that sell qualifying measures to market the program. Dealers promote the program, help customers understand the features and benefits of qualifying equipment, specify and install equipment, and help customers fill out program applications."]
[null,null,"A high level of trade ally participation and program promotion are critical to ensure program success. Thus, program marketing should target trade allies in addition to customers, to encourage their participation. The following types of trade allies are predominant:"]
[null,null,"ü  HVAC equipment distributors, dealers, and service providers"]
[null,null,"ü  Plumbing and mechanical contractors"]
[null,null,"ü  Lighting distributors and dealers"]
[null,null,"ü  Electrical contractors"]
[null,null,"ü  Motor and variable-speed drive distributors and dealers"]
[null,null,"ü  Insulation installers"]
[null,null,"ü  Engineering firms"]
[null,null,"ü  Architects"]
[null,null,"The program messaging focuses on the features and benefits of energy-efficient equipment. The marketing strategy for the program may include:"]
[null,null,"·     Active trade ally outreach and support"]
[null,null,"·     Bill inserts"]
[null,null,"·     Utility dedicated program web page"]
[null,null,"·     Newspaper, radio, and other mass media"]
[null,null,"·     Present program information at seminars, conferences, home shows, trade shows, and community events"]
[null,null,"·     Outreach to and coordinated advertising with trade allies (i.e., equipment dealers, distributors, and installers)"]
[null,null,"·     Coordinate marketing opportunities with key market partners (i.e., SECO, community groups)"]
[null,null,"·     Publish and distribute program brochure"]
[null,null,"·     Cross-promote through other programs"]
["Measures and incentive levels",null,"Commercial customers typically require an investment payback of 1.5 years or less. Program incentives may be set to roughly correspond to a 1.5-year payback, or to cover approximately half of the installed cost of the measure, but may be adjusted as needed to stimulate the market or scale back program uptake. The following measures and incentive levels are provided as examples. Utilities should select measures and set incentives at levels appropriate for their own customer bases, budgets, and program strategies."]
[null,null,"Measure","Eligibility Rating ","Incentive"]
[null,null,"Cooling Tower-Decrease Approach Temp.","Chiller tonnage > 100 tons","$8/ton"]
[null,null,"Cooling Tower-Two-Speed Fan Motor","Replace one–speed fan motor","$1/ton"]
[null,null,"Pipe Insulation","≥ R-4","$1.60/lin"]
[null,null,null,null,"ar foot"]
[null,null,"Water-Cooled Chiller, Screw Chi","High-Efficienc","$7/ton"]
[null,null,"ler ","y "]
[null,null,null,"/ton  0."]
[null,null,null,2]
[null,null,"Water-C","Premium Efficiency kW/ton = 0.574","$10/ton"]
[null,null,"ooled Chiller, Screw Chill"]
[null,null,"er"]
[null,null,"Direct Expansion (DX) Packaged Air Conditioner Sys","11.0  energy efficiency ratio (EER)","55/ton"]
[null,null,"tem","11.5 EER","80/to"]
[null,null,null,2,"$105/ton"]
[null,null,null,"EER"]
[null,null,"Programmable Thermostat","ENERGY STAR®[1] ","$55/unit"]
[null,null,"Heat Pump - Air Source","EER=11.0, COP=3.5","$75/ton"]
[null,null,"Heat Pump - Air Source","EER=11.8, COP=3.8","$160/ton"]
[null,null,"Motors","Premium Efficiency","50% of incremental installed cost"]
[null,null,"High Efficiency Fixture/Design","15% Lighting Power Density (LPD) Reduction","50% of incremental installed cost up to $10,000"]
[null,null,"Improved Exterior Lighting Design","Full Cut Off Fixtures and Photometric Analysis","50% of incremental installed cost up to $10,000"]
[null,null,"CFL","ENERGY STAR®",1.7]
[null,null,"CFL Pin-Base Fixtures","ENERGY STAR®",30]
[null,null,"Daylighting Controls","Dimming-Continuous, Fluorescent Fixtures","$35/controlled fixture"]
[null,null,"LED Exit Lighting","5 W","$15/unit"]
[null,null,"Occupancy Sensors","Wall or Ceiling-mounted Lighting Sensor","$45/sensor"]
[null,null,"Time Clocks and Timers","Not applicable (N/A)","$100/unit"]
[null,null,"High-Pressure Sodium","70 W (Exterior)",40]
[null,null,"Pulse Start Metal Halide - Exterior","<320 W",25]
[null,null,null,">320 W",50]
[null,null,"De-lamp and Install Reflectors","Remove 1 or more lamps to equal 2-Lamp 4 ft. T8 + New Reflector","$50/fixture"]
[null,null,"Fluorescent High Bay Fixtures Lighting Package","High Bay Lighting - T5HO (4 Lamps, 240 W per fixture)","$18/lamp"]
[null,null,null,"High Bay Lighting - T8HO (6 Lamps, [240 W] estimated per fixture)","$14/lamp"]
[null,null,"T8 Lighting Package","4 ft. T8 2-Lamp Fixture (lamp & ballast)","$14/fixture"]
[null,null,null,"4 ft. T8 3-Lamp Fixture (lamp & ballast)"]
[null,null,null,"4 ft. T8 4-Lamp Fixture (lamp & ballast)"]
[null,null,null,"8 ft. T8 2-Lamp Fixture (lamp & ballast)"]
[null,null,"Variable Speed Drives","Variable Frequency Drives (VFDs) with motor horsepower (HP) >5 and ≤","$30/HP"]
[null,null,null,0]
[null,null,"Ceiling Insulation","Above code require","70% of installed"]
[null,null,null,"ent","ost"]
[null,null,"Wall Insulation","Above code req","70% of inst"]
[null,null,null,"uirement","alled cost"]
["Budgeting rules of thumb",null,"·     Estimated dollars spent per annual gross kWh saved: $0.15/kWh"]
[null,null,"·     Estimated program costs as a percent of total program budget"]
[null,null,"ü  Administration (internal): 10%"]
[null,null,"ü  Third-party contractors: 3%"]
[null,null,"ü  Marketing, advertising, trade ally training and outreach: 10%"]
[null,null,"ü  Incentives: 80% to 85%"]
[null,null,"ü  EM&V: between 1% and 3%"]
["Benefits",null,"·     Straightforward to implement and simple for customers to participate in"]
[null,null,"·     Potential for significant energy savings"]
[null,null,"·     Low delivery cost and high cost-effectiveness"]
[null,null,"·     Minimal staff requirements with no third-party contracts necessary"]
[null,null,"·     Opportunity to enhance utility relationship with business customers"]
[null,null,"·     Provides opportunities for business customers to reduce energy costs while increasing energy efficiency and improving their building’s comfort for employees"]
[null,null,"·     Provides C&I customers opportunities to replace inefficient equipment at a lower out of pocket cost"]
[null,null,"·     Opportunity to engage a robust trade ally network"]
["Measuring savings",null,"This program targets common end uses such as lighting and HVAC. The impact evaluation will therefore be measure-specific and may include pre- and post-installation inspections."]
[null,null,"Verification of savings will be based on a sample-based validation of installations and operating conditions. For lighting measures, the analysis will be based primarily on engineering validation and will have three components: verification of installation (measure count), calculation of savings (wattage differential), and verification of full-load hours."]
[null,null,"Run-time is a key parameter in calculation of savings from lighting retrofits. The impact evaluation should include verification of operating hours using light loggers on a sample of installations. The number of points to be monitored will be based on a sample stratified to represent functional areas and variability of savings within each functional area using a 90/10 confidence criterion."]
[null,null,"HVAC savings may be validated using engineering calculations, calibrated with site-specific data, including climate conditions, and selective interval recording of key parameters, such as run-time. Data necessary for verification savings in this program will consist of the following:"]
[null,null,"·         Engineering estimates of savings for each measure installed under the program, according to technical studies;"]
[null,null,"·         Facility characteristics;"]
[null,null,"·         Daily weather data from local weather stations to calculate heating degree days and cooling degree days; and"]
[null,null,"·         Status and interval data for key equipment parameters.  "]
["Best practices and innovations",null,"·     Limit the program to a small number of measures to begin with, then expand as the utility and customers become more comfortable with the program implementation, documentation, and verification processes."]
[null,null,"·     Build and maintain strong communication channels with trade allies."]
[null,null,"·     Create a formal trade ally network and verify trade ally participants’ qualifications by requiring certifications, number of years  of experience, insurance, background checks, etc."]
[null,null,"·     Conduct regular quality checks on all participating trade ally installations. Decrease the number of site inspections as a trade ally proves its capabilities."]
[null,null,"·     Allow trade allies to submit rebate applications on behalf of customers."]
[null,null,"·     Use simple rebate forms and program rules."]
[null,null,"·     Provide ongoing, active education and outreach to customers about the benefits and features of energy-efficient equipment."]
[null,null,"·     Couple equipment incentives with low-cost financing."]
[null,null,"·     Create program ties with other commercial offerings to provide interested customers with a comprehensive package of services."]
[null,null,"·     Conduct program and quality installation training for all participating trade allies."]
[null,null,"·     Coordinate eligible measures and incentives among regional MOUs and/or create regional partnerships to ensure continuity, enhance program reach, and reduce customer confusion."]
[null,null,"·     Maintain flexibility to allow program managers to make program changes to address problems as they arise, but ensure that all stakeholders are given notice of program changes and ample time to respond."]
[null,null,"·     Offer free technical and program assistance to customers and trade allies (e.g., through a program “hotline”)."]
[null,null,"·     Perform process evaluations to gain insights and feedback on the program’s effectiveness and inform future program enhancements."]
[]
[]
["[1] ENERGY STAR will discontinue rating programmable thermostats after 12/31/2009. PPL Electric will determine appropriate equipment qualification guidelines when this occurs."]

{"sheet":"NR-AD","index":18,"n_rows":103,"n_cols":3,"rows_kept":103,"cut":false,"hidden":true,"merged":[[88,0,102,0],[88,1,88,2],[89,1,89,2],[90,1,90,2],[91,1,91,2],[92,1,92,2],[93,1,93,2],[94,1,94,2],[101,1,101,2],[102,1,102,2],[95,1,95,2],[96,1,96,2],[97,1,97,2],[98,1,98,2],[99,1,99,2],[100,1,100,2],[78,0,87,0],[78,1,78,2],[79,1,79,2],[80,1,80,2],[81,1,81,2],[82,1,82,2],[83,1,83,2],[84,1,84,2],[85,1,85,2],[86,1,86,2],[87,1,87,2],[69,1,69,2],[70,1,70,2],[71,0,77,0],[71,1,71,2],[72,1,72,2],[73,1,73,2],[74,1,74,2],[75,1,75,2],[76,1,76,2],[64,0,70,0],[64,1,64,2],[65,1,65,2],[66,1,66,2],[67,1,67,2],[77,1,77,2],[40,0,63,0],[40,1,40,2],[41,1,41,2],[42,1,42,2],[68,1,68,2],[30,1,30,2],[31,0,39,0],[31,1,31,2],[32,1,32,2],[33,1,33,2],[34,1,34,2],[35,1,35,2],[36,1,36,2],[37,1,37,2],[38,1,38,2],[39,1,39,2],[29,1,29,2],[15,0,23,0],[15,1,15,2],[16,1,16,2],[17,1,17,2],[18,1,18,2],[19,1,19,2],[20,1,20,2],[21,1,21,2],[22,1,22,2],[23,1,23,2],[24,1,24,2],[25,1,25,2],[26,1,26,2],[27,1,27,2],[28,1,28,2],[11,0,12,0],[11,1,11,2],[12,1,12,2],[13,0,14,0],[13,1,13,2],[14,1,14,2],[10,1,10,2],[44,2,49,2],[50,2,54,2],[55,2,63,2],[0,0,0,2],[1,0,4,0],[1,1,1,2],[2,1,2,2],[3,1,3,2],[4,1,4,2],[5,0,10,0],[5,1,5,2],[6,1,6,2],[7,1,7,2],[8,1,8,2],[9,1,9,2]]}
["Small Commercial Audit and Direct Installation Program"]
["Program description","This program is designed to provide small commercial customers with information on their buildings’ energy performance, direct installation of low-cost energy-efficient measures, and recommendations on energy efficiency actions they can take to reduce their energy consumption. Recognizing the barriers inherent in small commercial energy efficiency programs, the cost of the audit should be either free to customers or sufficiently subsidized by the utility so that customers’ cash outlay is minimal. Customers who install a package of recommended energy efficiency upgrades in their buildings will be reimbursed the cost of the audit and will be eligible for rebates for the installed equipment that increase with each subsequent installed measure."]
[null,"Small commercial energy audits include a thorough visual inspection and diagnostic testing of the facility to evaluate major energy-using equipment (lighting systems, HVAC, refrigeration, etc.), building envelope characteristics, and to identify areas for cost-effective energy efficiency upgrades. The auditor will review energy usage and cost patterns in historic energy bills, install simple energy efficiency measures, may tune-up space conditioning systems (i.e., residential type AC systems or packaged rooftop units) and provide customers with an audit report that includes recommendations for appropriate follow-up activities."]
[null,"Following the technical audit, the energy auditor presents the customer with a comprehensive energy efficiency package of measures that includes a detailed financial proposition and incorporates the full range of available utility incentives."]
[null,"To encourage customers to follow-through on recommendations and implement recommended efficiency upgrades, the auditor should be able to generate a formal work order that triggers installation of the package of upgrades. Participants who agree to implement the full upgrade package will be reimbursed for the full cost of the audit, each qualifying measure, and provided with a bonus incentive for implementing each successive measure."]
["Objectives","·     Provide customers with information about their facilities’ energy use and opportunities to save energy."]
[null,"·     Provide customers with opportunities to reduce their operational costs and improve the value of their building through energy efficiency upgrades."]
[null,"·     Provide customers with opportunities to increase the comfort of their buildings, which can result in higher staff productivity."]
[null,"·     Promote installation of low-cost energy saving measures, which may result in immediate savings."]
[null,"·     Provide trustworthy energy savings recommendations from trained energy auditors."]
[null,"·     Promote other energy efficiency programs."]
["Infrastructure and staffing ","Estimated utility staffing requirement: 0.5 FTE for management, marketing, trade ally support, evaluation, and other administrative functions."]
[null,"This program assumes a third-party contractors will provide turnkey program delivery, including customer energy audits. The third-party contractor will be expected to offer a full range of diagnostic testing equipment to support the program, as well as commercial modeling software, run on a tablet computer for on-site data collection."]
["Customer targets and eligibility ","This program targets small commercial customers in existing commercial buildings. The program uses building size (recommended: less than 25,000 square feet) and rate classes (those used by smaller business customers) to target and qualify customers."]
[null,"The utility should identify target customers by analyzing the Customer Information System and prioritize them by geography, energy intensity, or business type (North American Industry Classification System (NAICS) Code)."]
["Implementation ","Utility staff will solicit bids from professional implementation contractors with specific expertise delivering programs to small commercial customers. The selected delivery contractor should be guided by a contract that includes detailed performance expectations with incentives and/or penalties associated with performance metrics. Once a delivery contractor is selected, utility staff will provide overall strategic direction and manage the contractor, work with them to develop marketing and program materials, provide QA/QC and oversight, track progress against goals, oversee evaluation, and provide other administrative functions."]
[null,"The implementation contractor provides turnkey customer delivery of the program including: marketing and outreach to target customers, managing customer intake, verifying customer eligibility, scheduling audits, conducting audits, directly installing measures, analyzing efficiency savings opportunities, working with customers to implement recommended measure packages, processing applications and rebates, tracking and verifying program data."]
[null,"Key steps in program participation include:"]
[null,"·     The implementation contractor will conduct direct outreach to potential customers, explain the program, verify the customer’s eligibility, and schedule an appointment."]
[null,"·     The energy auditor will conduct an audit of the customer’s facility, directly install simple energy efficiency measures, tune-up space conditioning systems as appropriate, and inspect major energy-using equipment and building envelope characteristics to identify areas for cost-effective efficiency upgrades."]
[null,"·     The auditor will identify a package of energy efficiency upgrades that qualify for financial incentives and offer a net payback of one year or less and review the measure package, available financial incentives, investment metrics, and installation process with the customer.  "]
[null,"·     Customers will receive an audit report with recommendations for appropriate energy efficiency upgrades and information on incentives available through the audit and other programs. If the customer opts to proceed with installation of the recommended measure package, the auditor will provide the customer with a written firm or estimated work order, as well as a rebate application and details for obtaining incentives. Energy auditors will provide a copy of the audit report to utility staff for tracking and reporting purposes."]
[null,"·     If the customer commits to installing the recommended measure package, the implementation contractor schedules and conducts measure installation and helps the customer fill out all applicable program applications. The customer’s cost for installed measures is paid, minus incentives, directly to the implementation contractor at the time measures are installed."]
[null,"·     The implementation contractor submits reports monthly to the utility indicating all participating customers, measures installed, incentives provided and audit subsidies allocated."]
["Program barriers ","Mitigation Strategies "]
["·     Economic environment limits customer’s ability to purchase energy-efficient equipment.","·     Offer free on-site energy audits and direct installation of measures for immediate savings; provide rebates to offset higher incremental cost of energy-efficient equipment. Educate customers on the long-term cost-saving benefits of higher-efficiency equipment."]
["·     Lack of customer program awareness","·     Conduct targeted, active outreach to potential customers."]
["·     Limited time, resources, and awareness on how to act on recommendations","·     Provide ongoing follow-ups and technical support to help customers move through the installation steps."]
["·     Customers don’t trust energy-savings calculations","·     Provide free, independent, expert analysis and recommendations."]
["·     Energy small part of overall operating costs","·     Install free energy savings measures that generate immediate cost savings."]
[null,"·     Review case studies of actual projects with customers to show evidence of energy savings."]
["Marketing and outreach ","Marketing for the program should be led by the implementation contractor that has experience marketing to this customer sector. Effective marketing to this sector requires that the delivery contractor be considered reliable, credible, and energy-efficient."]
[null," This program should leverage both traditional and grassroots social customer marketing for promotion, but be cognizant that direct, one-on-one outreach to this sector is essential for program success. The marketing tactics for the program may include:"]
[null,"·     Door-to-door canvassing"]
[null,"·     Presentations to targeted customers, trade associations and at seminars, and conferences"]
[null,"·     Bill inserts"]
[null,"·     Utility dedicated program web page"]
[null,"·     Newspaper, radio, and other mass media advertising"]
[null,"·     Publish and distribute program brochure"]
[null,"·     Cross-promote through other programs"]
["Measures and incentive levels","There should be no cost for audits and direct installation measures. Due to the significant and varying customer barriers to implementing programs in this sector, the utility should eliminate the cost barrier completely."]
[null,"The audit program is designed to tie directly to the utility’s commercial prescriptive rebate program. To encourage customers to implement a comprehensive package of measures, this program provides an additional incentive, above and beyond prescriptive incentives, for customers who install measures within a reasonable timeframe."]
[null,"The following incentive levels are provided as examples. Utilities should endeavor to set incentive amounts at a level appropriate for their own budgets and program strategies."]
[null,"Measure","Incentive"]
[null,"Energy audit","Free to customer when measure is recommended"]
[null,"Compact fluorescent lamps"]
[null,"LED exit signs"]
[null,"Occupancy sensors"]
[null,"HVAC tune up"]
[null,"Vending machine controls"]
[null,"Electric water heater measures:","Free to customer (customer must have electric water heat to qualify for water heater measures)."]
[null,"·      Faucet aerator"]
[null,"·      High pressure rinse sprayers"]
[null,"·      Water heater pipe insulation"]
[null,"·      Water heater setback"]
[null,"Bonus Incentives","20% of installed cost added to prescriptive rebate for each recommended measure installed as part of a comprehensive package."]
[null,"·         Ceiling and wall insulation"]
[null,"·         T5 and T8 lighting fixtures and lamps"]
[null,"·         Efficient HVAC equipment"]
[null,"·         Programmable thermostats"]
[null,"·         Efficient electric water heaters"]
[null,"·         Efficient motors"]
[null,"·         Refrigerated vending machine controllers"]
[null,"·         Variable speed drives"]
["Budgeting rules of thumb","·     Estimated dollars spent per annual gross kWh saved: $0.31/kWh"]
[null,"·     Estimated program costs as a percent of total program budget:"]
[null,"ü  Administration (internal): 15% to 20%"]
[null,"ü  Third-party contractors: 10%"]
[null,"ü  Marketing, advertising, trade ally training and outreach: 10% to 15%"]
[null,"ü  Incentives: 75% to 80%"]
[null,"ü  EM&V: between 1% and 3%"]
["Benefits","·     Opportunities for significant and immediate energy savings"]
[null,"·     Provides a mechanism to identify cost effective efficiency strategies and offset capital costs for customers"]
[null,"·     Utilities provide direct benefits to customers, enhancing their relationships, and offers an entry point with HTR market"]
[null,"·     Opportunities for customers to improve the value and comfort of their buildings"]
[null,"·     Educate customers on their facilities energy use"]
[null,"·     Eliminates cost barriers for customers to make energy efficiency improvements"]
[null,"·     Opportunities for partnerships with other utilities or local incentive programs"]
["Measuring savings","Energy savings for this program will be calculated using information gathered during the energy audit, including energy consumption data and quantities of direct installation measures installed. To ensure data is adequate to conduct impact evaluations, collected information should include: "]
[null,"·     Participant contact information, including name, address, and participation date."]
[null,"·     Essential structural attributes"]
[null,"·     Building and business characteristics, including estimated equipment run times"]
[null,"·     Types and quantities of measures installed"]
[null,"·     Estimated savings"]
[null,"·     Measure cost"]
[null,"·     Interval daily electricity consumption"]
[null,"·     Climate information to calculate heating and cooling degree information"]
[null,"Additional savings resulting from measures installed through the prescriptive rebate program will be calculated using information from rebate applications for those measures"]
["Best practices and innovations","·     Conduct an open, competitive solicitation to identify a skilled implementation contractor. Selection criteria should include previous experience and proven success delivering programs to small commercial customers."]
[null,"·     Be aware of customer communities dominated by non-English speakers and develop marketing and program materials in multiple languages, where appropriate."]
[null,"·     The roles of sales representative and technical energy auditor should be rolled into one person. The auditor should be an articulate program representative who can walk customers through the process and address questions."]
[null,"·     Use mobile modeling software with pre-loaded, approved, energy efficiency measures that include capabilities to recommend a measure package tailored for a specific business type, climate, or Standard Industrial Classification (SIC) code, and calculate their costs and benefits. "]
[null,"·     Provide a concise, short audit report that shows estimated cost and savings (totaled and for each measure), incentives, and net customer benefits (in dollars and kWh)."]
[null,"·     Provide concise but thorough printed materials that explain the program process, rules, and value proposition in detail, and include colorful and intuitive graphics. "]
[null,"·     Initial contact, audits, direct measure installation, and generation of all required documents (e.g., audit reports, contracts, work authorizations, and warranty statements) happen within a single visit. More extensive measure installation may be conducted in a second visit. "]
[null,"·     Partner with other utility, state, or local incentive programs to present a unified program to customers."]
[null,"·     Use simple rebate forms and program rules."]
[null,"·     Solicit customer commitment to install recommended measures. Offer bonus incentives to encourage customers to install the full package of measures."]
[null,"·     Ensure the payback for the recommended measure package, including bonus incentives, equates to less than a one-year payback."]
[null,"·     Consider offering a financing option with positive cash flow for customers who install the full recommended measure package."]
[null,"·     Provide simple, visually appealing energy audit reports that clearly articulate priority measures and estimated energy savings."]
[null,"·     Measure installation should be provided either by the implementation contractor or by a small network of pre-selected (through an RFP/bid process). Scheduling and installing equipment should be seamless and automatic. In the case of pre-selected contractors, prices should be fixed and under contract so that the auditor can provide firm pricing and work orders at the time of the audit."]
[null,"·     Conduct measure verification, savings measurement, and process evaluations for a random sample of participants."]

{"sheet":"NR-NC","index":19,"n_rows":64,"n_cols":2,"rows_kept":64,"cut":false,"hidden":true,"merged":[[30,0,37,0],[38,0,40,0],[41,0,46,0],[47,0,52,0],[54,0,63,0],[9,0,24,0],[0,0,0,1],[1,0,2,0],[3,0,4,0],[5,0,6,0],[7,0,8,0]]}
["Commercial New Construction Program"]
["Program description","This program is based on the nationally tested Guidelines: a national program created to raise the standards for energy efficiency in commercial construction in North America. The primary component of the Guidelines is the Core Performance Guide: a prescriptive, easy-to-follow guide to energy-efficient lighting, HVAC, and insulation strategies. Used in conjunction with the tools and resources specifically designed to support the guide, design teams can create buildings that are 15-30% more energy-efficient than code, without the overhead of energy modeling. The program provides outreach, technical assistance, project verification, and program administration. In addition, the utility provides incentives upon completion of a building that meets the program’s performance requirements."]
[null,"When a participant commits to the program, the project design team meets with a program representative to review the program requirements and resources available. The program offers incentives on a per-square-foot basis for meeting the base building requirements and additional incentives for more aggressive energy efficiency measures. "]
["Objectives","·         Support the creation of energy-efficient commercial buildings."]
[null,"·         Provide a cost-effective program for both the program administration and participants."]
["Infrastructure and staffing ","Estimated utility staffing requirement: 0.25 FTE for management, marketing, trade ally support, evaluation, and other administrative functions."]
[null,"Additionally, third-party technical assistance and verification contractors are needed to support the program.  "]
["Customer targets and eligibility ","This program targets developers and architects of commercial buildings 20,000 to 100,000 square feet. New construction projects proposed for the program must be located within the utility’s territory and certify their intention to purchase electricity from the utility. "]
[null,"Customer eligibility is verified when participants initially apply to the program. The building is verified for project compliance upon completion of construction."]
["Implementation ","An Advanced Building program can be managed and delivered through a combination of minimal in-house staff and outside technical support. Implementation includes:"]
[null,"·         Promote program participation through industry events and trade allies."]
[null,"·         Educate program participants on the Advanced Building tools and resources."]
[null,"·         Provide program participants with design assistance."]
[null,"·         Participate in NBI sponsored support activities."]
[null,"·         Provide program information on the utility web site."]
[null,"·         Process and track program participation and incentives. "]
[null,"Key steps in program participation include:"]
[null,"·         The customer’s project team registers its project at the beginning of the design phase. "]
[null,"·         Project team meets with a utility program representative to review the Guidelines and program processes."]
[null,"·         Design team meets with program technical assistance consultant to review the program’s technical requirements and the required energy efficiency features and establish a schedule for periodic follow-up meetings based on the experience of the design team and the complexity and size of the project. "]
[null,"·         Design team applies the Guidelines specifications and tools to the building design."]
[null,"·         Program technical advisor reviews plans and certifies that project meets Advanced Building Checklist and other program requirements."]
[null,"·         Project team submits incentive reservation indicating the anticipated energy efficiency measures to be implemented in the project."]
[null,"·         Post-construction, on-site verification is performed by a third-party engineer."]
[null,"·         Project team submits final incentive paperwork."]
["Program barriers ","Mitigation Strategies "]
["·         Recruiting participants early in their design process.","·         Outreach to trade allies, offer educational seminars to target market, and perform outreach at architectural and real estate development industry events. "]
["·         Owner’s resistance to increased upfront costs in building","·         Provide incentives to offset the additional costs of meeting the Guidelines."]
[null,"·         Provide education on the increased resale value generated by buildings with lower operating costs."]
[null,"·      Provide marketing and promotion through tours, case studies, or web site recognition for qualifying projects."]
["Marketing and outreach ","·     Outreach through educational programs, industry ally events (AIA), real estate development, or shopping mall industry organizations)."]
[null,"·     Promote utility web site."]
[null,"·     Advertising in trade publications."]
[null,"·     Coordinate marketing opportunities with key market partners (i.e., SECO, community groups)."]
[null,"·     Outreach to trade allies."]
[null,"·     Offer industry educational seminars."]
[null,"·     Promote program participants’ projects on the utility web site and industry events."]
[null,"·     Cross-promote through other programs."]
["Measures and incentive levels","Incentives for this program include free technical assistance and a rebate to cover a portion of the additional cost of advanced building design and high efficiency equipment. Building incentives may be designed to use either an incentive $ /square foot option (with the value to be determined by the utility, based on the market) or a combination of prescriptive rebates with a lower $/square foot incentive, offered as a bonus for meeting the Guidelines design criteria. In the second option, prescriptive rebates are tied to the utility’s commercial equipment rebate program."]
[null,"Projects must be verified for compliance with the Guidelines to receive the incentive $/square foot rebate."]
[null,"If appropriate, total incentive can be capped to allow the utility to control total program costs.  "]
["Budgeting rules of thumb","·     Estimated dollars spent per annual gross kWh saved: $0.23/kWh"]
[null,"·     Estimated program costs as a percent of total program budget:"]
[null,"ü  Program administration (internal): 5% to 10%"]
[null,"ü  Marketing, advertising, trade ally outreach: 5% to 10%"]
[null,"ü  Rebates/Incentives: 70%"]
[null,"ü  Evaluation: 5% to 10%"]
["Benefits","·     Supports transition to higher efficiency commercial building stock and creates long term energy savings"]
[null,"·     Involvement from the early design stage ensures a whole building approach to efficiency"]
[null,"·     Program can be managed with minimal in-house staff"]
[null,"·     Opportunity to educate commercial building owners on energy efficiency"]
[null,"·     Potential for partnerships with trade allies and real estate professionals"]
[null,"·     Promotional opportunities for participating buildings"]
["Measuring savings","Calculation of energy savings is conducted during engineering verification of the completed building.  "]
["Best practices and innovations","·     Include incentives for targeted prescriptive measures."]
[null,"·     Provide training and education to the design community on NBI’s Advanced Building Guidelines and resources."]
[null,"·     Require design team to attend program training before being eligible to receive incentives."]
[null,"·     Provide technical assistance to support an integrated design process."]
[null,"·     Provide technical and design assistance to support program participants."]
[null,"·     Promote participating buildings to the public through signage, tours, and recognition."]
[null,"·     Promote participating buildings to their target market through industry events, tours, and recognition."]
[null,"·     Leverage the Advanced Building Guidelines brand, marketing materials, and other resources to the greatest extent possible."]
[null,"·     Build strong communication channels with trade allies and real estate associations."]
[null,"·     Work with other MOUs to build economies of scale where possible (education, training, and marketing, where appropriate)."]

{"sheet":"NR-CR","index":20,"n_rows":75,"n_cols":4,"rows_kept":75,"cut":false,"hidden":true,"merged":[[62,0,64,0],[62,1,62,3],[63,1,63,3],[64,1,64,3],[65,0,74,0],[65,1,65,3],[66,1,66,3],[67,1,67,3],[68,1,68,3],[69,1,69,3],[70,1,70,3],[71,1,71,3],[72,1,72,3],[73,1,73,3],[74,1,74,3],[54,1,54,3],[55,0,61,0],[55,1,55,3],[56,1,56,3],[57,1,57,3],[58,1,58,3],[59,1,59,3],[60,1,60,3],[61,1,61,3],[41,1,41,3],[42,0,47,0],[42,1,42,3],[48,0,54,0],[48,1,48,3],[49,1,49,3],[50,1,50,3],[51,1,51,3],[52,1,52,3],[53,1,53,3],[32,0,41,0],[32,1,32,3],[33,1,33,3],[34,1,34,3],[35,1,35,3],[36,1,36,3],[37,1,37,3],[38,1,38,3],[39,1,39,3],[40,1,40,3],[26,1,26,3],[27,1,27,3],[28,1,28,3],[29,1,29,3],[30,1,30,3],[31,1,31,3],[25,1,25,3],[12,1,12,3],[13,0,14,0],[13,1,13,3],[14,1,14,3],[15,0,25,0],[15,1,15,3],[16,1,16,3],[17,1,17,3],[18,1,18,3],[19,1,19,3],[20,1,20,3],[21,1,21,3],[22,1,22,3],[23,1,23,3],[24,1,24,3],[11,1,11,3],[45,1,46,1],[45,2,46,2],[0,0,0,3],[1,0,5,0],[1,1,1,3],[2,1,2,3],[3,1,3,3],[4,1,4,3],[5,1,5,3],[6,0,11,0],[6,1,6,3],[7,1,7,3],[8,1,8,3],[9,1,9,3],[10,1,10,3]]}
["Commercial and Industrial Custom Efficiency Program"]
["Program description","The C&I Custom Incentive Program provides a delivery channel and financial incentives to customers installing individual equipment measures or systems not covered by prescriptive rebates, extensive energy efficiency projects, retrofit -commissioning, repairs, equipment optimization, and operational and process improvements that result in cost-effective energy efficiency savings."]
[null,"The program is delivered via two components:"]
[null,"Custom measures: incentives are provided to cover a portion of the capital cost of retrofitting facilities with new cost-effective energy-efficient equipment. To qualify for financial incentives, eligible customers must provide documentation that their proposed efficiency upgrades pass the utility’s cost-effectiveness threshold and technical criteria."]
[null,"Services: the program provides incentives to cover a portion of technical studies, retrofit-commissioning studies, equipment tune-ups, and optimization. Any qualifying service may qualify for incentives under this component, based on the program manager’s authorization."]
[null,"Custom projects may benefit from incentives in one or both components. For example, the services component provides incentives to help customers cover the cost of a technical study, and the custom measure component may provide additional incentives to implement recommended facility retrofits. Likewise, the services component would cover a portion of the cost of a retrofit -commissioning study and equipment optimization services, while the custom measures component would provide incentives for any qualifying equipment needed to maximize the existing equipment’s efficiency. These incentives may be performance-based on avoided or reduced kWh or designed to cover a percentage of the project installed cost. Incentives may be subject to an annual cap for each project and for each participating customer."]
["Objectives","·         Encourage the installation of high-efficiency equipment not covered by prescriptive rebates by C&I customers in new and existing facilities."]
[null,"·         Encourage equipment repairs and optimization and operational or process changes that reduce electricity consumption and peak demand."]
[null,"·         Encourage a “whole facility” approach to energy efficiency."]
[null,"·         Increase customer awareness of the features and benefits of electric energy-efficient equipment."]
[null,"·         Increase the market penetration of high-efficiency equipment."]
[null,"·         Support emerging technologies and non-typical efficiency solutions in cost-effective applications."]
["Infrastructure and staffing ","Estimated utility staffing requirements will vary depending on the implementation strategy. At a minimum 1 FTE with strong technical skills is required for management, marketing, and outreach to customers, trade ally interaction, project analysis, evaluation, and other administrative functions. An additional 0.5 FTE or a third-party contractor is recommended to provide technical and program support as well as QA/QC functions."]
["Customer targets and eligibility ","This program targets all new and existing C&I facilities. The program will be available for any type of new or replacement energy-efficient equipment, whole-facility retrofit measures, or facility optimization services that are not eligible for prescriptive rebates. All measures, packages of measures, retrofit -commissioning services, and process changes must be cost-effective as substantiated through a technical analysis."]
[null,"Participant eligibility is verified by utility staff by cross-referencing customer applications against customer account numbers. Customers must submit a program application with documentation of the equipment replaced (if applicable), new equipment purchased and installed, analysis of project cost effectiveness, and estimated energy savings. "]
["Implementation ","This program may be implemented using a relatively straightforward process led by utility staff or through a third party delivery model. "]
[null,"Under a utility-led model, a program manager conducts one-on-one outreach to large C&I customers and works with the customer and the customer’s technical assistance provider (e.g., an engineering firm or ESCO) to identify and assess energy efficiency opportunities and calculate incentives and energy savings. Utility staff then continues to work with the customer’s project team throughout the implementation process and facilitates the incentive payment."]
[null,"A third-party delivery model relies on an outside contractor and trade allies for implementation. In most cases, a third-party implementer will provide turnkey services and deliver a contractually-agreed level of savings. The implementer will handle customer intake and routing; will work directly with customers to help identify and flesh out project ideas; perform technical analyses; confirm scope, cost, and potential energy savings of proposed projects; conduct field verification of completed projects; and adjust energy savings from installed projects, if appropriate. "]
[null,"Utility staff provides oversight and program management, marketing, trade ally support, evaluation, and other administrative functions. The project development process for the Custom Incentive Program is more fluid than other programs and may not follow a precise work path. The following workflow is an example of a typical scenario through which a utility-led, equipment-based custom efficiency project may proceed:"]
[null,"·     The utility manager reaches out to a potential customer to explain the program, its benefits, and the potential opportunities for capital improvements at the customer’s facility."]
[null,"·     The program manager works with the customer to evaluate their facility’s energy efficiency opportunities, develop potential project ideas, and solicit potential contractors to perform technical services."]
[null,"·     A professional engineering firm or other qualified contractor, under contract to the customer, performs a detailed technical study of potential projects and evaluates their cost-effectiveness."]
[null,"·     The program manager evaluates the customer’s technical study report to qualify projects. This involves confirming project incremental cost and potential energy and capacity savings data and evaluating cost-effectiveness."]
[null,"·     The customer schedules installation of eligible high-efficiency equipment upgrades, operational or process changes, or other eligible measures directly with an installation contractor."]
[null,"·     The program manager verifies equipment installation, operational, or process changes or other eligible work for all participants."]
[null,"·     Processing rebates for qualified equipment or extensive building efficiency projects."]
["Program barriers ","Mitigation Strategies "]
["·     Higher first cost of energy-efficient equipment and economic environment limit customer’s ability to purchase energy-efficient equipment.","·     Offer customized incentives on equipment and technical study to offset higher cost"]
["·     Not a high priority; limited access to discretionary cash/credit.","·     Market program and general efficiency awareness to customers."]
["·     Lack of program awareness and “emergency replacement” scenario among target customers.","·     Robust marketing strategy that markets to decision makers and facility operators to facilitate understanding of capital budget and operating concerns."]
["·     Low dealer, customer, and trade ally awareness.","·     Marketing to equipment dealers, distributors and installers, and other trade allies."]
["·     Procurement policies that specify low first-cost instead of life-cycle cost"]
["Marketing and outreach ","This program relies on one-on-one outreach to large C&I customers through utility program staff, key account managers, and trade allies, such as engineering firms and ESCOs to market the program. Staff and trade allies promote the program, help customers understand the features and benefits of the program, scope projects, specify and install equipment, and help customers fill out program applications."]
[null,"A high level of trade ally participation and program promotion are critical to ensure program success. Thus, program marketing should target trade allies in addition to customers, to encourage their participation. The program messaging focuses on the features and benefits of energy-efficient equipment. The marketing strategy for the program may include:"]
[null,"·     Active trade ally outreach and support"]
[null,"·     Bill inserts"]
[null,"·     Utility dedicated program web page"]
[null,"·     Present program information at on-site customer presentations and webinars"]
[null,"·     Targeted marketing to high-potential market sectors."]
[null,"·     One-on-one marketing to C&I customers through key account managers and the program manager."]
[null,"·     Targeted marketing to facility managers and building or process engineers, building owners and managers associations, HVAC contractors, energy services firms, architects and engineers, real estate developers, economic development organizations, customer advocacy groups, trade associations, and other trade allies to encourage installation of new energy-efficient technologies and adoption of best operating practices."]
[null,"·     Targeted marketing to specific sectors identified as having a high level of unrealized energy efficiency potential, such as manufacturing and data centers."]
["Measures and incentive levels","The program provides customer incentives for technical studies and for implementation of qualifying measures or large projects. Program incentives may be set to roughly correspond to a 1.5-year payback, or to cover approximately half of the installed cost of the measure, but may be adjusted as needed to stimulate the market or scale back program uptake. The following measures and incentive levels are provided as examples. Utilities should select measures and set incentives at levels appropriate for their own customer bases, budgets, and program strategies. "]
[null,"Measure","Qualification","Incentive"]
[null,"Technical study or retrofit-commissioning study","Performed by professional engineer or other qualified firm","50% of technical study cost.  Another 50% of technical study cost may be rebated if customer proceeds with the project. Capped at $20,000 total incentive."]
[null,"Equipment measure or whole-facility upgrade project ","1.0 benefit-to-cost ratio ","Performance based: $0.10/kWh saved based on technical study results, up to $500,000 per customer site."]
[null,null,null,"Standard: 50% of installed cost, up to $500,000 per customer site."]
[null,"Retrofit-commissioning, repairs, optimization, and operational or process changes","1.0 benefit-to-cost ratio","50% of the cost of the service up to a total cap of $50,000. "]
["Budgeting rules of thumb","·     Estimated dollars spent per annual gross kWh saved: $0.20/kWh"]
[null,"·     Estimated program cost as a percent of total program budget:"]
[null,"ü  Program administration (internal): 5% to 10%"]
[null,"ü  Third-party contractors: 5%"]
[null,"ü  Marketing, advertising, trade ally outreach: 5% to 10%"]
[null,"ü  Rebates/Incentives: 70% to 80%"]
[null,"ü  EM&V: 5% to 10%"]
["Benefits","·     Offers customers an opportunity to install measures not covered by rebates"]
[null,"·     Provides program opportunity for customers with large, complex facilities, and systems"]
[null,"·     Encourages installation of energy-efficient equipment that may not be considered otherwise"]
[null,"·     Opportunity to support emerging technologies"]
[null,"·     Provides increased customer awareness of energy-efficiency options"]
[null,"·     Opportunity to reduce electricity consumption and peak demand by supporting repairs and process changes"]
[null,"·     All new and existing C&I facilities are eligible"]
["Measuring savings","The M&V analysis for custom measures will be based on regression-based statistical billing analysis using a Statistically Adjusted Engineering (SAE) specification. The advantage of this specification is it will provide estimates of actual savings realization rates for groups of measures affecting the end uses targeted by the program."]
[null,"Energy simulation modeling may be used in more complex projects involving multiple measures with interactive effects. The simulation modeling will use the DOE’s DOE2, eQuest, or an American Society of Heating, Refrigerating, and Air Conditioning Engineers (ASHRAE) Standard 140 compliant tool. The models will be informed with directly observed characteristics for local climate and possibly selective metering of certain equipment. Final determination of the impact evaluation methodology will occur after publication of the statewide EM&V protocols."]
[null,"Monitoring of certain equipment in existing buildings may be necessary to calibrate the energy simulation models. In such cases, end uses would be monitored for a period of at least three weeks during cooling or heating seasons as required under the International Performance Measurement and Verification Protocols (IPMVP) Option B. The impacts estimated under Option B will be weather-normalized to long-term average weather data. End-use data will be applied to energy simulation, consistent with the IPMVP Option D for use in the demand and energy impact calculations."]
["Best practices and innovations","·     Use one-on-one outreach and leverage relationships with large customers to market the program."]
[null,"·     Build and maintain strong communication channels with trade allies."]
[null,"·     Use a formal review and certification process to vet and verify trade ally participants’ qualifications."]
[null,"·     Conduct regular quality checks on all participating trade ally installations. Decrease the number of site inspections as a trade ally proves its capabilities."]
[null,"·     Allow trade allies to submit rebate applications on behalf of customers."]
[null,"·     Develop a simple participation process and program rules."]
[null,"·     Conduct program and quality installation training for all participating trade allies."]
[null,"·     Maintain flexibility to allow program managers to make program changes to address problems as they arise, but ensure that all stakeholders are given notice of program changes and ample time to respond."]
[null,"·     Offer free technical and program assistance to customers and trade allies (e.g., through a program “hotline”)."]
[null,"·     Perform process evaluations to gain insights and feedback on the program’s effectiveness and inform future program enhancements."]

{"sheet":"EIA","index":21,"n_rows":76,"n_cols":41,"rows_kept":76,"cut":false,"hidden":true,"merged":[]}
["EIA Utility ID","Company Name","DBA","Title1","Title2","Title3","Address1","Address2","City","State","Zip","Phone","Alt Phone","Fax","Website","Email","Mail Group Desc","Primary Address","Complaint Address","Co Service Desc","Residential Revenues (x $1000)","Residential Sales (MWh)","Residential Consumers","Commercial Revenues (x $1000)","Commercial Sales (MWh)","Commercial Consumers","Industrial Revenues (x $1000)","Industrial Sales (MWh)","Industrial Consumers","Residential Annual EE Energy Effects (MWh)","Residential Annual Energy Efficiency Actual Peak Reduction (MW)","Commercial Annual EE Energy Effects (MWh)","Commercial Annual Energy Efficiency Actual Peak Reduction (MW)","Industrial Annual EE Energy Effects (MWh)","Industrial Annual Energy Efficiency Actual Peak Reduction (MW)","Residential Annual Load Management Energy Effects (MWh)","Residential Annual Load Management Potential Peak Reduction (MW)","Residential Annual Load Management Actual Peak Reduction (MW)","Commercial Annual Load Management Energy Effects (MWh)","Commercial Annual Load Management Potential Peak Reduction (MW)","Commercial Annual Load Management Actual Peak Reduction (MW)"]
[1015,"AUSTIN ENERGY",null,"AUSTIN ENERGY","CHERYL MELE","COO, DEPUTY GENERAL MANAGER","721 BARTON SPRINGS RD",null,"AUSTIN","TX","78704","5123226020","5123226020","5123226037","WWW.AUSTINENERGY.COM","CHERYL.MELE@austinenergy.com","Company / Physical",false,false,"MUNI",400586,4217608,364554,486142,5651104,44747,127680,2166974,80,307000,196,351100,"107","137000","42","1580",92,92,"1260",33,33]
[1287,"BARTLETT MUNICIPAL LIGHT DEPARTMENT",null,"BARTLETT MUNICIPAL LIGHT DEPARTMENT","ELIZABETH GUERRA","CITY CLERK","140 W  CLARK STREET",null,"BARTLETT","TX","76511","2545273219",null,"2545274280",null,"bartlettcityhall@sbcglobal.net","Company / Physical",false,false,"MUNI",1023,5183,685,384,5849,25,0,0,0,{"$error":"#N/A"},{"$error":"#N/A"},{"$error":"#N/A"},{"$error":"#N/A"},{"$error":"#N/A"},{"$error":"#N/A"},{"$error":"#N/A"},{"$error":"#N/A"},{"$error":"#N/A"},{"$error":"#N/A"},{"$error":"#N/A"},{"$error":"#N/A"}]
[1324,"BASTROP POWER AND LIGHT","BASTROP ELECTRIC DEPARTMENT","BASTROP POWER & LIGHT  CITY OF BASTROP","CURTIS ERVIN","ELECTRIC DIRECTOR","904 MAIN STREET",null,"BASTROP","TX","78602","5123212601","5123213941","5123212623","www.cityofbastrop.org","cervin@cityofbastrop.org","Company / Physical",false,false,"MUNI",2831,22824,1856,3800,33682,707,0,0,0,{"$error":"#N/A"},{"$error":"#N/A"},{"$error":"#N/A"},{"$error":"#N/A"},{"$error":"#N/A"},{"$error":"#N/A"},{"$error":"#N/A"},{"$error":"#N/A"},{"$error":"#N/A"},{"$error":"#N/A"},{"$error":"#N/A"},{"$error":"#N/A"}]
[1519,"BELLVILLE LIGHT & POWER SYSTEM",null,"BELLVILLE LIGHT & POWER SYSTEM",null,null,"30 SOUTH HOLLAND",null,"BELLVILLE","TX","77418-2129","4098653136",null,"4098659485",null,"cob@c-com.net","Company / Physical",false,false,"MUNI",2911,24602,1936,3041,28379,423,0,0,0,{"$error":"#N/A"},{"$error":"#N/A"},{"$error":"#N/A"},{"$error":"#N/A"},{"$error":"#N/A"},{"$error":"#N/A"},{"$error":"#N/A"},{"$error":"#N/A"},{"$error":"#N/A"},{"$error":"#N/A"},{"$error":"#N/A"},{"$error":"#N/A"}]
[1913,"BOERNE UTILITIES",null,"BOERNE UTILITIES",null,null,"402 EAST BLANCO RD ",null,"BOERNE","TX","78006","8302499511",null,"8302499264","www.ci.boerne.tx.ux","mgr@ci.boerne.tx.us","Company / Physical",false,false,"MUNI",5426,52194,3671,8230,71709,1085,0,0,0,{"$error":"#N/A"},{"$error":"#N/A"},{"$error":"#N/A"},{"$error":"#N/A"},{"$error":"#N/A"},{"$error":"#N/A"},{"$error":"#N/A"},{"$error":"#N/A"},{"$error":"#N/A"},{"$error":"#N/A"},{"$error":"#N/A"},{"$error":"#N/A"}]
[2050,"BOWIE UTILITIES",null,"BOWIE UTILITIES",null,null,"304 LINDSEY ST ",null,"BOWIE","TX","76230","9408721114",null,"9408725702","www.bowietexas.org",null,"Company / Physical",true,false,"MUNI",3620,24105,2382,3627,25890,760,801,9456,1,{"$error":"#N/A"},{"$error":"#N/A"},{"$error":"#N/A"},{"$error":"#N/A"},{"$error":"#N/A"},{"$error":"#N/A"},{"$error":"#N/A"},{"$error":"#N/A"},{"$error":"#N/A"},{"$error":"#N/A"},{"$error":"#N/A"},{"$error":"#N/A"}]
[2135,"BRADY WATER & LIGHT WORKS",null,"BRADY WATER & LIGHT WORKS",null,null,"101 E  MAIN ST ",null,"BRADY","TX","76825","9155972152",null,"9155972068",null,"bradyco@centex.net","Company / Physical",false,false,"MUNI",3653,26350,2422,3473,28719,638,199,1611,1,{"$error":"#N/A"},{"$error":"#N/A"},{"$error":"#N/A"},{"$error":"#N/A"},{"$error":"#N/A"},{"$error":"#N/A"},{"$error":"#N/A"},{"$error":"#N/A"},{"$error":"#N/A"},{"$error":"#N/A"},{"$error":"#N/A"},{"$error":"#N/A"}]
[2194,"BRENHAM MUNICIPAL LIGHT & POWER SYSTEM",null,"BRENHAM MUNICIPAL LIGHT & POWER SYSTEM",null,null,"210 NORTH PARK ST ",null,"BRENHAM","TX","77834-1059","4098367911",null,"4098364827",null,null,"Company / Physical",false,false,"MUNI",8077,74040,5273,8039,82079,1449,9322,115129,23,{"$error":"#N/A"},{"$error":"#N/A"},{"$error":"#N/A"},{"$error":"#N/A"},{"$error":"#N/A"},{"$error":"#N/A"},{"$error":"#N/A"},{"$error":"#N/A"},{"$error":"#N/A"},{"$error":"#N/A"},{"$error":"#N/A"},{"$error":"#N/A"}]
[2210,"BRIDGEPORT LIGHT & POWER SYSTEM",null,"BRIDGEPORT LIGHT & POWER SYSTEM",null,null,"812 HALSELL ST ",null,"BRIDGEPORT","TX","76426","9406835906",null,"9406835995",null,null,"Company / Physical",true,false,"MUNI",3203,22616,1816,4094,29896,500,0,0,0,{"$error":"#N/A"},{"$error":"#N/A"},{"$error":"#N/A"},{"$error":"#N/A"},{"$error":"#N/A"},{"$error":"#N/A"},{"$error":"#N/A"},{"$error":"#N/A"},{"$error":"#N/A"},{"$error":"#N/A"},{"$error":"#N/A"},{"$error":"#N/A"}]
[2404,"BROWNFIELD MUNICIPAL POWER & LIGHT",null,"BROWNFIELD POWER & LIGHT","ELDON JOBE","CITY MANAGER","201 W  BROADWAY",null,"BROWNFIELD","TX","79316","8066374547",null,"8066379369",null,"ejobe@valornet.com","Company / Physical",true,false,"MUNI",3494,33886,3329,3494,31771,781,366,3689,5,{"$error":"#N/A"},{"$error":"#N/A"},{"$error":"#N/A"},{"$error":"#N/A"},{"$error":"#N/A"},{"$error":"#N/A"},{"$error":"#N/A"},{"$error":"#N/A"},{"$error":"#N/A"},{"$error":"#N/A"},{"$error":"#N/A"},{"$error":"#N/A"}]
[2409,"BROWNSVILLE PUBLIC UTILITIES BOARD",null,"BROWNSVILLE PUBLIC UTILITIES BOARD","FERNANDO SAENZ","ASST  GM & CHIEF OPERATING OFFICER","1425 ROBINHOOD DRIVE",null,"BROWNSVILLE","TX","78523-3270","9569836266","9569836265","9569836289","Brownsville-pub.com","fsaenz@brownsville-pub.com","Company / Physical",true,false,"MUNI",48484,517410,39495,18355,132978,4496,38822,544409,660,{"$error":"#N/A"},{"$error":"#N/A"},{"$error":"#N/A"},{"$error":"#N/A"},{"$error":"#N/A"},{"$error":"#N/A"},{"$error":"#N/A"},{"$error":"#N/A"},{"$error":"#N/A"},{"$error":"#N/A"},{"$error":"#N/A"},{"$error":"#N/A"}]
[2442,"BTU RURAL ELECTRIC DIVISION","BRYAN TEXAS UTILITIES","BTU RURAL ELECTRIC DIVISION (BRYAN TEXAS UTILITIES)","DAN WILKERSON",null,"205 E  28TH ST ",null,"BRYAN","TX","77803","9798215715","8773637448","9798215795","www.btutilities.com","dwilkerson@btutilities.com","Company / Physical",false,false,"MUNI",55800,566663,40624,43468,477397,6611,9918,127520,17,31158,19,2622,"1",0,0,"9",0,0,0,0,0]
[2559,"BURNET UTILITIES",null,"BURNET UTILITIES",null,null,"127 E  JACKSON ST ",null,"BURNET","TX","78611","5127566093",null,"5127568560",null,null,"Company / Physical",true,false,"MUNI",3057,25150,2083,1911,15468,708,3463,33960,60,{"$error":"#N/A"},{"$error":"#N/A"},{"$error":"#N/A"},{"$error":"#N/A"},{"$error":"#N/A"},{"$error":"#N/A"},{"$error":"#N/A"},{"$error":"#N/A"},{"$error":"#N/A"},{"$error":"#N/A"},{"$error":"#N/A"},{"$error":"#N/A"}]
[2800,"CALDWELL CITY GOVERNMENT",null,"CALDWELL CITY GOVERNMENT",null,null,"107 S  HILL ST ",null,"CALDWELL","TX","77836","4095673271",null,"4095679233",null,null,"Company / Physical",true,false,"MUNI",2141,20000,1534,2420,25000,439,337,4000,11,{"$error":"#N/A"},{"$error":"#N/A"},{"$error":"#N/A"},{"$error":"#N/A"},{"$error":"#N/A"},{"$error":"#N/A"},{"$error":"#N/A"},{"$error":"#N/A"},{"$error":"#N/A"},{"$error":"#N/A"},{"$error":"#N/A"},{"$error":"#N/A"}]
[3168,"CASTROVILLE UTILITY SYSTEM",null,"CASTROVILLE UTILITY SYSTEM",null,null,"1209 N  FIORELLA ST ",null,"CASTROVILLE","TX","78009","8309314070",null,"8309316373",null,null,"Company / Physical",true,false,"MUNI",1515,15253,1142,1192,11559,240,0,0,0,{"$error":"#N/A"},{"$error":"#N/A"},{"$error":"#N/A"},{"$error":"#N/A"},{"$error":"#N/A"},{"$error":"#N/A"},{"$error":"#N/A"},{"$error":"#N/A"},{"$error":"#N/A"},{"$error":"#N/A"},{"$error":"#N/A"},{"$error":"#N/A"}]
[3923,"COLEMAN MUNICIPAL POWER & LIGHT DEPARTMENT",null,"COLEMAN MUNICIPAL POWER & LIGHT DEPARTMENT","DAVID W HARRISON","SUPERVISOR","200 W LIVEOAK",null,"COLEMAN","TX","76834","3256255747","8001234567",null,null,"CITYLIGHTS@WEB-ACCESS.NET","Company / Physical",true,false,"MUNI",3799,20916,2258,1505,8541,393,1546,10616,22,{"$error":"#N/A"},{"$error":"#N/A"},{"$error":"#N/A"},{"$error":"#N/A"},{"$error":"#N/A"},{"$error":"#N/A"},{"$error":"#N/A"},{"$error":"#N/A"},{"$error":"#N/A"},{"$error":"#N/A"},{"$error":"#N/A"},{"$error":"#N/A"}]
[3940,"COLLEGE STATION UTILITIES",null,"COLLEGE STATION UTILITIES","DAVID MASSEY","DIRECTOR OF ELECTRIC UTILITY","1601 GRAHAM RD ",null,"COLLEGE STATION","TX","77842","9797643660","9797643447","9797643452","www.cstx.gov","dmassey@cstx.gov","Company / Physical",false,false,"MUNI",47977,420715,32936,34286,341804,2722,0,0,0,2063,1,26,"0",0,0,0,0,0,0,0,0]
[16604,"CPS ENERGY","CITY PUBLIC SERVICE BOARD OF SAN ANTONIO","CPS ENERGY","MILTON LEE","CEO","145 NAVARRO STREET",null,"SAN ANTONIO","TX","78296","2103532000",null,"2103533058","www.citypublicservice.com","mblee@cpsenergy.com","Company / Physical",false,false,"MUNI",791898,9058575,622818,743845,9957933,78468,63427,1010213,72,104447,20,114033,"39",0,0,0,13,13,0,17,17]
[4610,"CUERO ELECTRIC UTILITY",null,"CUERO ELECTRIC UTILITY","MARIE GELLES","CITY MANAGER","212 EAST MAIN STREET",null,"CUERO","TX","77954","3612753476","3612756114","3612756265",null,"MGELLES@GVEC.NET","Company / Physical",false,false,"MUNI",3492,39629,3095,2122,19627,827,5000,57365,4,{"$error":"#N/A"},{"$error":"#N/A"},{"$error":"#N/A"},{"$error":"#N/A"},{"$error":"#N/A"},{"$error":"#N/A"},{"$error":"#N/A"},{"$error":"#N/A"},{"$error":"#N/A"},{"$error":"#N/A"},{"$error":"#N/A"},{"$error":"#N/A"}]
[5063,"DENTON MUNICIPAL ELECTRIC",null,"DENTON MUNICIPAL UTILITIES","PHIL RENNAKER",null,"215 E  MCKINNEY",null,"DENTON","TX","76201","9403497182",null,"9403497334",null,"guy.rennaker@cityofdenton.com","Company / Physical",true,false,"MUNI",50183,493516,39185,28522,284537,4584,39735,507942,111,0,0,0,0,0,0,0,0,0,0,0,0]
[5744,"ELECTRA ELECTRIC DEPARTMENT",null,"ELECTRA MUNICIPAL UTILITIES","STEPHEN GIESBRECHT","CITY ADMINISTRATOR","101 N MAIN",null,"ELECTRA","TX","76360","9404952146","9404952211","9404953025",null,"sgiesbrecht@cityofelectra.com","Company / Physical",false,false,"MUNI",1753,16285,1198,751,5511,200,278,3257,10,{"$error":"#N/A"},{"$error":"#N/A"},{"$error":"#N/A"},{"$error":"#N/A"},{"$error":"#N/A"},{"$error":"#N/A"},{"$error":"#N/A"},{"$error":"#N/A"},{"$error":"#N/A"},{"$error":"#N/A"},{"$error":"#N/A"},{"$error":"#N/A"}]
[6203,"FARMERSVILLE MUNICIPAL LIGHT & POWER",null,"FARMERSVILLE MUNICIPAL LIGHT & POWER",null,null,"205 S  MAIN ST ",null,"FARMERSVILLE","TX","75442","9727826151",null,"9727826604",null,null,"Company / Physical",true,false,"MUNI",1885,14844,1275,904,6791,264,683,6671,17,{"$error":"#N/A"},{"$error":"#N/A"},{"$error":"#N/A"},{"$error":"#N/A"},{"$error":"#N/A"},{"$error":"#N/A"},{"$error":"#N/A"},{"$error":"#N/A"},{"$error":"#N/A"},{"$error":"#N/A"},{"$error":"#N/A"},{"$error":"#N/A"}]
[6396,"FLATONIA ELECTRIC DEPARTMENT",null,"FLATONIA ELECTRIC DEPT","MELISSA BRUNNER","CITY SECRETARY","125 E  S  MAIN ST ",null,"FLATONIA","TX","78941","3618653548","3618653549","3618652817","www.flatonia-tx.com","mbrunner@ci.flatonia.tx.us","Company / Physical",false,false,"MUNI",1092,10086,762,1982,12197,245,0,0,0,{"$error":"#N/A"},{"$error":"#N/A"},{"$error":"#N/A"},{"$error":"#N/A"},{"$error":"#N/A"},{"$error":"#N/A"},{"$error":"#N/A"},{"$error":"#N/A"},{"$error":"#N/A"},{"$error":"#N/A"},{"$error":"#N/A"},{"$error":"#N/A"}]
[6427,"FLORESVILLE ELECTRIC LIGHT & POWER SYSTEM",null,"FLORESVILLE ELECTRIC LIGHT & POWER SYSTEM","DAVID MCMILLAN","GENERAL MANAGER","1400 FOURTH ST ",null,"FLORESVILLE","TX","78114","8302167000","8778062379","8303930362","www.felpsis.net","dmcmilla@felpsis.net","Company / Physical",false,false,"MUNI",17945.600000000002,193039,11198,8781.2000000000007,94132,2484,0,0,0,{"$error":"#N/A"},{"$error":"#N/A"},{"$error":"#N/A"},{"$error":"#N/A"},{"$error":"#N/A"},{"$error":"#N/A"},{"$error":"#N/A"},{"$error":"#N/A"},{"$error":"#N/A"},{"$error":"#N/A"},{"$error":"#N/A"},{"$error":"#N/A"}]
[6472,"FLOYDADA ELECTRIC DEPARTMENT",null,"FLOYDADA ELECTRIC DEPT","GARY BROWN","CITY MANAGER","114 W  VIRGINIA",null,"FLOYDADA","TX","79235-2717","8069832834","8888888888","8069835542",null,"gbrown@amaonline.com","Company / Physical",false,false,"MUNI",968,9147,1085,672,5929,247,0,0,0,{"$error":"#N/A"},{"$error":"#N/A"},{"$error":"#N/A"},{"$error":"#N/A"},{"$error":"#N/A"},{"$error":"#N/A"},{"$error":"#N/A"},{"$error":"#N/A"},{"$error":"#N/A"},{"$error":"#N/A"},{"$error":"#N/A"},{"$error":"#N/A"}]
[6758,"FREDERICKSBURG ELECTRIC UTILITY",null,"FREDERICKSBURG ELECTRIC UTILITY","CRAIG WALLENDORF",null,"126 W  MAIN ST ",null,"FREDERICKSBURG","TX","78624","8309977521","8309902000","8309971861",null,"cwallendorf@fbgtx.com","Company / Physical",true,false,"MUNI",4623,51930,4402,6542,77299,1076,0,0,0,{"$error":"#N/A"},{"$error":"#N/A"},{"$error":"#N/A"},{"$error":"#N/A"},{"$error":"#N/A"},{"$error":"#N/A"},{"$error":"#N/A"},{"$error":"#N/A"},{"$error":"#N/A"},{"$error":"#N/A"},{"$error":"#N/A"},{"$error":"#N/A"}]
[6958,"GARLAND POWER & LIGHT SYSTEM",null,"GARLAND POWER & LIGHT","RAY SCHWERTNER","ELECTRIC UTILITY DIRECTOR","504 WEST STATE",null,"GARLAND","TX","75040","9722052651","9722053006","9722052636","www.garlandpower-light.org","info@garlandpower-light.org","Company / Physical",false,false,"MUNI",105487,884812,61691,83801,797845,6257,20977,281416,8,{"$error":"#N/A"},{"$error":"#N/A"},{"$error":"#N/A"},{"$error":"#N/A"},{"$error":"#N/A"},{"$error":"#N/A"},{"$error":"#N/A"},{"$error":"#N/A"},{"$error":"#N/A"},{"$error":"#N/A"},{"$error":"#N/A"},{"$error":"#N/A"}]
[null,"GARRISON ELECTRIC DEPARTMENT",null,"GARRISON ELECTRIC DEPARTMENT",null,null,"129 W  GREENWOOD ST ",null,"GARRISON","TX","75946","4093472201",null,"4093472201",null,null,"Company / Physical",true,false,"MUNI",{"$error":"#N/A"},{"$error":"#N/A"},{"$error":"#N/A"},{"$error":"#N/A"},{"$error":"#N/A"},{"$error":"#N/A"},{"$error":"#N/A"},{"$error":"#N/A"},{"$error":"#N/A"},{"$error":"#N/A"},{"$error":"#N/A"},{"$error":"#N/A"},{"$error":"#N/A"},{"$error":"#N/A"},{"$error":"#N/A"},{"$error":"#N/A"},{"$error":"#N/A"},{"$error":"#N/A"},{"$error":"#N/A"},{"$error":"#N/A"},{"$error":"#N/A"}]
[7129,"GEORGETOWN UTILITY SYSTEMS",null,"GEOGETOWN UTILITY SYSTEMS","SYSTEM OPERATIONS",null,"3001 INDUSTRIAL BLVD",null,"GEORGETOWN","TX","78626","5129303555","5129303558",null,null,"gusdispatch@georgetown.org","Company / Physical",false,false,"MUNI",27228,217550,18318,25901,233169,2305,3026,39730,20,{"$error":"#N/A"},{"$error":"#N/A"},{"$error":"#N/A"},{"$error":"#N/A"},{"$error":"#N/A"},{"$error":"#N/A"},{"$error":"#N/A"},{"$error":"#N/A"},{"$error":"#N/A"},{"$error":"#N/A"},{"$error":"#N/A"},{"$error":"#N/A"}]
[7184,"GIDDINGS LIGHT & POWER SYSTEM",null,"GIDDINGS LIGHT & POWER SYSTEM",null,null,"118 E  RICHMOND ST ",null,"GIDDINGS","TX","78942","4095422311",null,"4095420950",null,null,"Company / Physical",true,false,"MUNI",3093,31494,1854,2663,24733,393,0,0,0,{"$error":"#N/A"},{"$error":"#N/A"},{"$error":"#N/A"},{"$error":"#N/A"},{"$error":"#N/A"},{"$error":"#N/A"},{"$error":"#N/A"},{"$error":"#N/A"},{"$error":"#N/A"},{"$error":"#N/A"},{"$error":"#N/A"},{"$error":"#N/A"}]
[7419,"GOLDSMITH CITY GOVERNMENT",null,"GOLDSMITH CITY GOVERNMENT","BENNIE COPE","UTILITY MANAGER","520 N  GOLDSMITH STREET",null,"GOLDSMITH","TX","79741-0629","4328273404","4322383621","4328273937",null,"bennie2559@aol.com","Company / Physical",false,false,"MUNI",233,1749,147,82,622,39,0,0,0,{"$error":"#N/A"},{"$error":"#N/A"},{"$error":"#N/A"},{"$error":"#N/A"},{"$error":"#N/A"},{"$error":"#N/A"},{"$error":"#N/A"},{"$error":"#N/A"},{"$error":"#N/A"},{"$error":"#N/A"},{"$error":"#N/A"},{"$error":"#N/A"}]
[7368,"GOLDTHWAITE UTILITIES",null,"GOLDTHWAITE UTILITIES",null,null,"1218 FISHER ST ",null,"GOLDTHWAITE","TX","76844","9156483186",null,"9156482570",null,null,"Company / Physical",false,false,"MUNI",1142,9497,896,598,4535,288,710,5702,28,{"$error":"#N/A"},{"$error":"#N/A"},{"$error":"#N/A"},{"$error":"#N/A"},{"$error":"#N/A"},{"$error":"#N/A"},{"$error":"#N/A"},{"$error":"#N/A"},{"$error":"#N/A"},{"$error":"#N/A"},{"$error":"#N/A"},{"$error":"#N/A"}]
[7370,"GONZALES ELECTRIC SYSTEM",null,"GONZALES ELECTRIC SYSTEM",null,null,"820 ST  JOSEPH ST ",null,"GONZALES","TX","78629","8306722815",null,"8306722813",null,null,"Company / Physical",false,false,"MUNI",3416,32457,2343,2378,26247,572,1387,17648,1,{"$error":"#N/A"},{"$error":"#N/A"},{"$error":"#N/A"},{"$error":"#N/A"},{"$error":"#N/A"},{"$error":"#N/A"},{"$error":"#N/A"},{"$error":"#N/A"},{"$error":"#N/A"},{"$error":"#N/A"},{"$error":"#N/A"},{"$error":"#N/A"}]
[7480,"GRANBURY MUNICIPAL ELECTRIC DEPARTMENT",null,"GRANBURY MUNICIPAL ELECTRIC DEPARTMENT",null,null,"116 WEST BRIDGE",null,"GRANBURY","TX","76048","8175731114",null,"8175737678",null,null,"Company / Physical",false,false,"MUNI",3338,27249,2376,6939,59470,791,0,0,0,{"$error":"#N/A"},{"$error":"#N/A"},{"$error":"#N/A"},{"$error":"#N/A"},{"$error":"#N/A"},{"$error":"#N/A"},{"$error":"#N/A"},{"$error":"#N/A"},{"$error":"#N/A"},{"$error":"#N/A"},{"$error":"#N/A"},{"$error":"#N/A"}]
[7634,"GREENVILLE ELECTRIC UTILITY SYSTEM","GEUS","GREENVILLE ELECTRIC UTILITY SYSTEM",null,null,"6000 JOE RAMSEY BLVD ",null,"GREENVILLE","TX","75402","9034572800",null,"9034572893","www.geus.org/",null,"Company / Physical",true,false,"MUNI",11841,135958,11025,25983,372304,2136,0,0,0,{"$error":"#N/A"},{"$error":"#N/A"},{"$error":"#N/A"},{"$error":"#N/A"},{"$error":"#N/A"},{"$error":"#N/A"},{"$error":"#N/A"},{"$error":"#N/A"},{"$error":"#N/A"},{"$error":"#N/A"},{"$error":"#N/A"},{"$error":"#N/A"}]
[7958,"HALLETTSVILLE MUNICIPAL UTILITIES",null,"HALLETTSVILLE MUNICIPAL UTILITIES","ERVIN KOLACNY",null,"101 N  MAIN STREET",null,"HALLETTSVILLE","TX","77964","3617983681","3617982201","3617985952","www.hallettsville.com","ekhville@awesomenet.net","Company / Physical",true,false,"MUNI",1491,13906,1221,2444,22415,405,270,2142,4,{"$error":"#N/A"},{"$error":"#N/A"},{"$error":"#N/A"},{"$error":"#N/A"},{"$error":"#N/A"},{"$error":"#N/A"},{"$error":"#N/A"},{"$error":"#N/A"},{"$error":"#N/A"},{"$error":"#N/A"},{"$error":"#N/A"},{"$error":"#N/A"}]
[8359,"HEARNE MUNICIPAL ELECTRIC SYSTEM",null,"HEARNE MUNICIPAL ELECTRIC SYSTEM",null,null,"210 CEDAR ST   BLDG  B",null,"HEARNE","TX","77859","4092793461",null,"4092792431",null,null,"Company / Physical",true,false,"MUNI",3736.8,21920,2135,2524.6,22751,426,0,0,0,{"$error":"#N/A"},{"$error":"#N/A"},{"$error":"#N/A"},{"$error":"#N/A"},{"$error":"#N/A"},{"$error":"#N/A"},{"$error":"#N/A"},{"$error":"#N/A"},{"$error":"#N/A"},{"$error":"#N/A"},{"$error":"#N/A"},{"$error":"#N/A"}]
[8432,"HEMPHILL CITY GOVERNMENT",null,"HEMPHILL CITY GOVERNMENT",null,null,"210 STARR ST ",null,"HEMPHILL","TX","75948","4097872251",null,"4097872259",null,null,"Company / Physical",false,false,"MUNI",678,6121,489,1243,11082,246,0,0,0,{"$error":"#N/A"},{"$error":"#N/A"},{"$error":"#N/A"},{"$error":"#N/A"},{"$error":"#N/A"},{"$error":"#N/A"},{"$error":"#N/A"},{"$error":"#N/A"},{"$error":"#N/A"},{"$error":"#N/A"},{"$error":"#N/A"},{"$error":"#N/A"}]
[8435,"HEMPSTEAD ELECTRIC DEPARMENT",null,"HEMPSTEAD ELECTRIC DEPARMENT",null,null,"1125 AUSTIN ST ",null,"HEMPSTEAD","TX","77445","4098262486",null,"4098266703",null,null,"Company / Physical",true,false,"MUNI",2893,27096,1997,2274,24200,304,0,0,0,{"$error":"#N/A"},{"$error":"#N/A"},{"$error":"#N/A"},{"$error":"#N/A"},{"$error":"#N/A"},{"$error":"#N/A"},{"$error":"#N/A"},{"$error":"#N/A"},{"$error":"#N/A"},{"$error":"#N/A"},{"$error":"#N/A"},{"$error":"#N/A"}]
[8801,"HONDO ELECTRIC SYSTEM",null,"HONDO ELECTRIC SYSTEM","MEGAN RODRIQUEZ","ELECTRIC DEPARTMENT ADMININSTRATIVE ASSISTANT","1600 AVE  M",null,"HONDO","TX","78861","8304263378","8304263378","8304265189",null,"mRodriguez@hondo-tx.org","Company / Physical",true,false,"MUNI",2895,33731,2531,2544,31172,543,512,8680,2,{"$error":"#N/A"},{"$error":"#N/A"},{"$error":"#N/A"},{"$error":"#N/A"},{"$error":"#N/A"},{"$error":"#N/A"},{"$error":"#N/A"},{"$error":"#N/A"},{"$error":"#N/A"},{"$error":"#N/A"},{"$error":"#N/A"},{"$error":"#N/A"}]
[9664,"JASPER LIGHT & POWER SYSTEM",null,"JASPER LIGHT & POWER SYSTEM",null,null,"465 SOUTH MAIN STREET",null,"JASPER","TX","75951","4093844651",null,"4093843790",null,null,"Company / Physical",true,false,"MUNI",6301,45656,3436,4441,43434,985,479,5739,5,{"$error":"#N/A"},{"$error":"#N/A"},{"$error":"#N/A"},{"$error":"#N/A"},{"$error":"#N/A"},{"$error":"#N/A"},{"$error":"#N/A"},{"$error":"#N/A"},{"$error":"#N/A"},{"$error":"#N/A"},{"$error":"#N/A"},{"$error":"#N/A"}]
[28604,"KERRVILLE PUBLIC UTILITY BOARD",null,"KERRVILLE PUBLIC UTILITY BOARD",null,null,"2250 MEMORIAL BLVD ",null,"KERRVILLE","TX","78028","8302573050","8302572883","8302578078","www.kpub.com","custserv@kpub.com","Company / Physical",false,false,"MUNI",22892,243484,17680,18151,228089,3691,0,0,0,{"$error":"#N/A"},{"$error":"#N/A"},{"$error":"#N/A"},{"$error":"#N/A"},{"$error":"#N/A"},{"$error":"#N/A"},{"$error":"#N/A"},{"$error":"#N/A"},{"$error":"#N/A"},{"$error":"#N/A"},{"$error":"#N/A"},{"$error":"#N/A"}]
[10359,"KIRBYVILLE LIGHT & POWER COMPANY",null,"KIRBYVILLE LIGHT & POWER COMPANY",null,null,"107 S  ELIZABETH ST ",null,"KIRBYVILLE","TX","75956","4094234659",null,"4094233664",null,null,"Company / Physical",true,false,"MUNI",1653,13200,759,539,8646,523,0,0,0,{"$error":"#N/A"},{"$error":"#N/A"},{"$error":"#N/A"},{"$error":"#N/A"},{"$error":"#N/A"},{"$error":"#N/A"},{"$error":"#N/A"},{"$error":"#N/A"},{"$error":"#N/A"},{"$error":"#N/A"},{"$error":"#N/A"},{"$error":"#N/A"}]
[10532,"LA GRANGE UTILITIES",null,"LA GRANGE UTILITIES","SHAWN RABORN","CITY MANAGER","155 E  COLORADO STREET",null,"LA GRANGE","TX","78945","9799683127","9799685805","9799685743","www.cityoflg.com","citymanager@cityoflg.com","Company / Physical",true,false,"MUNI",3411,33354,2477,939,8584,450,1870,18122,75,{"$error":"#N/A"},{"$error":"#N/A"},{"$error":"#N/A"},{"$error":"#N/A"},{"$error":"#N/A"},{"$error":"#N/A"},{"$error":"#N/A"},{"$error":"#N/A"},{"$error":"#N/A"},{"$error":"#N/A"},{"$error":"#N/A"},{"$error":"#N/A"}]
[10656,"LAMPASAS PUBLIC UTILITIES",null,"LAMPASAS PUBLIC UTILITIES","RANDY CLARK","DIRECTOR OF PUBLIC WORKS","312 EAST THIRD STREET",null,"LAMPASAS","TX","76550","5125566831","5125568315","5125562078",null,"randy@cityoflampasas.com","Company / Physical",true,false,"MUNI",4884,41123,3146,5468,57468,706,0,0,0,{"$error":"#N/A"},{"$error":"#N/A"},{"$error":"#N/A"},{"$error":"#N/A"},{"$error":"#N/A"},{"$error":"#N/A"},{"$error":"#N/A"},{"$error":"#N/A"},{"$error":"#N/A"},{"$error":"#N/A"},{"$error":"#N/A"},{"$error":"#N/A"}]
[10969,"LEXINGTON MUNICIPAL ELECTRIC DEPARTMENT",null,"LEXINGTON MUNICIPAL ELECTRIC DEPARTMENT",null,null,null,null,"LEXINGTON","TX","78947","4097732221",null,"4097734878",null,null,"Company / Physical",false,false,"MUNI",1010,8750,524,319,2606,68,0,0,0,{"$error":"#N/A"},{"$error":"#N/A"},{"$error":"#N/A"},{"$error":"#N/A"},{"$error":"#N/A"},{"$error":"#N/A"},{"$error":"#N/A"},{"$error":"#N/A"},{"$error":"#N/A"},{"$error":"#N/A"},{"$error":"#N/A"},{"$error":"#N/A"}]
[10982,"LIBERTY MUNICIPAL ELECTRIC SYSTEM",null,"LIBERTY MUNICIPAL ELECTRIC SYSTEM",null,null,"1829 SAM HOUSTON",null,"LIBERTY","TX","77575","4093363684",null,"4093369846",null,null,"Company / Physical",true,false,"MUNI",4141,39474,2790,6165,56334,830,0,0,0,{"$error":"#N/A"},{"$error":"#N/A"},{"$error":"#N/A"},{"$error":"#N/A"},{"$error":"#N/A"},{"$error":"#N/A"},{"$error":"#N/A"},{"$error":"#N/A"},{"$error":"#N/A"},{"$error":"#N/A"},{"$error":"#N/A"},{"$error":"#N/A"}]
[11097,"LIVINGSTON MUNICIPAL ELECTRIC SYSTEM",null,"LIVINGSTON MUNICIPAL ELECTRIC SYSTEM","PATRICIA CRAWFORD","UTILITY BILLING SUPERVISOR","200 WEST CHURCH STREET",null,"LIVINGSTON","TX","77351-3213","9363274311","9363274311","9363277784",null,"utilitybilling@livingston.net","Company / Physical",true,false,"MUNI",3462,30429,2313,5277,49912,971,0,0,0,{"$error":"#N/A"},{"$error":"#N/A"},{"$error":"#N/A"},{"$error":"#N/A"},{"$error":"#N/A"},{"$error":"#N/A"},{"$error":"#N/A"},{"$error":"#N/A"},{"$error":"#N/A"},{"$error":"#N/A"},{"$error":"#N/A"},{"$error":"#N/A"}]
[11103,"LLANO UTILITIES",null,"LLANO UTILITIES","FINLEY DEGRAFFENRIED","CITY MANAGER","301 W  MAIN STREET",null,"LLANO","TX","78643","3252474158","3252475767","3252471928","www.llanotx.com","mdudley@tstar.net","Company / Physical",true,false,"MUNI",2192,19086,1546,2443,20619,406,0,0,0,{"$error":"#N/A"},{"$error":"#N/A"},{"$error":"#N/A"},{"$error":"#N/A"},{"$error":"#N/A"},{"$error":"#N/A"},{"$error":"#N/A"},{"$error":"#N/A"},{"$error":"#N/A"},{"$error":"#N/A"},{"$error":"#N/A"},{"$error":"#N/A"}]
[11119,"LOCKHART UTILITIES",null,"LOCKHART UTILITIES",null,null,"308 W  SAN ANTONIO ST ",null,"LOCKHART","TX","78644","5123983461",null,"5123985103",null,null,"Company / Physical",false,false,"MUNI",6030,55077,4228,3548,30578,684,1305,13301,14,{"$error":"#N/A"},{"$error":"#N/A"},{"$error":"#N/A"},{"$error":"#N/A"},{"$error":"#N/A"},{"$error":"#N/A"},{"$error":"#N/A"},{"$error":"#N/A"},{"$error":"#N/A"},{"$error":"#N/A"},{"$error":"#N/A"},{"$error":"#N/A"}]
[11292,"LUBBOCK POWER & LIGHT SYSTEM","LP&L","LUBBOCK POWER & LIGHT SYSTEM",null,null,"1301 BROADWAY",null,"LUBBOCK","TX","79457","8067752509",null,"8067753112","www.interoz.com/lubbock/lpl/",null,"Company / Physical",false,false,"MUNI",60545,706364,66072,14992,221638,5856,46821,742269,3070,{"$error":"#N/A"},{"$error":"#N/A"},{"$error":"#N/A"},{"$error":"#N/A"},{"$error":"#N/A"},{"$error":"#N/A"},{"$error":"#N/A"},{"$error":"#N/A"},{"$error":"#N/A"},{"$error":"#N/A"},{"$error":"#N/A"},{"$error":"#N/A"}]
[11316,"LULING UTILITIES",null,"LULING UTILITIES",null,null,"509 E  CROCKETT ST ",null,"LULING","TX","78648","8308752481",null,"8308752038",null,null,"Company / Physical",false,false,"MUNI",3327.9,26033,2057,3457.4,25878,557,0,0,0,{"$error":"#N/A"},{"$error":"#N/A"},{"$error":"#N/A"},{"$error":"#N/A"},{"$error":"#N/A"},{"$error":"#N/A"},{"$error":"#N/A"},{"$error":"#N/A"},{"$error":"#N/A"},{"$error":"#N/A"},{"$error":"#N/A"},{"$error":"#N/A"}]
[11793,"MASON UTILITIES",null,"MASON UTILITIES","BRIAN BOUDREAUX","CITY ADMINISTRATOR","124 MOODY STREET",null,"MASON","TX","76856","3253476449","3253476556","3253475955",null,"admincom@tstar.net","Company / Physical",false,false,"MUNI",1574,12559,1124,1076,9559,379,0,0,0,{"$error":"#N/A"},{"$error":"#N/A"},{"$error":"#N/A"},{"$error":"#N/A"},{"$error":"#N/A"},{"$error":"#N/A"},{"$error":"#N/A"},{"$error":"#N/A"},{"$error":"#N/A"},{"$error":"#N/A"},{"$error":"#N/A"},{"$error":"#N/A"}]
[13025,"MOULTON ELECTRIC DEPARTMENT",null,"MOULTON ELECTRIC DEPARTMENT",null,null,"102 S  WEST ST ",null,"MOULTON","TX","77975","3615964621",null,"3615967075",null,null,"Company / Physical",false,false,"MUNI",759.80000000000007,5234,573,193.8,1400,80,290.60000000000002,2004,24,{"$error":"#N/A"},{"$error":"#N/A"},{"$error":"#N/A"},{"$error":"#N/A"},{"$error":"#N/A"},{"$error":"#N/A"},{"$error":"#N/A"},{"$error":"#N/A"},{"$error":"#N/A"},{"$error":"#N/A"},{"$error":"#N/A"},{"$error":"#N/A"}]
[13418,"NEW BRAUNFELS UTILITIES",null,"NEW BRAUNFELS UTILITIES",null,null,"263 MAIN PLAZA EAST",null,"NEW BRAUNFELS","TX","78131-0289","8306298400",null,"8306298435","www.nbcham.org/utilities.htm",null,"Company / Physical",false,false,"MUNI",31062,378925,24187,24869,337363,4838,23821,370178,13,{"$error":"#N/A"},{"$error":"#N/A"},{"$error":"#N/A"},{"$error":"#N/A"},{"$error":"#N/A"},{"$error":"#N/A"},{"$error":"#N/A"},{"$error":"#N/A"},{"$error":"#N/A"},{"$error":"#N/A"},{"$error":"#N/A"},{"$error":"#N/A"}]
[13603,"NEWTON MUNICIPAL UTILITIES",null,"NEWTON MUNICIPAL UTILITIES",null,null,null,null,"NEWTON","TX","75966","4093795061",null,"4093795065",null,null,"Company / Physical",true,false,"MUNI",1086.9000000000001,11017,853,1142.6000000000001,12375,207,0,0,0,{"$error":"#N/A"},{"$error":"#N/A"},{"$error":"#N/A"},{"$error":"#N/A"},{"$error":"#N/A"},{"$error":"#N/A"},{"$error":"#N/A"},{"$error":"#N/A"},{"$error":"#N/A"},{"$error":"#N/A"},{"$error":"#N/A"},{"$error":"#N/A"}]
[null,"PINELAND CITY OF",null,"PINELAND CITY OF",null,null,"DOGWOOD ST ",null,"PINELAND","TX","75968","4095842390",null,"4095842846",null,null,"Company / Physical",true,false,"MUNI",{"$error":"#N/A"},{"$error":"#N/A"},{"$error":"#N/A"},{"$error":"#N/A"},{"$error":"#N/A"},{"$error":"#N/A"},{"$error":"#N/A"},{"$error":"#N/A"},{"$error":"#N/A"},{"$error":"#N/A"},{"$error":"#N/A"},{"$error":"#N/A"},{"$error":"#N/A"},{"$error":"#N/A"},{"$error":"#N/A"},{"$error":"#N/A"},{"$error":"#N/A"},{"$error":"#N/A"},{"$error":"#N/A"},{"$error":"#N/A"},{"$error":"#N/A"}]
[16175,"ROBSTOWN UTILITY SYSTEM",null,"ROBSTOWN UTILITY SYSTEMS","ROY GUTIERREZ","SUPERINTENDENT","101 E  MAIN STREET",null,"ROBSTOWN","TX","78380","3613873554","3613873555","3613879353",null,"royg@cityofrobstown.com","Company / Physical",false,false,"MUNI",7523,52196,3951,5399,39498,606,0,0,0,{"$error":"#N/A"},{"$error":"#N/A"},{"$error":"#N/A"},{"$error":"#N/A"},{"$error":"#N/A"},{"$error":"#N/A"},{"$error":"#N/A"},{"$error":"#N/A"},{"$error":"#N/A"},{"$error":"#N/A"},{"$error":"#N/A"},{"$error":"#N/A"}]
[16605,"SAN AUGUSTINE LIGHT & WATER DEPARTMENT",null,"SAN AUGUSTINE LIGHT & WATER DEPT",null,null,"301 S  HARRISON ST ",null,"SAN AUGUSTINE","TX","75972","4092752121",null,"4092759146",null,null,"Company / Physical",true,false,"MUNI",1114,10330,854,1514,15250,285,0,0,0,{"$error":"#N/A"},{"$error":"#N/A"},{"$error":"#N/A"},{"$error":"#N/A"},{"$error":"#N/A"},{"$error":"#N/A"},{"$error":"#N/A"},{"$error":"#N/A"},{"$error":"#N/A"},{"$error":"#N/A"},{"$error":"#N/A"},{"$error":"#N/A"}]
[28978,"SAN MARCOS ELECTRIC UTILITY",null,"SAN MARCOS ELECTRIC UTILITY","KYLE DICKE","ASSISTANT DIRECTOR OF PUBLIC SERVICES","630 E  HOPKINS STREET",null,"SAN MARCOS","TX","78666-6397","5123938300","5123938313","5123962683","www.sanmarcostx.gov","smeu_info@sanmarcostx.gov","Company / Physical",true,false,"MUNI",32101,189885,18257,34566,342995,3571,327,3793,2,{"$error":"#N/A"},{"$error":"#N/A"},{"$error":"#N/A"},{"$error":"#N/A"},{"$error":"#N/A"},{"$error":"#N/A"},{"$error":"#N/A"},{"$error":"#N/A"},{"$error":"#N/A"},{"$error":"#N/A"},{"$error":"#N/A"},{"$error":"#N/A"}]
[28981,"SAN SABA CITY OF",null,"SAN SABA CITY OF",null,null,"303 S  CLEAR ST ",null,"SAN SABA","TX","76877-0788","9153725144",null,"9153723989",null,"sansaba@centex.net","Company / Physical",true,false,"MUNI",707,15864,1357,503,18608,451,0,0,0,{"$error":"#N/A"},{"$error":"#N/A"},{"$error":"#N/A"},{"$error":"#N/A"},{"$error":"#N/A"},{"$error":"#N/A"},{"$error":"#N/A"},{"$error":"#N/A"},{"$error":"#N/A"},{"$error":"#N/A"},{"$error":"#N/A"},{"$error":"#N/A"}]
[16647,"SANGER ELECTRIC SYSTEM",null,"SANGER ELECTRIC SYSTEM",null,null,"201 BOLIVAR ST ",null,"SANGER","TX","76266","9404587930",null,"9404584180",null,null,"Company / Physical",false,false,"MUNI",3062,24150,1854,3795,33111,440,215,1693,10,{"$error":"#N/A"},{"$error":"#N/A"},{"$error":"#N/A"},{"$error":"#N/A"},{"$error":"#N/A"},{"$error":"#N/A"},{"$error":"#N/A"},{"$error":"#N/A"},{"$error":"#N/A"},{"$error":"#N/A"},{"$error":"#N/A"},{"$error":"#N/A"}]
[16765,"SCHULENBURG UTILITIES DEPARTMENT",null,"SCHULENBURG UTILITIES DEPARTMENT",null,null,"607 UPTON STREET ",null,"SCHULENBURG","TX","78956","4097434126",null,"4097434760",null,null,"Company / Physical",false,false,"MUNI",1965,16191,1403,534,4101,292,3662,32763,95,{"$error":"#N/A"},{"$error":"#N/A"},{"$error":"#N/A"},{"$error":"#N/A"},{"$error":"#N/A"},{"$error":"#N/A"},{"$error":"#N/A"},{"$error":"#N/A"},{"$error":"#N/A"},{"$error":"#N/A"},{"$error":"#N/A"},{"$error":"#N/A"}]
[16900,"SEGUIN ELECTRIC SYSTEM",null,"SEGUIN ELECTRIC SYSTEM","RICK CORTES","ASSISTANT CITY MANAGER","210 E  GONZALES","P O  BOX 591","SEGUIN","TX","78156","8303793212","8304012401","8304012499",null,"utility@seguintexas.gov","Company / Physical",false,false,"MUNI",9152,83207,6692,10574,100262,1297,7876,93478,13,{"$error":"#N/A"},{"$error":"#N/A"},{"$error":"#N/A"},{"$error":"#N/A"},{"$error":"#N/A"},{"$error":"#N/A"},{"$error":"#N/A"},{"$error":"#N/A"},{"$error":"#N/A"},{"$error":"#N/A"},{"$error":"#N/A"},{"$error":"#N/A"}]
[16961,"SEYMOUR CITY GOVERNMENT",null,"SEYMOUR CITY GOVERNMENT","BRAD TILLEY","CITY ADMINISTRATOR","301 WASHINGTON STREET",null,"SEYMOUR","TX","76380","9408883148",null,"9408888882",null,"esimpson@cityofseymour.org","Company / Physical",false,false,"MUNI",2841,20600,1219,1105,8010,422,0,0,0,{"$error":"#N/A"},{"$error":"#N/A"},{"$error":"#N/A"},{"$error":"#N/A"},{"$error":"#N/A"},{"$error":"#N/A"},{"$error":"#N/A"},{"$error":"#N/A"},{"$error":"#N/A"},{"$error":"#N/A"},{"$error":"#N/A"},{"$error":"#N/A"}]
[17101,"SHINER LIGHT & WATER UTILITIES",null,"SHINER LIGHT & WATER UTILITIES",null,null,"810 N  AVE  E ",null,"SHINER","TX","77984","5125943362",null,"5125943566",null,null,"Company / Physical",false,false,"MUNI",1329,12791,1113,823,8378,171,1631,14613,2,{"$error":"#N/A"},{"$error":"#N/A"},{"$error":"#N/A"},{"$error":"#N/A"},{"$error":"#N/A"},{"$error":"#N/A"},{"$error":"#N/A"},{"$error":"#N/A"},{"$error":"#N/A"},{"$error":"#N/A"},{"$error":"#N/A"},{"$error":"#N/A"}]
[17453,"SMITHVILLE UTILITIES DEPARTMENT",null,"SMITHVILLE UTILITIES DEPARTMENT","TEX MIDDLEBROOK","CITY MANAGER","317 MAIN STREET",null,"SMITHVILLE","TX","78957","5122373267","5122373282","5122374549",null,"Texmid@aol.com","Company / Physical",false,false,"MUNI",2668,21616,1731,2231,16460,323,0,0,0,{"$error":"#N/A"},{"$error":"#N/A"},{"$error":"#N/A"},{"$error":"#N/A"},{"$error":"#N/A"},{"$error":"#N/A"},{"$error":"#N/A"},{"$error":"#N/A"},{"$error":"#N/A"},{"$error":"#N/A"},{"$error":"#N/A"},{"$error":"#N/A"}]
[18933,"TIMPSON LIGHT & WATER DEPARTMENT",null,"TIMPSON LIGHT & WATER DEPARTMENT",null,null,"JACOB STREET AT RAILROAD AVE ",null,"TIMPSON","TX","75975","4092542421",null,"4092542933",null,null,"Company / Physical",false,false,"MUNI",764,7411,567,691,4902,110,0,0,0,{"$error":"#N/A"},{"$error":"#N/A"},{"$error":"#N/A"},{"$error":"#N/A"},{"$error":"#N/A"},{"$error":"#N/A"},{"$error":"#N/A"},{"$error":"#N/A"},{"$error":"#N/A"},{"$error":"#N/A"},{"$error":"#N/A"},{"$error":"#N/A"}]
[19264,"TULIA MUNICIPAL POWER & LIGHT",null,"TULIA MUNICIPAL POWER & LIGHT","STEVE STOUT","PUBLIC UTILITIES DIRECTOR","127 S W  2ND","P O  BOX 847","TULIA","TX","79088","8069953547","8069953547","8069952331",null,"sstout@tulia-tx.gov","Company / Physical",true,false,"MUNI",1587.5,15877,1800,910,10532,347,231.20000000000002,2752,21,{"$error":"#N/A"},{"$error":"#N/A"},{"$error":"#N/A"},{"$error":"#N/A"},{"$error":"#N/A"},{"$error":"#N/A"},{"$error":"#N/A"},{"$error":"#N/A"},{"$error":"#N/A"},{"$error":"#N/A"},{"$error":"#N/A"},{"$error":"#N/A"}]
[19952,"WAELDER ELECTRIC DEPARTMENT",null,"WAELDER ELECTRIC DEPARTMENT",null,null,null,null,"WAELDER","TX","78959","8307887331",null,"8307887432",null,null,"Company / Physical",false,false,"MUNI",527,4762,428,633,5457,94,1075,9889,2,{"$error":"#N/A"},{"$error":"#N/A"},{"$error":"#N/A"},{"$error":"#N/A"},{"$error":"#N/A"},{"$error":"#N/A"},{"$error":"#N/A"},{"$error":"#N/A"},{"$error":"#N/A"},{"$error":"#N/A"},{"$error":"#N/A"},{"$error":"#N/A"}]
[20230,"WEATHERFORD MUNICIPAL UTILITY SYSTEM",null,"WEATHERFORD MUNICIPAL UTILITY SYSTEM","J  KRAIG KAHLER  P E ","DIRECTOR OF UTILITIES","P  O  BOX 255","303 PALO PINTO STREET","WEATHERFORD","TX","76086","8175984261","8175984000","8175984138","www.westherfordtx.gov","kkahler@weatherfordtx.gov","Company / Physical",true,false,"MUNI",19733,153171,11050,20024,160630,2042,3099,26425,4,{"$error":"#N/A"},{"$error":"#N/A"},{"$error":"#N/A"},{"$error":"#N/A"},{"$error":"#N/A"},{"$error":"#N/A"},{"$error":"#N/A"},{"$error":"#N/A"},{"$error":"#N/A"},{"$error":"#N/A"},{"$error":"#N/A"},{"$error":"#N/A"}]
[20331,"WEIMAR ELECTRIC UTILITIES",null,"WEIMAR ELECTRIC UTILITIES","SHAWNA WILIE",null,"P O  BOX 67",null,"WEIMAR","TX","78962","9797258554","9797258554","9797258488","weimartexas.org","apclerk@weimartexas.org","Company / Physical",false,false,"MUNI",1478,11777,963,1332,12080,207,760,7450,1,{"$error":"#N/A"},{"$error":"#N/A"},{"$error":"#N/A"},{"$error":"#N/A"},{"$error":"#N/A"},{"$error":"#N/A"},{"$error":"#N/A"},{"$error":"#N/A"},{"$error":"#N/A"},{"$error":"#N/A"},{"$error":"#N/A"},{"$error":"#N/A"}]
[20588,"WHITESBORO ELECTRIC UTILITY",null,"WHITESBORO ELECTRIC UTILITY",null,null,"112 W  MAIN ST ",null,"WHITESBORO","TX","76273","9035643311",null,"9035646015",null,null,"Company / Physical",false,false,"MUNI",2254,18668,1644,453,3578,249,1248,8929,73,{"$error":"#N/A"},{"$error":"#N/A"},{"$error":"#N/A"},{"$error":"#N/A"},{"$error":"#N/A"},{"$error":"#N/A"},{"$error":"#N/A"},{"$error":"#N/A"},{"$error":"#N/A"},{"$error":"#N/A"},{"$error":"#N/A"},{"$error":"#N/A"}]
[21108,"YOAKUM MUNICIPAL UTILITIES",null,"YOAKUM MUNICIPAL UTILITIES","CALVIN COOK","CITY MANAGER","808 HWY 77A SOUTH",null,"YOAKUM","TX","77995","3612936321","3612936322","3612933318","www.cityofyoakum.org","ccook@cityofyoakum.org","Company / Physical",false,false,"MUNI",3479.3,30223,2467,2809.2000000000003,24112,414,1823.2,17945,3,{"$error":"#N/A"},{"$error":"#N/A"},{"$error":"#N/A"},{"$error":"#N/A"},{"$error":"#N/A"},{"$error":"#N/A"},{"$error":"#N/A"},{"$error":"#N/A"},{"$error":"#N/A"},{"$error":"#N/A"},{"$error":"#N/A"},{"$error":"#N/A"}]
[null,1,{"$f":"B76+1","v":2},{"$f":"C76+1","v":3},4,5,6,7,8,9,10,11,12,13,14,15,16,17,18,19,20,21,22,23,24,25,26,27,28,29,30,31,32,33,34,35,36,37,38,39,40]

{"sheet":"EIA file3","index":22,"n_rows":595,"n_cols":68,"rows_kept":595,"cut":false,"hidden":true,"merged":[]}
["YEAR","UTILITY_ID","UTILITY_NAME","OWNERSHIP","NERC_LOCATION","RETAIL_SALES","SALES_FOR_RESALE","ENERGYEFFINCRES","ENERGYEFFINCCOMM","ENERGYEFFINCIND","ENERGYEFFINCOTH","ENERGYEFFANNRES","ENERGYEFFANNCOM","ENERGYEFFANNIND","ENERGYEFFANNOTH","EEFACTUALPEAKINCRES","EEFACTUALPEAKINCCOM","EEFACTUALPEAKINCIND","EEFACTUALPEAKINCOTH","EEFACTUALPEAKANNRES","EEFACTUALPEAKANNCOM","EEFACTUALPEAKANNIND","EEFACTUALPEAKANNOTH","LOADMNGEFFINCRES","LOADMNGEFFINCCOM","LOADMNGEFFINCIND","LOADMNGEFFINCOTH","LOADMNGEFFANNRES","LOADMNGEFFANNCOM","LOADMNGEFFANNIND","LOADMNGEFFANNOTH","LMPOTENTPEAKREDINCRES","LMPOTENTPEAKREDINCCOM","LMPOTENTPEAKREDINCIND","LMPOTENTPEAKREDINCOTH","LMPOTENTPEAKREDANNRES","LMPOTENTPEAKREDANNCOM","LMPOTENTPEAKREDANNIND","LMPOTENTPEAKREDANNOTH","LMACTUALPEAKREDINCRES","LMACTUALPEAKREDINCCOM","LMACTUALPEAKREDINCIND","LMACTUALPEAKREDINCOTH","LMACTUALPEAKREDANNRES","LMACTUALPEAKREDANNCOM","LMACTUALPEAKREDANNIND","LMACTUALPEAKREDANNOTH","DIRECTCOSTEEF","INCENTIVEEEF","DIRECTCOSTLM","INCENTIVELM","INDIRECTCOST","TOTALCOST","DEMAND_SIDE_MANAGEMENT","REPORTED_AS_OTHER_COMP","INDEPENDENT_VERIFIY","MAJORCHANGES","PRICERESPONSIVE","PRICERESPRES","PRICERESPCOM","PRICERESPIND","PRICERESPOTH","TIMERESPONSIVE","TIMERESPRES","TIMERESPCOM","TIMERESPIND","TIMERESPTRANS","DATA_STATUS"]
[2009,84,"A & N Electric Coop","Cooperative","RFC",641797,null,null,null,null,null,1200,null,null,null,null,null,null,null,null,null,null,null,null,null,null,null,null,null,null,null,null,null,null,null,2,null,null,null,null,null,null,null,2,null,null,null,null,null,13,null,13,26,1,null,null,null,"Y",null,null,null,null,"Y",null,33,1,null,"F"]
[2009,108,"Adams-Columbia Electric Coop","Cooperative","MRO",467826,77,null,null,null,null,604,2321,null,null,null,null,null,null,null,null,null,null,null,null,null,null,null,null,null,null,null,null,null,null,20,47,null,null,null,null,null,null,4,10,null,null,330,null,null,null,null,330,1,null,"Y",null,"Y",3800,null,1,null,"Y",401,69,714,null,"F"]
[2009,118,"Adams Rural Electric Coop, Inc","Cooperative","RFC",116657,null,1,null,null,null,null,null,null,null,null,null,null,null,null,null,null,null,null,null,null,null,null,null,null,null,null,null,null,null,null,null,null,null,null,null,null,null,null,null,null,null,null,null,null,null,null,36,1,null,null,null,"Y",1495,null,null,null,"N",null,null,null,null,"F"]
[2009,122,"Village of Arcade","Municipal","NPCC",156516,null,null,null,null,null,null,null,null,null,null,null,null,null,null,null,null,null,null,null,null,null,null,null,null,null,null,null,null,null,null,null,null,null,null,null,null,null,null,null,null,null,120,null,null,null,10,130,1,null,null,null,"N",null,null,null,null,"N",null,null,null,null,"F"]
[2009,182,"City of Akron","Municipal","MRO",13881,null,null,null,null,null,null,null,null,null,null,null,null,null,null,null,null,null,null,null,null,null,null,null,null,null,null,null,null,null,null,null,null,null,null,null,null,null,null,null,null,null,null,null,null,null,null,18,1,"Heartland Consumer Power Distr",null,null,"N",null,null,null,null,"N",null,null,null,null,"F"]
[2009,189,"PowerSouth Energy Cooperative","Cooperative","SERC",0,8090453,3738,null,null,null,238348,null,null,null,1,null,null,null,32,null,null,null,null,null,null,null,null,null,null,null,null,null,null,null,null,null,34,null,null,null,null,null,null,null,null,null,367,null,null,null,1209,1576,1,null,null,null,"Y",4005,null,4,null,"N",null,null,null,null,"F"]
[2009,195,"Alabama Power Co","Investor Owned","SERC",51030063,20339303,14409,"5256",null,null,14913,88301,null,null,5,"5",null,null,7,"84",null,null,"16968","4411","0",null,"207993","88921","284628",null,"5","0","0",null,31,91,1138,null,"5",null,"0",null,25,62,"0",null,1331,null,38552,null,16374,56257,1,null,null,null,"Y",17661,14666,1321,null,"N",null,null,null,null,"F"]
[2009,198,"City of Alton","Municipal","MRO",9971,null,1,"18","0","0",null,null,null,null,0,"0","0","0",null,null,null,null,null,null,null,null,null,null,null,null,null,null,null,null,null,null,null,null,null,null,null,null,null,null,null,null,null,null,null,null,null,3,1,null,null,"Y","N",null,null,null,null,"N",null,null,null,null,"F"]
[2009,207,"City of Alameda","Municipal","WECC",387677,null,493,"1902",null,null,4699,9999,null,null,0,"0",null,null,2,"2",null,null,null,null,null,null,null,null,null,null,null,null,null,null,null,null,null,null,null,null,null,null,null,null,null,null,216,"149",null,null,145,510,1,null,null,null,"N",null,null,null,null,"N",null,null,null,null,"F"]
[2009,213,"Alaska Electric Light&Power Co","Investor Owned","AK",346506,null,null,null,null,null,null,null,null,null,null,null,null,null,null,null,null,null,null,null,null,null,"600","9105","38868",null,null,null,null,null,5,14,6,null,null,null,null,null,2,13,"6",null,null,null,33,"66",34,133,1,null,null,null,"Y",2443,49,1,null,"N",null,null,null,null,"F"]
[2009,295,"City of Alexandria","Municipal","MRO",270164,null,null,null,null,null,null,null,"2252",null,null,null,null,null,null,null,"1",null,null,null,null,null,null,null,null,null,null,null,null,null,5,null,null,null,null,null,null,null,5,null,null,null,200,null,null,null,null,200,1,null,null,null,"N",null,null,null,null,"N",null,null,null,null,"F"]
[2009,307,"Algoma Utility Comm","Municipal","MRO",41720,null,null,null,null,null,null,null,null,null,null,null,null,null,null,null,null,null,null,null,null,null,null,null,null,null,null,null,null,null,null,null,null,null,null,null,null,null,null,null,null,null,null,null,null,null,null,null,1,"WPPI ENERGY",null,"N","N",null,null,null,null,"Y",0,3,2,0,"F"]
[2009,309,"City of Algona","Municipal","MRO",99234,45952,188,"53","0","0",null,null,null,null,0,"0","0","0",null,null,null,null,null,null,null,null,null,null,null,null,null,null,null,null,null,null,null,null,null,null,null,null,null,null,null,null,null,null,null,null,null,165,1,null,null,null,"N",null,null,null,null,"N",null,null,null,null,"F"]
[2009,329,"Allamakee-Clayton El Coop, Inc","Cooperative","MRO",126296,null,326,null,"451",null,1912,null,"887",null,null,null,null,null,1,null,null,null,"41",null,null,null,"2949",null,null,null,null,null,null,null,6,null,1,null,null,null,null,null,3,null,"1",null,null,null,null,null,null,380,1,null,null,null,"Y",3578,36,null,null,"N",null,null,null,null,"F"]
[2009,332,"Allegheny Electric Coop Inc","Cooperative","RFC",null,3166476,null,null,null,null,null,null,null,null,null,null,null,null,null,null,null,null,null,null,null,null,null,null,null,null,null,null,null,null,null,null,null,null,null,null,null,null,null,null,null,null,null,null,1389,null,null,1389,1,null,null,null,"N",null,null,null,null,"N",null,null,null,null,"F"]
[2009,367,"City of Alliance","Municipal","MRO",110414,null,null,null,null,null,null,null,null,null,null,null,null,null,null,null,null,null,"2","9",null,null,null,null,null,null,"1","12",null,null,null,null,null,null,"1","3",null,null,null,null,null,null,null,null,null,null,null,11,1,null,null,null,"N",null,null,null,null,"N",null,null,null,null,"F"]
[2009,405,"City of Alta","Municipal","MRO",16141,0,95,"0","0","0",null,null,null,null,0,"0","0","0",null,null,null,null,"0","0","0","0",null,null,null,null,"0","0","0","0",null,null,null,null,"0","0","0","0",null,null,null,null,null,null,null,null,null,20,1,null,null,null,"N",null,null,null,null,"N",null,null,null,null,"F"]
[2009,554,"Ames City of","Municipal","MRO",552592,60632,906,"1488",null,null,1304,2057,null,null,1,"1",null,null,1,"1",null,null,"1","0",null,null,null,null,null,null,"12","0",null,null,null,null,null,null,"3","0",null,null,null,null,null,null,140,"480",166,"170",15,971,1,null,null,null,"Y",8330,170,null,null,"N",null,null,null,null,"F"]
[2009,562,"Amicalola Electric Member Corp","Cooperative","SERC",683982,null,2,null,null,null,15,null,null,null,1,null,null,null,1,null,null,null,null,null,null,null,null,null,null,null,null,null,null,null,null,null,null,null,null,null,null,null,null,null,null,null,61,null,null,null,null,61,1,null,null,null,"N",null,null,null,null,"N",null,null,null,null,"F"]
[2009,590,"City of Anaheim","Municipal","WECC",2478849,745446,16681,"6720","3162",null,54982,101450,"43760",null,8,"1","1",null,38,"31","13",null,null,"16","14",null,null,"16","14",null,null,null,null,null,null,null,null,null,null,null,null,null,null,null,null,null,3018,"1516",null,null,788,5322,1,null,null,null,"N",null,null,null,null,"N",null,7,48,null,"F"]
[2009,691,"City of Anoka","Municipal","MRO",251135,null,61,"694",null,null,610,6449,null,null,0,"0",null,null,1,"1",null,null,null,null,null,null,"0","0",null,null,null,null,null,null,2,3,null,null,null,null,null,null,0,0,null,null,92,"84",62,"70",2,310,1,null,null,null,"N",null,null,null,null,"N",null,null,null,null,"F"]
[2009,723,"City of Aplington","Municipal","MRO",7286,null,null,null,null,null,null,null,null,null,null,null,null,null,null,null,null,null,null,null,null,null,null,null,null,null,null,null,null,null,null,null,null,null,null,null,null,null,null,null,null,null,null,null,null,null,null,1,1,null,null,null,"N",null,null,null,null,"N",null,null,null,null,"F"]
[2009,733,"Appalachian Power Co","Investor Owned","RFC",30414469,13858722,null,null,null,null,null,null,null,null,null,null,null,null,null,null,null,null,null,null,null,null,null,null,null,null,null,null,"16",null,null,null,257,null,null,null,"16",null,null,null,"45",null,0,"0",0,"0",0,0,1,"N/A",null,null,"Y",0,0,4,0,"Y",1798,421,29,0,"F"]
[2009,737,"Aguila Irrigation District","Political Subdivision","WECC",26447,null,null,null,null,null,null,null,null,null,null,null,null,null,null,null,null,null,null,null,null,null,null,null,null,null,null,null,null,null,null,null,null,null,null,null,null,null,null,null,null,null,null,null,null,null,null,1,1,null,null,null,"N",null,null,null,null,"N",null,null,null,null,"F"]
[2009,803,"Arizona Public Service Co","Investor Owned","WECC",28173296,4106209,104336,"104581",null,null,104336,104581,null,null,22,"12",null,null,22,"12",null,null,null,null,null,null,null,null,null,null,null,null,null,null,null,null,null,null,null,null,null,null,null,null,null,null,8332,"13328",null,null,3902,25562,1,null,null,null,"N",null,null,null,null,"Y",500238,null,null,null,"F"]
[2009,807,"Arkansas Electric Coop Corp","Cooperative","SPP",null,12184738,null,null,null,null,null,null,null,null,null,null,null,null,null,null,null,null,null,null,null,null,null,null,null,null,null,null,null,null,null,null,565,null,null,null,null,null,null,null,"192",null,null,null,null,null,null,0,1,null,null,null,"N",null,null,null,null,"N",null,null,null,null,"F"]
[2009,814,"Entergy Arkansas Inc","Investor Owned","SERC",19926337,11610812,9210,"1569","37271",null,9210,1569,"37271",null,2,"1","7",null,2,"1","7",null,null,null,null,null,null,null,null,null,null,null,"9",null,null,null,9,null,null,null,"9",null,null,null,"9",null,778,"4158",226,"619",null,5781,1,null,null,null,"N",null,null,null,null,"N",null,null,null,null,"F"]
[2009,828,"City of Arlington","Municipal","MRO",18864,0,null,null,null,null,null,null,null,null,null,null,null,null,null,null,null,null,null,null,null,null,null,null,null,null,null,null,null,null,null,null,null,null,null,null,null,null,null,null,null,null,null,null,null,null,null,21,1,null,null,null,"N",null,null,null,null,"N",null,null,null,null,"F"]
[2009,918,"City of Aspen","Municipal","WECC",50667,null,null,null,null,null,null,null,null,null,null,null,null,null,null,null,null,null,null,null,null,null,null,null,null,null,null,null,null,null,null,null,null,null,null,null,null,null,null,null,null,null,null,null,null,null,null,600,1,null,null,"N","N",null,null,null,null,"N",null,null,null,null,"F"]
[2009,924,"Associated Electric Coop, Inc","Cooperative","SERC",null,22352129,null,null,null,null,13444,6310,null,null,null,null,null,null,12,"1",null,null,null,null,null,null,null,null,null,null,null,null,null,null,null,null,null,null,null,null,null,null,null,null,null,null,5798,null,null,null,null,5798,1,null,"Y",null,"N",null,null,null,null,"N",null,null,null,null,"F"]
[2009,925,"Ashley Chicot Elec Coop, Inc","Cooperative","SERC",79318,null,null,null,null,null,null,null,null,null,null,null,null,null,null,null,null,null,null,null,null,null,null,null,null,null,null,null,"4",null,null,null,null,null,null,null,"3",null,null,null,null,null,null,null,null,null,null,25,1,"N/A",null,null,"N",null,null,null,null,"N",null,null,null,null,"F"]
[2009,963,"Atlantic City Electric Co","Investor Owned","RFC",7058241,2798997,null,null,null,null,null,null,null,null,null,null,null,null,null,null,null,null,null,null,null,null,null,null,null,null,null,null,null,null,null,null,null,null,null,null,null,null,null,null,null,null,22003,null,null,null,null,22003,1,null,null,null,"N",null,null,null,null,"N",null,null,null,null,"F"]
[2009,965,"Atlantic Municipal Utilities","Municipal","MRO",101336,55485,141,"260",null,null,null,null,null,null,0,"0",null,null,null,null,null,null,null,null,null,null,null,null,null,null,null,null,null,null,null,null,null,null,null,null,null,null,null,null,null,null,13,"70",null,null,null,83,1,null,"Y",null,"N",null,null,null,null,"N",null,null,null,null,"F"]
[2009,1009,"Austin City of","Municipal","MRO",325422,null,633,"752","514",null,null,null,null,null,1,"0","0",null,null,null,null,null,null,null,null,null,"591","0","0",null,null,null,null,null,3,1,0,null,null,null,null,null,3,1,"0",null,51,"149",null,"24",75,299,1,null,null,null,"Y",0,5,0,null,"Y",0,9,0,null,"F"]
[2009,1015,"Austin Energy","Municipal","TRE",12035686,429142,48300,"38844","15130",null,307000,351100,"137000",null,20,"15","6",null,196,"107","42",null,"87","47","18",null,"1580","1260","491",null,"5","5","2",null,92,33,13,null,"5","5","2",null,92,33,"13",null,2510,"11600",827,"3300",975,19212,1,null,null,"N","Y",null,null,null,null,"Y",null,252,57,null,"F"]
[2009,1050,"City of Azusa","Municipal","WECC",253117,426283,null,null,null,null,675,1758,null,null,null,null,null,null,null,null,null,null,null,null,null,null,null,null,null,null,"1","0",null,null,null,null,null,null,"1","0",null,null,null,null,null,null,null,"440",null,null,111,551,1,null,null,null,"N",null,null,null,null,"N",null,null,null,null,"F"]
[2009,1062,"BARC Electric Coop Inc","Cooperative","SERC",164556,null,null,null,null,null,null,null,null,null,null,null,null,null,null,null,null,null,"2524",null,null,null,null,null,null,null,"5",null,null,null,null,null,null,null,"5",null,null,null,null,null,null,null,null,null,53,null,12,65,1,null,null,null,"N",null,null,null,null,"N",null,null,null,null,"F"]
[2009,1080,"City of Badger","Municipal","MRO",1599,null,null,null,null,null,null,null,null,null,null,null,null,null,null,null,null,null,null,null,null,null,null,null,null,null,"1",null,null,null,null,null,null,null,"1",null,null,null,null,null,null,null,null,null,null,null,null,4,1,null,null,null,"N",null,null,null,null,"N",null,null,null,null,"F"]
[2009,1167,"Baltimore Gas & Electric Co","Investor Owned","RFC",16608614,null,72204,"19077","0","0",163553,473266,"0","0",11,"3","0","0",41,"92","0","0","0","0","0","0","265","4","0","0","0","0","0","0",282,8,0,"0","0","0","0","0",0,0,"0","0",14710,"10126",41374,"19041",2325,87576,1,null,"Y","N","Y",323288,5346,0,0,"Y",70046,12379,0,0,"F"]
[2009,1233,"City of Barnesville","Municipal","MRO",21980,null,null,null,null,null,null,null,null,null,null,null,null,null,null,null,null,null,null,null,null,null,null,null,null,null,null,null,null,null,null,null,null,null,null,null,null,null,null,null,null,null,null,null,null,null,null,24,1,null,null,null,"Y",763,58,0,null,"N",null,null,null,null,"F"]
[2009,1251,"Barron Electric Coop","Cooperative","MRO",282136,null,2220,null,"350",null,4830,null,"714",null,0,null,"0",null,1,null,"0",null,"25",null,"0",null,"1932",null,"0",null,"0",null,"0",null,9,null,18,null,"0",null,"0",null,9,null,"1",null,3,"79",330,"39",12,463,1,null,null,null,"N",null,null,null,null,"N",null,null,null,null,"F"]
[2009,1367,"Bayfield Electric Coop, Inc","Cooperative","MRO",82680,null,16,null,"1",null,1341,null,"135",null,0,null,"0",null,0,null,"0",null,"5",null,null,null,"3682",null,null,null,"0",null,null,null,5,null,3,null,"0",null,null,null,2,null,"1",null,null,null,null,null,null,24,1,null,null,null,"N",null,null,null,null,"N",null,null,null,null,"F"]
[2009,1427,"Beatrice City of","Municipal","MRO",171236,null,null,null,null,null,null,null,null,null,null,null,null,null,null,null,null,null,null,null,null,null,null,"1",null,null,null,null,null,null,5,1,null,null,null,null,null,null,5,1,null,null,null,null,90,"65",null,155,1,null,null,null,"Y",null,94,null,null,"N",null,null,null,null,"F"]
[2009,1573,"City of Benson","Municipal","MRO",37946,61,null,null,null,null,null,null,null,null,null,null,null,null,null,null,null,null,null,null,null,null,null,null,null,null,null,null,null,null,null,null,null,null,null,null,null,null,null,null,null,null,null,null,null,null,null,141,1,null,null,null,"N",null,null,null,null,"N",null,null,null,null,"F"]
[2009,1579,"PUD No 1 of Benton County","Political Subdivision","WECC",1726341,667758,3,"2",null,null,null,null,null,null,null,null,null,null,null,null,null,null,null,null,null,null,null,null,null,null,null,null,null,null,null,null,null,null,null,null,null,null,null,null,null,null,180,"836",null,null,null,1016,1,null,null,null,"N",null,null,null,null,"N",null,null,null,null,"F"]
[2009,1613,"Berkeley Electric Coop Inc","Cooperative","SERC",1602936,null,20,null,null,null,11352,2975,null,null,1,null,null,null,12,"2",null,null,"4",null,null,null,null,null,null,null,"1",null,null,null,17,null,null,null,null,null,null,null,null,null,null,null,33,"540",222,"201",null,996,1,null,null,null,"N",null,null,null,null,"Y",null,10,null,null,"F"]
[2009,1698,"City of Big Stone City","Municipal","MRO",12374,null,null,null,null,null,null,null,null,null,null,null,null,null,null,null,null,null,null,null,null,null,null,null,null,null,null,null,null,null,null,null,null,null,null,null,null,null,null,null,null,null,null,null,null,null,null,5,1,null,null,null,"N",null,null,null,null,"N",null,null,null,null,"F"]
[2009,1763,"Black River Electric Coop, Inc","Cooperative","SERC",661252,null,2251,null,null,null,null,null,null,null,2,null,null,null,7,null,null,null,null,null,null,null,null,null,null,null,null,null,null,null,1,null,null,null,null,null,null,null,1,null,null,null,73,"7",null,null,61,141,1,null,null,null,"N",null,null,null,null,"N",null,null,null,null,"F"]
[2009,1871,"City of Blooming Prairie","Municipal","MRO",22804,null,null,null,null,null,null,null,null,null,null,null,null,null,null,null,null,null,null,null,null,null,null,null,null,null,null,null,null,null,null,null,null,null,null,null,null,null,null,null,null,null,null,null,null,null,null,8,1,"SOUTHERN MINNESOTA MUNICIPAL P",null,null,"N",null,null,null,null,"N",null,null,null,null,"F"]
[2009,1970,"Village of Boonville","Municipal","NPCC",76446,null,null,null,null,null,null,null,null,null,null,null,null,null,null,null,null,null,null,null,null,null,null,null,null,null,null,null,null,null,null,null,null,null,null,null,null,null,null,null,null,null,null,null,null,null,null,1,1,null,null,null,"N",null,null,null,null,"N",null,null,null,null,"F"]
[2009,2008,"City of Boulder","Municipal","WECC",155096,null,147,null,null,null,1285,37,null,null,0,null,null,null,1,null,null,null,null,null,null,null,null,null,null,null,null,null,null,null,null,null,null,null,null,null,null,null,null,null,null,null,10,"20",null,null,100,130,1,null,null,null,"N",null,null,null,null,"Y",null,2,null,null,"F"]
[2009,2089,"Bozrah Light & Power Company","Municipal","NPCC",191941,null,null,null,null,null,null,null,null,null,null,null,null,null,null,null,null,null,null,null,null,null,null,null,null,null,null,null,null,null,null,null,null,null,null,null,null,null,null,null,null,null,15,null,null,null,null,15,1,null,null,null,"N",null,null,null,null,"N",null,null,null,null,"F"]
[2009,2172,"Brazos Electric Power Coop Inc","Cooperative","TRE",null,12890510,null,null,null,null,null,null,null,null,null,null,null,null,null,null,null,null,null,null,null,null,null,null,"44",null,null,null,null,null,null,null,89,null,null,null,null,null,null,null,"13",null,null,null,43,"33",null,76,1,null,"Y",null,"N",null,null,null,null,"N",null,null,null,null,"F"]
[2009,2182,"City of Breckenridge","Municipal","MRO",42531,null,1,"1",null,null,1,1,null,null,1,"1",null,null,1,"1",null,null,"1",null,null,null,"1",null,null,null,"1",null,null,null,1,null,null,null,null,null,null,null,null,null,null,null,null,null,null,null,null,48,1,null,null,null,"Y",null,null,null,null,"N",null,null,null,null,"F"]
[2009,2183,"City of Breda","Municipal","MRO",4535,null,null,null,null,null,null,null,null,null,null,null,null,null,null,null,null,null,"4","1","0","0",null,null,null,null,"0","0","0","0",null,null,null,null,null,null,null,null,null,null,null,null,null,null,null,null,null,2,1,null,null,null,"Y",200,43,5,null,"N",null,null,null,null,"F"]
[2009,2287,"City of Brooklyn","Municipal","MRO",12311,0,23,"3",null,null,null,null,null,null,null,null,null,null,null,null,null,null,null,null,null,null,null,null,null,null,null,null,null,null,null,null,null,null,null,null,null,null,null,null,null,null,null,null,null,null,null,21,1,null,null,null,"N",null,null,null,null,"N",null,null,null,null,"F"]
[2009,2442,"City of Bryan","Municipal","TRE",1171580,656803,1671,"11",null,null,31158,2622,null,null,0,"0",null,null,19,"1",null,null,null,null,"17",null,"9",null,"67",null,null,null,"0",null,null,null,3,null,null,null,"0",null,null,null,"3",null,79,"207",2,null,10,298,1,null,null,null,"N",null,null,null,null,"N",null,1,1,null,"F"]
[2009,2469,"Buckeye Water C&D District","Political Subdivision","WECC",6064,null,null,null,null,null,null,null,null,null,null,null,null,null,null,null,null,null,null,null,null,null,null,null,null,null,null,null,null,null,null,null,null,null,null,null,null,null,null,null,null,null,null,null,null,null,null,3,1,null,null,null,"N",null,null,null,null,"N",null,null,null,null,"F"]
[2009,2507,"City of Burbank Water and Power","Municipal","WECC",1183987,1985884,null,null,null,null,3455,4974,null,null,null,null,null,null,3,"3",null,null,null,null,null,null,null,"80",null,null,null,null,null,null,null,0,null,null,null,null,null,null,null,null,null,null,1732,"1273",null,"380",null,3385,1,null,null,null,"N",null,null,null,null,"Y",null,null,135,null,"F"]
[2009,2548,"City of Burlington-Electric","Municipal","NPCC",346632,null,1698,"3675",null,null,null,null,null,null,null,null,null,null,null,null,null,null,null,null,null,null,null,null,null,null,null,null,null,null,null,null,null,null,null,null,null,null,null,null,null,null,1564,null,null,null,null,1564,1,null,null,null,"N",null,null,null,null,"Y",37,10,13,null,"F"]
[2009,2599,"Burt County Public Power Dist","Political Subdivision","MRO",84639,3938,null,null,null,null,null,null,null,null,null,null,"10",null,null,null,null,null,null,null,null,null,null,null,null,null,null,null,"10",null,null,null,null,null,null,null,"10",null,null,null,null,null,null,"5",null,null,null,5,1,null,null,null,"N",null,null,null,null,"N",null,null,null,null,"F"]
[2009,2600,"City of Burt","Municipal","MRO",3558,null,1,"2",null,null,null,null,null,null,null,null,null,null,null,null,null,null,null,null,null,null,null,null,null,null,null,null,null,null,null,null,null,null,null,null,null,null,null,null,null,null,null,null,null,null,null,1,1,null,null,null,"N",null,null,null,null,"N",null,null,null,null,"F"]
[2009,2678,"C & L Electric Coop Corp","Cooperative","SPP",333679,null,null,null,null,null,null,null,null,null,null,null,null,null,null,null,null,null,null,null,null,null,null,null,null,null,null,null,null,null,null,3,null,null,null,null,null,null,null,1,null,null,null,null,2,"39",null,41,1,null,null,null,"N",null,null,null,null,"N",null,null,null,null,"F"]
[2009,2890,"City of Camden","Municipal","SERC",180705,null,null,null,null,null,null,null,null,null,null,null,null,null,null,null,null,null,null,null,null,null,"1080","720",null,null,null,null,null,null,9,6,null,null,null,null,null,null,9,6,null,null,2,null,null,null,10,12,1,null,null,null,"N",null,null,null,null,"N",null,null,null,null,"F"]
[2009,2985,"Capital Electric Coop, Inc","Cooperative","MRO",279144,null,null,null,null,null,null,null,null,null,null,null,null,null,null,null,null,null,null,null,null,null,null,null,null,null,null,null,null,null,1,2,null,null,null,null,null,null,1,2,null,null,307,null,null,null,null,307,1,null,null,null,"Y",667,31,null,null,"N",null,null,null,null,"F"]
[2009,3029,"City of Carlisle","Municipal","MRO",16998,null,0,"0","0","0",null,null,null,null,0,"0","0","0",null,null,null,null,null,null,null,null,null,null,null,null,null,null,null,null,null,null,null,null,null,null,null,null,null,null,null,null,null,null,null,null,null,6,1,null,null,null,"N",null,null,null,null,"N",null,null,null,null,"F"]
[2009,3046,"Progress Energy Carolinas Inc","Investor Owned","SERC",42980718,13965922,5263,"13562",null,null,12197,13562,null,null,3,"3",null,null,459,"3",null,null,null,null,null,null,null,null,null,null,"32","51","12",null,64,351,31,null,null,null,null,null,null,null,null,null,4472,"3277",9160,"291",3819,21019,1,null,null,null,"Y",11171,2,79,null,"Y",28933,23347,null,null,"F"]
[2009,3081,"Carroll Electric Member Corp","Cooperative","SERC",1024544,null,null,null,null,null,null,null,null,null,null,null,null,null,null,null,null,null,null,null,null,null,null,null,null,null,"1",null,null,null,25,null,8,null,"0",null,null,null,7,null,"6",null,null,null,20,"69",3,92,1,null,null,null,"N",null,null,null,null,"N",null,null,null,null,"F"]
[2009,3093,"Carroll Electric Coop Corp","Cooperative","SPP",1656619,null,null,null,null,null,null,null,null,null,null,null,null,null,null,null,null,null,null,null,"68",null,"68","1",null,null,null,null,null,null,31,1,null,null,null,null,null,null,5,null,null,null,null,null,44,null,2,46,1,null,null,null,"Y",7047,12,3,null,"N",null,null,null,null,"F"]
[2009,3137,"Cascade Municipal Utilities","Municipal","MRO",16411,null,38,"25","0","0",null,null,null,null,0,"0","0","0",null,null,null,null,null,null,null,null,null,null,null,null,null,null,null,null,null,null,null,null,null,null,null,null,null,null,null,null,null,null,null,null,null,29,1,null,null,null,"N",null,null,null,null,"N",null,null,null,null,"F"]
[2009,3186,"City of Cavalier","Municipal","MRO",17894,null,null,null,null,null,null,null,null,null,null,null,null,null,null,null,null,null,null,null,null,null,null,null,null,null,null,null,null,null,null,null,null,null,null,null,null,null,null,null,null,null,null,null,null,null,null,4,1,null,null,null,"N",null,null,null,null,"N",null,null,null,null,"F"]
[2009,3203,"Cedar Falls Utilities","Municipal","MRO",456492,153633,1162,"1282",null,null,6664,4953,null,null,0,"0",null,null,4,"1",null,null,null,null,null,null,null,null,null,null,null,null,null,null,null,null,null,null,null,null,null,null,null,null,null,null,206,"384",null,null,27,617,1,null,null,"Y","N",null,null,null,null,"N",null,null,null,null,"F"]
[2009,3208,"Cedarburg Light & Water Comm","Municipal","MRO",106452,null,null,null,null,null,null,null,null,null,null,null,null,null,null,null,null,null,null,null,null,null,null,null,null,null,null,null,null,null,null,null,null,null,null,null,null,null,null,null,null,null,null,null,null,null,null,null,1,"WPPI ENERGY",null,"N","N",null,null,null,null,"Y",59,25,4,0,"F"]
[2009,3235,"City of Central City","Municipal","MRO",32250,null,null,null,null,null,null,null,null,null,null,null,null,null,null,null,null,null,null,null,null,null,null,null,null,null,null,null,null,null,null,null,null,null,null,null,null,null,null,null,null,null,null,null,null,null,null,23,1,null,null,null,"N",null,null,null,null,"N",null,null,null,null,"F"]
[2009,3248,"Central Georgia El Member Corp","Cooperative","SERC",1073326,null,1,null,null,null,5,null,null,null,1,null,null,null,3,null,null,null,"3",null,null,null,"180",null,null,null,"0",null,null,null,10,null,null,null,"0",null,null,null,6,null,null,null,37,"25",102,"134",11,309,1,null,null,null,"N",null,null,null,null,"Y",null,4,null,null,"F"]
[2009,3253,"Central Illinois Pub Serv Co","Investor Owned","RFC",5920733,203,null,null,null,null,38953,30651,"30651",null,null,null,null,null,3,"7","7",null,"53",null,null,null,null,null,null,null,"1",null,null,null,null,null,null,null,"1",null,null,null,null,null,null,null,6403,"6603",925,null,null,13931,1,null,"Y","Y","N",null,null,null,null,"Y",1409,186,23,0,"F"]
[2009,3258,"Central Iowa Power Cooperative","Cooperative","MRO",null,2663699,2287,"725","173",null,11811,2732,"889",null,1,null,null,null,9,null,null,null,null,null,null,null,null,null,null,null,"4",null,"1",null,44,null,5,null,null,null,"1",null,null,null,"5",null,933,"2693",null,null,462,4088,1,null,null,null,"Y",null,2,15,null,"N",null,null,null,null,"F"]
[2009,3266,"Central Maine Power Co","Investor Owned","NPCC",311,1063169,918,"0",null,null,null,null,null,null,0,"0",null,null,null,null,null,null,null,null,null,null,null,null,null,null,null,null,null,null,null,null,null,null,null,null,null,null,null,null,null,null,1020,null,null,null,18,1038,1,null,null,null,"N",null,null,null,null,"Y",7076,739,151,null,"F"]
[2009,3278,"AEP Texas Central Company","Investor Owned","TRE",null,null,40635,"22338",null,null,269832,159532,null,null,13,"6",null,null,100,"57",null,null,null,"20",null,null,null,null,null,null,null,null,null,null,null,null,null,null,null,"8",null,null,null,null,null,null,null,"11063",null,"229",1293,12585,1,null,null,"Y","Y",null,6,null,null,"N",null,null,null,null,"F"]
[2009,3279,"Central Power Elec Coop, Inc","Cooperative","MRO",null,1736192,null,null,null,null,null,null,null,null,null,null,null,null,null,null,null,null,"1",null,"1",null,"2424","173","6211",null,"0","0","0",null,12,2,15,null,"0","0","0",null,12,2,"15",null,122,null,null,"205",21,348,1,null,null,null,"N",null,null,null,null,"N",null,null,null,null,"F"]
[2009,3287,"Central Valley Elec Coop, Inc","Cooperative","SPP",706597,null,4,null,null,null,null,null,null,null,null,null,null,null,null,null,null,null,null,null,null,null,null,null,null,null,null,null,null,null,null,null,null,null,null,null,null,null,null,null,null,null,null,"0",null,null,null,0,1,null,null,null,"Y",null,null,3,null,"N",null,null,null,null,"F"]
[2009,3292,"Central Vermont Pub Serv Corp","Investor Owned","NPCC",2177762,840536,null,null,null,null,null,2789,null,null,null,null,null,null,1,"1","0",null,null,null,null,null,null,"40",null,null,null,null,null,null,5,15,null,null,null,null,null,null,null,null,null,null,null,null,null,null,null,0,1,null,null,null,"Y",null,23,null,null,"Y",22950,1407,36,null,"F"]
[2009,3293,"Central Wisconsin Elec Coop","Cooperative","RFC",95159,0,69,null,null,null,null,null,null,null,null,null,null,null,null,null,null,null,"1","1",null,null,null,null,null,null,"1","1",null,null,null,null,null,null,null,null,null,null,null,null,null,null,null,null,null,null,null,0,1,null,null,null,"N",null,null,null,null,"Y",85,null,0,null,"F"]
[2009,3329,"Borough of Chambersburg","Municipal","RFC",283304,null,null,null,null,null,null,null,null,null,null,null,null,null,null,null,null,null,null,null,"7100",null,null,null,"7100",null,null,null,"6",null,null,null,6,null,null,null,"4",null,null,null,"4",null,null,null,null,"116",2,118,1,null,null,null,"Y",null,null,4,null,"Y",null,null,1,null,"F"]
[2009,3400,"City of Chaska","Municipal","MRO",273334,null,null,null,null,null,null,null,null,null,null,null,null,null,null,null,null,null,null,"0","0",null,null,"0","0",null,null,"0","0",null,null,0,0,null,null,"0","0",null,null,0,"0",null,null,null,null,"159",7,166,1,null,null,null,"Y",null,5,2,null,"Y",7,null,null,null,"F"]
[2009,3413,"PUD No 1 of Chelan County","Political Subdivision","WECC",1635078,7537172,null,null,null,null,197,33,"1629",null,null,null,null,null,0,"0","0",null,null,null,null,null,null,null,null,null,null,null,null,null,null,null,null,null,null,null,null,null,null,null,null,null,191,"313",0,"0",367,871,1,null,null,"N","N",null,null,null,null,"Y",null,null,25,null,"F"]
[2009,3477,"Chicopee City of","Municipal","NPCC",435160,0,694,"375","41",null,3630,6496,"7255",null,0,"0","0",null,1,"2","2",null,null,null,null,null,null,null,null,null,null,null,null,null,null,null,null,null,null,null,null,null,null,null,null,null,19,"83",null,null,null,102,1,null,null,null,"N",null,null,null,null,"N",null,null,null,null,"F"]
[2009,3498,"Chippewa Valley Electric Coop","Cooperative","MRO",98134,null,null,null,null,null,null,null,null,null,null,null,null,null,null,null,null,null,null,null,null,null,null,null,null,null,"1",null,null,null,null,null,null,null,"0",null,null,null,null,null,null,null,null,null,null,null,null,186,1,null,null,null,"Y",null,10,17,null,"Y",null,3,null,null,"F"]
[2009,3503,"Choptank Electric Coop, Inc","Cooperative","RFC",938032,null,null,null,null,null,null,null,null,null,null,null,null,null,null,null,null,null,null,null,null,null,null,null,null,null,null,null,null,null,7,12,10,null,null,null,null,null,5,10,"7",null,null,null,61,"123",null,184,1,null,null,null,"N",null,null,null,null,"Y",80,386,11,null,"F"]
[2009,3542,"Duke Energy Ohio Inc","Investor Owned","RFC",16984054,15891653,22491,"23587","17794",null,47532,240489,"104759",null,31,"18","14",null,9,"48","13",null,null,null,null,null,null,null,null,null,"14","53","22",null,28,77,38,null,null,null,null,null,null,null,null,null,4067,"5889",2264,"802",233,13255,1,null,null,"Y","Y",26046,33,25,null,"Y",21,53,46,null,"F"]
[2009,3644,"PUD No 1 of Clallam County","Political Subdivision","WECC",762661,null,2370,"415",null,null,36365,8437,null,null,null,null,null,null,null,null,null,null,null,null,null,null,null,null,null,null,null,null,null,null,null,null,null,null,null,null,null,null,null,null,null,null,425,"893",null,null,null,1318,1,null,null,null,"N",null,null,null,null,"N",null,null,null,null,"F"]
[2009,3701,"Clark Electric Coop","Cooperative","MRO",171012,null,133,null,"16",null,1582,null,"575",null,10,null,"1",null,10,null,"0",null,"10",null,"0",null,"1012",null,"0",null,"0",null,"0",null,4,null,0,null,"0",null,"0",null,2,null,null,null,null,"9",137,null,1,147,1,null,null,null,"N",null,null,null,null,"N",null,null,null,null,"F"]
[2009,3735,"City of Colman","Municipal","MRO",9434,null,null,null,null,null,null,null,null,null,null,null,null,null,null,null,null,null,null,null,null,null,null,null,null,null,null,null,null,null,null,null,null,null,null,null,null,null,null,null,null,null,null,null,null,null,null,2,1,null,null,null,"N",null,null,null,null,"N",null,null,null,null,"F"]
[2009,3755,"Cleveland Electric Illum Co","Investor Owned","RFC",14450199,null,617,null,null,null,628,null,null,null,null,null,null,null,null,null,null,null,"498",null,null,null,"812",null,null,null,"0",null,null,null,4,null,48,null,"0",null,null,null,4,null,null,null,603,null,4967,null,null,5570,1,null,null,null,"Y",4631,null,5,null,"N",null,null,null,null,"F"]
[2009,3757,"Clay Electric Cooperative, Inc","Cooperative","FRCC",3137594,null,4918,null,null,null,8703,null,null,null,1,null,null,null,2,null,null,null,null,null,null,null,null,null,null,null,null,null,null,null,null,null,null,null,null,null,null,null,null,null,null,null,0,"240",0,"0",20,260,1,null,null,null,"Y",0,0,3,0,"Y",0,21,6,0,"F"]
[2009,3931,"Coles-Moultrie Electric Coop","Cooperative","RFC",189303,null,null,null,null,null,null,null,null,null,4,"2","6",null,4,"2","6",null,null,null,null,null,null,null,null,null,"3","5","4",null,3,5,4,null,null,null,null,null,null,null,null,null,null,null,100,"55",null,155,1,null,null,null,"Y",5100,48,7,null,"N",null,null,null,null,"F"]
[2009,3940,"City of College Station","Municipal","TRE",762519,null,null,"9",null,null,2063,26,null,null,0,"0",null,null,1,"0",null,null,null,null,null,null,null,null,null,null,null,null,null,null,null,null,null,null,null,null,null,null,null,null,null,null,78,null,null,null,54,132,1,null,null,null,"N",null,null,null,null,"Y",null,null,null,null,"F"]
[2009,3989,"Colorado Springs City of","Municipal","WECC",4383566,426442,11616,"4657","0","0",392913,22692,"9370","0",2,"1","0","0",8,"5","2","0","19","3734","0","0","19","13443","0","0","1","4","0","0",1,6,0,"0","1","4","0","0",1,6,"0","0",222,"723",240,"304",416,1905,1,null,null,null,"Y",529,0,0,0,"Y",0,17,0,0,"F"]
[2009,4045,"City of Columbia","Municipal","SERC",1091811,251412,1462,"784","2417",null,9357,5545,"2833",null,1,"0","1",null,3,"2","3",null,null,null,null,null,null,null,null,null,"1","0","1",null,4,2,6,null,null,null,null,null,null,null,null,null,930,"456",650,"396",205,2637,1,null,null,null,"N",null,null,null,null,"N",null,null,null,null,"F"]
[2009,4062,"Columbus Southern Power Co","Investor Owned","RFC",20525827,5862120,49500,"9000","62900","0",49500,9000,"62900","0",4,"2","9","0",4,"2","9","0",null,"0","0","0","0","0","0","0","0","0","5","0",0,0,14,"0","0","0","0","0",0,0,"4",null,7994,null,null,null,null,7994,1,null,null,"Y","Y",0,0,2,0,"Y",667906,127,1,0,"F"]
[2009,4110,"Commonwealth Edison Co","Investor Owned","RFC",41887678,426981,114,"130",null,null,96,90,null,null,8,"14",null,null,8,"14",null,null,null,null,null,null,"189","145","337",null,null,null,null,null,111,320,704,"42",null,null,null,null,111,145,"337",null,11700,"19900",2500,"20000",600,54700,1,null,null,null,"Y",65000,1500,2800,10,"Y",6000,null,null,null,"F"]
[2009,4117,"Community Electric Coop","Cooperative","SERC",186043,null,null,null,null,null,null,null,null,null,null,null,null,null,null,null,null,null,null,null,null,null,"4",null,"1",null,null,null,null,null,4,null,1,null,null,null,null,null,4,null,"1",null,null,null,20,"106",null,126,1,null,null,"N","N",null,null,null,null,null,null,null,null,null,"F"]
[2009,4147,"Town of Concord","Municipal","NPCC",177998,null,168,null,null,null,null,null,null,null,0,null,null,null,null,null,null,null,null,null,null,null,null,null,null,null,"2","2",null,null,null,null,null,null,"1","0",null,null,null,null,null,null,48,"66",18,"27",13,172,1,null,"N","Y","Y",null,4,null,null,"N",null,null,null,null,"F"]
[2009,4176,"Connecticut Light & Power Co","Investor Owned","NPCC",12090185,3481861,61999,"79944","19526","0",574316,1514196,"586353","0",8,"14","2","0",64,"356","79","0","0","0","0","0","0","0","0","0","0","81","107","0",0,0,0,"0",null,null,null,null,null,null,null,null,8432,"34645",5312,"0",4871,53260,1,"None","Y",null,"Y",null,294,127,null,"N",null,null,null,null,"F"]
[2009,4226,"Consolidated Edison Co-NY Inc","Investor Owned","NPCC",23482603,798465,16366,"26744",null,null,70861,150758,null,null,1,"7",null,null,4,"37",null,null,"25","28",null,null,"296","2434",null,null,"2","3",null,null,24,277,null,null,"2","2",null,null,18,152,null,null,24431,"140",3237,"3208",380,31396,1,null,"Y","Y","Y",16086,6372,null,null,"Y",8,88,null,1,"F"]
[2009,4254,"Consumers Energy Co","Investor Owned","RFC",33114933,1604319,53437,"41893","38150",null,null,null,null,null,6,"4","6",null,null,null,null,null,null,null,null,null,null,null,null,null,null,null,null,null,null,null,null,null,null,null,null,null,null,null,null,null,6258,"10037",null,null,5862,22157,1,null,null,null,"Y",null,null,16,null,"N",1546,1312,813,null,"F"]
[2009,4304,"City of Corwith","Municipal","MRO",2361,null,4,"0","0","0",null,null,null,null,0,"0","0","0",null,null,null,null,null,null,null,null,null,null,null,null,null,null,null,null,null,null,null,null,null,null,null,null,null,null,null,null,null,null,null,null,null,2,1,null,null,null,"N",null,null,null,null,"N",null,null,null,null,"F"]
[2009,4362,"Corn Belt Energy Corporation","Cooperative","RFC",602202,0,null,null,null,null,null,null,null,null,null,null,null,null,null,null,null,null,null,null,null,null,null,null,null,null,"12","6",null,null,48,24,null,null,"10","3",null,null,10,9,null,null,null,null,null,"93",10,103,1,null,null,null,"Y",6594,51,null,null,"N",null,null,null,null,"F"]
[2009,4432,"Coweta-Fayette El Member Corp","Cooperative","SERC",1415599,null,null,null,null,null,null,null,null,null,null,null,null,null,null,null,null,null,null,null,null,null,"116",null,null,null,null,null,null,null,12,null,null,null,null,null,null,null,8,null,null,null,null,null,397,"121",null,518,1,null,null,"Y","Y",12500,null,null,null,"Y",39,5,13,null,"F"]
[2009,4442,"PUD No 1 of Cowlitz County","Political Subdivision","WECC",4893834,null,null,null,null,null,14983,4624,"9",null,null,null,null,null,null,null,null,null,null,null,null,null,null,null,null,null,null,null,null,null,null,null,null,null,null,null,null,null,null,null,null,null,null,null,null,null,null,0,1,null,null,null,"N",null,null,null,null,"N",null,null,null,null,"F"]
[2009,4508,"Crawfordsville Elec, Lgt & Pwr","Municipal","RFC",388423,1132,null,null,null,null,null,null,null,null,null,null,null,null,null,null,null,null,null,null,null,null,null,null,null,null,null,null,null,null,null,null,null,null,null,null,null,null,null,null,null,null,null,null,null,"5",null,5,1,"Indiana Municipal Power Agency",null,null,"N",null,null,null,null,"N",null,null,null,null,"F"]
[2009,4509,"Craighead Electric Coop Corp","Cooperative","SERC",454569,null,null,null,null,null,null,null,null,null,null,null,null,null,null,null,null,null,null,null,null,null,null,null,"202",null,null,null,null,null,null,6,2,null,null,null,null,null,null,5,"2",null,148,null,null,null,3,151,1,null,null,null,"N",null,null,null,null,"N",null,null,null,null,"F"]
[2009,4661,"City of Curtis","Municipal","MRO",13592,null,null,null,null,null,null,null,null,null,null,null,null,null,null,null,null,null,null,null,null,null,null,null,null,null,null,null,null,null,null,null,null,null,null,null,null,null,null,null,null,null,null,null,null,null,null,1,1,null,null,null,"N",null,null,null,null,"N",null,null,null,null,"F"]
[2009,4675,"Cuivre River Electric Coop Inc","Cooperative","SERC",1197213,null,null,null,null,null,null,null,null,null,null,null,null,null,null,null,null,null,"2","5",null,null,null,null,null,null,"2","5",null,null,null,null,null,null,null,null,null,null,null,null,null,null,null,null,null,"33",5,38,1,null,null,null,"N",null,null,null,null,"N",null,null,null,null,"F"]
[2009,4704,"D S & O Rural E C A, Inc","Cooperative","SPP",121549,10062,null,null,null,null,null,null,null,null,null,null,null,null,null,null,null,null,null,null,null,null,null,null,null,null,null,null,null,null,null,null,null,null,null,null,null,null,null,null,null,null,null,null,null,null,null,49,1,"Kansas Electric Power Coop",null,null,"N",null,null,null,null,"N",null,null,null,null,"F"]
[2009,4911,"Dawson Power District","Political Subdivision","MRO",507728,null,null,null,null,null,null,null,null,null,null,null,null,null,null,null,null,null,null,null,null,null,null,null,null,null,null,null,"114",null,null,null,null,null,null,null,"68",null,null,null,null,null,null,null,132,null,null,132,1,null,null,null,"N",null,null,null,null,"N",null,null,null,null,"F"]
[2009,4922,"Dayton Power & Light Co","Investor Owned","RFC",12069767,4520092,91002,"12225","11060","0",30460,4943,"4472","0",10,"4","3","0",4,"2","2","0",null,null,null,null,null,null,null,null,null,null,null,null,null,null,null,null,null,null,null,null,null,null,null,null,1372,"3939",0,"0",2337,7648,1,null,null,null,"N",null,null,null,null,"N",null,null,null,null,"F"]
[2009,5021,"Delaware County Elec Coop Inc","Cooperative","NPCC",56432,null,null,null,null,null,null,null,null,null,null,null,null,null,null,null,null,null,null,null,null,null,null,null,null,null,"2",null,null,null,null,null,null,null,"1",null,null,null,null,null,null,null,null,null,null,null,null,25,1,null,null,null,"N",null,null,null,null,"N",null,null,null,null,"F"]
[2009,5027,"Delmarva Power","Investor Owned","RFC",6915791,670,4246,null,null,null,14811,null,null,null,0,null,null,null,1,null,null,null,"0",null,null,null,"149",null,null,null,"0",null,null,null,29,null,null,null,"0",null,null,null,null,null,null,null,698,"0",2906,"0",0,3604,1,null,null,null,"N",null,null,null,null,"N",null,null,null,null,"F"]
[2009,5056,"City of Denison","Municipal","MRO",149152,null,269,"53","0","0",null,null,null,null,0,"0","0","0",null,null,null,null,"25","2","0","0",null,null,null,null,"2","0","0","0",null,null,null,null,null,null,null,null,null,null,null,null,null,null,null,null,null,240,1,null,null,null,"Y",1441,108,0,0,"N",null,null,null,null,"F"]
[2009,5063,"City of Denton","Municipal","TRE",1285995,null,null,null,null,null,null,null,null,null,null,null,null,null,null,null,null,null,null,null,null,null,null,null,null,null,null,null,"2",null,null,null,2,null,null,null,"2",null,null,null,"2",null,null,null,null,"81",null,81,1,null,null,null,"N",null,null,0,null,"Y",null,null,1,null,"F"]
[2009,5070,"Delaware Electric Cooperative","Cooperative","RFC",1151036,null,null,null,null,null,null,null,null,null,null,null,null,null,null,null,null,null,null,null,null,null,null,"1061",null,null,"5",null,null,null,45,19,null,null,"1",null,null,null,40,12,null,null,30,"207",99,"412",25,773,1,null,null,null,"Y",20238,439,null,null,"Y",null,45,null,null,"F"]
[2009,5111,"City of Detroit Lakes","Municipal","MRO",177443,null,7,null,null,null,393,null,null,null,null,null,null,null,null,null,null,null,null,null,null,null,null,null,null,null,"0",null,null,null,12,null,null,null,"0",null,null,null,4,null,null,null,1,"3",19,"8",12,43,1,null,null,null,"N",null,null,null,null,"Y",null,null,null,null,"F"]
[2009,5202,"Dixie Electric Membership Corp","Cooperative","SERC",2031347,null,null,null,null,null,null,null,null,null,null,null,null,null,null,null,null,null,null,null,null,null,null,null,null,null,null,null,null,null,70,null,null,null,null,null,null,null,15,null,null,null,null,null,21,"512",null,533,1,null,null,null,"N",null,null,null,null,"Y",null,11,null,null,"F"]
[2009,5416,"Duke Energy Carolinas, LLC","Investor Owned","SERC",74443058,5386629,null,null,null,null,null,null,null,null,null,null,null,null,null,null,null,null,null,null,null,null,null,null,null,null,"4","89","14","0",200,107,197,"0",null,null,null,null,null,null,null,null,4334,"3467",14358,"1883",1506,25548,1,null,null,"Y","Y",200882,25,18,0,"Y",2148,20131,1848,0,"F"]
[2009,5417,"Dunn County Electric Coop","Cooperative","MRO",176605,null,821,null,"654",null,2454,null,"916",null,null,null,null,null,null,null,null,null,"77",null,null,null,"3522",null,null,null,"1",null,"1",null,4,null,2,null,null,null,null,null,3,null,"1",null,39,"165",138,"3",25,370,1,null,null,null,"Y",3622,180,null,null,"N",null,null,null,null,"F"]
[2009,5518,"City of Dysart","Municipal","MRO",8734,null,2,"0","0","0",null,null,null,null,0,"0","0","0",null,null,null,null,"0","0","0","0",null,null,null,null,"0","0","0","0",null,null,null,null,"0","0","0","0",null,null,null,null,null,null,null,null,null,6,1,null,null,null,"N",null,null,null,null,"N",null,null,null,null,"F"]
[2009,5529,"City of Durant","Municipal","MRO",14036,null,51,"5","0","0",null,null,null,null,0,"0","0","0",null,null,null,null,null,null,null,null,null,null,null,null,null,null,null,null,null,null,null,null,null,null,null,null,null,null,null,null,null,null,null,null,null,29,1,null,null,"Y","N",null,null,null,null,"N",null,null,null,null,"F"]
[2009,5552,"East River Elec Pwr Coop, Inc","Cooperative","MRO",null,3022692,null,null,null,null,null,null,null,null,null,null,null,null,null,null,null,null,null,null,null,null,null,null,null,null,"1",null,"0",null,51,null,43,null,"1",null,"0",null,51,null,"43",null,87,"505",1547,null,296,2435,1,null,null,null,"N",null,null,null,null,"N",null,null,null,null,"F"]
[2009,5575,"East Grand Forks City of","Municipal","MRO",156015,null,224,"328","0","0",null,null,null,null,0,"0","0","0",null,null,null,null,null,null,null,null,null,null,null,null,null,null,null,null,null,null,null,null,"0",null,null,null,2,3,"0","0",20,"228",141,"40",5,434,1,null,null,null,"N",null,null,null,null,"N",null,null,null,null,"F"]
[2009,5580,"East Kentucky Power Coop, Inc","Cooperative","RFC",null,12580796,3415,null,null,null,64039,null,null,null,1,null,null,null,35,null,null,null,"1507",null,null,null,"1507",null,null,null,"2",null,null,null,27,null,null,null,"2",null,null,null,26,null,null,null,23,"62",291,"12",49,437,1,null,null,null,"Y",6103,2,5,null,"N",null,null,null,null,"F"]
[2009,5585,"Eastern Illinois Elec Coop","Cooperative","RFC",234620,null,1045,null,null,null,16866,null,null,null,null,null,null,null,null,null,null,null,null,null,null,null,null,null,null,null,null,null,null,null,6,null,8,null,null,null,null,null,4,null,"4",null,65,null,65,null,null,130,1,null,null,null,"N",null,null,null,null,"N",null,null,null,null,"F"]
[2009,5701,"El Paso Electric Co","Investor Owned","WECC",7119683,3568013,4827,"14270",null,null,7839,28755,null,null,1,"3",null,null,2,"6",null,null,null,null,null,null,null,null,null,null,null,null,null,null,null,null,null,null,null,null,null,null,null,null,null,null,null,"2701",null,null,945,3646,1,null,null,null,"Y",0,2,11,null,"Y",40,15,2,null,"F"]
[2009,5729,"Electrical Dist No8 Maricopa","Political Subdivision","WECC",244198,null,null,null,null,null,null,null,null,null,null,null,null,null,null,null,null,null,null,null,null,null,null,null,null,null,null,null,null,null,null,null,null,null,null,null,null,null,null,null,null,null,null,null,null,null,3,3,1,null,null,null,"N",null,null,null,null,"N",null,null,null,null,"F"]
[2009,5732,"City of Elbow Lake","Municipal","MRO",16913,null,null,null,null,null,null,null,null,null,null,null,null,null,null,null,null,null,null,null,null,null,null,null,null,null,"1","1",null,null,null,null,null,null,"1",null,null,null,null,null,null,null,null,null,null,null,null,32,1,null,null,null,"N",null,null,null,null,"N",null,null,null,null,"F"]
[2009,5780,"Elkhorn Rural Public Pwr Dist","Political Subdivision","SPP",231689,null,null,null,null,null,null,null,null,null,null,null,null,null,null,null,null,null,null,null,null,null,null,null,null,null,null,null,"76",null,null,null,0,null,null,null,"35",null,null,null,null,null,66,null,null,null,null,66,1,null,null,null,"N",null,null,null,null,"N",null,null,null,null,"F"]
[2009,5827,"City of Ellsworth","Municipal","MRO",5052,null,14,"0","0","0",null,null,null,null,0,"0","0","0",null,null,null,null,null,null,null,null,null,null,null,null,null,null,null,null,null,null,null,null,null,null,null,null,null,null,null,null,null,null,null,null,null,2,1,null,null,null,"N",null,null,null,null,"N",null,null,null,null,"F"]
[2009,5834,"City of Elroy","Municipal","MRO",21789,null,null,null,null,null,null,null,null,null,null,null,null,null,null,null,null,null,null,null,null,null,null,null,"1",null,null,null,null,null,null,null,1,null,null,null,null,null,null,null,"1",null,null,null,null,null,null,33,1,null,null,null,"Y",null,null,1,null,"N",null,null,null,null,"F"]
[2009,5860,"Empire District Electric Co","Investor Owned","SPP",4561879,847960,643,"2086",null,null,3690,4172,null,null,null,null,null,null,null,null,null,null,null,null,null,null,null,null,null,null,null,null,null,null,null,null,8,null,null,null,null,null,null,null,null,null,384,"340",null,"450",15,1189,1,null,"Y","Y","N",null,null,null,null,"N",null,null,null,null,"F"]
[2009,5905,"Excelsior Electric Member Corp","Cooperative","SERC",385031,null,null,null,null,null,null,null,null,null,null,null,null,null,null,null,null,null,null,null,null,null,"27","34",null,null,null,null,null,null,4,5,null,null,null,null,null,null,1,1,null,null,null,null,9,null,2,11,1,null,null,null,"Y",null,121,null,null,"N",null,null,null,null,"F"]
[2009,5929,"Fairfield Electric Coop, Inc","Cooperative","SERC",603049,null,1826,null,null,null,6194,null,null,null,1,null,null,null,5,null,null,null,null,null,null,null,null,null,null,null,null,null,null,null,1,null,null,null,null,null,null,null,1,null,null,null,80,null,null,null,null,80,1,null,null,null,"N",null,null,null,null,"N",null,null,null,null,"F"]
[2009,5930,"Village of Fairport","Municipal","NPCC",444885,null,197,"0","0","0",3092,78,"0","0",0,"0","0","0",6,"0","0","0",null,null,null,null,null,null,null,null,null,null,null,null,null,null,null,null,null,null,null,null,null,null,null,null,378,null,null,null,67,445,1,null,null,null,"N",null,null,null,null,"N",null,null,null,null,"F"]
[2009,5995,"City of Estelline","Municipal","MRO",7516,null,null,null,null,null,null,null,null,null,null,null,null,null,null,null,null,null,null,null,null,null,null,null,null,null,"1",null,null,null,null,null,null,null,"1",null,null,null,null,null,null,null,null,null,null,null,null,3,1,null,"N",null,"Y",175,null,null,null,"N",null,null,null,null,"F"]
[2009,5997,"Town of Estes Park","Municipal","WECC",126229,null,67,"402",null,null,null,1850,null,null,null,"0",null,null,0,"0",null,null,null,null,null,null,null,null,null,null,null,null,null,null,null,null,null,null,null,null,null,null,null,null,null,null,null,null,null,null,null,176,1,null,null,null,"N",null,null,null,null,"Y",295,null,null,null,"F"]
[2009,5998,"City of Estherville","Municipal","MRO",56943,null,66,"20",null,null,null,null,null,null,null,null,null,null,null,null,null,null,null,null,null,null,null,null,null,null,null,null,null,null,null,null,null,null,null,null,null,null,null,null,null,null,null,null,null,null,null,4,1,null,null,null,"N",null,null,null,null,"N",null,null,null,null,"F"]
[2009,6022,"Eugene City of","Municipal","WECC",2406878,1285847,10187,"7870","5868",null,241737,173270,"105118",null,2,"1","1",null,30,"45","3",null,null,null,null,null,null,null,null,null,null,null,null,null,null,null,null,null,null,null,null,null,null,null,null,null,2298,"3720",null,null,1567,7585,1,null,null,null,"N",null,null,null,null,"N",null,null,null,null,"F"]
[2009,6127,"City of Fairbank","Municipal","MRO",7471,null,13,"0","0","0",null,null,null,null,0,"0","0","0",null,null,null,null,null,null,null,null,null,null,null,null,null,null,null,null,null,null,null,null,null,null,null,null,null,null,null,null,null,null,null,null,null,5,1,null,null,null,"N",null,null,null,null,"N",null,null,null,null,"F"]
[2009,6151,"Fairmont Public Utilities Comm","Municipal","MRO",147794,750,270,"551",null,null,null,null,null,null,0,"1",null,null,null,null,null,null,null,null,null,null,null,null,null,null,"0",null,null,null,null,null,null,null,"0",null,null,null,null,null,null,null,null,null,null,null,null,125,1,null,null,null,"N",null,null,null,null,"N",null,null,null,null,"F"]
[2009,6168,"Farmers Electric Coop","Cooperative","MAPP",21911,null,110,null,null,null,null,null,null,null,0,null,null,null,null,null,null,null,null,null,null,null,null,null,null,null,null,null,null,null,null,null,null,null,null,null,null,null,null,null,null,null,null,null,null,null,null,13,1,null,null,null,"N",null,null,null,null,"N",null,null,null,null,"F"]
[2009,6181,"Farmers' Electric Coop, Inc","Cooperative","SERC",282411,3402,null,null,null,null,null,null,null,null,null,null,null,null,null,null,null,null,null,null,null,null,null,null,null,null,"6",null,null,null,6,null,null,null,"3",null,null,null,3,null,null,null,null,null,null,"66",null,66,1,null,null,null,"Y",7722,null,null,null,"N",null,null,null,null,"F"]
[2009,6198,"Farmers' Electric Coop, Inc","Cooperative","SPP",375931,null,154,null,null,null,1203,1,null,null,1,null,null,null,1,"1",null,null,null,null,null,null,null,null,null,null,null,null,null,null,null,null,null,null,null,null,null,null,null,null,null,null,null,"37",null,null,7,44,1,null,null,null,"N",null,null,null,null,"N",null,null,null,null,"F"]
[2009,6206,"Farmers Electric Coop Corp","Cooperative","SERC",73400,null,null,null,null,null,null,null,null,null,null,null,null,null,null,null,null,null,null,null,"253",null,null,null,null,null,null,null,"4",null,null,null,null,null,null,null,"4",null,null,null,null,null,null,null,null,null,null,164,1,"N/A",null,null,"Y",null,null,181,null,"N",null,null,null,null,"F"]
[2009,6335,"Firelands Electric Coop, Inc","Cooperative","RFC",141627,null,null,null,null,null,null,null,null,null,null,null,null,null,null,null,null,null,null,null,null,null,null,null,null,null,null,"1",null,null,null,null,null,null,null,null,null,null,null,null,null,null,null,null,null,null,null,41,1,"Buckeye Power",null,null,"N",null,null,null,null,"N",null,null,null,null,"F"]
[2009,6342,"First Electric Coop Corp","Cooperative","SERC",1670459,null,25,null,null,null,4900,null,null,null,1,null,null,null,6,null,null,null,null,null,null,null,"509","58","897",null,null,null,null,null,12,1,67,null,null,null,null,null,8,1,"16",null,null,null,15,"250",10,275,1,null,null,null,"N",null,null,null,null,"N",null,null,null,null,"F"]
[2009,6374,"Fitchburg Gas and Electric Light Company","Investor Owned","NPCC",240969,122473,638,"1897","33","0",7701,10567,"23133",null,0,"0","0","0",2,"2","3",null,null,null,null,null,null,null,null,null,null,null,null,null,null,null,null,null,null,null,null,null,null,null,null,null,1474,"102",null,null,null,1576,1,null,null,null,"N",null,null,null,null,"N",null,null,null,null,"F"]
[2009,6411,"Flint Electric Membership Corp","Cooperative","SERC",1651408,null,null,null,null,null,null,null,null,null,null,null,null,null,null,null,null,null,null,null,null,null,"395","146",null,null,null,null,null,null,24,22,null,null,null,null,null,null,20,7,null,null,null,null,136,"356",null,492,1,null,null,null,"N",null,null,null,null,"N",null,null,null,null,"F"]
[2009,6431,"Flint Hills Rural E C A, Inc","Cooperative","SPP",75295,null,null,null,null,null,null,null,null,null,null,null,null,null,null,null,null,null,null,null,null,null,null,null,null,null,null,null,null,null,null,null,null,null,null,null,null,null,null,null,null,null,null,null,null,null,null,5,1,null,null,null,"Y",385,29,5,null,"N",null,null,null,null,"F"]
[2009,6443,"Florida Keys El Coop Assn, Inc","Cooperative","FRCC",642172,null,null,null,null,null,null,null,null,null,null,null,null,null,null,null,null,null,null,null,null,null,"12","1",null,null,null,null,null,null,2,1,null,null,null,null,null,null,2,1,null,null,null,null,124,null,11,135,1,null,null,null,"N",null,null,null,null,"N",null,null,null,null,"F"]
[2009,6452,"Florida Power & Light Co","Investor Owned","FRCC",102762272,2651516,89326,"64794",null,null,2131579,1956728,null,null,50,"24",null,null,1479,"748",null,null,"231","558",null,null,"14799","8686",null,null,"14","47",null,null,903,741,null,null,null,null,null,null,null,null,null,null,19719,"53376",11647,"86967",14343,186052,1,null,"Y",null,"Y",12159,21369,null,null,"Y",206,6312,344,0,"F"]
[2009,6455,"Progress Energy Florida Inc","Investor Owned","FRCC",37824252,4041389,39704,"39297","8048","0",513307,408635,"281582","0",42,"12","2","0",562,"125","28","0","145","132","67","0","6148","988","3691","0","17","16","8","0",622,96,256,"0","0","0","0","0",47,7,"19","0",14331,"9383",7949,"39708",8920,80291,1,null,null,null,"Y",392763,316,374,0,"Y",43,10374,405,0,"F"]
[2009,6457,"Florida Public Utilities Co","Investor Owned","FRCC",697669,null,313,"394",null,null,1502,1649,null,null,1,"1",null,null,1,"1",null,null,null,null,null,null,null,null,null,null,null,null,null,null,null,null,null,null,null,null,null,null,null,null,null,null,336,"23",null,null,181,540,1,null,null,null,"N",null,null,null,null,"N",null,null,null,null,"F"]
[2009,6501,"City of Fontanelle","Municipal","MRO",6399,null,15,"7","0","0",null,null,null,null,0,"0","0","0",null,null,null,null,null,null,null,null,null,null,null,null,null,null,null,null,null,null,null,null,null,null,null,null,null,null,null,null,null,null,null,null,null,6,1,null,null,null,"N",null,null,null,null,"N",null,null,null,null,"F"]
[2009,6579,"City of Forest City","Municipal","MRO",55322,null,18,"0","1150","0",null,null,null,null,0,"0","0","0",null,null,null,null,null,null,null,null,null,null,null,null,null,null,null,null,null,null,null,null,null,null,null,null,null,null,null,null,null,null,null,null,null,8,1,null,null,"Y","N",null,null,null,null,"N",null,null,null,null,"F"]
[2009,6582,"City of Forest Grove","Municipal","WECC",236719,null,1128,"1033","267",null,6891,7509,"4289",null,null,null,null,null,null,null,null,null,null,null,null,null,null,null,null,null,null,null,null,null,null,null,null,null,null,null,null,null,null,null,null,null,22,"71",null,null,null,93,1,null,"Y",null,"N",null,null,null,null,"Y",null,null,126,null,"F"]
[2009,6604,"Fort Collins City of","Municipal","WECC",1404529,null,1398,"4263","4263",null,11174,15185,"22615",null,0,"1","1",null,2,"3","3",null,"0","0","0",null,"0","0","0",null,"1","0","0",null,2,11,0,null,"1","0","0",null,2,7,"0",null,200,"1125",252,"96",null,1673,1,"Platte River Pwr Auth -Partial",null,null,"Y",2748,0,0,0,"N",null,null,null,null,"F"]
[2009,6715,"City of Franklin","Municipal","SERC",146359,null,null,null,null,null,null,null,null,null,1,null,null,null,null,null,null,null,null,null,null,null,null,null,null,null,"9",null,"1",null,null,null,null,null,"4",null,"1",null,null,null,null,null,null,null,null,null,null,122,1,null,null,null,"N",null,null,null,null,"N",null,null,null,null,"F"]
[2009,6722,"Franklin Rural Electric Cooperative","Cooperative","MRO",56323,null,91,null,null,null,null,null,null,null,null,null,null,null,null,null,null,null,null,null,null,null,null,null,null,null,null,null,null,null,null,null,null,null,null,null,null,null,null,null,null,null,null,null,null,null,null,21,1,null,null,null,"N",null,null,null,null,"Y",27,2,null,null,"F"]
[2009,6782,"Freeborn-Mower Coop Services","Cooperative","MRO",198948,null,254,null,"139",null,1185,null,"811",null,null,null,null,null,1,null,null,null,null,null,null,null,"1402",null,null,null,null,null,null,null,4,null,null,null,null,null,null,null,4,null,null,null,16,"146",308,"2",22,494,1,null,null,null,"N",null,null,null,null,"N",null,null,null,null,"F"]
[2009,6909,"Gainesville Regional Utilities","Municipal","FRCC",1789355,345153,7113,"7306",null,null,117207,48567,null,null,2,"1",null,null,21,"13",null,null,null,null,null,null,null,null,null,null,null,null,null,null,null,null,null,null,null,null,null,null,null,null,null,null,1388,"3291",null,null,234,4913,1,null,null,null,"N",null,null,null,null,"Y",0,0,0,0,"F"]
[2009,7004,"Buckeye Power, Inc","Cooperative","RFC",null,10126192,null,null,null,null,18372,null,null,null,null,null,null,null,1,null,null,null,null,null,null,null,"1019","204","754",null,null,null,null,null,27,6,26,null,null,null,null,null,27,6,"26",null,561,null,2784,null,null,3345,1,null,null,"N","Y",116319,null,3,null,"N",null,null,null,null,"F"]
[2009,7140,"Georgia Power Co","Investor Owned","SERC",81346510,7801469,22128,"2286","20578",null,258100,80541,"28693",null,8,"0","3",null,55,"22","5",null,null,null,null,null,null,null,null,null,"11","0",null,null,110,6,231,null,null,null,null,null,null,null,null,null,4415,null,16294,null,7977,28686,1,null,null,"N","Y",54505,null,78,null,"Y",2171,12402,1255,1,"F"]
[2009,7264,"Glades Electric Coop, Inc","Cooperative","FRCC",324843,18557,null,null,null,null,null,null,null,null,null,null,null,null,null,null,null,null,null,null,null,null,null,null,null,null,null,null,null,null,null,null,5,null,null,null,null,null,null,null,"4",null,null,null,null,null,null,0,1,null,null,null,"N",null,null,null,null,"N",null,null,null,null,"F"]
[2009,7294,"City of Glendale","Municipal","WECC",1119584,240169,5051,"2023","3234",null,25579,977,"36529",null,2,"0","1",null,7,"2","6",null,null,null,null,null,null,null,null,null,null,null,null,null,null,null,null,null,null,null,null,null,null,null,null,null,3191,null,null,null,283,3474,1,null,null,null,"N",null,null,null,null,"N",null,null,null,null,"F"]
[2009,7295,"City of Glidden","Municipal","MRO",8403,null,null,null,null,null,null,null,null,null,null,null,null,null,null,null,null,null,null,null,null,null,null,null,null,null,null,null,null,null,null,null,null,null,null,null,null,null,null,null,null,null,null,"3",null,"4",null,7,1,null,null,null,"N",null,null,null,null,"N",null,null,null,null,"F"]
[2009,7303,"Glidden Rural Electric Coop","Cooperative","MRO",108441,5209,2505,null,null,null,null,null,null,null,1,null,null,null,null,null,null,null,null,null,null,null,null,null,null,null,null,null,null,null,null,null,null,null,null,null,null,null,null,null,null,null,null,null,null,null,null,30,1,"CORN BELT POWER COOPERATIVE","N",null,"N",null,null,null,null,"N",null,null,null,null,"F"]
[2009,7349,"Golden Spread Electric Cooperative, Inc","Cooperative","SPP",null,6657160,null,null,null,null,null,null,null,null,null,null,null,null,null,null,null,null,null,null,null,null,null,null,null,null,null,null,null,null,null,null,40,null,null,null,null,null,null,null,null,null,null,null,null,"1815",23,1838,1,null,null,null,"Y",null,null,4261,null,"N",null,null,null,null,"F"]
[2009,7353,"Golden Valley Elec Assn Inc","Cooperative","AK",1310483,4840,623,"342",null,null,4765,1488,null,null,null,null,null,null,1,null,null,null,null,null,null,null,null,null,null,null,null,null,null,null,null,null,null,null,null,null,null,null,null,null,null,null,14,"246",null,null,127,387,1,null,null,null,"N",null,null,null,null,"N",null,null,null,null,"F"]
[2009,7424,"Gowrie Municipal Utilities","Municipal","MRO",7278,null,6,"14","0","0",null,null,null,null,0,"0","0","0",null,null,null,null,null,null,null,null,null,null,null,null,null,null,null,null,null,null,null,null,null,null,null,null,null,null,null,null,null,null,null,null,null,11,1,null,null,null,"N",null,null,null,null,"N",null,null,null,null,"F"]
[2009,7442,"Grafton Electric","Municipal","MRO",1637,null,10,"0","0","0",null,null,null,null,0,"0","0","0",null,null,null,null,null,null,null,null,null,null,null,null,null,null,null,null,null,null,null,null,null,null,null,null,null,null,null,null,null,null,null,null,null,2,1,null,null,"Y","N",null,null,null,null,"N",null,null,null,null,"F"]
[2009,7450,"Grady Electric Membership Corp","Cooperative","SERC",296138,null,null,null,null,null,null,null,null,null,null,null,null,null,null,null,null,null,null,null,null,null,null,"18","9",null,null,null,null,null,null,2,7,null,null,null,null,null,null,2,"4",null,12,"5",2,null,null,19,1,null,null,null,"N",null,null,null,null,"N",null,null,null,null,"F"]
[2009,7489,"Grand Rapids Public Util Comm","Municipal","MRO",165430,null,0,"0","0","0",0,0,"0","0",0,"0","0","0",0,"0","0","0","0","0","0","0","5","1","0","0","0","0","0","0",6,1,0,"0","0","0","0","0",3,1,"0","0",0,"0",16,"4",9,29,1,null,null,null,"N",null,null,null,null,"N",null,null,null,null,"F"]
[2009,7490,"Grand River Dam Authority","State","SPP",616543,7111590,null,null,null,null,null,null,null,null,null,null,null,null,null,null,null,null,null,null,null,null,null,null,null,null,null,null,null,null,null,null,15,null,null,null,null,null,null,null,"10",null,null,null,null,null,null,0,1,null,null,null,"N",null,null,null,null,"Y",null,null,1,null,"F"]
[2009,7548,"PUD No 1 of Grays Harbor Cnty","Political Subdivision","WECC",979126,895551,null,null,null,null,null,null,null,null,null,null,null,null,null,null,null,null,null,null,null,null,null,null,null,null,null,null,null,null,null,null,null,null,null,null,null,null,null,null,null,null,277,"1374",null,null,null,1651,1,null,null,null,"N",null,null,null,null,"N",null,null,null,null,"F"]
[2009,7570,"Great River Energy","Cooperative","MRO",null,14326477,42334,"35653",null,null,680082,406978,null,null,22,"9",null,null,64,"41",null,null,"1700","250",null,null,"37500","1750",null,null,"5","12",null,null,100,200,null,null,"5","12",null,null,100,200,null,null,2482,"6968",8445,"3003",2564,23462,1,null,null,null,"Y",338000,4219,null,null,"N",null,null,null,null,"F"]
[2009,7624,"Village of Greene","Municipal","NPCC",35549,0,1,null,null,null,null,null,null,null,null,null,null,null,null,null,null,null,null,null,null,null,null,null,null,null,null,null,null,null,null,null,null,null,null,null,null,null,null,null,null,null,null,null,null,null,null,3,1,null,null,null,"N",null,null,null,null,"N",null,null,null,null,"F"]
[2009,7626,"City of Greenfield","Municipal","MRO",37967,null,73,"189","435",null,null,null,null,null,0,"0","0",null,null,null,null,null,null,null,null,null,null,null,null,null,null,null,null,null,null,null,null,null,null,null,null,null,null,null,null,null,null,null,null,null,null,70,1,null,null,null,"N",null,null,null,null,"N",null,null,null,null,"F"]
[2009,7712,"City of Groton","Municipal","MRO",18136,null,null,null,null,null,null,null,null,null,null,null,null,null,null,null,null,null,null,null,null,null,null,null,null,null,"0",null,null,null,null,null,null,null,"0",null,null,null,null,null,null,null,null,null,null,null,null,27,1,null,null,null,"N",null,null,null,null,"N",null,null,null,null,"F"]
[2009,7716,"Groton Dept of Utilities","Municipal","NPCC",496367,6505,1591,"102","1836","0",7274,1660,"29904","0",null,null,"1",null,null,null,"3",null,null,null,null,null,null,null,null,null,null,null,null,null,null,null,null,null,null,null,null,null,null,null,null,null,91,"691",null,null,null,782,1,null,null,null,"N",null,null,null,null,"N",null,null,null,null,"F"]
[2009,7720,"Grundy Electric Coop, Inc","Cooperative","SERC",129339,null,null,null,null,null,null,null,null,null,null,null,null,null,null,null,null,null,null,null,null,null,null,null,null,null,"2",null,null,null,null,null,null,null,"1",null,null,null,null,null,null,null,null,null,null,null,null,8,1,null,null,null,"Y",2300,190,null,null,"N",null,null,null,null,"F"]
[2009,7787,"Gunnison County Elec Assn.","Cooperative","WECC",116221,null,null,null,null,null,null,null,null,null,null,null,null,null,null,null,null,null,"102",null,null,null,null,null,null,null,"1",null,null,null,null,null,null,null,"0",null,null,null,null,null,null,null,null,null,null,null,null,47,1,null,null,null,"N",null,null,null,null,"Y",38,null,null,null,"F"]
[2009,7801,"Gulf Power Co","Investor Owned","SERC",10902824,2684061,2807,"12638",null,null,230947,316786,null,null,1,"3",null,null,74,"111",null,null,"178",null,null,null,"6820",null,null,null,"0","0",null,null,16,null,48,null,"0","0",null,null,16,null,"48",null,3941,"187",4651,null,null,8779,1,null,null,"Y","Y",8950,5,19,null,"Y",8950,5,19,null,"F"]
[2009,7887,"Habersham Electric Membership Corp","Cooperative","SERC",491219,null,null,null,null,null,null,null,null,null,null,null,null,null,null,null,null,null,null,null,null,null,null,"24",null,null,null,null,null,null,1,1,null,null,null,null,null,null,1,1,null,null,null,null,null,"6",null,6,1,null,null,null,"N",null,null,null,null,"N",null,null,null,null,"F"]
[2009,7995,"Village of Hamilton","Municipal","NPCC",64880,0,75,"41",null,null,null,null,null,null,10,"1",null,null,null,null,null,null,"3","1",null,null,null,null,null,null,"1","1",null,null,null,null,null,null,"1","0",null,null,null,null,null,null,null,null,null,null,null,5,1,null,null,null,"N",null,null,null,null,"N",null,null,null,null,"F"]
[2009,8122,"Harlan City of","Municipal","MRO",58158,28891,163,"34","0","0",null,null,null,null,0,"0","0","0",null,null,null,null,null,null,null,null,null,null,null,null,null,null,null,null,null,null,null,null,null,null,null,null,null,null,null,null,null,null,null,null,null,28,1,null,null,null,"N",null,null,null,null,"N",null,null,null,null,"F"]
[2009,8139,"Harquahala Valley Pwr District","Political Subdivision","WECC",69541,null,null,null,null,null,null,null,null,null,null,null,null,null,null,null,null,null,null,null,null,null,null,null,null,null,null,null,null,null,null,null,null,null,null,null,null,null,null,null,null,null,null,null,null,null,null,183,1,null,null,null,"N",null,null,null,null,"N",null,null,null,null,"F"]
[2009,8198,"Harrisonburg City of","Municipal","SERC",694357,null,null,null,null,null,140,null,null,null,null,null,null,null,null,null,null,null,null,null,null,null,null,"2",null,null,null,null,null,null,null,2,4,null,null,null,null,null,null,2,"4",null,27,null,null,null,null,27,1,null,null,null,"N",null,null,null,null,"N",null,null,null,null,"F"]
[2009,8210,"Hart Electric Member Corp","Cooperative","SERC",557999,null,null,null,null,null,null,null,null,null,null,null,null,null,null,null,null,null,"40",null,null,null,"3000",null,null,null,"8",null,null,null,8,null,null,null,"8",null,null,null,8,null,null,null,null,"48",null,null,null,48,1,null,null,null,"N",null,null,null,null,"N",null,null,null,null,"F"]
[2009,8214,"City of Hartley","Municipal","MRO",18842,null,60,"15","0","0",null,null,null,null,0,"0","0","0",null,null,null,null,"2","0","0","0",null,null,null,null,"0","0","0","0",null,null,null,null,"0","0","0","0",null,null,null,null,null,null,null,null,null,9,1,null,null,"Y","Y",175,null,null,null,"N",null,null,null,null,"F"]
[2009,8287,"Hawaii Electric Light Co Inc","Investor Owned","HI",1119881,null,1721,"2748",null,null,25593,43190,null,null,0,"0",null,null,7,"5",null,null,null,null,null,null,null,null,null,null,null,null,null,null,null,null,null,null,null,null,null,null,null,null,null,null,727,null,null,null,null,727,1,null,null,null,"N",null,null,null,null,"N",null,null,null,null,"F"]
[2009,8288,"City of Hawarden","Municipal","MRO",29212,null,1,"63",null,null,null,null,null,null,null,null,null,null,null,null,null,null,null,null,null,null,null,null,null,null,null,null,null,null,null,null,null,null,null,null,null,null,null,null,null,null,null,null,null,null,null,10,1,null,null,"Y","N",null,null,null,null,"N",null,null,null,null,"F"]
[2009,8298,"Hawkeye Tri-County El Coop Inc","Cooperative","MRO",178450,3211,1530,null,null,null,null,null,null,null,null,null,"330",null,null,null,null,null,null,null,null,null,null,null,null,null,null,null,null,null,null,null,null,null,null,null,null,null,null,null,null,null,347,null,null,null,null,347,1,null,null,null,"N",null,null,null,null,"N",null,null,2,null,"F"]
[2009,8307,"Hawley Public Utilities Comm","Municipal","MRO",20396,null,null,null,null,null,null,null,null,null,null,null,null,null,null,null,null,null,"1","1",null,null,null,null,null,null,"1","1",null,null,null,null,null,null,"1","1",null,null,null,null,null,null,null,null,null,null,null,8,1,null,null,null,"N",null,null,null,null,"N",null,null,null,null,"F"]
[2009,8319,"Heartland Power Coop","Cooperative","MRO",262384,null,694,null,"165",null,2388,null,"5692",null,null,null,null,null,4,null,null,null,"1",null,null,null,"191",null,null,null,null,null,"1",null,3,null,6,null,null,null,null,null,3,null,"1",null,24,"84",108,"58",9,283,1,null,null,null,"Y",2797,26,5,null,"Y",null,26,5,null,"F"]
[2009,8348,"Healdsburg City of","Municipal","WECC",77045,0,null,null,null,null,34,327,null,null,null,null,null,null,0,"0",null,null,null,null,null,null,null,null,null,null,null,null,null,null,null,null,null,null,null,null,null,null,null,null,null,null,null,null,null,null,null,0,1,null,null,"Y","N",null,null,null,null,"Y",3,7,1,0,"F"]
[2009,8566,"High Plains Power Inc","Cooperative","WECC",968418,null,null,null,null,null,null,null,null,null,null,null,null,null,null,null,null,null,null,null,null,null,"4100","0",null,null,null,null,null,null,8,8,null,null,null,null,null,null,5,3,null,null,null,null,81,null,null,81,1,null,null,null,"N",null,null,null,null,"Y",566,8,17,null,"F"]
[2009,8570,"Highline Electric Assn","Cooperative","WECC",455513,219,149,null,"96",null,1143,null,"398",null,null,null,null,null,null,null,null,null,null,null,null,null,null,null,null,null,null,null,null,null,null,null,82,null,null,null,null,null,null,null,null,null,null,"150",53,"812",null,1015,1,null,null,null,"Y",null,null,1098,null,"Y",7,null,3,null,"F"]
[2009,8773,"Holy Cross Electric Assn, Inc","Cooperative","WECC",1191298,null,null,null,null,null,null,null,null,null,null,null,null,null,null,null,null,null,null,null,null,null,null,null,null,null,null,null,null,null,null,null,25,null,null,null,null,null,null,null,"15",null,188,"1041",null,null,114,1343,1,null,null,null,"N",null,null,null,null,"Y",76,41,5,null,"F"]
[2009,8901,"CenterPoint Energy Houston Electric, LLC","Investor Owned","TRE",null,null,null,null,"0","0",45326,80035,"0","0",null,null,null,null,26,"17",null,null,null,null,null,null,null,"66",null,null,null,null,null,null,null,33,null,null,null,null,null,null,null,null,null,null,2845,"21023",154,"1323",null,25345,1,null,"Y",null,"Y",null,68,null,null,"N",null,null,null,null,"F"]
[2009,8924,"Howard Greeley Rural P P D","Political Subdivision","MRO",88013,24680,null,null,null,null,null,null,null,null,null,null,null,null,null,null,null,null,null,null,null,null,null,null,"500",null,null,null,null,null,null,null,22,null,null,null,null,null,null,null,"12",null,null,null,null,null,null,561,1,null,null,null,"N",null,null,null,null,"N",null,null,null,null,"F"]
[2009,8966,"Hudson Municipal Electric Utility","Municipal","MRO",13404,null,70,"0","0","0",null,null,null,null,0,"0","0","0",null,null,null,null,null,null,null,null,null,null,null,null,null,null,null,null,null,null,null,null,null,null,null,null,null,null,null,null,null,null,null,null,null,13,1,null,null,"Y","N",null,null,null,null,"N",null,null,null,null,"F"]
[2009,9026,"Humboldt County R E C","Cooperative","MRO",52738,2775,39,null,null,null,null,null,null,null,null,null,null,null,null,null,null,null,null,null,null,null,null,null,null,null,null,null,null,null,null,null,null,null,null,null,null,null,null,null,null,null,null,null,null,null,null,91,1,null,null,null,"N",null,null,null,null,"N",null,null,null,null,"F"]
[2009,9191,"Idaho Power Co","Investor Owned","WECC",13948280,2869028,39383,"42576","65581","0",271433,117330,"196038","0",1,"7","10","0",4,"15","22","0",null,"0","0","0","0","0","0","0","34","17","142","0",34,17,142,"0","34","17","142","0",34,17,"142","0",5669,"14516",6178,"7458",1026,34847,1,null,null,"Y","Y",30391,33,1512,0,"Y",126,null,null,null,"F"]
[2009,9209,"Illinois Rural Electric Coop","Cooperative","RFC",156153,null,null,null,null,null,null,null,null,null,null,null,null,null,null,null,null,null,"1",null,null,null,null,null,null,null,"2","2",null,null,null,null,null,null,"2","2",null,null,null,null,null,null,20,null,null,null,null,20,1,null,null,null,"N",null,null,null,null,"N",null,null,null,null,"F"]
[2009,9216,"Imperial Irrigation District","Political Subdivision","WECC",3316121,80127,5663,"5621",null,null,109914,33394,null,null,1,"2",null,null,43,"13",null,null,null,null,null,null,null,null,null,null,null,null,null,null,null,null,null,null,null,null,null,null,null,null,null,null,741,"1177",null,null,null,1918,1,null,null,"Y","N",null,null,null,null,"N",null,null,null,null,"F"]
[2009,9231,"Independence City of","Municipal","SPP",1030814,86376,141,null,null,null,9955,null,null,null,null,null,null,null,11,null,null,null,null,null,null,null,null,null,null,null,null,null,null,null,null,null,null,null,null,null,null,null,null,null,null,null,49,null,null,null,48,97,1,null,null,null,"Y",null,null,null,null,"N",null,null,null,null,"F"]
[2009,9234,"Indiana Municipal Power Agency","Municipal Mktg Authority","RFC",null,6618995,null,null,null,null,null,null,null,null,null,null,null,null,null,null,null,null,null,null,null,null,null,null,null,null,null,null,null,null,1,null,null,null,null,null,null,null,null,null,null,null,null,null,9,"40",null,49,1,null,null,null,"Y",3390,null,null,null,"N",null,null,null,null,"F"]
[2009,9267,"Hoosier Energy R E C, Inc","Cooperative","RFC",null,11649844,24982,"477","0","0",24982,477,"0","0",3,"0","0","0",3,"0","0","0",null,null,null,null,null,null,null,null,null,null,null,null,null,null,null,null,null,null,null,null,null,null,null,null,null,"2368",null,null,439,2807,1,null,"N",null,"N",null,null,null,null,"N",null,null,null,null,"F"]
[2009,9273,"Indianapolis Power & Light Co","Investor Owned","RFC",14085842,1880838,958,"0","0","0",27448,21074,"22371","0",0,"0","0","0",8,"7","5","0","0","0","0","0","0","0","0","0","1","0","0","0",26,1,48,"0","0","0","0","0",26,1,"48","0",36,"749",846,"1724",0,3355,1,null,null,null,"Y",26300,0,29,0,"N",null,null,null,null,"F"]
[2009,9275,"Indianola Municipal Utilities","Municipal","MRO",111424,155,232,"65",null,null,null,null,null,null,null,null,null,null,null,null,null,null,null,null,null,null,null,null,null,null,null,null,null,null,null,null,null,null,null,null,null,null,null,null,null,null,null,null,null,null,null,39,1,null,null,null,"N",null,null,null,null,"N",null,null,null,null,"F"]
[2009,9324,"Indiana Michigan Power Co","Investor Owned","RFC",17642645,14738660,1180,"3700","0","0",1180,3700,"0","0",2,"0","0","0",2,"0","0","0",null,null,null,null,null,null,null,null,null,null,null,null,null,null,406,null,null,null,null,null,null,null,"151",null,4392,null,null,null,null,4392,1,"N/A",null,"Y","Y",null,null,8,null,"Y",24637,1555,202,null,"F"]
[2009,9417,"Interstate Power and Light Co","Investor Owned","MRO",14876474,2014286,42940,"27358","91348",null,308012,324628,"1062615",null,9,"8","16",null,115,"77","233",null,null,null,null,null,"178",null,"1076",null,null,null,null,null,37,null,270,null,null,null,null,null,37,null,"270",null,5841,"25691",1074,"24749",2690,60045,1,null,null,"Y","Y",46829,null,170,null,"Y",16672,4859,282,null,"F"]
[2009,9590,"Jackson Electric Coop, Inc","Cooperative","TRE",217143,null,null,null,null,null,null,11,null,null,null,null,null,null,null,"4",null,null,null,null,null,null,null,null,null,null,null,null,null,null,null,null,null,null,null,null,null,null,null,null,null,null,null,null,null,null,null,0,1,null,null,null,"N",null,null,null,null,"N",null,null,null,null,"F"]
[2009,9601,"Jackson Electric Member Corp","Cooperative","SERC",4775738,null,null,null,null,null,null,null,null,null,null,null,null,null,null,null,null,null,null,null,null,null,null,null,null,null,"12",null,null,null,12,null,null,null,"12",null,null,null,12,null,null,null,700,"646",77,"456",null,1879,1,null,null,null,"N",null,null,null,null,"Y",352,90,3,null,"F"]
[2009,9617,"JEA","Municipal","FRCC",12299072,3494065,25500,"8600",null,null,47000,49200,null,null,4,"0",null,null,9,"1",null,null,null,null,null,null,null,null,null,null,null,null,null,null,null,121,null,null,null,null,null,null,null,50,null,null,857,"540",100,"0",560,2057,1,null,null,"Y","N",null,null,null,null,"Y",null,114,11,0,"F"]
[2009,9645,"Jamestown Board of Public Util","Municipal","NPCC",447238,48893,239,"919","0","0",263,919,"0","0",0,"0","0",null,0,"0",null,null,null,null,null,null,null,null,null,null,null,null,null,null,null,null,null,null,null,null,null,null,null,null,null,null,18,"256",0,"0",10,284,1,null,null,"Y","N",null,null,null,null,"N",null,null,null,null,"F"]
[2009,9689,"Jefferson Electric Member Corp","Cooperative","SERC",558599,null,null,null,null,null,null,null,null,null,null,null,null,null,null,null,null,null,null,null,"2",null,null,"13","8",null,null,null,null,null,null,2,1,null,null,null,null,null,null,2,"1",null,null,null,null,null,null,0,1,null,null,null,"N",null,null,null,null,"N",null,null,null,null,"F"]
[2009,9726,"Jersey Central Power & Lt Co","Investor Owned","RFC",15348356,3083614,2182,null,null,null,92271,469884,null,null,0,null,null,null,70,"87",null,null,null,null,null,null,null,null,null,null,"5","43","34",null,24,43,34,null,"5","43","34",null,24,43,"34",null,861,"3053",1484,"1426",null,6824,1,null,null,"Y","Y",78918,226,38,null,"Y",23100,340,109,null,"F"]
[2009,9750,"Jo-Carroll Energy Coop Inc","Cooperative","MRO",416703,null,null,null,null,null,null,null,null,null,null,null,null,null,null,null,null,null,null,null,null,null,null,null,null,null,"3","2",null,null,null,null,null,null,"1","1",null,null,null,null,null,null,200,null,null,null,null,200,1,null,null,null,"N",null,null,null,null,"N",null,null,null,null,"F"]
[2009,9922,"Jump River Electric Coop Inc","Cooperative","MRO",93350,null,180,null,"14",null,1356,null,"265",null,null,null,null,null,null,null,null,null,"12",null,null,null,"3880",null,null,null,null,null,null,null,7,null,null,null,null,null,null,null,4,null,null,null,null,null,null,null,null,645,1,null,null,null,"N",null,null,null,null,"N",null,null,null,null,"F"]
[2009,9961,"Kansas Electric Power Coop Inc","Cooperative","SPP",null,1962554,null,null,null,null,null,null,null,null,null,null,null,null,null,null,null,null,null,null,null,null,"169","762","762",null,null,null,null,null,2,9,9,null,null,null,null,null,null,null,null,null,null,"461",1,null,null,462,1,null,null,null,"N",null,null,null,null,"N",null,null,null,null,"F"]
[2009,9996,"Kansas City City of","Municipal","SPP",2177970,575205,257,"276",null,null,null,2009,null,null,52,"1",null,null,3,"1",null,null,null,null,null,null,null,null,null,null,null,null,null,null,null,null,null,null,null,null,null,null,null,null,null,null,0,"19",0,"0",236,255,1,null,null,null,"N",null,null,null,null,"N",null,null,null,null,"F"]
[2009,10000,"Kansas City Power & Light Co","Investor Owned","SPP",14680690,5381472,11173,"28440","0","0",24036,59377,"0","0",11,"4","0","0",16,"9","0","0","181","6285","0","0","1170","8192","0","0","5","24","0","0",32,89,0,"0","5","24","0","0",32,89,"0","0",5891,"6112",3532,"3244",0,18779,1,null,null,null,"Y",36818,483,0,0,"Y",94,19,0,0,"F"]
[2009,10005,"Kansas Gas & Electric Co","Investor Owned","SPP",9438316,947875,null,null,null,null,null,null,null,null,null,null,null,null,null,null,null,null,null,null,null,null,null,null,null,null,null,null,null,null,null,null,71,null,null,null,null,null,null,null,null,null,null,null,657,null,null,657,1,null,null,null,"N",null,null,null,null,"N",null,null,null,null,"F"]
[2009,10056,"City of Kaukauna","Municipal","MRO",728021,934,null,null,null,null,null,null,null,null,null,null,null,null,null,null,null,null,null,null,null,null,null,null,null,null,null,null,null,null,null,null,null,null,null,null,null,null,null,null,null,null,null,null,null,null,null,null,1,"WPPI ENERGY",null,"N","N",null,null,null,null,"Y",17,41,10,0,"F"]
[2009,10071,"Kauai Island Utility Cooperative","Cooperative","HICC",436273,null,null,null,null,null,null,3543,null,"0",null,null,null,null,1,"1","1","0",null,null,null,null,null,null,null,null,null,null,null,null,null,null,null,null,null,null,null,null,null,null,null,null,73,"414",null,null,null,487,1,null,null,null,"N",null,null,null,null,"N",null,null,null,null,"F"]
[2009,10153,"KEM Electric Coop Inc","Cooperative","MRO",72558,null,null,null,null,null,null,null,null,null,null,null,null,null,null,null,null,null,null,null,null,null,null,null,null,null,"11","9",null,null,null,null,null,null,"4","6",null,null,null,null,null,null,null,null,null,null,null,82,1,null,null,null,"N",null,null,null,null,"N",null,null,null,null,"F"]
[2009,10171,"Kentucky Utilities Co","Investor Owned","RFC",18412507,2507765,1944,"1207",null,null,11508,8561,null,null,0,"0",null,null,1,"2",null,null,"1325","40",null,null,"1918","45",null,null,"6","0",null,null,62,2,null,null,"6","0",null,null,62,2,null,null,4861,"179",3623,"1165",406,10234,1,null,"Y",null,"Y",46959,659,4,0,"Y",0,46,0,0,"F"]
[2009,10172,"City of Marathon","Municipal","MRO",2193,null,0,"0","0","0",null,null,null,null,0,"0","0","0",null,null,null,null,null,null,null,null,null,null,null,null,null,null,null,null,null,null,null,null,null,null,null,null,null,null,null,null,null,null,null,null,null,1,1,null,null,null,"N",null,null,null,null,"N",null,null,null,null,"F"]
[2009,10265,"City of Kimballton","Municipal","MRO",2301,null,13,"8","0","0",null,null,null,null,0,"0","0","0",null,null,null,null,null,null,null,null,null,null,null,null,null,null,null,null,null,null,null,null,null,null,null,null,null,null,null,null,null,null,null,null,null,1,1,"I.A.M.U.",null,null,"N",null,null,null,null,"N",null,null,null,null,"F"]
[2009,10539,"La Plata Electric Assn, Inc","Cooperative","WECC",1063908,null,null,null,null,null,null,null,null,null,null,null,null,null,null,null,null,null,null,null,null,null,null,null,null,null,"12",null,null,null,12,null,null,null,"12",null,null,null,12,null,null,null,50,"110",50,"0",null,210,1,null,null,null,"N",null,null,null,null,"Y",4598,82,0,0,"F"]
[2009,10574,"L & O Power Co-operative","Cooperative","MRO",null,410352,null,null,null,null,null,null,null,null,null,null,null,null,null,null,null,null,null,null,null,null,null,null,null,null,null,null,null,null,2,null,null,null,null,null,null,null,2,null,null,null,null,null,36,null,null,36,1,null,null,null,"N",null,null,null,null,"N",null,null,null,null,"F"]
[2009,10608,"Lake Park City of","Municipal","MRO",12410,null,47,"0","0","0",null,null,null,null,0,"0","0","0",null,null,null,null,null,null,null,null,null,null,null,null,null,null,null,null,null,null,null,null,null,null,null,null,null,null,null,null,null,null,null,null,null,4,1,null,null,"Y","N",null,null,null,null,"N",null,null,null,null,"F"]
[2009,10625,"Lamb County Electric Coop, Inc","Cooperative","SPP",363843,null,null,null,null,null,null,null,null,null,null,null,null,null,null,null,null,null,null,null,null,null,null,null,null,null,null,null,"12",null,null,null,null,null,null,null,null,null,null,null,null,null,95,null,null,null,null,95,1,null,null,null,"N",null,null,null,null,"N",null,null,null,null,"F"]
[2009,10706,"City of Larchwood","Municipal","MRO",8046,null,63,"0","0","0",null,null,null,null,0,"0","0","0",null,null,null,null,null,null,null,null,null,null,null,null,null,null,null,null,null,null,null,null,null,null,null,null,null,null,null,null,null,null,null,null,null,9,1,null,null,null,"N",null,null,null,null,"N",null,null,null,null,"F"]
[2009,10724,"Lassen Municipal Utility District","Municipal","WECC",131780,null,79,null,null,null,null,null,null,null,0,null,null,"0",null,null,null,null,null,null,null,null,null,null,null,null,null,null,null,null,null,null,null,null,null,null,null,null,null,null,null,null,null,null,null,null,null,253,1,null,null,null,"N",null,null,null,null,"N",null,null,null,null,"F"]
[2009,10768,"Laurens Electric Coop, Inc","Cooperative","SERC",948989,null,null,null,null,null,null,null,null,null,41,null,null,null,null,null,null,null,null,null,null,null,null,"41",null,null,null,"4",null,null,null,null,null,null,null,"4",null,null,null,null,null,null,2475,null,null,null,null,2475,1,null,null,null,"N",null,null,null,null,"Y",9,40,null,null,"F"]
[2009,10769,"City of Laurens","Municipal","MRO",26651,10830,4,null,null,null,null,null,null,null,null,null,null,null,null,null,null,null,null,null,null,null,null,null,null,null,null,null,null,null,null,null,null,null,null,null,null,null,null,null,null,null,null,null,null,null,null,0,1,null,null,null,"N",null,null,null,null,"N",null,null,null,null,"F"]
[2009,10857,"Lee County Electric Coop, Inc","Cooperative","FRCC",3517697,null,4584,"200",null,null,70804,7323,null,null,1,"1",null,null,23,"24",null,null,"130","130",null,null,"2689","866",null,null,"1","1",null,null,13,3,null,null,"1","1",null,null,13,3,null,null,2522,null,null,null,null,2522,1,null,null,null,"Y",72632,77,null,null,"N",null,null,null,null,"F"]
[2009,10908,"City of Lenox","Municipal","RFC",15931,null,28,"4","0","0",null,null,null,null,0,"0","0","0",null,null,null,null,null,null,null,null,null,null,null,null,null,null,null,null,null,null,null,null,null,null,null,null,null,null,null,null,null,null,null,null,null,15,1,null,null,null,"N",null,null,null,null,"N",null,null,null,null,"F"]
[2009,10944,"PUD No 1 of Lewis County","Political Subdivision","WECC",933661,null,1076,"1599","1772",null,null,null,null,null,null,null,null,null,null,null,null,null,null,null,null,null,null,null,null,null,null,null,null,null,null,null,null,null,null,null,null,null,null,null,null,null,null,null,null,null,68,68,1,null,null,null,"N",null,null,null,null,"N",null,null,null,null,"F"]
[2009,11018,"Lincoln Electric System","Municipal","MRO",3054073,1092093,1964,"3260",null,null,1964,3260,null,null,2,"1",null,null,2,"1",null,null,null,null,null,null,null,"12","4",null,null,null,null,null,null,6,2,null,null,null,null,null,null,2,"1",null,1083,null,3,null,null,1086,1,null,null,"N","Y",null,8,2,null,"Y",null,2,1,null,"F"]
[2009,11022,"Lincoln Electric Coop, Inc","Cooperative","WECC",116405,null,null,null,null,null,null,null,null,null,null,null,null,null,null,null,null,null,null,null,null,null,null,null,null,null,null,null,null,null,null,null,null,null,null,null,null,null,null,null,null,null,null,null,null,null,null,332,1,null,null,null,"N",null,null,null,null,"N",null,null,null,null,"F"]
[2009,11064,"Litchfield Public Utilities","Municipal","MRO",111956,null,null,null,null,null,null,null,null,null,null,null,null,null,null,null,null,null,null,null,null,null,null,null,null,null,"4","0","1",null,null,null,null,null,null,null,null,null,null,null,null,null,null,null,null,"75",null,75,1,null,null,null,"Y",1640,140,10,null,"N",null,null,null,null,"F"]
[2009,11085,"Town of Littleton","Municipal","NPCC",263409,null,4,null,null,null,138,null,null,null,null,null,null,null,null,null,null,null,null,null,null,null,null,null,null,null,"0",null,null,null,1,null,null,null,null,null,null,null,null,null,null,null,0,"10",null,null,null,10,1,null,null,null,"N",null,null,null,null,"N",null,null,null,null,"F"]
[2009,11093,"City of Livermore","Municipal","MRO",2604,null,3,"22","0",null,null,null,null,null,null,null,null,null,null,null,null,null,null,null,null,null,null,null,null,null,null,null,null,null,null,null,null,null,null,null,null,null,null,null,null,null,null,null,null,null,null,11,1,null,null,null,"N",null,null,null,null,"N",null,null,null,null,"F"]
[2009,11124,"City of Lodi","Municipal","WECC",452076,null,49000,"838000","887000",null,null,null,null,null,null,null,null,null,null,null,null,null,null,null,null,null,null,null,null,null,null,null,null,null,null,null,null,null,null,null,null,null,null,null,null,null,146,"100",null,null,null,246,1,null,"Y",null,"N",null,null,null,null,"N",null,null,null,null,"F"]
[2009,11125,"City of Lodi","Municipal","MRO",27316,null,null,null,null,null,null,null,null,null,null,null,null,null,null,null,null,null,null,null,null,null,null,null,null,null,null,null,null,null,null,null,null,null,null,null,null,null,null,null,null,null,null,null,null,null,null,null,1,"WPPI ENERGY",null,"N","N",null,null,null,null,"Y",0,7,0,0,"F"]
[2009,11141,"City of Long Grove","Municipal","MRO",2650,null,null,null,null,null,null,null,null,null,null,null,null,null,null,null,null,null,null,null,null,null,null,null,null,null,null,null,null,null,null,null,null,null,null,null,null,null,null,null,null,null,null,null,null,null,null,1,1,null,null,null,"N",null,null,null,null,"N",null,null,null,null,"F"]
[2009,11171,"Long Island Power Authority","State","NPCC",17797255,null,78771,"46817",null,null,473258,297344,null,null,14,"9",null,null,124,"59",null,null,null,null,null,null,null,null,null,null,"51",null,null,null,34,15,null,null,null,null,null,null,null,null,null,null,14834,"31119",1606,null,null,47559,1,null,"Y",null,"N",null,null,null,null,"Y",10060,6196,null,null,"F"]
[2009,11187,"City of Longmont","Municipal","WECC",768125,null,472,"2878","2943",null,2783,5938,"3295",null,null,"1",null,null,1,"1",null,null,null,null,null,null,null,null,null,null,null,null,null,null,null,null,null,null,null,null,null,null,null,null,null,null,68,"706",null,null,null,774,1,null,null,null,"N",null,null,null,null,"N",null,null,null,null,"F"]
[2009,11249,"Louisville Gas & Electric Co","Investor Owned","SERC",11405157,5710665,36632,"979",null,null,51455,13010,null,null,3,"0",null,null,4,"3",null,null,"1623","90",null,null,"2333",null,null,null,"8","0",null,null,78,3,null,null,"8","0",null,null,78,3,null,null,3909,"72",3708,"1619",419,9727,1,null,"Y",null,"Y",68090,863,2,0,"Y",94,110,65,0,"F"]
[2009,11251,"Loup River Public Power Dist","Political Subdivision","MRO",1166373,311925,null,null,null,null,null,null,null,null,null,null,null,null,null,null,null,null,null,null,null,null,null,null,null,null,null,null,null,null,null,null,32,null,null,null,null,null,null,null,"9",null,0,"0",225,"0",0,225,1,null,null,null,"N",null,null,null,null,"N",null,null,null,null,"F"]
[2009,11256,"City of Loveland","Municipal","WECC",650294,null,429,"1157","0",null,1746,4901,"1290",null,0,"0","0",null,1,"1","0",null,null,null,null,null,"22",null,null,null,null,null,null,null,19,5,null,null,null,null,null,null,11,0,null,null,64,"268",285,null,null,617,1,null,null,null,"N",null,null,null,null,"N",null,null,null,null,"F"]
[2009,11268,"City of Lowell","Municipal","RFC",59614,null,103,"201",null,null,103,201,null,null,null,null,null,null,null,null,null,null,null,null,null,null,null,null,null,null,null,null,null,null,null,null,null,null,null,null,null,null,null,null,null,null,null,null,null,null,null,0,1,null,"Y","Y","N",null,null,null,null,"N",null,null,null,null,"F"]
[2009,11305,"Village of Ludlow","Municipal","NPCC",46416,null,102,null,null,null,null,null,null,null,null,null,null,null,null,null,null,null,null,null,null,null,null,null,null,null,null,null,null,null,null,null,null,null,null,null,null,null,null,null,null,null,null,null,null,null,null,4,1,"Efficiency Vermont",null,null,"N",null,null,null,null,"N",null,null,null,null,"F"]
[2009,11355,"Lynches River Elec Coop, Inc","Cooperative","SERC",350734,null,2278,null,null,null,3536,null,null,null,2,null,null,null,3,null,null,null,null,null,null,null,null,null,null,null,null,null,null,null,1,null,null,null,null,null,null,null,1,null,null,null,5,null,null,null,6,11,1,null,"Y",null,"N",null,null,null,null,"N",null,null,null,null,"F"]
[2009,11479,"Madison Gas & Electric Co","Investor Owned","RFC",3200357,321634,20243,"16856",null,null,null,null,null,null,0,"3",null,null,null,null,null,null,"0","0",null,null,null,null,null,null,"10","20",null,null,null,null,null,null,"0","0",null,null,null,null,null,null,852,"98",23,"0",1518,2491,1,null,null,null,"N",null,null,null,null,"Y",527,333,null,null,"F"]
[2009,11501,"Magic Valley Electric Coop Inc","Cooperative","TRE",1797488,0,null,"0","0","0",140,0,"0","0",0,"0","0","0",1,"0","0","0",null,null,null,null,null,null,null,null,null,null,null,null,null,null,null,null,null,null,null,null,null,null,null,null,null,null,null,"11",73,84,1,null,null,null,"N",null,null,null,null,"N",null,null,null,null,"F"]
[2009,11522,"Maine Public Service Co","Investor Owned","NPCC",null,null,55,"5",null,null,3080,3186,null,null,13,"2",null,null,1,"0",null,"0",null,null,null,null,null,null,null,null,null,null,null,null,null,null,null,null,null,null,null,null,null,null,null,null,null,null,null,null,null,0,1,null,null,null,"N",null,null,null,null,"N",null,null,null,null,"F"]
[2009,11560,"City of Manassas","Municipal","SERC",752913,null,null,null,null,null,null,null,null,null,null,null,null,null,null,null,null,null,null,null,null,null,"117",null,null,null,null,null,null,null,2,null,null,null,null,null,null,null,2,null,null,null,null,null,null,"73",null,73,1,null,null,null,"N",null,null,null,null,"N",null,null,null,null,"F"]
[2009,11568,"Town of Manilla","Municipal","MRO",7610,null,43,"2","0","0",null,null,null,null,0,"0","0","0",null,null,null,null,null,null,null,null,null,null,null,null,null,null,null,null,null,null,null,null,null,null,null,null,null,null,null,null,null,null,null,null,null,6,1,null,null,"Y","N",null,null,null,null,"N",null,null,null,null,"F"]
[2009,11571,"Manitowoc Public Utilities","Municipal","MRO",503401,175700,580,null,"5044",null,null,null,null,null,1,null,"1",null,null,null,null,null,null,null,null,null,null,null,null,null,null,null,null,null,null,null,null,null,null,null,null,null,null,null,null,null,null,null,null,null,156,156,1,null,"Y","Y","N",null,null,null,null,"N",null,null,null,null,"F"]
[2009,11581,"City of Manning","Municipal","MRO",35124,null,49,"4","0","0",null,null,null,null,0,"0","0","0",null,null,null,null,null,null,null,null,null,null,null,null,null,null,null,null,null,null,null,null,null,null,null,null,null,null,null,null,null,null,null,null,null,16,1,null,null,null,"N",null,null,null,null,"N",null,null,null,null,"F"]
[2009,11609,"City of Mapleton","Municipal","MRO",13936,null,6,"0","0","0",null,null,null,null,0,"0","0","0",null,null,null,null,"2","0","0","0",null,null,null,null,"0","0","0","0",null,null,null,null,null,null,null,null,null,null,null,null,null,null,null,null,null,17,1,null,null,"Y","Y",88,0,0,null,"N",null,null,null,null,"F"]
[2009,11624,"City of Marblehead","Municipal","NPCC",101459,0,207,null,null,null,null,null,null,null,null,null,null,null,null,null,null,null,null,null,null,null,null,null,null,null,null,null,null,null,null,null,null,null,null,null,null,null,null,null,null,null,null,null,null,null,null,124,1,null,null,null,"N",null,null,null,null,"N",null,null,null,null,"F"]
[2009,11731,"City of Marshall","Municipal","MRO",592169,0,553,"306","15",null,1578,2522,"3840",null,0,"0","0",null,0,"1","1",null,"3","0","0","0","24","5","2",null,"1","0","0","0",8,2,0,null,"0","0","0","0",3,1,"0",null,59,"91",42,"111",0,303,1,null,null,null,"N",null,null,null,null,"N",null,null,null,null,"F"]
[2009,11740,"City of Marshfield","Municipal","MRO",362993,null,845,"1346","2018",null,7020,6855,"4044",null,null,null,"1",null,null,null,"1",null,null,null,null,null,null,null,null,null,null,null,null,null,null,null,null,null,null,null,null,null,null,null,null,null,154,null,null,null,null,154,1,null,"Y",null,"N",null,null,null,null,"Y",null,30,24,null,"F"]
[2009,11804,"Massachusetts Electric Co","Investor Owned","NPCC",10973005,null,118743,"75065","46007",null,null,null,null,null,15,"15","9",null,84,"212","130",null,null,null,null,null,null,null,null,null,null,null,null,null,null,null,null,null,null,null,null,null,null,null,null,null,42276,"45415",137,null,2364,90192,1,null,null,null,"Y",null,259,87,null,"N",null,null,null,null,"F"]
[2009,11811,"Town of Massena","Municipal","NPCC",191054,null,null,null,null,null,null,null,null,null,null,null,null,null,null,null,null,null,null,null,null,null,"3","1",null,null,null,null,null,null,1,0,null,null,null,null,null,null,1,0,null,null,null,"1",23,"31",1,56,1,null,null,null,"Y",675,1,null,null,"N",null,null,null,null,"F"]
[2009,11843,"Maui Electric Co Ltd","Investor Owned","HI",1192243,null,1287,"3190",null,null,21232,55877,null,null,0,"1",null,null,5,"11",null,null,null,null,null,null,null,null,null,null,null,null,null,null,null,null,null,null,null,null,null,null,null,null,null,null,716,"844",null,null,null,1560,1,null,null,"Y","N",null,null,null,null,"N",null,null,null,null,"F"]
[2009,12090,"McLean Electric Coop, Inc","Cooperative","MRO",95631,null,null,null,null,null,null,null,null,null,null,null,null,null,null,null,null,null,null,null,null,null,null,null,null,null,null,null,null,null,null,null,null,null,null,null,null,null,null,null,null,null,null,null,null,null,null,14,1,"Central Power Electric Coop",null,null,"Y",510,null,null,null,"N",null,null,null,null,"F"]
[2009,12114,"City of McGregor","Municipal","MRO",7216,null,7,"1",null,null,null,null,null,null,0,"0",null,null,null,null,null,null,null,null,null,null,null,null,null,null,null,null,null,null,null,null,null,null,null,null,null,null,null,null,null,null,null,null,null,null,null,4,1,null,null,null,"N",null,null,null,null,"N",null,null,null,null,"F"]
[2009,12191,"McMullen Valley Water C&D Dist","Political Subdivision","WECC",54657,null,null,null,null,null,null,null,null,null,null,null,null,null,null,null,null,null,null,null,null,null,null,null,null,null,null,null,null,null,null,null,null,null,null,null,null,null,null,null,null,null,null,null,null,null,null,180,1,null,null,null,"N",null,null,null,null,"N",null,null,null,null,"F"]
[2009,12199,"Montana-Dakota Utilities Co","Investor Owned","MRO",2663560,90789,151,"2242",null,null,null,null,null,null,0,"1",null,null,null,null,null,null,null,null,null,null,"65",null,null,null,null,null,null,null,14,6,1,null,null,null,null,null,3,null,null,null,11,"199",null,null,null,210,1,null,null,null,"N",null,null,null,null,"Y",12,45,null,null,"F"]
[2009,12227,"Meeker Coop Light & Power Assn","Cooperative","MRO",168292,null,null,null,null,null,21,6,"3",null,null,null,null,null,0,"0","0",null,null,null,null,null,"764","218","109",null,null,null,null,null,1,0,0,null,null,null,null,null,1,0,"0",null,5,"2",6,"1",null,14,1,"21",null,null,"Y",4500,59,74,null,"N",null,null,null,null,"F"]
[2009,12260,"Mecklenburg Electric Coop, Inc","Cooperative","SERC",547690,null,null,null,null,null,null,null,null,null,null,null,null,null,null,null,null,null,null,null,null,null,null,"22",null,null,null,null,null,null,6,0,2,null,null,null,null,null,3,0,"1",null,null,null,23,null,13,36,1,null,"Y",null,"Y",6709,3,4,null,"N",0,2,1,0,"F"]
[2009,12268,"Medina Electric Coop, Inc","Cooperative","TRE",535559,null,null,null,null,null,null,null,null,null,null,null,null,null,null,null,null,null,null,null,null,null,null,null,"448",null,null,null,null,null,null,null,22,null,null,null,null,null,null,null,"20",null,null,null,77,"984",null,1061,1,null,null,null,"Y",null,null,284,null,"N",null,null,null,null,"F"]
[2009,12298,"City of Menasha","Municipal","MRO",569908,null,null,null,null,null,null,null,null,null,null,null,null,null,null,null,null,null,null,null,null,null,null,null,null,null,null,null,null,null,null,null,null,null,null,null,null,null,null,null,null,null,null,null,null,null,null,null,1,"WPPI ENERGY",null,"N","N",null,null,null,null,"Y",28,31,12,0,"F"]
[2009,12301,"Nodak Electric Coop Inc","Cooperative","MRO",849025,null,null,null,null,null,null,null,null,null,null,null,null,null,null,null,null,null,"1495","17","17",null,"30148",null,"695",null,"2",null,"1",null,62,null,24,null,"2","0","1",null,62,null,"24",null,24,null,null,null,62,86,1,null,null,null,"N",null,null,null,null,"N",null,null,null,null,"F"]
[2009,12312,"Merced Irrigation District","Political Subdivision","WECC",425954,237652,59,"1053","808","0",2403,10478,"20273",null,null,null,null,null,2,"2","4",null,null,null,null,null,null,null,null,null,null,null,null,null,null,null,null,null,null,null,null,null,null,null,null,null,125,"233",null,null,447,805,1,null,null,null,"N",null,null,null,null,"N",null,null,null,null,"F"]
[2009,12341,"MidAmerican Energy Co","Investor Owned","MRO",30514030,13424225,47710,"83943","89036",null,236413,543997,"473013",null,15,"20","11",null,112,"128","63",null,"30","100","256",null,"895","873","4771",null,"7","4","8",null,60,36,198,null,"7","4","8",null,60,31,"162",null,4233,"22729",2279,"10376",2750,42367,1,null,"Y",null,"Y",59825,45,126,null,"Y",67,570,158,0,"F"]
[2009,12390,"Metropolitan Edison Co","Investor Owned","RFC",13481496,2290553,3105,null,null,null,8797,null,null,null,0,null,null,null,1,null,null,null,null,null,null,null,null,null,null,null,null,null,null,null,null,null,98,null,null,null,null,null,null,null,null,null,2693,null,null,null,null,2693,1,null,null,null,"Y",null,null,50,null,"Y",47279,1836,459,null,"F"]
[2009,12395,"Menard Electric Coop","Cooperative","RFC",193133,null,null,null,null,null,null,null,null,null,null,null,null,null,null,null,null,null,null,null,null,null,"7","0","23",null,null,null,null,null,2,3,36,null,null,null,null,null,2,0,"6",null,36,null,31,null,null,67,1,null,null,null,"Y",1219,null,913,null,"N",null,null,null,null,"F"]
[2009,12450,"Midland Power Coop","Cooperative","RFC",362416,21344,690,null,null,null,793,null,null,null,2,null,null,null,2,null,null,null,null,null,null,null,null,null,null,null,null,null,null,null,null,null,null,null,null,null,null,null,null,null,null,null,110,"45",null,null,143,298,1,"CIPCO",null,null,"N",null,null,null,null,"N",null,null,null,null,"F"]
[2009,12539,"Midwest Electric Member Corp","Cooperative","MRO",186794,null,null,null,null,null,null,null,null,null,null,null,null,null,null,null,null,null,null,null,null,null,null,null,null,null,null,null,"18",null,null,null,100,null,null,null,"15",null,null,null,"76",null,null,null,null,null,null,0,1,null,null,null,"Y",null,null,1459,null,"Y",null,1,1848,null,"F"]
[2009,12541,"City of Milford","Municipal","MRO",28010,3822,20,"42","783",null,null,null,null,null,0,"0","0",null,null,null,null,null,null,null,null,null,null,null,null,null,null,null,null,null,null,null,null,null,null,null,null,null,null,null,null,null,null,null,null,null,null,26,1,null,null,null,"N",null,null,null,null,"N",null,null,null,null,"F"]
[2009,12615,"City of Milton-Freewater","Municipal","WECC",113862,null,1,"1","1","1",null,null,null,null,null,null,null,null,null,null,null,null,"1",null,null,null,null,null,null,null,"1",null,null,null,null,null,null,null,"1",null,null,null,null,null,null,null,null,null,null,null,null,213,1,null,null,null,"Y",440,null,null,null,"N",null,null,null,null,"F"]
[2009,12647,"Minnesota Power Inc","Investor Owned","MRO",6417331,5779962,5496,"12347","0","0",94465,352085,"609345","0",2,"3","0","0",28,"73","47","0","5","1","0","0","142","21","31","0","2",null,null,null,26,5,12,null,null,null,null,null,null,null,null,null,2597,"2886",null,null,null,5483,1,null,null,null,"Y",7011,511,8,null,"N",null,null,null,null,"F"]
[2009,12651,"Minnesota Valley Electric Coop","Cooperative","MRO",673591,null,null,null,null,null,null,null,null,null,null,null,null,null,null,null,null,null,"43",null,null,null,"610","1328",null,null,"1",null,null,null,14,21,null,null,"1",null,null,null,14,21,null,null,null,null,377,null,null,377,1,"87% GRE",null,null,"Y",14954,79,null,null,"N",null,null,null,null,"F"]
[2009,12658,"Minnkota Power Coop, Inc","Cooperative","MRO",0,5369659,null,null,null,null,null,null,null,null,null,null,null,null,null,null,null,null,null,null,null,null,null,null,null,null,null,null,null,null,300,50,null,null,null,null,null,null,270,45,null,null,490,null,2270,null,245,3005,1,null,null,null,"N",null,null,null,null,"N",null,null,null,null,"F"]
[2009,12681,"Mississippi County Electric Coop","Cooperative","SERC",2241649,null,null,null,null,null,null,null,null,null,null,null,null,null,null,null,null,null,null,null,null,null,null,null,null,null,null,null,"3",null,null,null,17,null,null,null,"2",null,null,null,"13",null,null,null,21,"116",null,137,1,null,null,null,"Y",null,null,491,null,"N",null,null,null,null,"F"]
[2009,12686,"Mississippi Power Co","Investor Owned","SERC",9311852,5490979,1806,"421","640",null,26231,421,"18374",null,0,"0","12",null,4,"21","113",null,null,null,null,null,null,null,null,null,null,null,"5",null,null,9,99,null,null,null,"5",null,null,9,"99",null,2547,null,null,null,null,2547,1,null,null,null,"Y",null,null,null,null,"Y",null,null,15,null,"F"]
[2009,12692,"Missoula Electric Coop, Inc","Cooperative","WECC",211805,null,241,"136","21","0",299,31,"17","0",null,null,null,null,null,null,null,null,null,null,null,null,null,null,null,null,null,null,null,null,null,null,null,null,null,null,null,null,null,null,null,null,87,"53",0,"0",7,147,1,null,null,"N","N",null,null,null,null,"N",null,null,null,null,"F"]
[2009,12698,"KCP&L Greater Missouri Operations","Investor Owned","SPP, WECC",7868208,244183,6359,"8901","0","0",6801,9986,"0","0",4,"1","0","0",4,"2","0","0","14","1033","0","0","14","1033","0","0","5","14","0","0",5,14,0,"0","5","14","0","0",5,14,"0","0",1706,"1818",2604,"486",0,6614,1,null,null,null,"Y",6579,44,0,0,"Y",0,77,0,0,"F"]
[2009,12745,"Modesto Irrigation District","Political Subdivision","WECC",2528013,258145,2028,"8841","3813",null,10190,22764,"27247",null,1,"1","0",null,10,"5","5",null,null,null,null,null,null,null,null,null,"12","1","19",null,null,null,null,null,null,null,null,null,null,null,null,null,939,"1800",26,"682",525,3972,1,null,"Y",null,"Y",12874,76,10,0,"Y",null,8,46,null,"F"]
[2009,12825,"NorthWestern Corporation","Investor Owned","WECC",5820135,2412732,41274,"14882",null,null,283523,272749,null,null,18,"3",null,null,84,"46",null,null,null,null,null,null,null,null,null,null,null,null,null,null,null,null,null,null,null,null,null,null,null,null,null,null,5527,"2921",null,null,355,8803,1,null,null,null,"N",null,null,null,null,"N",null,null,null,null,"F"]
[2009,12894,"City of Moorhead","Municipal","MRO",414032,null,null,null,null,null,60,1660,null,null,null,null,null,null,null,null,null,null,null,null,null,null,"873","102",null,null,null,null,null,null,10,4,null,null,null,null,null,null,10,4,null,null,94,"130",50,"108",0,382,1,null,"N",null,"Y",835,33,7,null,"N",null,null,null,null,"F"]
[2009,13038,"City of Mt Pleasant","Municipal","MRO",66738,0,2,"52","0","0",null,null,null,null,0,"0","0","0",null,null,null,null,"0","0","0","0",null,null,null,null,"0","0","0","0",null,null,null,null,"0","0","0","0",null,null,null,null,null,null,null,null,null,17,1,null,null,null,"N",null,null,null,null,"N",null,null,null,null,"F"]
[2009,13050,"Mountain Parks Electric, Inc","Cooperative","WECC",296366,1067,null,null,null,null,null,null,null,null,null,null,null,null,null,null,null,null,null,null,null,null,null,null,null,null,null,null,null,null,8,1,11,null,null,null,null,null,7,1,"10",null,null,null,null,null,null,0,1,null,null,null,"N",null,null,null,null,"Y",375,23,null,null,"F"]
[2009,13058,"Mountain View Elec Assn, Inc","Cooperative","WECC",701878,null,null,null,null,null,2023,null,null,null,1,null,null,null,null,null,null,null,null,null,null,null,null,null,null,null,"2","5",null,null,null,null,null,null,"2","2",null,null,null,null,null,null,34,"66",78,"54",null,232,1,null,null,null,"Y",1385,51,null,null,"Y",25,null,null,null,"F"]
[2009,13143,"Board of Water Electric & Communications","Municipal","MRO",817430,511496,1241,"112","455",null,1241,112,"455",null,null,null,null,null,null,null,null,null,null,null,null,null,null,null,null,null,null,null,null,null,null,null,null,null,null,null,null,null,null,null,null,null,307,"130",null,null,46,483,1,null,null,null,"N",null,null,null,null,"N",null,null,null,null,"F"]
[2009,13149,"City of Needles","Municipal","WECC",56200,null,185959,null,null,null,null,null,null,null,185,null,null,null,null,null,null,null,null,null,null,null,null,null,null,null,null,null,null,null,null,null,null,null,null,null,null,null,null,null,null,null,null,"222",null,null,null,222,1,null,null,null,"N",null,null,null,null,"N",null,null,null,null,"F"]
[2009,13206,"Nantucket Electric Co","Investor Owned","NPCC",122620,null,null,"120",null,null,602,1696,null,null,null,"0",null,null,0,"1",null,null,null,null,null,null,null,null,null,null,null,null,null,null,null,null,null,null,null,null,null,null,null,null,null,null,null,null,null,null,null,0,1,null,null,null,"N",null,null,null,null,"N",null,null,null,null,"F"]
[2009,13208,"Naperville City of","Municipal","RFC",1379090,null,null,null,"5440",null,null,null,null,null,null,null,null,null,null,null,null,null,null,null,null,null,null,null,null,null,null,null,null,null,null,null,null,null,null,null,null,null,null,null,null,null,null,"219",null,null,null,219,1,null,null,null,"Y",null,1,2,null,"N",null,null,null,null,"F"]
[2009,13214,"The Narragansett Electric Co","Investor Owned","NPCC",5615933,null,31154,"29728","18220",null,215856,361242,"221406",null,4,"8","5",null,20,"82","51",null,null,null,null,null,null,null,null,null,null,null,null,null,null,null,null,null,null,null,null,null,null,null,null,null,14202,"11669",61,null,1143,27075,1,null,null,null,"Y",null,103,35,null,"N",null,null,null,null,"F"]
[2009,13318,"Navopache Electric Coop, Inc","Cooperative","WECC",419037,null,1,null,null,null,149,null,null,null,1,null,null,null,6,null,null,null,"2","75","5",null,"3","131","37",null,"7","2","1",null,13,13,1,null,"4","1","1",null,7,7,"1",null,45,"4",14,null,4,67,1,null,null,null,"Y",null,null,2,null,"N",6053,369,23,null,"F"]
[2009,13337,"Nebraska Public Power District","Political Subdivision","MRO",2996776,16520892,13740,null,"14650",null,18550,null,"15050",null,3,null,"2",null,4,null,"2",null,null,null,null,null,null,null,null,null,"0",null,"30",null,11,null,819,null,"0",null,"19",null,4,null,"413",null,null,"2120",null,null,4475,6595,1,null,null,null,"Y",null,null,4,null,"N",null,null,null,null,"F"]
[2009,13374,"Constellation NewEnergy, Inc","Retail Power Marketer","MAAC",53255040,null,null,null,null,null,null,null,null,null,null,null,null,null,null,null,null,null,null,null,null,null,null,null,null,null,null,null,null,null,null,792,null,null,null,null,null,null,null,734,null,null,null,null,2747,"86",null,2833,1,null,"Y","Y","Y",null,null,null,null,"N",null,null,null,null,"F"]
[2009,13407,"Nevada Power Co","Investor Owned","WECC",21197433,1395015,152979,"179445",null,null,616326,534024,null,null,23,"25",null,null,148,"137",null,null,"1778",null,null,null,"3218",null,null,null,"59",null,null,null,143,null,null,null,"45",null,null,null,125,null,null,null,10233,"18236",14018,"1486",6000,49973,1,null,null,null,"Y",53336,2676,0,0,"Y",2539,244,1630,3,"F"]
[2009,13441,"New Hampshire Elec Coop Inc","Cooperative","NPCC",679138,null,2217,"2276",null,null,12979,16023,null,null,null,null,null,null,null,null,null,null,null,null,null,null,null,null,null,null,null,null,null,null,10,null,null,null,null,null,null,null,null,null,null,null,298,"619",57,"52",156,1182,1,null,null,null,"Y",7300,0,null,0,"Y",18,16,0,0,"F"]
[2009,13444,"City of New Hampton","Municipal","MRO",52583,null,null,null,null,null,null,null,null,null,null,null,null,null,null,null,null,null,null,null,null,null,null,null,null,null,null,null,null,null,null,null,null,null,null,null,null,null,null,null,null,null,null,null,null,null,null,12,1,null,null,null,"N",null,null,null,null,"N",null,null,null,null,"F"]
[2009,13523,"City of Newberry","Municipal","SERC",198085,null,null,null,null,null,null,null,null,null,null,null,null,null,null,null,null,null,null,null,null,null,null,null,null,null,null,"0",null,null,null,0,null,null,null,"0",null,null,null,0,null,null,725,null,null,null,null,725,1,null,null,null,"Y",null,2,null,null,"Y",null,2,null,null,"F"]
[2009,13610,"Niobrara Valley El Member Corp","Cooperative","MRO",112702,null,null,null,null,null,null,null,null,null,null,null,null,null,null,null,null,null,null,null,null,null,null,null,null,null,null,null,"4",null,null,null,null,null,null,null,"4",null,null,null,null,null,null,null,null,null,null,3,1,null,null,null,"Y",0,0,640,null,"N",null,null,null,null,"F"]
[2009,13630,"North Carolina Mun Power Agny #1","Municipal Mktg Authority","SERC",null,6894332,null,null,null,null,null,null,null,null,null,null,null,null,null,null,null,null,null,null,null,null,null,null,null,null,null,"0","5",null,3,23,45,null,null,null,null,null,null,null,null,null,null,null,null,null,null,0,1,null,null,null,"N",null,null,null,null,"N",null,null,null,null,"F"]
[2009,13640,"Northern Virginia Elec Coop","Cooperative","SERC",3296045,null,4,null,null,null,12,null,null,null,null,null,null,null,null,null,null,null,"2","2",null,null,"204","107","22",null,null,null,null,null,31,3,null,null,null,null,null,null,28,3,null,null,null,null,82,"693",null,775,1,null,null,null,"Y",null,8,5,null,"N",null,null,null,null,"F"]
[2009,13664,"Norris Public Power District","Political Subdivision","MRO",636567,42304,null,null,null,null,null,null,null,null,null,null,null,null,null,null,null,null,"75",null,"300",null,"450",null,"2400",null,"1",null,"3",null,4,null,18,null,"1",null,"2",null,3,null,"16",null,null,null,150,null,50,200,1,null,null,null,"N",null,null,null,null,"N",null,null,null,null,"F"]
[2009,13675,"Nishnabotna Valley R E C","Cooperative","MRO",162722,null,null,null,null,null,null,null,null,null,null,null,null,null,null,null,null,null,null,null,null,null,null,null,null,null,null,null,null,null,null,null,null,null,null,null,null,null,null,null,null,null,null,null,null,null,null,null,1,null,null,null,"N",null,null,null,null,"N",null,null,null,null,"F"]
[2009,13676,"North Arkansas Elec Coop, Inc","Cooperative","SPP",551607,null,null,null,null,null,null,null,null,null,null,null,null,null,null,null,null,null,null,null,null,null,null,null,null,null,null,null,null,null,16,3,null,null,null,null,null,null,6,2,null,null,null,null,231,null,null,231,1,null,null,"N","Y",null,25,null,null,"Y",null,25,null,null,"F"]
[2009,13683,"North Carolina El Member Corp","Cooperative","SERC",null,17863593,null,null,null,null,null,null,null,null,null,null,null,null,null,null,null,null,null,null,null,null,null,null,null,null,null,null,null,null,10,0,70,null,null,null,null,null,null,null,null,null,null,null,null,null,null,0,1,null,null,null,"N",null,null,null,null,"N",null,null,null,null,"F"]
[2009,13687,"North Carolina Eastern M P A","Municipal Mktg Authority","SERC",null,7208138,null,null,null,null,11,null,"2",null,null,null,null,null,1,null,null,null,null,null,null,null,null,null,null,null,"1","2","3",null,50,69,214,null,"0","0","1",null,45,60,"193",null,133,"402",1043,"6010",291,7879,1,null,null,"N","N",null,null,null,null,"N",null,null,null,null,"F"]
[2009,13690,"North Central MO Elec Coop Inc","Cooperative","SERC",168812,23035,null,null,null,null,null,null,null,null,null,null,null,null,null,null,null,null,null,null,null,null,null,null,null,null,null,null,null,null,3,null,null,null,null,null,null,null,2,null,null,null,399,null,55,"70",null,524,1,null,null,null,"Y",null,75,null,null,"N",null,null,null,null,"F"]
[2009,13762,"Northern Neck Elec Coop, Inc","Cooperative","SERC",251285,null,null,null,null,null,null,null,null,null,null,null,null,null,null,null,null,null,"12",null,null,null,"408","8",null,null,null,null,null,null,8,null,null,null,null,null,null,null,8,null,null,null,null,null,14,null,27,41,1,null,null,null,"N",null,null,null,null,"N",null,null,null,null,"F"]
[2009,13780,"Northern States Power Co - Wisconsin","Investor Owned","MRO",6140363,530856,null,null,null,null,17937,197266,"221090",null,null,null,null,null,18,"62","44",null,"22","64","369",null,"667","679","2614",null,"1","1","5",null,48,43,129,null,"1","1","5",null,48,43,"129",null,3616,null,638,null,7345,11599,1,null,null,null,"Y",9,104,25,null,"Y",7917,1329,55,null,"F"]
[2009,13781,"Northern States Power Co - Minnesota","Investor Owned","MRO",34663593,11330962,45752,"167817","106178",null,382293,2403174,"2141417",null,35,"44","20",null,238,"567","440",null,"319","739","493",null,"8845","27082","23799",null,"68","23","35",null,514,515,164,null,"68","23","35",null,514,515,"164",null,24331,"18931",7376,"19983",5140,75761,1,null,null,null,"N",null,null,null,null,"N",null,null,null,null,"F"]
[2009,13783,"Northeast Louisiana Power Coop Inc.","Cooperative","SERC",243655,null,null,null,null,null,null,null,null,null,null,null,null,null,null,null,null,null,null,null,null,null,null,"2818",null,null,null,null,null,null,null,10,null,null,null,null,null,null,null,2,null,null,6,null,null,null,null,6,1,null,null,null,"N",null,null,null,null,"Y",null,50,null,null,"F"]
[2009,13798,"Northwest Iowa Power Coop","Cooperative","MRO",0,1481428,194,"4",null,null,2697,55,null,null,0,"0",null,null,2,"1",null,null,null,null,null,null,null,null,null,null,null,null,null,null,40,3,null,null,null,null,null,null,10,3,null,null,null,"686",null,"577",25,1288,1,null,null,null,"N",null,null,null,null,"N",null,null,null,null,"F"]
[2009,13805,"Northwest Rural Pub Pwr Dist","Political Subdivision","WECC",77000,null,null,null,null,null,null,null,null,null,null,null,null,null,null,null,null,null,null,null,null,null,null,null,null,null,null,null,"3",null,null,null,null,null,null,null,"3",null,null,null,null,null,null,null,null,"65",null,65,1,null,null,null,"N",null,null,null,null,"N",null,null,null,null,"F"]
[2009,13815,"Northwestern Wisconsin Elec Co","Investor Owned","MRO",164663,5756,2,null,null,null,278,2460,"1021",null,null,null,null,null,null,null,null,null,null,null,null,null,null,null,null,null,"1",null,null,null,null,null,null,null,null,null,null,null,null,null,null,null,20,null,20,"1",1,42,1,null,null,null,"Y",null,2,null,null,"Y",534,22,53,null,"F"]
[2009,13816,"City of Northwood","Municipal","MRO",16784,null,null,null,null,null,null,null,null,null,null,null,null,null,null,null,null,null,null,null,null,null,null,null,null,null,null,null,null,null,null,null,null,null,null,null,null,null,null,null,null,null,null,null,null,null,null,13,1,null,null,null,"N",null,null,null,null,"N",null,null,null,null,"F"]
[2009,13839,"City of Norwood","Municipal","NPCC",320598,null,0,"34","7",null,1941,2084,"6306",null,0,"0","0",null,1,null,null,null,null,"0","0",null,"0",null,null,null,"0","0","0",null,0,null,null,null,"0",null,"0",null,0,null,null,null,38,"45",13,"0",0,96,1,null,null,null,"N",null,null,null,null,"N",null,null,null,null,"F"]
[2009,13934,"Ocmulgee Electric Member Corp","Cooperative","SERC",182414,null,null,"3","4",null,null,null,null,null,null,"3","4",null,null,null,null,null,null,"3","4",null,null,null,null,null,null,"3","4",null,null,null,null,null,null,"3","4",null,null,null,null,null,null,null,6,null,null,6,1,null,null,null,"N",null,null,null,null,"N",null,null,null,null,"F"]
[2009,13936,"Oakdale Electric Coop","Cooperative","MRO",259376,null,563,null,"1230",null,1521,null,"2183",null,null,null,null,null,null,null,null,null,"26",null,null,null,"2565",null,null,null,null,null,null,null,8,null,null,null,null,null,null,null,4,null,null,null,24,"172",515,"53",26,790,1,null,null,null,"Y",6823,81,2,null,"Y",null,142,17,null,"F"]
[2009,13961,"Ocotillo Water Conserv. Dist.","Political Subdivision","WECC",12947,null,null,null,null,null,null,null,null,null,null,null,null,null,null,null,null,null,null,null,null,null,null,null,null,null,null,null,null,null,null,null,null,null,null,null,null,null,null,null,null,null,null,null,null,null,null,5,1,null,null,null,"N",null,null,null,null,"N",null,null,null,null,"F"]
[2009,13963,"Oconomowoc Utilities","Municipal","MRO",231825,null,null,null,null,null,null,null,null,null,null,null,null,null,null,null,null,null,null,null,null,null,null,null,null,null,null,null,null,null,null,null,null,null,null,null,null,null,null,null,null,null,null,null,null,null,null,null,1,"WPPI ENERGY",null,"N","N",null,null,null,null,"Y",13,38,10,0,"F"]
[2009,13965,"Oconto Falls Water & Light Comm","Municipal","MRO",27023,null,null,null,null,null,null,null,null,null,null,null,null,null,null,null,null,null,null,null,null,null,null,null,null,null,null,null,null,null,null,null,null,null,null,null,null,null,null,null,null,null,null,null,null,null,null,null,1,"WPPI ENERGY",null,"N","N",null,null,null,null,"Y",0,6,0,0,"F"]
[2009,13990,"City of Ogden","Municipal","MRO",12533,92,36,"1","0","0",null,null,null,null,0,"0","0","0",null,null,null,null,null,null,null,null,null,null,null,null,null,null,null,null,null,null,null,null,null,null,null,null,null,null,null,null,null,null,null,null,null,16,1,null,null,null,"N",null,null,null,null,"N",null,null,null,null,"F"]
[2009,13998,"Ohio Edison Co","Investor Owned","RFC",19043752,2427208,515,null,null,null,539,null,null,null,null,null,null,null,null,null,null,null,"414",null,null,null,"728",null,null,null,null,null,null,null,3,null,66,null,null,null,null,null,3,null,null,null,548,null,4618,null,null,5166,1,null,null,null,"Y",5126,null,28,null,"N",null,null,null,null,"F"]
[2009,14006,"Ohio Power Co","Investor Owned","RFC",24936379,28352569,39700,"13200","79300","0",39700,13200,"79300","0",3,"5","13","0",3,"5","13","0","0","0","0","0","0","0","0","0","0","0","0","0",0,0,347,"0","0","0","0","0",0,0,"152","0",6907,null,null,null,null,6907,1,"N/A",null,"Y","Y",null,null,6,null,"Y",30639,747,35,null,"F"]
[2009,14063,"Oklahoma Gas & Electric Co","Investor Owned","SPP",24587424,2293223,null,null,null,null,27963,17502,null,null,null,null,null,null,49,"13",null,null,null,null,null,null,null,null,"1058",null,null,null,null,null,null,null,145,null,null,null,null,null,null,null,"132",null,267,"983",0,"3045",null,4295,1,null,null,"Y","Y",null,62,12,null,"Y",1360,940,59,null,"F"]
[2009,14107,"City of Olivia","Municipal","MRO",27487,null,null,null,null,null,null,null,null,null,null,null,null,null,null,null,null,null,null,null,null,null,null,null,null,null,"1",null,null,null,1,null,null,null,"1",null,null,null,1,null,null,null,null,null,null,null,null,40,1,null,null,null,"N",null,null,null,null,"N",null,null,null,null,"F"]
[2009,14125,"Oneida-Madison Elec Coop, Inc","Cooperative","NPCC",21038,null,null,null,null,null,null,null,null,null,null,null,null,null,null,null,null,null,null,null,null,null,null,null,null,null,"0","0",null,null,null,null,null,null,"0",null,null,null,null,null,null,null,null,null,null,null,null,31,1,null,null,null,"N",null,null,null,null,"N",null,null,null,null,"F"]
[2009,14127,"Omaha Public Power District","Political Subdivision","MRO",10148466,5498708,9823,"13233",null,null,16306,36193,null,null,6,"4",null,null,8,"8",null,null,null,null,null,null,null,null,null,null,"3","0",null,null,41,3,null,null,"3","0",null,null,41,3,null,null,1172,"193",453,"885",176,2879,1,"N/A",null,"Y","Y",0,42,29,null,"Y",0,126,8,null,"F"]
[2009,14132,"City of Onawa","Municipal","MRO",33085,0,null,null,null,null,null,null,null,null,null,null,null,null,null,null,null,null,null,null,null,null,null,null,null,null,null,null,null,null,null,null,null,null,null,null,null,null,null,null,null,null,null,null,null,null,null,16,1,"NorthWest Iowa Power Coop",null,null,"Y",124,31,0,0,"N",null,null,null,null,"F"]
[2009,14154,"Orange & Rockland Utils Inc","Investor Owned","NPCC",2307200,259537,37,"9","0","0",37,9,null,null,0,"0","0",null,0,"0","0","0",null,null,null,null,null,null,null,null,null,null,null,null,null,null,null,null,null,null,null,null,null,null,null,null,208,"58",0,"0",113,379,1,null,null,"Y","N",null,null,null,null,"Y",null,351,34,0,"F"]
[2009,14159,"City of Orange City","Municipal","MRO",89329,null,4,"69","2069",null,null,null,null,null,null,null,null,null,null,null,null,null,null,null,null,null,null,null,null,null,null,null,null,null,null,null,null,null,null,null,null,null,null,null,null,null,null,"90",null,null,null,90,1,null,null,"N","N",null,null,null,null,"N",null,null,null,null,"F"]
[2009,14166,"City of Orient","Municipal","MRO",2387,null,16,null,null,null,null,null,null,null,null,null,null,null,null,null,null,null,null,null,null,null,null,null,null,null,null,null,null,null,null,null,null,null,null,null,null,null,null,null,null,null,null,null,null,null,null,5,1,null,null,null,"N",null,null,null,null,"N",null,null,null,null,"F"]
[2009,14201,"City of Osage","Municipal","MRO",50926,0,null,null,null,null,65,30,null,null,null,null,null,null,null,null,null,null,null,null,null,null,"5","1",null,null,null,null,null,null,null,null,null,null,null,null,null,null,null,null,null,null,null,null,null,null,null,31,1,null,"Y",null,"N",null,null,null,null,"N",null,null,null,null,"F"]
[2009,14202,"Osceola Electric Coop, Inc","Cooperative","MRO",61514,null,null,null,null,null,null,null,null,null,null,null,null,null,null,null,null,null,null,null,null,null,null,null,null,null,null,null,null,null,null,null,null,null,null,null,null,null,null,null,null,null,null,null,null,null,null,28,1,"L & O Power Cooperative, Inc.",null,null,"N",null,null,null,null,"N",null,null,null,null,"F"]
[2009,14216,"City of Osceola","Municipal","SERC",151553,null,null,null,null,null,null,null,null,null,null,null,null,null,null,null,null,null,null,null,"6",null,null,null,"6",null,null,null,null,null,null,null,null,null,null,null,"6",null,null,null,"6",null,296,null,null,null,null,296,1,null,null,null,"N",null,null,null,null,"N",null,null,null,null,"F"]
[2009,14232,"Otter Tail Power Co","Investor Owned","MISO",4244377,1905010,3641,"8455","27632","0",18797,27499,"88512","0",2,"3","5","0",7,"9","16","0","284","212","0","0","7660","5732","0","0","2","1","0","0",44,33,0,"0","0","0","0","0",0,0,"0","0",1209,"2620",340,"0",3143,7312,1,null,null,null,"Y",37013,4462,0,0,"Y",0,184,24,0,"F"]
[2009,14246,"City of Owatonna","Municipal","MRO",339912,0,null,"2672","1145",null,null,null,null,null,1,"1","0",null,null,null,null,null,null,null,null,null,null,null,null,null,null,null,null,null,null,null,null,null,null,null,null,null,null,null,null,null,53,"316",0,"398",55,822,1,null,"N",null,"Y",null,null,null,null,"N",null,null,null,null,"F"]
[2009,14251,"Owen Electric Coop Inc","Cooperative","RFC",2005381,null,null,null,null,null,null,null,null,null,null,null,null,null,null,null,null,null,null,null,null,null,null,null,null,null,null,null,null,null,null,null,null,null,null,null,null,null,null,null,null,null,69,"18",null,null,41,128,1,"DLC - East Ky Power Coop",null,"Y","Y",416,null,null,null,"N",null,null,null,null,"F"]
[2009,14328,"Pacific Gas & Electric Co","Investor Owned","WECC",79984862,1865338,526933,"777759","288054",null,4427506,5597435,"1581895",null,92,"146","35",null,865,"1118","223",null,"82",null,null,null,null,"157","1537",null,null,null,null,null,151,68,759,null,null,null,null,null,2,15,"317",null,127122,"125921",36015,"34054",199954,523066,1,null,null,"Y","Y",null,141,1365,null,"Y",20724,209,648,null,"F"]
[2009,14354,"PacifiCorp","Investor Owned","WECC",52709525,12349061,156112,"61074","87388","0",819172,572699,"87388","0",34,"13","19","0",176,"123","19","0","0","0","0","0","0","0","0","0","881","527","0","0",0,0,0,"0","103","299","0","0",0,0,"0","0",21904,"35159",13528,"10162",0,80753,1,null,null,null,"Y",98134,0,1103,0,"Y",16939,2399,1065,0,"F"]
[2009,14398,"Palmetto Electric Coop Inc","Cooperative","SERC",1423194,null,4641,null,null,null,18133,null,null,null,4,null,null,null,14,null,null,null,null,null,null,null,null,"1518",null,null,"0",null,null,null,14,15,null,null,"0",null,null,null,14,11,null,null,7,"1",587,"272",25,892,1,null,null,"Y","Y",35100,77,null,null,"Y",null,49,null,null,"F"]
[2009,14401,"City of Palo Alto","Municipal","WECC",975503,null,1347,"3321",null,null,13347,71636,null,null,0,"1",null,null,0,"10",null,null,null,null,null,null,null,null,null,null,null,null,null,null,null,null,null,null,null,null,null,null,null,null,null,null,1168,"618",0,"0",null,1786,1,null,null,null,"N",null,null,null,null,"N",null,null,null,null,"F"]
[2009,14426,"Panhandle Rural El Member Assn","Cooperative","WECC",79261,null,null,null,null,null,null,null,null,null,null,null,null,null,null,null,null,null,null,null,null,null,null,"486",null,null,null,"10",null,null,null,50,null,null,null,"4",null,null,null,18,null,null,null,null,null,null,null,61,1,null,null,null,"N",null,null,null,null,"N",null,null,null,null,"F"]
[2009,14468,"People's Cooperative Services","Cooperative","MRO",236588,null,680,null,"744",null,3490,null,"995",null,null,null,null,null,2,null,null,null,null,null,null,null,"2924",null,null,null,null,null,null,null,5,null,5,null,null,null,null,null,3,null,null,null,62,"73",11,"42",11,199,1,null,null,null,"Y",3900,47,null,null,"N",null,null,null,null,"F"]
[2009,14489,"City of Parker","Municipal","MRO",11737,null,null,null,null,null,null,null,null,null,null,null,null,null,null,null,null,null,null,null,null,null,null,null,null,null,null,null,null,null,null,null,null,null,null,null,null,null,null,null,null,null,null,null,null,null,null,3,1,null,null,null,"Y",264,26,null,null,"N",null,null,null,null,"F"]
[2009,14534,"City of Pasadena","Municipal","WECC",1212980,130356,5502,"14085",null,null,27708,66197,null,null,3,"4",null,null,9,"20",null,null,null,null,null,null,null,null,null,null,null,null,null,null,null,null,null,null,null,null,null,null,null,null,null,null,657,"6762",null,null,1450,8869,1,null,null,null,"N",null,null,null,null,"N",null,null,null,null,"F"]
[2009,14557,"Pee Dee Electric Coop, Inc","Cooperative","SERC",670359,null,2256,null,null,null,6833,null,null,null,2,null,null,null,5,null,null,null,null,null,null,null,null,null,null,null,null,null,null,null,2,null,null,null,null,null,null,null,2,null,null,null,null,null,67,"5",26,98,1,null,"Y",null,"Y",null,null,25,null,"Y",null,2,null,null,"F"]
[2009,14577,"City of Paullina","Municipal","MRO",9508,null,61,"0","0","0",null,null,null,null,0,"0","0","0",null,null,null,null,"2","0","0","0",null,null,null,null,"0","0","0","0",null,null,null,null,null,null,null,null,null,null,null,null,null,null,null,null,null,8,1,null,null,"Y","Y",142,11,0,null,"N",null,null,null,null,"F"]
[2009,14585,"Town of Paxton","Municipal","NPCC",21920,null,null,null,null,null,38,null,null,null,null,null,null,null,null,null,null,null,null,null,null,null,null,null,null,null,null,null,null,null,null,null,null,null,null,null,null,null,null,null,null,null,null,null,null,null,null,10,1,null,null,null,"N",null,null,null,null,"N",null,null,null,null,"F"]
[2009,14600,"Payson City Corporation","Municipal","WECC",100420,0,null,null,null,null,null,null,null,null,null,null,null,null,null,null,null,null,null,null,null,null,null,null,null,null,null,null,null,null,null,null,null,null,null,null,null,null,null,null,null,null,null,null,null,null,null,4,1,null,null,null,"N",null,null,null,null,"N",null,null,null,null,"F"]
[2009,14610,"Orlando Utilities Comm","Municipal","FRCC",6064166,1126729,2275,"3835",null,null,null,null,null,null,0,"1",null,null,null,null,null,null,null,null,null,null,null,null,null,null,null,null,null,null,null,null,null,null,null,null,null,null,null,null,null,null,35,"326",null,null,1663,2024,1,null,null,"Y","N",null,null,null,null,"Y",0,200,null,null,"F"]
[2009,14624,"PUD No 2 of Grant County","Political Subdivision","WECC",3693343,7093519,985,"821","17814",null,37783,4851,"42150",null,null,null,"0",null,0,"0","0","0",null,null,null,null,null,null,null,null,null,null,null,null,null,null,null,null,null,null,null,null,null,null,null,null,65,"1543",null,null,148,1756,1,null,null,"N","N",null,null,null,null,"N",null,null,null,null,"F"]
[2009,14653,"PUD No 1 of Pend Oreille Cnty","Political Subdivision","WECC",969588,207364,104,null,"2141",null,4804,1967,"7009",null,8,null,"159",null,null,null,null,null,null,null,null,null,null,null,null,null,null,null,null,null,null,null,null,null,null,null,null,null,null,null,null,null,26,"228",null,null,null,254,1,null,null,null,"N",null,null,null,null,"N",null,null,null,null,"F"]
[2009,14700,"Village of Penn Yan","Municipal","NPCC",79893,null,103,"7",null,null,null,null,null,null,0,"0",null,null,null,null,null,null,null,null,null,null,null,null,null,null,null,null,null,null,null,null,null,null,null,null,null,null,null,null,null,null,null,null,null,null,null,50,1,null,"Y",null,"N",null,null,null,null,"N",null,null,null,null,"F"]
[2009,14711,"Pennsylvania Electric Co","Investor Owned","RFC",13090058,3173826,3719,null,null,null,12806,null,null,null,1,null,null,null,2,null,null,null,null,null,null,null,null,null,null,null,null,null,null,null,null,null,34,null,null,null,null,null,null,null,null,null,3091,null,null,null,null,3091,1,null,null,null,"Y",null,null,50,null,"Y",22150,717,385,null,"F"]
[2009,14715,"PPL Electric Utilities Corp","Investor Owned","RFC",36659424,939174,null,null,null,null,null,null,null,null,null,null,null,null,null,null,null,null,null,null,null,null,null,null,"8373",null,null,null,null,null,null,null,238,null,null,null,null,null,null,null,null,null,null,null,null,null,null,0,1,null,null,"Y","N",null,null,null,null,"Y",14818,5210,557,1,"F"]
[2009,14716,"Pennsylvania Power Co","Investor Owned","RFC",2063379,1018,null,null,null,null,1,null,null,null,0,null,null,null,null,null,null,null,null,null,null,null,null,null,null,null,null,null,null,null,null,null,null,null,null,null,null,null,null,null,null,null,761,null,null,null,null,761,1,null,null,null,"N",null,null,null,null,"Y",null,4,18,null,"F"]
[2009,14864,"Petit Jean Electric Coop Corp","Cooperative","SERC",272360,0,null,null,null,null,null,null,null,null,null,null,null,null,null,null,null,null,null,null,null,null,null,null,null,null,null,null,null,null,3,null,null,null,null,null,null,null,2,null,null,null,null,null,null,"80",2,82,1,null,null,null,"N",null,null,null,null,"N",null,null,null,null,"F"]
[2009,14940,"PECO Energy Co","Investor Owned","RFC",37722660,587586,null,null,null,null,null,null,null,null,null,null,null,null,null,null,null,null,null,null,null,null,null,null,null,null,null,null,null,null,null,227,183,"5",null,null,null,null,null,194,null,null,null,null,738,"6686",null,7424,1,"No",null,null,"Y",null,177,7,1,"Y",81015,127,null,null,"F"]
[2009,15023,"Piedmont Electric Member Corp","Cooperative","SERC",451990,0,null,null,null,null,null,null,null,null,null,null,null,null,null,null,null,null,null,null,null,null,null,null,null,null,null,null,null,null,null,null,null,null,null,null,null,null,null,null,null,null,11,"2",null,"157",null,170,1,"Duke Energy",null,null,"Y",7188,77,0,null,"Y",486,23,0,null,"F"]
[2009,15028,"Piedmont Municipal Power Agny","Political Subdivision","SERC",null,2374422,null,null,null,null,null,null,null,null,null,null,null,null,null,null,null,null,null,null,null,null,null,null,null,null,null,null,null,null,null,null,null,null,null,null,null,null,null,null,null,null,1,null,null,null,null,1,1,null,null,"Y","N",null,null,null,null,"N",null,null,null,null,"F"]
[2009,15034,"Pierce-Pepin Coop Services","Cooperative","MRO",115707,null,562,null,"37",null,783,null,"213",null,null,null,null,null,null,null,null,null,null,null,null,null,null,null,null,null,null,null,null,null,19,null,5,null,null,null,null,null,5,null,"1",null,null,null,null,null,null,295,1,null,null,null,"N",null,null,null,null,"N",null,null,null,null,"F"]
[2009,15138,"Platte-Clay Electric Coop, Inc","Cooperative","SERC",443369,81985,null,null,null,null,275,null,null,null,null,null,null,null,null,null,null,null,null,null,null,null,null,null,null,null,null,null,null,null,1,null,null,null,null,null,null,null,1,null,null,null,null,null,100,null,null,100,1,null,null,null,"N",null,null,null,null,"N",null,null,null,null,"F"]
[2009,15180,"City of Pocahontas","Municipal","MRO",19694,null,7,"80","0","0",null,null,null,null,0,"0","0","0",null,null,null,null,"8","3","0","0",null,null,null,null,"1","0","0","0",null,null,null,null,null,null,null,null,null,null,null,null,null,null,null,null,null,94,1,null,null,null,"Y",660,120,0,null,"N",null,null,null,null,"F"]
[2009,15231,"Port Angeles City of","Municipal","WECC",689776,null,2919,"3045","88",null,8117,3219,"3808",null,null,null,null,null,null,null,null,null,null,null,null,null,null,null,null,null,null,null,null,null,null,null,null,null,null,null,null,null,null,null,null,null,null,"650",0,"0",169,819,1,null,"Y",null,"N",null,null,null,null,"Y",0,null,null,null,"F"]
[2009,15248,"Portland General Electric Co","Investor Owned","WECC",17419212,7553992,0,"0","0","0",0,0,"0","0",0,"0","0","0",0,"0","0","0","0","0","0","0","0","0","0","0","0","0","0","0",0,0,0,"0","0","0","0","0",0,0,"0","0",0,"0",5791,"0",0,5791,1,null,null,"N","Y",0,1,7,0,"Y",1950,200,0,0,"F"]
[2009,15257,"Poudre Valley R E A, Inc","Cooperative","WECC",1034497,null,null,null,null,null,500,119,null,null,13,"5","8",null,null,null,null,null,null,null,null,null,"14","6","7",null,null,null,null,null,null,null,4,null,null,null,null,null,null,null,null,null,275,null,50,"10",null,335,1,null,null,null,"N",null,null,null,null,"N",null,null,null,null,"F"]
[2009,15263,"The Potomac Edison Co","Investor Owned","RFC",10452999,1177581,0,null,null,null,60,null,null,null,0,null,null,null,0,null,null,null,null,null,null,null,null,null,null,null,null,null,null,null,null,null,null,null,null,null,null,null,null,null,null,null,800,"105",null,null,208,1113,1,"N/A",null,null,"N",null,null,null,null,"N",null,null,null,null,"F"]
[2009,15270,"Potomac Electric Power Co","Investor Owned","RFC",10922243,5418,52239,"2150",null,null,265497,1578500,null,null,4,"0",null,null,65,"289",null,null,"264",null,null,null,"264",null,null,null,"6",null,null,null,6,null,null,null,null,null,null,null,null,null,null,null,1872,"1071",2509,"184",256,5892,1,null,null,"Y","Y",1169815,2530,0,0,"Y",54855,614,null,2,"F"]
[2009,15296,"New York Power Authority","State","NPCC",14258689,24219603,null,"5942",null,"736",null,652777,"6687","58742",null,"3",null,"1",null,"124","1","9",null,"60",null,null,null,"372",null,null,null,"5",null,null,null,36,null,"12",null,"5",null,null,null,40,null,"0",103708,null,42,"2103",2659,108512,1,null,null,null,"N",null,null,null,null,"N",null,null,null,null,"F"]
[2009,15308,"Plumas-Sierra Rural Elec Coop","Cooperative","WECC",155578,null,257,"27","0",null,1557,37,"31",null,null,null,null,null,null,null,null,null,null,null,null,null,null,null,null,null,null,null,null,null,null,null,null,null,null,null,null,null,null,null,null,null,null,"65",null,null,137,202,1,null,null,"N","N",null,null,null,null,"N",null,null,null,null,"F"]
[2009,15344,"Polk-Burnett Electric Coop","Cooperative","MRO",226125,null,897,"0","395","0",2946,0,"743","0",0,"0","0","0",1,"0","0","0","38","0","0","0","7882","0","0","0","0","0","0","0",8,0,1,"0","0","0","0","0",8,0,"1","0",24,"51",32,"17",7,131,1,null,null,null,"N",null,null,null,null,"N",null,null,null,null,"F"]
[2009,15356,"Price Electric Coop Inc","Cooperative","MRO",66550,null,719,"21",null,null,null,null,null,null,null,null,null,null,null,null,null,null,"13",null,null,null,null,null,null,null,null,null,null,null,null,null,null,null,null,null,null,null,null,null,null,null,null,null,null,null,null,179,1,null,null,null,"N",null,null,null,null,"N",null,null,null,null,"F"]
[2009,15377,"City of Primghar","Municipal","MRO",7914,null,9,"0","0","0",null,null,null,null,0,"0","0","0",null,null,null,null,"1","0","0","0",null,null,null,null,"0","0","0","0",null,null,null,null,null,null,null,null,null,null,null,null,null,null,null,null,null,5,1,null,null,"Y","Y",69,2,0,0,"N",null,null,null,null,"F"]
[2009,15387,"Princeton Public Utils Comm","Municipal","MAPP",47070,null,null,null,null,null,null,null,null,null,null,null,null,null,null,null,null,null,null,null,null,null,null,null,null,null,null,null,null,null,null,null,null,null,null,null,null,null,null,null,null,null,null,null,null,null,null,40,1,null,null,null,"N",null,null,null,null,"Y",null,3,null,null,"F"]
[2009,15410,"Prince George Electric Coop","Cooperative","SERC",291151,null,null,null,null,null,null,null,null,null,null,null,null,null,null,null,null,null,"1",null,null,null,"12",null,null,null,"1",null,null,null,12,null,null,null,"1",null,null,null,12,null,null,null,36,null,null,null,null,36,1,null,null,null,"Y",null,null,2,null,"N",null,null,null,null,"F"]
[2009,15419,"PUD No 3 of Mason County","Political Subdivision","WECC",660405,0,1984,"390","485",null,2944,1097,"485",null,2,"2","3",null,3,"7","3",null,null,null,null,null,null,null,null,null,null,null,null,null,null,null,null,null,null,null,null,null,null,null,null,null,238,"357",null,null,null,595,1,null,null,null,"N",null,null,null,null,"N",null,null,null,null,"F"]
[2009,15466,"Public Service Co of Colorado","Investor Owned","WECC",27359238,7701909,4516,"101399","43094",null,209292,609445,"483774",null,132,"27","8",null,227,"120","151",null,"44",null,null,null,"1874","5",null,null,"61",null,null,null,179,3,177,null,"61",null,null,null,179,3,"177",null,14313,"12608",7649,"4457",4836,43863,1,null,null,null,"N",null,null,null,null,"N",null,null,null,null,"F"]
[2009,15470,"Duke Energy Indiana Inc","Investor Owned","RFC",26215892,6404876,6362,"3063","4061",null,151811,328723,"240410",null,1,"1","1",null,56,"82","34",null,null,null,null,null,null,null,null,null,"7",null,"18",null,32,35,153,null,null,null,null,null,null,null,null,null,1464,"1442",1760,"1941",10,6617,1,null,null,null,"Y",44877,21,28,null,"Y",null,111,118,null,"F"]
[2009,15472,"Public Service Co of NH","Investor Owned","NPCC",6465435,1011135,17972,"29839",null,null,92230,212129,null,null,null,null,null,null,null,null,null,null,null,null,null,null,null,null,null,null,null,"2","6",null,null,null,null,null,null,"2","6",null,null,null,null,null,1836,"12289",103,"453",836,15517,1,null,"Y",null,"Y",4043,6,19,null,"Y",45,30,120,null,"F"]
[2009,15473,"Public Service Co of NM","Investor Owned","WECC",8867533,4686057,24021,"14708","0","0",56151,16755,"1034","0",3,"3","0","0",10,"3","0","0","275","389","0","0","275","389","0","0","36","20","0","0",52,40,0,"0","36","20","0","0",52,29,"0","0",3464,"2709",4140,"1784",0,12097,1,"PNM Resources","Y",null,"Y",17406,2066,63,null,"N",null,null,null,null,"F"]
[2009,15474,"Public Service Co of Oklahoma","Investor Owned","SPP",16955308,2252056,3700,"12700","3900","0",6039,12703,"3902","0",1,"3","13","0",1,"6","16","0","0","0","0","0","0","0","0","0","0","0","0","0",0,0,16,"0","0","0","0","0",0,0,"0","0",350,null,null,null,null,350,1,"N/A",null,"Y","Y",0,0,1,0,"Y",0,7,19,0,"F"]
[2009,15477,"Public Service Elec & Gas Co","Investor Owned","RFC",29099214,4165670,6061,"0","0","0",260405,298,"49",null,1,null,null,null,165,"159","24",null,null,null,null,null,"0",null,null,null,null,null,null,null,61,null,null,null,null,null,null,null,61,null,null,null,80168,"50328",793,"1508",0,132797,1,null,null,null,"Y",114708,0,0,0,"Y",13398,7923,1290,2418,"F"]
[2009,15497,"Puerto Rico Electric Pwr Authority","State","PR",18703949,null,null,null,null,null,null,null,null,null,null,null,null,null,null,null,null,null,null,null,null,null,null,"1137","74391",null,null,null,null,null,null,1,31,null,null,null,null,null,null,0,"22",null,4570,null,null,null,null,4570,1,null,null,null,"N",null,null,null,null,"N",null,null,null,null,"F"]
[2009,15500,"Puget Sound Energy Inc","Investor Owned","WECC",21866449,6134758,191044,"116844",null,null,1874407,null,null,null,null,null,null,null,null,null,null,null,null,null,null,null,null,null,null,null,"1","3",null,null,1,3,null,null,"1","3",null,null,1,3,null,null,22832,"46789",934,"135",null,70690,1,null,null,"Y","Y",350,25,null,null,"N",null,null,null,null,"F"]
[2009,15671,"Randolph Electric Member Corp","Cooperative","SERC",494721,null,542,null,null,null,985,null,null,null,1,null,null,null,1,null,null,null,null,null,null,null,null,"50","48",null,null,null,null,null,4,14,5,null,null,null,null,null,3,7,"4",null,1279,null,null,null,null,1279,1,null,null,null,"Y",1500,230,3,null,"Y",12,6,null,null,"F"]
[2009,15700,"Rayle Electric Membership Corp","Cooperative","SERC",253267,null,null,null,null,null,null,null,null,null,null,null,null,null,0,null,null,null,null,null,null,null,"0",null,"11",null,null,null,null,null,0,null,3,null,null,null,null,null,0,null,"3",null,7,"7",null,null,28,42,1,null,null,null,"N",null,null,null,null,"N",null,null,null,null,"F"]
[2009,15748,"Reading Town of","Municipal","NPCC",671489,3768,null,null,null,null,null,null,null,null,null,null,null,null,null,null,null,null,null,null,null,null,null,null,null,null,null,null,null,null,null,null,null,null,null,null,null,null,null,null,null,null,6,null,null,null,null,6,1,null,null,null,"N",null,null,null,null,"Y",154,null,53,null,"F"]
[2009,15751,"City of Readlyn","Municipal","MRO",4592,null,45,"0","0","0",null,null,null,null,0,"0","0","0",null,null,null,null,null,null,null,null,null,null,null,null,null,null,null,null,null,null,null,null,null,null,null,null,null,null,null,null,null,null,null,null,null,7,1,null,null,null,"N",null,null,null,null,"N",null,null,null,null,"F"]
[2009,15776,"Reedy Creek Improvement Dist","Municipal","FRCC",1183100,23138,null,"147",null,null,null,294,null,null,null,null,null,null,null,null,null,null,null,null,null,null,null,null,null,null,null,null,null,null,null,null,null,null,null,null,null,null,null,null,null,null,260,null,null,null,10,270,1,null,null,null,"N",null,null,null,null,"N",null,null,null,null,"F"]
[2009,15845,"Renville-Sibley Coop Pwr Assn","Cooperative","MRO",168601,null,null,null,null,null,null,null,null,null,null,null,null,null,null,null,null,null,null,null,null,null,null,null,null,null,null,null,null,null,null,null,null,null,null,null,null,null,null,null,null,null,null,"37",null,"112",4,153,1,"East River",null,null,"N",null,null,null,null,"N",null,null,null,null,"F"]
[2009,15983,"Richland Electric Coop","Cooperative","MRO",48317,null,135,null,"27",null,null,null,null,null,null,null,null,null,null,null,null,null,null,null,null,null,null,null,null,null,null,null,null,null,null,null,null,null,null,null,null,null,null,null,null,null,null,null,null,null,null,70,1,null,"Y",null,"N",null,null,null,null,"N",null,null,null,null,"F"]
[2009,16082,"City of River Falls","Municipal","MRO",112092,447,null,null,null,null,null,null,null,null,null,null,null,null,null,null,null,null,null,null,null,null,null,null,null,null,null,null,null,null,null,null,null,null,null,null,null,null,null,null,null,null,null,null,null,null,null,null,1,"WPPI ENERGY",null,"N","N",null,null,null,null,"Y",9,13,1,0,"F"]
[2009,16088,"City of Riverside","Municipal","WECC",2084673,138319,null,null,null,null,2963,7317,null,null,null,null,null,null,null,null,null,null,null,null,null,null,null,null,null,null,null,null,null,null,null,null,null,null,null,null,null,null,null,null,null,null,910,"2048",508,"1125",3105,7696,1,null,null,null,"N",null,null,null,null,"Y",250,null,470,null,"F"]
[2009,16181,"Rochester Public Utilities","Municipal","MRO",1221088,59125,2438,"5012","9354",null,15026,54844,"30066",null,1,"1","1",null,null,null,null,null,null,null,null,null,"180","8",null,null,null,null,null,null,8,0,9,null,null,null,null,null,8,0,"8",null,137,"1439",11,"195",522,2304,1,null,null,null,"Y",7952,103,null,null,"N",null,null,null,null,"F"]
[2009,16195,"City of Rock Hill","Municipal","SERC",769452,null,null,null,null,null,null,null,null,null,null,null,null,null,null,null,null,null,null,null,null,null,null,"284",null,null,null,null,null,null,7,8,null,null,null,null,null,null,7,8,null,null,null,null,68,"1",5,74,1,null,null,null,"Y",2146,null,null,null,"N",null,null,null,null,"F"]
[2009,16206,"Rock Rapids Municipal Utility","Municipal","MRO",27171,null,108,"71","0","0",null,null,null,null,0,"0","0","0",null,null,null,null,null,null,null,null,null,null,null,null,null,null,null,null,null,null,null,null,null,null,null,null,null,null,null,null,null,null,null,null,null,38,1,null,null,"Y","N",null,null,null,null,"N",null,null,null,null,"F"]
[2009,16211,"City of Rockford","Municipal","MRO",5988,0,0,"0","0","0",null,null,null,null,0,"0","0","0",null,null,null,null,"0","0","0","0",null,null,null,null,"0","0","0","0",null,null,null,null,"0","0","0","0",null,null,null,null,null,null,null,null,null,2,1,null,null,null,"N",null,null,null,null,"N",null,null,null,null,"F"]
[2009,16213,"Rockland Electric Co","Investor Owned","NPCC",1347218,null,11000,"1819","0","0",11000,1819,"0","0",0,"0","0","0",0,"0","0","0",null,null,null,null,null,null,null,null,null,null,null,null,null,null,null,null,null,null,null,null,null,null,null,null,0,"467",0,"0",19,486,1,null,null,null,"N",null,null,null,null,"Y",18,38,0,0,"F"]
[2009,16267,"Rolling Hills Electric Coop","Cooperative","SPP",125238,0,null,null,null,null,null,null,null,null,null,null,null,null,null,null,null,null,null,null,null,null,null,null,null,null,null,null,null,null,null,null,null,null,null,null,null,null,null,null,null,null,null,null,null,null,null,5,1,"KEPCo",null,null,"N",null,null,null,null,"Y",null,5,null,null,"F"]
[2009,16273,"Roosevelt Irrigation District","Political Subdivision","WECC",27841,null,null,null,null,null,null,null,null,null,null,null,null,null,null,null,null,null,null,null,null,null,null,null,null,null,null,null,null,null,null,null,null,null,null,null,null,null,null,null,null,null,null,null,null,null,null,16,1,null,null,null,"N",null,null,null,null,"N",null,null,null,null,"F"]
[2009,16295,"City of Roseville","Municipal","WECC",1233044,368400,1161,"4839","2583",null,1270,33045,"9798",null,1,"1",null,null,14,"7","2",null,null,null,null,null,null,null,null,null,"3",null,null,null,3,null,null,null,null,null,null,null,null,null,null,null,705,"1937",552,"40",null,3234,1,null,"Y","N","Y",3409,null,null,null,"Y",null,36,null,null,"F"]
[2009,16325,"Village of Rouses Point","Municipal","NPCC",119750,null,null,null,null,null,null,null,null,null,null,null,null,null,null,null,null,null,null,null,null,null,null,null,null,null,null,null,null,null,null,null,null,null,null,null,null,null,null,null,null,null,null,null,null,null,null,120,1,null,null,null,"N",null,null,null,null,"N",null,null,null,null,"F"]
[2009,16496,"Rutherford Elec Member Corp","Cooperative","SERC",1145015,null,null,null,null,null,null,null,null,null,null,null,null,null,null,null,null,null,null,null,null,null,null,null,null,null,null,null,null,null,null,null,null,null,null,null,null,null,null,null,null,null,null,null,23,"172",null,195,1,"Duke Energy Carolinas LLC",null,null,"N",null,null,null,null,"N",null,null,null,null,"F"]
[2009,16511,"Sac-Osage Electric Coop Inc","Cooperative","SERC",133713,null,null,null,null,null,null,null,null,null,null,null,null,null,null,null,null,null,null,null,null,null,null,null,null,null,null,null,"1",null,null,null,null,null,null,null,"1",null,null,null,null,null,null,null,null,null,null,1,1,null,null,null,"N",null,null,null,null,"N",null,null,null,null,"F"]
[2009,16528,"City of Sabula","Municipal","MRO",3535,null,0,"0","0","0",null,null,null,null,0,"0","0","0",null,null,null,null,null,null,null,null,null,null,null,null,null,null,null,null,null,null,null,null,null,null,null,null,null,null,null,null,null,null,null,null,null,1,1,null,null,null,"N",null,null,null,null,"N",null,null,null,null,"F"]
[2009,16529,"Sac County Rural Electric Coop","Cooperative","MRO",31273,1563,55,null,null,null,null,null,null,null,0,null,null,null,null,null,null,null,null,null,null,null,null,null,null,null,null,null,null,null,null,null,null,null,null,null,null,null,null,null,null,null,null,null,null,null,null,39,1,null,null,null,"N",null,null,null,null,"N",null,null,null,null,"F"]
[2009,16534,"Sacramento Municipal Util Dist","Political Subdivision","WECC",10691907,1969956,79340,"69020",null,null,658522,572866,null,null,13,"13",null,null,null,null,null,null,null,null,null,null,null,null,null,null,null,null,null,null,93,41,null,null,null,null,null,null,null,null,null,null,12720,"16707",1148,"1604",3973,36152,1,null,"Y",null,"Y",97725,160,null,null,"Y",459,1452,null,41,"F"]
[2009,16538,"City of Safford","Municipal","WECC",67557,null,null,null,null,null,null,null,null,null,null,null,null,null,null,null,null,null,null,null,null,null,null,null,null,null,null,null,null,null,null,null,null,null,null,null,null,null,null,null,null,null,null,null,null,null,null,16,1,null,null,null,"N",null,null,null,null,"N",null,null,null,null,"F"]
[2009,16555,"Salem Electric","Cooperative","WECC",322922,null,1522,"410",null,null,11633,6983,null,null,null,null,null,null,null,null,null,null,null,null,null,null,null,null,null,null,null,null,null,null,null,null,null,null,null,null,null,null,null,null,null,null,536,"422",null,null,16,974,1,null,null,null,"N",null,null,null,null,"N",null,null,null,null,"F"]
[2009,16572,"Salt River Project","Political Subdivision","WECC",26181333,7254326,210169,"81718","0","0",614098,99057,"0","0",65,"6","0","0",182,"8","0","0","0","0","0","0","0","0","0","0","113","21","0","0",113,21,0,"0","113","21","0","0",113,21,"0","0",18225,"2683",864,"0",0,21772,1,null,"Y","Y","Y",null,42,null,null,"Y",null,6645,748,null,"F"]
[2009,16604,"San Antonio City of","Municipal","TRE",20026721,3041256,61634,"23728",null,null,104447,114033,null,null,8,"6",null,null,20,"39",null,null,null,null,null,null,null,null,null,null,"4","17",null,null,13,17,null,null,"4","17",null,null,13,17,null,null,16554,null,865,null,3595,21014,1,null,"Y",null,"Y",25409,210,null,null,"Y",1,15,null,null,"F"]
[2009,16609,"San Diego Gas & Electric Co","Investor Owned","WECC",16993853,2010181,null,null,null,null,121481,387316,null,null,null,null,null,null,35,"83",null,null,null,null,null,null,null,null,null,null,null,null,null,null,41,116,null,null,null,null,null,null,27,31,null,null,68573,"37143",12607,"7273",null,125596,1,"NA",null,null,"Y",35286,6096,null,null,"Y",null,1583,null,null,"F"]
[2009,16612,"San Francisco City & County of","Municipal","WECC",979626,485500,null,"2485",null,null,null,28479,null,null,null,"5",null,null,null,"14",null,null,null,null,null,null,null,null,null,null,null,null,null,null,null,null,null,null,null,null,null,null,null,null,null,null,664,null,null,null,null,664,1,null,"N",null,"N",null,null,null,null,"N",null,null,null,null,"F"]
[2009,16628,"Sanborn City of","Municipal","MRO",21714,null,70,"1","0","0",null,null,null,null,0,"0","0","0",null,null,null,null,null,null,null,null,null,null,null,null,null,null,null,null,null,null,null,null,null,null,null,null,null,null,null,null,null,null,null,null,null,15,1,null,null,"Y","N",null,null,null,null,"N",null,null,null,null,"F"]
[2009,16655,"City of Santa Clara","Municipal","WECC",2800004,1136161,null,null,null,null,1191,40898,null,null,null,null,null,null,0,null,null,null,null,null,null,null,null,null,null,null,null,null,null,null,null,null,null,null,null,null,null,null,null,null,null,null,2554,"4050",null,null,null,6604,1,null,null,null,"N",null,null,null,null,"N",null,0,0,0,"F"]
[2009,16674,"Satilla Rural Elec Member Corporation","Cooperative","SERC",1016872,0,1,null,null,null,1,null,null,null,1,null,null,null,1,null,null,null,null,"2","5",null,null,"2","50",null,null,"2","15",null,null,2,15,null,null,"1","10",null,null,1,"10",null,null,null,null,null,null,0,1,null,null,null,"N",null,null,null,null,"Y",null,302,null,null,"F"]
[2009,16679,"City of Sauk Centre","Municipal","MRO",61185,null,null,"349",null,null,null,null,null,null,null,"1",null,null,null,null,null,null,null,null,null,null,null,null,null,null,"1",null,"1",null,null,null,null,null,null,null,null,null,null,null,null,null,null,null,null,null,null,133,1,null,null,null,"N",null,null,null,null,"N",null,null,null,null,"F"]
[2009,16680,"Village of Sauk City","Municipal","RFC",31989,null,13,"144",null,null,null,null,null,null,null,null,null,null,null,null,null,null,null,null,null,null,null,null,null,null,null,null,null,null,null,null,null,null,null,null,null,null,null,null,null,null,null,null,null,null,null,19,1,null,"Y",null,"N",null,null,null,null,"Y",null,null,7,null,"F"]
[2009,16865,"Sawnee Electric Membership Corporation","Cooperative","SERC",3002529,null,null,null,null,null,null,34,null,null,null,null,null,null,5,null,null,null,"2",null,null,null,"82","4",null,null,"5","1",null,null,67,10,2,null,"2","0",null,null,27,4,"2",null,189,"109",538,"1075",20,1931,1,null,null,"Y","Y",27951,3648,null,null,"Y",197,5,null,null,"F"]
[2009,16868,"Seattle City of","Municipal","WECC",9693426,4827237,47801,"46265","3528",null,330685,259942,"49923",null,6,"6","0",null,40,"31","6",null,null,null,null,null,null,null,null,null,null,null,null,null,null,null,null,null,null,null,null,null,null,null,null,null,9762,"17018",null,null,3722,30502,1,null,"Y","N","N",null,null,null,null,"Y",null,null,159,null,"F"]
[2009,16920,"Sedgwick Cnty El Coop Assn Inc","Cooperative","SPP",117419,null,null,null,null,null,null,null,null,null,null,null,null,null,null,null,null,null,null,null,null,null,null,null,null,null,null,"1",null,null,null,null,null,null,null,null,null,null,null,null,null,null,null,null,null,null,null,2,1,null,null,null,"Y",null,41,null,null,"Y",null,2,null,null,"F"]
[2009,16932,"Sergeant Bluff City of","Municipal","MRO",33316,null,0,"60","0","0",null,null,null,null,0,"0","0","0",null,null,null,null,"7","0","0",null,null,null,null,null,"1","0","0",null,null,null,null,null,"1","0","0",null,null,null,null,null,null,null,null,null,null,20,1,null,null,null,"Y",545,0,0,0,"N",null,null,null,null,"F"]
[2009,16971,"Shakopee Public Utilities Comm","Municipal","MRO",376254,null,4,"7","2",null,null,null,null,null,null,null,null,null,null,null,null,null,null,null,null,null,"17","31","7",null,null,null,null,null,null,null,null,null,null,null,null,null,null,null,null,null,null,"284",null,"166",45,495,1,null,null,null,"Y",1736,5,1,null,"N",null,null,null,null,"F"]
[2009,16992,"City of Stanton","Municipal","RFC",7346,null,23,"0","0","0",null,null,null,null,0,"0","0","0",null,null,null,null,null,null,null,null,null,null,null,null,null,null,null,null,null,null,null,null,null,null,null,null,null,null,null,null,null,null,null,null,null,16,1,null,null,null,"N",null,null,null,null,"N",null,null,null,null,"F"]
[2009,17011,"Shawano Municipal Utilities","Municipal","RFC",253964,null,null,null,null,null,null,null,null,null,null,null,null,null,null,null,null,null,null,null,null,null,null,null,null,null,null,null,null,null,null,null,null,null,null,null,null,null,null,null,null,null,42,null,42,null,4,88,1,null,null,null,"N",null,null,null,null,"Y",null,2,164,null,"F"]
[2009,17040,"Shelby Electric Coop, Inc","Cooperative","RFC",239699,null,null,null,null,null,null,null,null,null,null,null,null,null,null,null,null,null,null,null,null,null,null,null,null,null,null,null,null,null,3,6,2,null,null,null,null,null,3,6,"2",null,null,null,18,"2",8,28,1,null,null,null,"Y",886,150,1,null,"N",null,null,null,null,"F"]
[2009,17066,"Shenandoah Valley Elec Coop","Cooperative","SERC",832642,0,192,"0","0","0",1958,0,"0","0",0,"0","0","0",0,"0","0","0","0","0","0","0","0","0","0","0","9","10","0","0",9,10,0,"0","6","8","0","0",6,8,"0","0",2,null,50,null,279,331,1,null,null,null,"N",null,null,null,null,"N",null,null,null,null,"F"]
[2009,17127,"Town of Shrewsbury","Municipal","NPCC",291365,null,null,null,null,null,null,null,null,null,null,null,null,null,null,null,null,null,null,null,null,null,null,null,null,null,null,null,null,null,null,null,null,null,null,null,null,null,null,null,null,null,78,null,null,null,null,78,1,null,null,null,"N",null,null,null,null,"N",null,null,null,null,"F"]
[2009,17141,"City of Sibley","Municipal","MRO",34164,2594,null,"17",null,"0",null,null,null,null,0,"0","0","0",null,null,null,null,null,null,null,null,null,null,null,null,null,null,null,null,null,null,null,null,null,null,null,null,null,null,null,null,null,null,null,null,null,36,1,null,"N","Y","N",null,null,null,null,"N",null,null,null,null,"F"]
[2009,17166,"Sierra Pacific Power Co","Investor Owned","WECC",8178910,336307,56447,"54719",null,null,174539,231015,null,null,10,"25",null,null,31,"68",null,null,null,null,null,null,null,null,null,null,null,null,null,null,null,null,null,null,null,null,null,null,null,null,null,null,4135,"4440",null,null,1250,9825,1,null,"Y",null,"Y",null,389,null,null,"Y",33,456,109,null,"F"]
[2009,17252,"Singing River Elec Pwr Assn","Cooperative","SERC",1394289,null,1,null,null,null,29350,null,null,null,3,null,null,null,41,null,null,null,null,null,null,null,null,null,null,null,null,null,null,null,null,1,2,null,null,null,null,null,null,1,"2",null,124,"59",1,null,5,189,1,null,null,"N","N",null,null,null,null,"N",null,null,null,null,"F"]
[2009,17264,"City of Sioux Center","Municipal","MRO",110280,null,199,"125","337","0",null,null,null,null,0,"0","0","0",null,null,null,null,"27","10","0","0",null,null,null,null,"4","1","0","0",null,null,null,null,null,null,null,null,null,null,null,null,null,null,null,null,null,76,1,null,null,"Y","Y",1700,315,0,0,"N",null,null,null,null,"F"]
[2009,17470,"Snohomish County PUD No 1","Political Subdivision","WECC",6872796,1556036,337540,"182837","270034",null,30463,27666,"6300",null,null,null,null,null,null,null,null,null,null,null,null,null,null,null,null,null,null,null,null,null,null,null,null,null,null,null,null,null,null,null,null,null,5184,"10500",0,"0",400,16084,1,null,null,null,"N",null,null,null,null,"Y",null,1,null,null,"F"]
[2009,17539,"South Carolina Electric&Gas Co","Investor Owned","SERC",21131988,1975073,null,null,null,null,null,null,null,null,null,null,null,null,null,null,null,null,null,null,null,null,null,null,null,null,null,null,"15",null,null,43,124,null,null,null,null,null,null,null,null,null,null,null,5815,null,null,5815,1,null,null,null,"Y",null,20,30,0,"Y",92,1207,15,0,"F"]
[2009,17540,"South Central Ark El Coop, Inc","Cooperative","SERC",226370,null,null,null,null,null,null,null,null,null,null,null,null,null,null,null,null,null,null,null,null,null,null,null,"113",null,null,null,null,null,null,null,6,null,null,null,null,null,null,null,"6",null,null,null,null,null,5,5,1,null,null,null,"N",null,null,null,null,"N",null,null,null,null,"F"]
[2009,17543,"South Carolina Pub Serv Auth","State","SERC",10205326,15607288,1570,"12584",null,null,47297,14275,null,null,0,"0",null,null,19,"2",null,null,null,null,"4",null,null,null,"4",null,null,null,"497",null,null,0,497,null,null,null,null,null,null,0,null,null,115,"4890",15,"29",1,5050,1,null,null,null,"Y",541,4,18,null,"Y",16,63,31,null,"F"]
[2009,17548,"South Central Public Pwr Dist","Political Subdivision","MRO",176486,null,null,null,null,null,null,null,null,null,null,null,null,null,null,null,null,null,null,null,null,null,null,null,null,null,null,null,null,null,null,null,null,null,null,null,null,null,null,null,null,null,null,null,null,null,null,null,1,"Nebraska Public Power District",null,null,"N",null,null,null,null,"N",null,null,null,null,"F"]
[2009,17561,"South Plains Electric Coop Inc","Cooperative"," SPP & TRE",1353739,null,null,null,null,null,null,null,null,null,null,null,null,null,null,null,null,null,null,null,null,null,null,null,null,null,null,null,null,null,null,null,null,null,null,null,null,null,null,null,null,null,null,null,109,"683",null,792,1,"GSEC & BRAZOS",null,null,"Y",null,null,2121,null,"N",null,null,null,null,"F"]
[2009,17568,"South Mississippi El Pwr Assn","Cooperative","SERC",null,9910536,2500,null,null,null,52000,null,null,null,2,null,null,null,21,null,null,null,null,null,null,null,null,null,null,null,null,null,null,null,null,null,null,null,null,null,null,null,null,null,null,null,280,null,null,null,null,280,1,null,null,null,"N",null,null,null,null,"N",null,null,null,null,"F"]
[2009,17585,"Southeastern IL Elec Coop, Inc","Cooperative","RFC",838317,null,85,null,null,null,510,null,null,null,9,null,null,null,11,null,null,null,null,null,null,null,null,null,null,null,null,null,null,null,null,null,null,null,null,null,null,null,null,null,null,null,12,null,null,null,null,12,1,null,null,null,"N",null,null,null,null,"N",null,null,null,null,"F"]
[2009,17609,"Southern California Edison Co","Investor Owned","WECC",78048186,12652803,704539,"644982","246656",null,1916353,6175384,"3461532",null,128,"133","35",null,363,"1170","656",null,null,null,null,null,null,null,null,null,"46","289","145","22",636,768,939,"22","46","50","27","3",636,414,"673","3",112394,"116331",38432,"136171",1527,404855,1,null,"Y","Y","Y",340547,17850,3048,200,"Y",3836,17694,10483,169,"F"]
[2009,17612,"Bear Valley Electric Service","Investor Owned","WECC",136365,null,null,null,null,null,null,null,null,null,null,null,null,null,null,null,null,null,null,null,null,null,null,null,null,null,null,null,"12",null,null,null,null,null,null,null,"0",null,null,null,null,null,null,null,null,null,null,700,1,null,null,null,"N",null,null,null,null,"Y",null,null,8,null,"F"]
[2009,17633,"Southern Indiana Gas & Elec Co","Investor Owned","RFC",5039673,603639,null,null,null,null,8928,29483,"38623",null,null,null,null,null,6,"4","8",null,null,null,null,null,null,null,null,null,null,null,null,null,null,null,null,null,null,null,null,null,null,null,null,null,null,null,343,"780",null,1123,1,null,null,null,"N",null,null,null,null,"N",null,null,null,null,"F"]
[2009,17637,"Southern Maryland Elec Coop Inc","Cooperative","RFC",3365346,null,205,null,null,null,656,null,null,null,null,null,null,null,null,null,null,null,null,null,null,null,null,null,null,null,"7",null,null,null,7,null,null,null,"7",null,null,null,7,null,null,null,163,"10",1083,"204",0,1460,1,null,null,"Y","Y",10062,null,null,null,"N",null,null,null,null,"F"]
[2009,17643,"Southern Iowa Elec Coop, Inc","Cooperative","SERC",75714,42291,574,null,null,null,null,null,null,null,null,null,null,null,null,null,null,null,null,null,null,null,null,null,null,null,null,null,null,null,null,null,null,null,null,null,null,null,null,null,null,null,null,"125",null,null,null,125,1,null,null,null,"N",null,null,null,null,"N",null,null,null,null,"F"]
[2009,17684,"Southwest Louisiana E M C","Cooperative","SERC",2151043,78205,null,null,null,null,null,null,null,null,null,null,null,null,null,null,null,null,null,null,null,null,null,"67",null,null,null,null,null,null,null,1,null,null,null,null,null,null,null,1,null,null,null,null,null,null,null,0,1,null,null,null,"N",null,null,null,null,"Y",null,19,null,null,"F"]
[2009,17692,"Southwest Public Power Dist","Political Subdivision","MRO",160334,10719,null,null,null,null,null,null,null,null,null,null,null,null,null,null,null,null,null,null,null,null,null,null,null,null,null,null,null,null,null,null,27,null,null,null,null,null,null,null,"19",null,null,null,37,null,null,37,1,null,null,null,"N",null,null,null,null,"N",null,null,null,null,"F"]
[2009,17698,"Southwestern Electric Power Co","Investor Owned","SPP",16086255,7295339,8426,"15360",null,null,94704,59261,null,null,2,"3",null,null,23,"12",null,null,null,"170",null,null,null,null,null,null,null,"10",null,null,null,null,null,null,null,"10",null,null,null,null,null,null,null,"2792",null,"282",611,3685,1,null,null,null,"Y",null,7,18,null,"Y",null,null,3,null,"F"]
[2009,17718,"Southwestern Public Service Co","Investor Owned","SPP",18026529,10977460,11159,"6161","12428",null,79696,18635,"107641",null,9,"2","3",null,24,"4","21",null,"3","4",null,null,null,null,null,null,"3","1",null,null,null,null,null,null,"3","1",null,null,null,null,null,null,1669,"2252",null,null,647,4568,1,null,null,null,"N",null,null,null,null,"N",null,null,null,null,"F"]
[2009,17783,"Spencer City of","Municipal","MRO",147112,57527,224,"386",null,null,3533,4958,null,null,0,"0",null,null,null,null,null,null,null,null,null,null,null,null,null,null,null,null,"2",null,null,null,2,null,null,null,"2",null,null,null,"2",null,null,"108",null,null,11,119,1,null,null,null,"Y",null,null,null,null,"N",null,null,null,null,"F"]
[2009,17824,"Spring Valley Pub Utils Comm","Municipal","MRO",19390,null,null,null,null,null,null,null,null,null,null,null,null,null,null,null,null,null,null,null,null,null,null,null,null,null,"1","1",null,null,null,null,null,null,null,null,null,null,null,null,null,null,null,null,null,null,null,10,1,null,null,null,"N",null,null,null,null,"N",null,null,null,null,"F"]
[2009,17826,"Springer Electric Coop, Inc","Cooperative","WECC",267860,5677,63,null,null,null,63,null,null,null,0,null,null,null,0,null,null,null,null,null,null,null,null,null,null,null,null,null,null,null,null,null,null,null,null,null,null,null,null,null,null,null,null,"9",null,null,8,17,1,null,null,null,"N",null,null,null,null,"Y",51,6,null,null,"F"]
[2009,17828,"City of Springfield","Municipal","SERC",1741818,322500,945,"2",null,null,6934,15758,null,null,1,"0",null,null,7,null,null,null,null,null,null,null,null,null,null,null,null,null,null,null,null,null,null,null,null,null,null,null,null,null,null,null,594,"639",null,null,320,1553,1,null,null,null,"N",null,null,null,null,"N",null,null,null,null,"F"]
[2009,17839,"City of Springfield","Municipal","WECC",816347,null,6296,"1611","2080",null,32567,42122,"25510",null,3,"0","0",null,16,"6","5",null,null,null,null,null,null,null,null,null,null,null,null,null,null,null,null,null,null,null,null,null,null,null,null,null,184,"918",null,null,null,1102,1,null,null,null,"N",null,null,null,null,"N",null,null,null,null,"F"]
[2009,17868,"St Croix Electric Coop","Cooperative","MRO",179088,null,584,null,"51",null,1971,null,"422",null,null,null,null,null,null,null,null,null,"47",null,null,null,"3362",null,null,null,null,null,null,null,14,null,5,null,null,null,null,null,4,null,"1",null,20,"141",102,"1",21,285,1,null,null,null,"N",null,null,null,null,"N",null,null,null,null,"F"]
[2009,17876,"City of St James","Municipal","MRO",58260,null,1,null,null,null,1,null,null,null,1,null,null,null,1,null,null,null,"1",null,null,null,"2",null,null,null,"1",null,null,null,2,null,null,null,null,null,null,null,null,null,null,null,null,null,null,null,null,53,1,null,null,null,"N",null,null,null,null,"N",null,null,null,null,"F"]
[2009,17900,"City of Saint Peter","Municipal","MRO",86474,null,null,null,null,null,null,null,null,null,null,null,null,null,null,null,null,null,null,null,null,null,"18","3","63","0",null,null,null,null,1,0,3,"0",null,null,null,null,1,0,"3","0",null,null,null,"0",null,37,1,null,null,null,"N",null,null,null,null,"N",null,null,null,null,"F"]
[2009,18014,"City of State Center","Municipal","MRO",12687,null,70,"9","0","0",null,null,null,null,0,"0","0","0",null,null,null,null,null,null,null,null,null,null,null,null,null,null,null,null,null,null,null,null,null,null,null,null,null,null,null,null,null,null,null,null,null,6,1,null,null,null,"N",null,null,null,null,"N",null,null,null,null,"F"]
[2009,18085,"South Central Power Company","Cooperative","RFC",2209361,31217,null,null,null,null,null,null,null,null,null,null,null,null,19,"2","3",null,null,null,null,null,null,null,null,null,null,null,null,null,null,null,null,null,null,null,null,null,null,null,null,null,null,null,1,"375",20,396,1,null,null,null,"Y",24000,1000,2,null,"N",null,null,null,null,"F"]
[2009,18102,"Steuben Rural Elec Coop, Inc","Cooperative","NPCC",75930,null,null,null,null,null,null,null,null,null,null,null,null,null,null,null,null,null,null,null,null,null,null,null,null,null,"2",null,null,null,null,null,null,null,"2",null,null,null,null,null,null,null,null,null,null,null,null,88,1,null,null,null,"N",null,null,null,null,"Y",19,null,1,null,"F"]
[2009,18125,"Stillwater Utilities Authority","Municipal","SPP",456703,null,null,null,null,null,null,null,null,null,null,null,null,null,null,null,null,null,null,null,null,null,null,null,"838",null,null,null,null,null,null,null,2,null,null,null,null,null,null,null,"1",null,null,null,null,null,null,0,1,null,null,null,"N",null,null,null,null,"Y",null,1,null,null,"F"]
[2009,18201,"City of Stratford","Municipal","MRO",4917,null,3,"0","0","0",null,null,null,null,0,"0","0","0",null,null,null,null,null,null,null,null,null,null,null,null,null,null,null,null,null,null,null,null,null,null,null,null,null,null,null,null,null,null,null,null,null,6,1,null,null,null,"N",null,null,null,null,"N",null,null,null,null,"F"]
[2009,18204,"City of Strawberry Point","Municipal","MRO",7912,null,16,null,null,null,null,null,null,null,null,null,null,null,null,null,null,null,null,null,null,null,null,null,null,null,null,null,null,null,null,null,null,null,null,null,null,null,null,null,null,null,null,null,null,null,null,0,1,null,null,null,"N",null,null,null,null,"N",null,null,null,null,"F"]
[2009,18231,"Stuart City of","Municipal","RFC",13413,null,6,"4","0","0",null,null,null,null,0,"0","0","0",null,null,null,null,null,null,null,null,null,null,null,null,null,null,null,null,null,null,null,null,null,null,null,null,null,null,null,null,null,null,null,null,null,21,1,"IAMU",null,null,"N",null,null,null,null,"N",null,null,null,null,"F"]
[2009,18280,"Sulphur Springs Valley E C Inc","Cooperative","WECC",828700,5420,null,null,null,null,null,null,null,null,null,null,null,null,null,null,null,null,null,null,null,null,null,null,null,null,null,null,null,null,null,null,null,null,null,null,null,null,null,null,null,null,4,"90",87,"0",62,243,1,null,null,null,"Y",null,null,null,null,"Y",null,null,null,null,"F"]
[2009,18304,"Sumter Electric Coop, Inc","Cooperative","FRCC",2714230,null,372,"118",null,null,33565,13378,null,null,null,null,null,null,8,"3",null,null,"14","3",null,null,"39","25",null,null,"11","4",null,null,20,24,null,null,null,null,null,null,null,null,null,null,null,null,610,null,null,610,1,null,null,null,"N",null,null,null,null,"N",null,null,null,null,"F"]
[2009,18312,"Sun Prairie Water & Light Comm","Municipal","MRO",226457,null,null,null,null,null,null,null,null,null,null,null,null,null,null,null,null,null,null,null,null,null,null,null,null,null,null,null,null,null,null,null,null,null,null,null,null,null,null,null,null,null,null,null,null,null,null,null,1,"WPPI ENERGY",null,"N","N",null,null,null,null,"Y",0,42,2,0,"F"]
[2009,18383,"Taylor Electric Coop","Cooperative","MRO",63965,null,168,null,"95",null,null,null,null,null,null,null,null,null,null,null,null,null,"24",null,"0",null,null,null,null,null,null,null,null,null,null,null,null,null,null,null,null,null,null,null,null,null,null,null,null,null,null,365,1,null,null,null,"N",null,null,null,null,"N",null,null,null,null,"F"]
[2009,18429,"Tacoma City of","Municipal","WECC",4812736,1805525,17397,"16431","7266",null,170395,133362,"8698",null,null,null,null,null,null,null,null,null,null,null,null,null,null,null,null,null,null,null,null,null,null,null,null,null,null,null,null,null,null,null,null,null,2326,"3360",null,null,2717,8403,1,null,null,"Y","N",null,null,null,null,"N",null,null,null,null,"F"]
[2009,18445,"City of Tallahassee","Municipal","FRCC",2660742,69578,9447,"1459",null,null,260443,2625,null,null,1,"0",null,null,44,"1",null,null,null,null,null,null,null,null,null,null,null,null,null,null,null,null,null,null,null,null,null,null,null,null,null,null,1930,"6946",null,null,181,9057,1,null,null,"N","Y",0,3,0,0,"N",null,null,null,null,"F"]
[2009,18454,"Tampa Electric Co","Investor Owned","FRCC",18774789,440337,12632,"16999","1773","0",443106,211013,"22880","16928",5,"1","0","0",461,"48","5","0","383","2443",null,null,"665","6316","0","0","35","42",null,null,106,67,0,"0","35","23",null,null,55,23,"0","0",4349,"3599",3300,"20547",448,32243,1,null,null,null,"Y",48080,7,132,0,"Y",674,3205,53,15,"F"]
[2009,18488,"City of Taunton","Municipal","NPCC",663337,7508,231,null,null,null,null,null,null,null,3,null,null,null,null,"3",null,null,null,null,null,null,null,null,null,null,null,null,null,null,null,null,null,null,null,null,null,null,null,null,null,null,171,null,null,null,null,171,1,null,null,null,"N",null,null,null,null,"N",null,null,null,null,"F"]
[2009,18546,"Town of Templeton","Municipal","NPCC",60507,null,null,null,null,null,null,null,null,null,null,null,null,null,null,null,null,null,null,null,null,null,null,null,null,null,null,null,"1",null,null,null,null,null,null,null,"1",null,null,null,null,null,null,null,null,null,null,2,1,null,"Y","Y","Y",null,6,null,null,"Y",null,8,null,null,"F"]
[2009,18642,"Tennessee Valley Authority","Federal","SERC",30206805,131894471,143930,"17800","46492",null,666732,18320,"46492",null,26,"2","5",null,135,"51","5",null,null,null,null,null,null,null,null,null,null,"29","110",null,null,31,116,null,null,"28","100",null,null,29,"107",null,4927,"4912",2717,"3506",20653,36715,1,null,null,"Y","Y",null,131,323,null,"Y",null,12,62,null,"F"]
[2009,18805,"Town of Thatcher","Municipal","WECC",22098,null,null,null,null,null,null,null,null,null,null,null,null,null,null,null,null,null,null,null,null,null,null,null,null,null,null,null,null,null,null,null,null,null,null,null,null,null,null,null,null,null,null,null,null,null,null,34,1,null,null,null,"N",null,null,null,null,"N",null,null,null,null,"F"]
[2009,18820,"City of Thief River Falls","Municipal","MRO",139854,null,35,null,null,null,null,null,null,null,6,null,null,null,null,null,null,null,null,null,null,null,null,null,null,null,null,null,null,null,null,null,null,null,null,null,null,null,null,null,null,null,null,null,null,null,null,247,1,null,null,null,"N",null,null,null,null,"N",null,null,null,null,"F"]
[2009,18895,"Thumb Electric Coop of Mich","Cooperative","RFC",147321,null,null,null,null,null,null,null,null,null,339,"190",null,null,null,null,null,null,null,null,null,null,null,null,null,null,"3",null,null,null,null,null,null,null,null,null,null,null,null,null,null,null,null,null,null,null,null,129,1,null,null,null,"N",null,null,null,null,"N",null,null,null,null,"F"]
[2009,18917,"Tillamook Peoples Utility Dist","Political Subdivision","WSCC",449978,null,null,null,null,null,null,1020,null,null,null,null,null,null,null,null,null,null,null,null,null,null,null,null,null,null,null,null,null,null,null,null,null,null,null,null,null,null,null,null,null,null,147,null,null,null,null,147,1,null,null,null,"N",null,null,null,null,"N",null,null,null,null,"F"]
[2009,18956,"Tri-County Elec Member Corp","Cooperative","SERC",358228,null,317,null,null,null,null,null,null,null,1,null,null,null,null,null,null,null,"0",null,null,null,null,null,null,null,"2",null,null,null,null,null,null,null,"2",null,null,null,null,null,null,null,210,"17",556,"61",null,844,1,null,null,null,"Y",null,null,null,null,"N",null,null,null,null,"F"]
[2009,18997,"The Toledo Edison Co","Investor Owned","RFC",7815831,1240577,244,null,null,null,252,null,null,null,null,null,null,null,null,null,null,null,"183",null,null,null,"261",null,null,null,"1",null,null,null,2,null,144,null,"1",null,null,null,2,null,null,null,283,null,3436,null,null,3719,1,null,null,null,"Y",1626,null,5,null,"N",null,null,null,null,"F"]
[2009,19062,"City of Traer","Municipal","MRO",14308,null,24,null,null,null,null,null,null,null,null,null,null,null,null,null,null,null,null,null,null,null,null,null,null,null,null,null,null,null,null,null,null,null,null,null,null,null,null,null,null,null,null,null,null,null,null,0,1,null,null,null,"N",null,null,null,null,"N",null,null,null,null,"F"]
[2009,19157,"Tri-County Electric Coop","Cooperative","MRO",263428,70174,1225,"0","116","0",3362,0,"2233","0",0,"0","0","0",1,"0","0","0","0","0","0","0","5613","0","0","0","0","0","0","0",1,0,6,"0","0","0","0","0",1,0,"1","0",40,"148",0,"847",22,1057,1,null,null,null,"N",null,null,null,null,"N",null,null,null,null,"F"]
[2009,19160,"Tri-County Electric Coop, Inc","Cooperative","SPP",760795,0,null,null,null,null,null,null,null,null,null,null,null,null,null,null,null,null,null,null,null,null,null,null,"256",null,null,null,null,null,null,null,1,null,null,null,null,null,null,null,"1",null,6,null,187,null,37,230,1,null,null,null,"Y",null,12,null,null,"N",null,null,null,null,"F"]
[2009,19174,"Tuolumne County Pub Power Agny","Political Subdivision","WECC",25037,null,null,null,null,null,null,null,null,null,null,null,null,null,null,null,null,null,null,null,null,null,null,null,null,null,null,null,null,null,null,null,null,null,null,null,null,null,null,null,null,null,null,null,null,null,null,38,1,null,null,null,"N",null,null,null,null,"N",null,null,null,null,"F"]
[2009,19189,"Trico Electric Cooperative Inc","Cooperative","WECC",632532,null,null,null,null,null,null,null,null,null,null,null,null,null,null,null,null,null,null,null,null,null,null,null,null,null,null,null,"12",null,null,null,null,null,null,null,"6",null,null,null,null,null,null,null,12,null,null,12,1,null,null,null,"N",null,null,null,null,"Y",3046,9,0,0,"F"]
[2009,19281,"Turlock Irrigation District","Political Subdivision","WECC",2002159,1440480,771,"2589","9694",null,7421,7819,"53027",null,null,null,"1",null,3,"2","10",null,null,null,null,null,null,null,null,null,null,null,null,null,null,null,null,null,null,null,null,null,null,null,null,null,460,"820",null,null,130,1410,1,null,"Y",null,"N",null,null,null,null,"Y",null,16,439,null,"F"]
[2009,19390,"UGI Utilities, Inc","Investor Owned","RFC",949048,118591,220,null,null,null,2645,null,null,null,null,null,null,null,null,null,null,null,null,null,null,null,null,null,null,null,null,null,null,null,null,null,null,null,null,null,null,null,null,null,null,null,44,null,null,null,7,51,1,null,null,"Y","N",null,null,null,null,"Y",7,null,null,null,"F"]
[2009,19397,"City of Ukiah","Municipal","WECC",113323,null,21,"762",null,null,null,null,null,null,null,"0",null,null,null,null,null,null,null,null,null,null,null,null,null,null,null,null,null,null,null,null,null,null,null,null,null,null,null,null,null,null,null,null,null,null,null,84,1,null,null,null,"N",null,null,null,null,"N",null,null,null,null,"F"]
[2009,19436,"Union Electric Co","Investor Owned","SERC",35098274,13964208,10537,null,"29493",null,10537,null,"29493",null,1,null,"5",null,1,null,"5",null,"3",null,"156",null,"3",null,"156",null,"0",null,"65",null,0,null,65,null,"0",null,"8",null,0,null,"8",null,11601,"1645",455,"35",null,13736,1,"No","Y","Y","Y",360,null,19,null,"Y",37,362,12,null,"F"]
[2009,19446,"Duke Energy Kentucky, Inc.","Investor Owned","RFC",3838465,659798,2739,"4091","1838",null,17257,28625,"10497",null,1,"9","4",null,9,"7","2",null,null,null,null,null,null,null,null,null,"2",null,"9",null,9,5,12,null,null,null,null,null,null,null,null,null,1149,"560",525,"376",132,2742,1,null,null,null,"Y",9885,5,5,null,"Y",null,127,111,null,"F"]
[2009,19490,"United Electric Coop Service Inc","Cooperative","TRE",1837820,null,1757,"0","0","0",4586,23,"0","0",1,"0","0","0",1,"0","0","0","28","12","15","0","28","12","15","0","2","1","1","0",2,1,1,"0","1","1","1","0",1,1,"1","0",108,"0",0,"0",0,108,1,null,null,null,"N",null,null,null,null,"N",null,null,null,null,"F"]
[2009,19497,"United Illuminating Co","Investor Owned","NPCC",2651826,null,18184,"34067","8781",null,58538,438045,"145742",null,3,"6","2",null,18,"73","23",null,null,null,null,null,null,null,null,null,null,"42","24",null,null,null,null,null,null,"46","26",null,null,null,null,null,6845,"15693",2144,"4546",702,29930,1,null,null,null,"Y",0,99,83,null,"Y",null,431,3173,null,"F"]
[2009,19499,"United Power, Inc","Cooperative","WECC",1197966,null,30,"10",null,null,365,115,null,null,1,"1",null,null,12,"4",null,null,"1","20",null,null,"12","238",null,null,"2","3",null,null,24,16,null,null,"2","3",null,null,13,15,null,null,241,"238",120,"45",4,648,1,null,null,null,"Y",1500,null,null,null,"N",999,167,540,null,"F"]
[2009,19547,"Hawaiian Electric Co Inc","Investor Owned","HI",7377537,null,null,null,null,null,226319,354846,null,null,null,null,null,null,51,"51",null,null,null,null,null,null,null,null,null,null,null,null,null,null,29,29,null,null,null,null,null,null,null,null,null,null,2397,"8706",2431,"3930",null,17464,1,null,null,"Y","Y",38900,210,null,null,"Y",8,27,6,null,"F"]
[2009,19687,"City of Valley City","Municipal","MRO",109417,null,null,null,null,null,null,null,null,null,null,null,null,null,null,null,null,null,null,null,null,null,null,null,null,null,null,null,null,null,8,null,null,null,null,null,null,null,8,null,null,null,null,null,null,null,null,273,1,null,null,null,"Y",357,115,0,0,"N",null,null,null,null,"F"]
[2009,19728,"UNS Electric, Inc","Investor Owned","WECC",1784402,153911,8404,"3172",null,null,9549,3172,null,null,2,"1",null,null,3,"1",null,null,null,null,null,null,null,null,null,null,null,null,null,null,null,null,null,null,null,null,null,null,null,null,null,null,777,"660",null,null,null,1437,1,null,null,null,"N",null,null,null,null,"Y",107,10,7,null,"F"]
[2009,19788,"City of Vermillion","Municipal","MRO",62286,null,null,null,null,null,null,null,null,null,null,null,null,null,null,null,null,null,"1",null,null,null,null,null,null,null,"0",null,null,null,null,null,null,null,"0",null,null,null,null,null,null,null,null,null,null,null,null,57,1,null,null,null,"N",null,null,null,null,"N",null,null,null,null,"F"]
[2009,19790,"Verendrye Electric Coop Inc","Cooperative","MRO",440125,0,1,"1","0","0",9,3,"0","0",1,"1","0","0",8,"3","0","0","1","1","0","0","10","3","0","0","1","1","0","0",13,3,0,"0","1","1","0","0",13,0,"0","0",20,"0",100,"97",52,269,1,null,null,null,"N",null,null,null,null,"N",null,null,null,null,"F"]
[2009,19813,"Vernon Electric Coop","Cooperative","RFC",144776,null,217,null,"247",null,null,null,null,null,null,null,null,null,null,null,null,null,"43",null,null,null,null,null,null,null,null,null,null,null,null,null,null,null,null,null,null,null,null,null,null,null,null,null,null,null,null,470,1,null,null,null,"Y",null,15,null,null,"N",null,null,null,null,"F"]
[2009,19865,"Vinton City of","Municipal","MRO",37836,572,128,"16","0","0",null,null,null,null,0,"0","0","0",null,null,null,null,null,null,null,null,null,null,null,null,null,null,null,null,null,null,null,null,null,null,null,null,null,null,null,null,null,null,null,null,null,25,1,null,null,"N","N",null,null,null,null,"N",null,null,null,null,"F"]
[2009,19876,"Virginia Electric & Power Co","Investor Owned","SERC",77753563,3759290,null,null,null,null,168076,null,null,null,null,null,null,null,121,null,null,null,null,null,null,null,null,"2069",null,null,null,null,null,null,null,34,null,null,null,null,null,null,null,30,null,null,0,"1422",0,"4685",0,6107,1,null,null,"Y","N",null,null,null,null,"Y",10082,6325,319,null,"F"]
[2009,19896,"City of Volga","Municipal","MRO",44841,null,null,null,null,null,null,null,null,null,null,null,null,null,null,null,null,null,null,null,null,null,null,null,null,null,"1",null,null,null,1,null,null,null,"0",null,null,null,0,null,null,null,null,null,null,null,null,40,1,null,null,null,"Y",200,null,null,null,"N",null,null,null,null,"F"]
[2009,19947,"City of Wadena","Municipal","MRO",67435,null,17,"33",null,null,null,null,null,null,13,"8",null,null,null,null,null,null,null,null,null,null,null,null,null,null,"4","1","1",null,null,null,null,null,"4","1","1",null,null,null,null,null,null,null,null,null,null,83,1,null,null,null,"N",null,null,null,null,"N",null,null,null,null,"F"]
[2009,19968,"Wahoo City of","Municipal","SPP",57525,2671,null,null,null,null,null,null,null,null,null,null,null,null,null,null,null,null,null,null,null,null,null,null,null,null,"1","1",null,null,null,null,null,null,"1","1",null,null,null,null,null,null,null,null,null,null,null,22,1,null,null,null,"N",null,null,null,null,"N",null,null,null,null,"F"]
[2009,19981,"Wake Electric Membership Corp","Cooperative","SERC",636424,0,null,null,null,null,null,null,null,null,null,null,null,null,null,null,null,null,null,null,null,null,null,null,null,null,null,null,null,null,null,null,null,null,null,null,null,null,null,null,null,null,153,"1",null,"0",null,154,1,"North Carolina EMC",null,null,"N",null,null,null,null,"Y",180,5,0,null,"F"]
[2009,20025,"City of Wall Lake","Municipal","MRO",10959,null,null,null,null,null,null,null,null,null,null,null,null,null,null,null,null,null,null,null,null,null,null,null,null,null,null,null,null,null,null,null,null,null,null,null,null,null,null,null,null,null,null,null,null,null,null,1,1,null,null,null,"N",null,null,null,null,"N",null,null,null,null,"F"]
[2009,20136,"City of Waseca","Municipal","MRO",61511,null,110,null,null,null,null,null,null,null,null,null,null,null,null,null,null,null,"9","1",null,null,null,null,null,null,null,null,null,null,null,null,null,null,null,null,null,null,null,null,null,null,null,null,null,null,null,119,1,null,null,null,"N",null,null,null,null,"N",null,null,null,null,"F"]
[2009,20151,"Washington Electric Coop Inc","Cooperative","NPCC",68408,null,null,null,null,null,1,null,null,null,null,null,null,null,null,null,null,null,null,null,null,null,null,null,null,null,null,null,null,null,null,null,null,null,null,null,null,null,null,null,null,null,null,null,null,null,null,450,1,null,"Y",null,"N",null,null,null,null,"N",null,null,null,null,"F"]
[2009,20169,"Avista Corp","Investor Owned","WECC",8954984,4737063,34647,"41706","4477","0",417421,502467,"53938","0",6,"7","1","0",73,"88","10","0",null,null,null,null,null,null,null,null,null,null,null,null,null,null,null,null,null,null,null,null,null,null,null,null,17557,null,null,null,null,17557,1,null,null,null,"Y",68,null,null,null,"N",null,null,null,null,"F"]
[2009,20187,"Watertown Municipal Utilities","Municipal","MRO",346298,null,12,null,"1362",null,12,null,"1362",null,null,null,null,null,null,null,null,null,null,null,null,null,null,null,null,null,null,null,null,null,null,null,null,null,null,null,null,null,null,null,null,null,null,"128",null,null,null,128,1,null,"Y",null,"N",null,null,null,null,"N",null,null,null,null,"F"]
[2009,20214,"Waverly Municipal Elec Utility","Municipal","MRO",138361,24568,356,"15",null,null,null,null,null,null,null,null,null,null,null,null,null,null,null,null,null,null,null,null,null,null,null,null,null,null,null,null,null,null,null,null,null,null,null,null,null,null,287,"0",0,"0",0,287,1,null,null,null,"N",null,null,null,null,"Y",0,1,2,null,"F"]
[2009,20219,"City of Wayne","Municipal","MRO",55723,0,null,null,null,null,null,null,null,null,null,null,null,null,null,null,null,null,null,null,null,null,null,null,null,null,null,null,null,null,null,null,null,null,null,null,null,null,null,null,null,null,null,null,null,null,null,93,1,null,null,null,"N",null,null,null,null,"N",null,null,null,null,"F"]
[2009,20259,"City of Webster City","Municipal","MRO",124578,8856,64,"1","158",null,null,null,null,null,0,"0","0","0",null,null,null,null,null,null,null,null,null,null,null,null,null,null,null,null,null,null,null,null,null,null,null,null,null,null,null,null,null,null,null,null,null,50,1,null,null,null,"N",null,null,null,null,"N",null,null,null,null,"F"]
[2009,20310,"Wellesley Town of","Municipal","NPCC",235923,null,null,null,null,null,null,null,null,null,null,null,null,null,null,null,null,null,null,"3",null,null,null,null,null,null,null,null,null,null,null,null,null,null,null,null,null,null,null,null,null,null,null,null,null,"9",null,9,1,null,"Y",null,"N",null,null,null,null,"N",null,null,null,null,"F"]
[2009,20364,"City of West Bend","Municipal","MRO",14248,null,4,"0","0","0",null,null,null,null,0,"0","0","0",null,null,null,null,null,null,null,null,null,null,null,null,null,null,null,null,null,null,null,null,null,null,null,null,null,null,null,null,null,null,null,null,null,3,1,null,null,null,"N",null,null,null,null,"N",0,0,9,0,"F"]
[2009,20396,"West Point Utility System","Municipal","MRO",12020,null,22,"0","0","0",null,null,null,null,0,"0","0","0",null,null,null,null,"0","0","0","0",null,null,null,null,"0","0","0","0",null,null,null,null,"0","0","0","0",null,null,null,null,null,null,null,null,null,25,1,null,"N",null,"Y",0,0,1,0,"N",null,null,null,null,"F"]
[2009,20404,"AEP Texas North Company","Investor Owned","TRE",null,1608890,2363,"6050",null,null,40173,45042,"50276",null,1,"2",null,null,7,"9","6",null,null,"5",null,null,null,null,null,null,null,"1",null,null,null,null,null,null,null,"1",null,null,null,null,null,null,null,"1081",null,"26",269,1376,1,null,null,"Y","Y",null,1,null,null,"N",null,null,null,null,"F"]
[2009,20447,"Western Farmers Elec Coop, Inc","Cooperative","SPP",null,7286159,null,null,null,null,null,null,null,null,null,null,null,null,null,null,null,null,null,null,null,null,null,null,null,null,null,null,"11",null,null,2,33,null,null,null,null,null,null,null,null,null,0,"0",0,"0",0,0,1,null,null,null,"Y",null,2,9,null,"N",null,null,null,null,"F"]
[2009,20455,"Western Massachusetts Elec Co","Investor Owned","NPCC",1790719,197521,12613,"12480","8247","0",112155,268651,"119200","0",1,"2","1","0",8,"55","20","0",null,"0","0",null,null,"0","0",null,"0","2","7",null,null,0,0,null,null,null,null,null,null,null,null,null,4246,"8020",0,"0",164,12430,1,"None","Y",null,"Y",null,3,1,null,"N",null,null,null,null,"F"]
[2009,20472,"Wharton County Elec Coop, Inc","Cooperative","TRE",170768,null,null,null,null,null,null,null,null,null,null,null,null,null,null,null,null,null,null,null,null,null,null,null,null,null,"2",null,"10",null,2,null,10,null,"1",null,"6",null,1,null,"6",null,null,null,null,"10",null,10,1,null,null,null,"N",null,null,null,null,"N",null,null,null,null,"F"]
[2009,20477,"City of Westerville","Municipal","RFC",474679,null,null,null,null,null,null,null,null,null,null,null,null,null,null,null,null,null,null,null,null,null,null,null,null,null,null,null,null,null,null,2,null,null,null,null,null,null,null,0,null,null,null,null,null,"8",null,8,1,null,"Y","Y","Y",null,1,null,null,"N",null,null,null,null,"F"]
[2009,20574,"White River Valley El Coop Inc","Cooperative","SERC",714394,null,null,null,null,null,null,null,null,null,null,null,null,null,null,null,null,null,null,null,null,null,null,null,null,null,null,null,null,null,null,null,null,null,null,null,null,null,null,null,null,null,12,null,null,"620",22,654,1,null,null,null,"N",null,null,null,null,"N",null,null,null,null,"F"]
[2009,20618,"Town of Wickenburg","Municipal","WECC",25732,null,null,null,null,null,null,null,null,null,null,null,null,null,null,null,null,null,null,null,null,null,null,null,null,null,null,null,null,null,null,null,null,null,null,null,null,null,null,null,null,null,null,null,null,null,null,261,1,null,null,null,"N",null,null,null,null,"N",null,null,null,null,"F"]
[2009,20737," Willmar Municipal Utilities","Municipal","MRO",273448,null,280,"333","2",null,281,334,"2",null,2,"0","0",null,0,"0","0",null,"22","36","0",null,"82","236","0",null,null,"315","0",null,7,2,1,null,"0","0","0",null,0,0,null,null,43,"70",63,"71",38,285,1,null,null,null,"Y",1958,109,null,null,"N",null,null,null,null,"F"]
[2009,20806,"City of Windom","Municipal","MRO",68053,null,129,"4","1510",null,null,null,null,null,0,"0","0",null,null,null,null,null,null,null,null,null,null,null,null,null,null,null,null,null,null,null,null,null,null,null,null,null,null,null,null,null,null,null,null,null,null,118,1,null,null,null,"N",null,null,null,null,"N",null,null,null,null,"F"]
[2009,20847,"Wisconsin Electric Power Co","Investor Owned","RFC",25817717,3815452,null,"6346","6346",null,30323,129499,"305478",null,null,"1","1",null,4,"36","257",null,null,null,null,null,"8625","39",null,null,"2",null,null,null,42,null,422,null,null,null,null,null,7,null,null,null,1674,"1343",1698,null,2656,7371,1,"No","Y",null,"Y",9350,null,22,null,"Y",25414,4977,4977,null,"F"]
[2009,20856,"Wisconsin Power & Light Co","Investor Owned","MRO",9858145,5141244,null,"18568","43326",null,83661,307685,"717932",null,null,"3","6",null,15,"53","124",null,null,null,null,null,null,null,null,null,null,null,null,null,7,null,147,null,null,null,null,null,null,null,null,null,6202,"6635",85,null,null,12922,1,null,"Y",null,"Y",10720,null,92,null,"Y",3312,2193,942,66,"F"]
[2009,20858,"WPPI Energy","Municipal Mktg Authority","MRO",0,5231672,7300,"12000","36000",null,null,null,null,null,null,null,null,null,null,null,null,null,"1","3","7",null,null,null,null,null,null,null,null,null,null,null,null,null,null,null,null,null,null,null,null,null,638,"2897",null,"1624",1300,6459,1,null,null,"N","Y",null,0,25,null,"N",0,0,0,0,"F"]
[2009,20860,"Wisconsin Public Service Corp","Investor Owned","MRO",10402358,4817740,null,null,null,null,null,null,null,null,null,null,null,null,null,null,null,null,null,null,null,null,null,null,null,null,"31","23","305",null,31,23,305,null,"29","19",null,null,29,19,null,null,null,null,null,null,null,0,1,null,null,"Y","Y",23951,988,51,null,"Y",14351,6116,154,null,"F"]
[2009,20885,"Withlacoochee River Elec Coop","Cooperative","FRCC",3772404,null,null,null,null,null,null,null,null,null,null,null,null,null,null,null,null,null,"59","16",null,null,"1181","607",null,null,"7","3",null,null,41,21,null,null,"4","2",null,null,24,13,null,null,2,null,3,null,11,16,1,null,null,null,"N",null,null,null,null,"N",null,null,null,null,"F"]
[2009,20945,"City of Wood River","Municipal","MRO",12389,null,null,null,null,null,null,null,null,null,null,null,null,null,null,null,null,null,null,null,null,null,null,null,null,null,null,null,null,null,null,null,null,null,null,null,null,null,null,null,null,null,null,null,null,null,null,10,1,null,null,null,"Y",416,60,0,0,"N",null,null,null,null,"F"]
[2009,20949,"City of Woodbine","Municipal","MRO",14805,null,37,"20","0","0",null,null,null,null,0,"0","0","0",null,null,null,null,null,null,null,null,null,null,null,null,null,null,null,null,null,null,null,null,null,null,null,null,null,null,null,null,null,null,null,null,null,29,1,null,null,null,"Y",375,7,0,null,"N",null,null,null,null,"F"]
[2009,20963,"Woodruff Electric Coop Corp","Cooperative","SERC",361146,13902,null,null,null,null,null,null,null,null,null,null,null,null,null,null,null,null,null,null,null,null,null,null,null,null,null,null,"3",null,5,null,78,null,null,null,"2",null,1,null,"50",null,null,null,153,null,12,165,1,null,null,null,"N",null,null,null,null,"N",null,null,null,null,"F"]
[2009,20997,"Yellowstone Valley Elec Co-op Inc.","Cooperative","WECC",236385,null,691,null,null,null,1837,184,null,null,1,null,null,null,null,null,null,null,"30",null,null,null,"11169","372",null,null,"1",null,null,null,11,null,null,null,null,null,null,null,11,null,null,null,3,null,43,null,8,54,1,null,null,null,"N",null,null,null,null,"N",null,null,null,null,"F"]
[2009,21013,"City of Worthington","Municipal","MRO",195979,4129,234,"389",null,null,1357,3478,"2661",null,null,null,null,null,1,"2",null,null,null,null,null,null,null,null,null,null,null,null,null,null,null,null,null,null,null,null,null,null,null,null,null,null,69,"65",null,null,null,134,1,null,null,null,"N",null,null,null,null,"N",null,null,null,null,"F"]
[2009,21075,"Y-W Electric Assn Inc","Cooperative","WECC",289107,12249,null,null,null,null,null,null,null,null,null,null,null,null,null,null,null,null,null,null,"375",null,null,null,null,null,null,null,"16",null,null,null,null,null,null,null,"6",null,null,null,null,null,null,null,null,null,135,135,1,null,null,null,null,null,null,null,null,"N",null,null,null,null,"F"]
[2009,21239,"Electrical Dist No7 Maricopa","Political Subdivision","WECC",26291,null,null,null,null,null,null,null,null,null,null,null,null,null,null,null,null,null,null,null,null,null,null,null,null,null,null,null,null,null,null,null,null,null,null,null,null,null,null,null,null,null,null,null,null,null,null,3,1,null,null,null,"N",null,null,null,null,"N",null,null,null,null,"F"]
[2009,21244,"Southside Electric Coop, Inc","Cooperative","SERC",838341,null,null,null,null,null,null,null,null,null,null,null,null,null,null,null,null,null,null,null,null,null,null,null,null,null,null,null,null,null,8,null,7,null,null,null,null,null,8,null,"2",null,0,"0",41,"0",15,56,1,null,null,null,"N",null,null,null,null,"N",null,null,null,null,"F"]
[2009,21352,"Municipal Energy Agency of NE","Political Subdivision","MRO",null,3151305,0,"1100","0","0",0,1100,"0","0",0,"0","0","0",0,"0","0","0",null,null,null,null,null,null,null,null,null,null,null,null,null,null,null,null,null,null,null,null,null,null,null,null,0,"55",0,"0",0,55,1,"See list on Schedule 9","Y","Y","N",null,null,null,null,"N",null,null,null,null,"F"]
[2009,21538,"Mohave Electric Cooperative, Inc","Cooperative","WECC",687670,16842,null,null,null,null,null,null,null,null,null,null,null,null,null,null,null,null,null,null,null,null,null,null,null,null,null,null,null,null,null,null,null,null,null,null,null,null,null,null,null,null,1211,null,null,null,null,1211,1,null,null,null,"N",null,null,null,null,"N",null,null,null,null,"F"]
[2009,22053,"Kentucky Power Co","Investor Owned","RFC",7068456,3939203,1396,"0","0","0",9751,0,"0","0",2,"0","0","0",9,"0","0","0","0","0","0","0","0","0","0","0","0","0","0","0",0,0,0,"0","0","0","0","0",0,0,"0","0",628,"315",0,"0",0,943,1,"N/A",null,null,"Y",0,0,0,0,"Y",324,143,21,0,"F"]
[2009,22500,"Westar Energy Inc","Investor Owned","SPP",9433354,7840380,null,null,null,null,null,null,null,null,null,null,null,null,null,null,null,null,null,null,null,null,null,null,null,null,null,null,null,null,null,null,55,null,null,null,null,null,null,null,null,null,null,null,1114,null,null,1114,1,null,null,null,"N",null,null,null,null,"N",null,null,null,null,"F"]
[2009,24211,"Tucson Electric Power Co","Investor Owned","WECC",9370743,4653090,45334,"20402",null,null,102386,59287,null,null,9,"5",null,null,39,"15",null,null,null,null,null,null,null,null,null,null,null,null,null,null,null,null,null,null,null,null,null,null,null,null,null,null,3454,"3933",0,"0",0,7387,1,null,null,"N","N",null,null,null,null,"Y",8193,966,61,0,"F"]
[2009,24431,"Utah Municipal Power Agency","Municipal Mktg Authority","WECC",null,1572504,2,"566",null,null,434,14119,null,null,null,"1",null,null,null,"6",null,null,null,null,null,null,null,null,null,null,null,null,null,null,null,null,null,null,null,null,null,null,null,null,null,null,965,null,null,null,10,975,1,null,null,null,"N",null,null,null,null,"N",null,null,null,null,"F"]
[2009,24590,"Unitil Energy Systems","Investor Owned","NPCC",883890,2193,377,"974","3287",null,193317,13935,"28467",null,0,"0","1",null,4,"3","5",null,null,null,null,null,null,null,null,null,null,null,null,null,null,null,null,null,null,null,null,null,null,null,null,null,1571,"126",null,null,null,1697,1,null,null,null,"N",null,null,null,null,"N",null,null,null,null,"F"]
[2009,24949,"Cass County Electric Coop Inc","Cooperative","MRO",968569,null,135,"0","0","0",2671,0,"0","0",1,"0","0","0",3,"0","0","0","261","81","0","0","14045","3972","0","0","3","1","0","0",112,110,0,"0","1","0","0","0",45,44,"0","0",25,null,350,null,60,435,1,null,"Y",null,"Y",null,null,null,null,"N",null,null,null,null,"F"]
[2009,26218,"Little Ocmulgee El Member Corp","Cooperative","SERC",184324,null,null,null,null,null,null,null,null,null,null,null,null,null,null,null,null,null,null,null,null,null,null,null,null,null,null,null,"5",null,null,null,5,null,null,null,"3",null,null,null,"3",null,null,null,20,null,null,20,1,null,null,null,"N",null,null,null,null,"N",null,null,null,null,"F"]
[2009,26510,"Granite State Electric Co","Investor Owned","NPCC",599938,null,1408,"2822","1730",null,14755,36046,"22092",null,0,"1","0",null,3,"8","5",null,null,null,null,null,null,null,null,null,null,null,null,null,null,null,null,null,null,null,null,null,null,null,null,null,1227,"675",3,null,147,2052,1,null,null,null,"Y",null,5,null,null,"N",null,null,null,null,"F"]
[2009,26939,"Red River Valley Coop Pwr Assn","Cooperative","MRO",145607,null,406,"78",null,null,null,null,null,null,null,null,null,null,null,null,null,null,"58",null,null,null,null,null,null,null,"28",null,null,null,null,null,null,null,null,null,null,null,null,null,null,null,null,null,null,null,null,212,1,null,null,"Y","N",null,null,null,null,"N",null,null,null,null,"F"]
[2009,27269,"City of Stanhope","Municipal","MRO",2765,null,2,"0","0","0",null,null,null,null,0,"0","0","0",null,null,null,null,null,null,null,null,null,null,null,null,null,null,null,null,null,null,null,null,null,null,null,null,null,null,null,null,null,null,null,null,null,2,1,null,null,null,"N",null,null,null,null,"N",null,null,null,null,"F"]
[2009,29295,"City of Wells","Municipal","MRO",16419,null,null,null,null,null,null,null,null,null,null,null,null,null,null,null,null,null,null,null,null,null,null,null,null,null,null,null,null,null,null,null,null,null,null,null,null,null,null,null,null,null,null,null,null,null,null,5,1,null,null,null,"N",null,null,null,null,"N",null,null,null,null,"F"]
[2009,30518,"Electrical Dist No3 Pinal Cnty","Political Subdivision","WECC",541635,null,null,null,null,null,null,null,null,null,null,null,null,null,null,null,null,null,null,null,null,null,null,null,null,null,null,null,null,null,null,null,null,null,null,null,null,null,null,null,null,null,null,null,null,null,994,994,1,null,null,null,"N",null,null,null,null,"Y",212,null,null,null,"F"]
[2009,40051,"Texas-New Mexico Power Co","Investor Owned","TRE",null,null,null,null,null,null,5670,5738,null,null,null,null,null,null,2,"2",null,null,null,null,null,null,null,null,null,null,null,null,null,null,null,null,null,null,null,null,null,null,null,null,null,null,null,null,null,null,null,0,1,null,"Y",null,"N",null,null,null,null,"N",null,null,null,null,"F"]
[2009,40165,"Dixie Escalante R E A, Inc","Cooperative","WECC",370995,null,null,null,null,null,null,null,null,null,null,null,null,null,null,null,null,null,null,null,null,null,null,null,null,null,null,"1",null,null,null,8,null,null,null,"1",null,null,null,5,null,null,null,null,3,"129",3,135,1,null,null,null,"N",null,null,null,null,"N",null,null,null,null,"F"]
[2009,40211,"Wabash Valley Power Assn, Inc","Cooperative","RFC,SERC",null,11965082,null,null,null,null,null,null,null,null,null,null,null,null,null,null,null,null,null,null,null,null,null,null,null,null,null,null,null,null,28,null,null,null,null,null,null,null,20,null,null,null,null,null,107,null,174,281,1,null,null,null,"N",null,null,null,null,"N",null,null,null,null,"F"]
[2009,40212,"Colquitt Electric Membership Corp","Cooperative","SERC",1171932,null,null,null,null,null,null,null,null,null,null,null,null,null,null,null,null,null,null,null,"27",null,null,"19","827",null,null,null,"3",null,null,1,39,null,null,null,"1",null,null,1,"38",null,null,null,38,null,2,40,1,null,null,null,"Y",null,7,1089,null,"N",null,null,null,null,"F"]
[2009,40228,"Rappahannock Electric Coop","Cooperative","SERC",2507087,null,null,null,null,null,null,null,null,null,null,null,null,null,null,null,null,null,null,null,null,null,null,null,null,null,"1",null,"1",null,65,null,21,null,"0",null,null,null,63,null,"13",null,null,null,1063,null,null,1063,1,null,null,null,"N",null,null,null,null,"N",null,null,null,null,"F"]
[2009,40355,"Maricopa County M W C Dist #1","Political Subdivision","WECC",33175,null,null,null,null,null,null,null,null,null,null,null,null,null,null,null,null,null,null,null,null,null,null,null,null,null,null,null,null,null,null,null,null,null,null,null,null,null,null,null,null,null,null,null,null,null,null,415,1,null,null,null,"N",null,null,null,null,"N",null,null,null,null,"F"]
[2009,40357,"Electrical Dist No6 Pinal Cnty","Political Subdivision","WECC",17828,null,null,null,null,null,null,null,null,null,null,null,null,null,null,null,null,null,null,null,null,null,null,null,null,null,null,null,null,null,null,null,null,null,null,null,null,null,null,null,null,null,null,null,null,null,null,null,1,null,null,null,"N",null,null,null,null,"N",null,null,null,null,"F"]
[2009,40435,"City of White","Municipal","MRO",3952,null,null,null,null,null,null,null,null,null,null,null,null,null,null,null,null,null,"0",null,null,null,null,null,null,null,"0",null,null,null,null,null,null,null,"0",null,null,null,null,null,null,null,null,null,null,null,null,2,1,null,null,null,"N",null,null,null,null,"N",null,null,null,null,"F"]
[2009,40437,"Emerald People's Utility Dist","Political Subdivision","WECC",425713,40271,1132,"585","544",null,null,null,null,null,null,null,null,null,null,null,null,null,null,null,null,null,null,null,null,null,null,null,null,null,null,null,null,null,null,null,null,null,null,null,null,null,null,"437",null,null,312,749,1,null,null,null,"N",null,null,null,null,"N",null,null,null,null,"F"]
[2009,40438,"Columbia River Peoples Ut Dist","Political Subdivision","WECC",471726,null,1392,"37","530",null,4551,null,"6965",null,null,null,null,null,null,null,null,null,null,null,null,null,null,null,null,null,null,null,null,null,null,null,null,null,null,null,null,null,null,null,null,null,293,"406",null,null,null,699,1,null,null,null,"N",null,null,null,null,"N",null,null,null,null,"F"]
[2009,40575,"Utah Associated Mun Power Sys","Political Subdivision","WECC",null,5107053,null,null,null,null,null,null,null,null,null,null,null,null,null,null,null,null,null,null,null,null,null,null,null,null,null,null,null,null,null,null,null,null,null,null,null,null,null,null,null,null,51,"65",null,null,null,116,1,"No",null,null,"N",null,null,null,null,"N",null,null,null,null,"F"]
[2009,40614,"Alabama Municipal Elec Authority","Municipal Mktg Authority","SERC",null,3284077,null,null,null,null,null,null,null,null,null,null,null,null,null,null,null,null,null,null,null,null,null,null,null,null,null,null,null,null,9,null,null,null,null,null,null,null,6,null,null,null,null,"0",194,"0",0,194,1,null,null,null,"N",null,null,null,null,"N",null,null,null,null,"F"]
[2009,44372,"Oncor Electric Delivery Company, LLC","Investor Owned","TRE",null,null,133916,"133916",null,null,1004947,1023835,null,null,40,"29",null,null,423,"209",null,null,null,null,null,null,null,null,null,null,null,null,null,null,null,null,null,null,"3","27",null,null,3,27,null,null,4111,"41834",255,"1370",736,48306,1,null,null,null,"Y",2545,36,0,0,"N",null,null,null,null,"F"]
[2009,49808,"Elec District No. 5 Maricopa C","Political Subdivision","WECC",6805,null,null,null,null,null,null,null,null,null,null,null,null,null,null,null,null,null,null,null,null,null,null,null,null,null,null,null,null,null,null,null,null,null,null,null,null,null,null,null,null,null,null,null,null,null,null,null,1,null,null,null,"N",null,null,null,null,"N",null,null,null,null,"F"]
[2009,55937,"Entergy Texas Inc.","Investor Owned","SERC",15445660,3861287,21844,"12126",null,null,null,null,null,null,8,"6",null,null,null,null,null,null,null,null,null,null,null,null,null,null,null,"2",null,null,null,null,null,null,null,"2",null,null,null,null,null,null,286,"7499",null,"85",null,7870,1,null,null,"Y","Y",null,3,null,null,"N",null,null,null,null,"F"]
[2009,55959,"Roughrider Electric Cooperative","Cooperative","TRE",473801,3297,null,null,null,null,null,null,null,null,null,null,null,null,null,null,null,null,null,null,null,null,null,null,null,null,"1",null,null,null,4,2,null,null,"1",null,null,null,3,2,null,null,null,null,68,null,null,68,1,null,null,null,"N",null,null,null,null,"N",null,null,null,null,"F"]
[2009,56224,"Rancho Cucamonga Municipal Utility","Municipal","WECC",64356,26280,null,"13",null,null,null,20,null,null,null,null,null,null,null,"0",null,null,null,null,null,null,null,null,null,null,null,null,null,null,null,null,null,null,null,null,null,null,null,null,null,null,null,null,null,null,null,27,1,null,null,null,"N",null,null,null,null,"Y",null,13,null,null,"F"]